Workbook

Sheet Table Values
I4: ATTRIBUTES
I5: Thermal | P5: Visual | Z5: Cost | AE5: Ease
I6: Insulation | J6: Airtightness | K6: Solar Heat Control | L6: Winter Comfort | M6: Summer Comfort | N6: Condensation Resistance | O6: Ventilation | P6: View | Q6: Visible Transmittance (VT) | R6: Daylighting | S6: Glare Control | T6: Privacy | U6: Prime Window Protection | V6: Egress | W6: Security | X6: Noise Control | Y6: Sound Abosrption | Z6: Product Cost - Stock/Cut to fit | AA6: Product Cost - Custom | AB6: Installation Cost - Pro | AC6: Installation Cost - DIY | AD6: Durability - Service Life | AE6: Operation | AF6: Cleaning
H7: Value | I7: 8 | J7: 6 | K7: 7 | L7: 6 | M7: 6 | N7: 7 | O7: 5 | P7: 5 | Q7: 8 | R7: 4 | S7: 4 | T7: 5 | U7: 4 | V7: 4 | W7: 4 | X7: 4 | Y7: 4 | Z7: 8 | AA7: 8 | AB7: 4 | AC7: 4 | AD7: 7 | AE7: 6 | AF7: 3
H8: 1 | I8: no insulation value | J8: no contribution | K8: no contribution | L8: no contribution | M8: no contribution | N8: Inferior | O8: blocks completely | P8: total obstruction | Q8: blackout | R8: no daylighting control | S8: no glare control | T8: no privacy | U8: no protection | V8: infeasible | W8: no contribution | X8: no contribution | Y8: no contribution | Z8: > $500 | AA8: > $500 | AB8: > $150 | AC8: > $150 | AD8: seasonal | AE8: unadjustable / impedes operation | AF8: freq & difficult cleaning req
H9: 2 | I9: R - .5 | J9: minimal | K9: SHGC reduction 0.1 | L9: minimal | M9: minimal | N9: Modest decrease | O9: significant restriction when deployed | P9: Significant restriction | Q9: VT Reduction 0.6+ | R9: Fixed control/ 1-D | S9: Fixed control/ 1-D | T9: Fixed - minimal | U9: min protection | V9: major impediment | W9: visual protection | X9: incidental | Y9: incidental | Z9: $400 - $499 | AA9: $400 - $499 | AB9: $75 - $149 | AC9: $75 - $149 | AD9: <1 yr | AE9: operation requires going outside and-or a ladder | AF9: freq or difficult cleaning req
H10: 3 | I10: R - 1 | J10: below average | K10: SHGC reduction 0.2 | L10: below average | M10: below average | N10: Minimal decrease | O10: minor restriction when deployed | P10: 1-D adjustable OR moderate obstruction | Q10: VT Reduction 0.5 | R10: Adjustable control/ 2-D (MS 1-D) | S10: Adjustable control/ 2-D (MS 1-D) | T10: 1-D adjustable / Average | U10: modest pro | V10: minor impediment | W10: incidental but significant protection | X10: signficant | Y10: signficant | Z10: $300 - $399 | AA10: $300 - $399 | AB10: $1 - $74 | AC10: $1 - $74 | AD10: 1 - 2 year | AE10: operation difficult | AF10: easy
H11: 4 | I11: R - 1.5 | J11: modest | K11: SHGC reduction 0.3 | L11: modest | M11: modest | N11: no contribution | O11: adjustable for ventilation | P11: 2-D adjustable OR minor obstruction | Q11: VT Reduction 0.4 | R11: motorized, sensor control/ 2-D | S11: motorized, sensor control/ 2-D | T11: 2-D adjustable or high | U11: max protection | V11: no impediment | W11: major protection by design | X11: designed primarily for | Y11: designed primarily for | Z11: $200 - $299 | AA11: $200 - $299 | AB11: DIY | AC11: DIY | AD11: 2 - 5 year | AE11: manual but easy
H12: 5 | I12: R - 2 | J12: above average | K12: SHGC reduction 0.4 | L12: above average | M12: above average | N12: minimal increase | O12: no obstruction | P12: no obstruction | Q12: VT Reduction 0.3 | T12: Fixed or adjustible - maximum | Z12: $100 - $199 | AA12: $100 - $199 | AD12: 5 - 10 year | AE12: motorized, sensor driven
H13: 6 | I13: R - 2.5 | J13: superior | K13: SHGC reduction 0.5 | L13: superior | M13: superior | N13: modest increase | Q13: VT Reduction 0.2 | Z13: $50 - $99 | AA13: $50 - $99 | AD13: 10 - 20 year | AE13: does not interfere or require
H14: 7 | I14: R - 3 | K14: SHGC reduction 0.6+ | N14: superior | Q14: VT Reduction 0.1 | Z14: $16 - $49 | AA14: $16 - $49 | AD14: > 20
F15: LCM: | G15: =LCM(I7:AF7) -> 840 | H15: 8 | I15: R - 3+ | Q15: No Reduction | Z15: $15 or less | AA15: $15 or less
I16: DCC | J16: PY | K16: DCC | L16: RH | M16: RH | N16: DCC | O16: PY | P16: PY | Q16: DCC | R16: DCC | S16: DCC | T16: PY | U16: PY | V16: RH | W16: RH | X16: PY | Y16: PY | Z16: PY | AA16: PY | AB16: PY | AC16: PY | AD16: RH | AE16: RH | AF16: DCC
A17: 1 | B17: Exterior storm | C17: tracked | D17: low-e | E17: HSG | I17: 4 | J17: 5 | K17: 3 | L17: 5 | M17: 4 | N17: 7 | O17: 4 | P17: 5 | Q17: 6 | R17: 1 | S17: 1 | T17: 1 | U17: 4 | V17: 3 | W17: 3 | X17: 3 | Y17: 1 | Z17: 4 | AA17: 4 | AB17: 2 | AC17: 2 | AD17: 7 | AE17: 4 | AF17: 3
A18: 2 | B18: Exterior storm | C18: tracked | D18: low-e | E18: LSG | I18: 5 | J18: 5 | K18: 4 | L18: 5 | M18: 5 | N18: 7 | O18: 4 | P18: 5 | Q18: 5 | R18: 1 | S18: 1 | T18: 1 | U18: 4 | V18: 3 | W18: 3 | X18: 3 | Y18: 1 | Z18: 4 | AA18: 4 | AB18: 2 | AC18: 2 | AD18: 7 | AE18: 4 | AF18: 3
A19: 3 | B19: Exterior storm | C19: tracked | D19: clear | I19: 3 | J19: 5 | K19: 1 | L19: 4 | M19: 2 | N19: 6 | O19: 4 | P19: 5 | Q19: 7 | R19: 1 | S19: 1 | T19: 1 | U19: 4 | V19: 3 | W19: 3 | X19: 3 | Y19: 1 | Z19: 5 | AA19: 5 | AB19: 2 | AC19: 2 | AD19: 7 | AE19: 4 | AF19: 3
A20: 4 | B20: Exterior storm | C20: Fixed | D20: low-e | E20: HSG | I20: 4 | J20: 6 | K20: 3 | L20: 5 | M20: 4 | N20: 7 | O20: 1 | P20: 5 | Q20: 6 | R20: 1 | S20: 1 | T20: 1 | U20: 4 | V20: 2 | W20: 3 | X20: 3 | Y20: 1 | Z20: 5 | AA20: 5 | AB20: 2 | AC20: 2 | AD20: 7 | AE20: 1 | AF20: 3
A21: 5 | B21: Exterior storm | C21: Fixed | D21: low-e | E21: LSG | I21: 5 | J21: 6 | K21: 4 | L21: 5 | M21: 5 | N21: 7 | O21: 1 | P21: 5 | Q21: 5 | R21: 1 | S21: 1 | T21: 1 | U21: 4 | V21: 2 | W21: 3 | X21: 3 | Y21: 1 | Z21: 5 | AA21: 5 | AB21: 2 | AC21: 2 | AD21: 7 | AE21: 1 | AF21: 3
A22: 6 | B22: Exterior storm | C22: Fixed | D22: clear | I22: 3 | J22: 6 | K22: 1 | L22: 4 | M22: 2 | N22: 6 | O22: 1 | P22: 5 | Q22: 7 | R22: 1 | S22: 1 | T22: 1 | U22: 4 | V22: 2 | W22: 3 | X22: 3 | Y22: 1 | Z22: 6 | AA22: 6 | AB22: 2 | AC22: 2 | AD22: 7 | AE22: 1 | AF22: 3
A23: 7 | B23: Interior panel | C23: tracked | D23: glass | E23: low-e | F23: hsg | I23: 4 | J23: 5 | K23: 2 | L23: 5 | M23: 4 | N23: 2 | O23: 4 | P23: 5 | Q23: 6 | R23: 1 | S23: 1 | T23: 1 | U23: 1 | V23: 3 | W23: 3 | X23: 3 | Y23: 1 | Z23: 5 | AA23: 5 | AB23: 3 | AC23: 3 | AD23: 7 | AE23: 4 | AF23: 3
A24: 8 | B24: Interior panel | C24: tracked | D24: glass | E24: low-e | F24: lsg | I24: 5 | J24: 5 | K24: 3 | L24: 5 | M24: 5 | N24: 2 | O24: 4 | P24: 5 | Q24: 5 | R24: 1 | S24: 1 | T24: 1 | U24: 1 | V24: 3 | W24: 3 | X24: 3 | Y24: 1 | Z24: 5 | AA24: 5 | AB24: 3 | AC24: 3 | AD24: 7 | AE24: 4 | AF24: 3
A25: 9 | B25: Interior panel | C25: tracked | D25: glass | E25: clear | I25: 3 | J25: 5 | K25: 1 | L25: 4 | M25: 2 | N25: 3 | O25: 4 | P25: 5 | Q25: 7 | R25: 1 | S25: 1 | T25: 1 | U25: 1 | V25: 3 | W25: 3 | X25: 3 | Y25: 1 | Z25: 6 | AA25: 6 | AB25: 3 | AC25: 3 | AD25: 7 | AE25: 4 | AF25: 3
A26: 10 | B26: Interior panel | C26: tracked | D26: polymer | I26: 3 | J26: 5 | K26: 1 | L26: 4 | M26: 2 | N26: 3 | O26: 4 | P26: 5 | Q26: 7 | R26: 1 | S26: 1 | T26: 1 | U26: 1 | V26: 3 | W26: 3 | X26: 3 | Y26: 1 | Z26: 6 | AA26: 6 | AB26: 3 | AC26: 3 | AD26: 5 | AE26: 4 | AF26: 3
A27: 11 | B27: Interior panel | C27: fixed | D27: glass | E27: low-e | F27: hsg | I27: 4 | J27: 6 | K27: 2 | L27: 5 | M27: 4 | N27: 2 | O27: 1 | P27: 5 | Q27: 6 | R27: 1 | S27: 1 | T27: 1 | U27: 1 | V27: 2 | W27: 3 | X27: 3 | Y27: 1 | Z27: 6 | AA27: 6 | AB27: 3 | AC27: 3 | AD27: 7 | AE27: 1 | AF27: 3
A28: 12 | B28: Interior panel | C28: fixed | D28: glass | E28: low-e | F28: lsg | I28: 5 | J28: 6 | K28: 3 | L28: 5 | M28: 5 | N28: 2 | O28: 1 | P28: 5 | Q28: 5 | R28: 1 | S28: 1 | T28: 1 | U28: 1 | V28: 2 | W28: 3 | X28: 3 | Y28: 1 | Z28: 6 | AA28: 6 | AB28: 3 | AC28: 3 | AD28: 7 | AE28: 1 | AF28: 3
A29: 13 | B29: Interior panel | C29: fixed | D29: glass | E29: clear | I29: 3 | J29: 6 | K29: 1 | L29: 4 | M29: 2 | N29: 3 | O29: 1 | P29: 5 | Q29: 7 | R29: 1 | S29: 1 | T29: 1 | U29: 1 | V29: 2 | W29: 3 | X29: 3 | Y29: 1 | Z29: 7 | AA29: 7 | AB29: 3 | AC29: 3 | AD29: 7 | AE29: 1 | AF29: 3
A30: 14 | B30: Interior panel | C30: fixed | D30: glass - double glazing | E30: low-e | F30: hsg | I30: 6 | J30: 6 | K30: 3 | L30: 6 | M30: 4 | N30: 1 | O30: 1 | P30: 5 | Q30: 5 | R30: 1 | S30: 1 | T30: 1 | U30: 1 | V30: 1 | W30: 3 | X30: 3 | Y30: 1 | Z30: 4 | AA30: 4 | AB30: 3 | AC30: 3 | AD30: 7 | AE30: 1 | AF30: 3
A31: 15 | B31: Interior panel | C31: fixed | D31: glass - double glazing | E31: low-e | F31: lsg | I31: 7 | J31: 6 | K31: 4 | L31: 6 | M31: 5 | N31: 1 | O31: 1 | P31: 5 | Q31: 4 | R31: 1 | S31: 1 | T31: 1 | U31: 1 | V31: 1 | W31: 3 | X31: 3 | Y31: 1 | Z31: 4 | AA31: 4 | AB31: 3 | AC31: 3 | AD31: 7 | AE31: 1 | AF31: 3
A32: 16 | B32: Interior panel | C32: fixed | D32: glass - triple glazing | E32: low-e | F32: hsg | I32: 8 | J32: 6 | K32: 3 | L32: 6 | M32: 5 | N32: 1 | O32: 1 | P32: 5 | Q32: 4 | R32: 1 | S32: 1 | T32: 1 | U32: 1 | V32: 1 | W32: 3 | X32: 3 | Y32: 1 | Z32: 3 | AA32: 3 | AB32: 2 | AC32: 2 | AD32: 7 | AE32: 1 | AF32: 3
A33: 17 | B33: Interior panel | C33: fixed | D33: glass - triple glazing | E33: low-e | F33: lsg | I33: 8 | J33: 6 | K33: 4 | L33: 6 | M33: 6 | N33: 1 | O33: 1 | P33: 5 | Q33: 3 | R33: 1 | S33: 1 | T33: 1 | U33: 1 | V33: 1 | W33: 3 | X33: 3 | Y33: 1 | Z33: 3 | AA33: 3 | AB33: 2 | AC33: 2 | AD33: 7 | AE33: 1 | AF33: 3
A34: 18 | B34: Interior panel | C34: fixed | D34: polymer | I34: 3 | J34: 6 | K34: 1 | L34: 4 | M34: 2 | N34: 3 | O34: 1 | P34: 5 | Q34: 7 | R34: 1 | S34: 1 | T34: 1 | U34: 1 | V34: 2 | W34: 3 | X34: 3 | Y34: 1 | Z34: 6 | AA34: 6 | AB34: 3 | AC34: 3 | AD34: 5 | AE34: 1 | AF34: 3
A35: 19 | B35: Interior panel | C35: fixed | D35: flexible | I35: 3 | J35: 6 | K35: 1 | L35: 4 | M35: 2 | N35: 3 | O35: 1 | P35: 5 | Q35: 7 | R35: 1 | S35: 1 | T35: 1 | U35: 1 | V35: 2 | W35: 2 | X35: 3 | Y35: 1 | Z35: 7 | AA35: 7 | AB35: 4 | AC35: 4 | AD35: 4 | AE35: 1 | AF35: 2
A36: 20 | B36: Interior panel | C36: fixed | D36: flexible 2 layers | I36: 5 | J36: 6 | K36: 2 | L36: 5 | M36: 3 | N36: 2 | O36: 1 | P36: 5 | Q36: 6 | R36: 1 | S36: 1 | T36: 1 | U36: 1 | V36: 2 | W36: 2 | X36: 3 | Y36: 1 | Z36: 5 | AA36: 5 | AB36: 4 | AC36: 4 | AD36: 4 | AE36: 1 | AF36: 2
A37: 21 | B37: Interior panel | C37: fixed | D37: flexible 2 layers with low-e | I37: 6 | J37: 6 | K37: 3 | L37: 6 | M37: 4 | N37: 1 | O37: 1 | P37: 5 | Q37: 5 | R37: 1 | S37: 1 | T37: 1 | U37: 1 | V37: 2 | W37: 2 | X37: 3 | Y37: 1 | Z37: 4 | AA37: 4 | AB37: 4 | AC37: 4 | AD37: 4 | AE37: 1 | AF37: 2
A38: 22 | B38: Film | C38: Pro Installation | D38: tint | I38: 1 | J38: 1 | K38: 2 | L38: 2 | M38: 2 | N38: 4 | O38: 5 | P38: 4 | Q38: 3 | R38: 1 | S38: 2 | T38: 2 | U38: 1 | V38: 4 | W38: 3 | X38: 1 | Y38: 1 | Z38: 7 | AA38: 7 | AB38: 3 | AC38: 3 | AD38: 6 | AE38: 7 | AF38: 3
A39: 23 | B39: Film | C39: Pro Installation | D39: LSG | I39: 1 | J39: 1 | K39: 5 | L39: 2 | M39: 4 | N39: 4 | O39: 5 | P39: 5 | Q39: 5 | R39: 1 | S39: 1 | T39: 1 | U39: 1 | V39: 4 | W39: 3 | X39: 1 | Y39: 1 | Z39: 7 | AA39: 7 | AB39: 3 | AC39: 3 | AD39: 6 | AE39: 7 | AF39: 3
A40: 24 | B40: Film | C40: Pro Installation | D40: HSG | I40: 1 | J40: 1 | K40: 2 | L40: 2 | M40: 3 | N40: 4 | O40: 5 | P40: 5 | Q40: 6 | R40: 1 | S40: 1 | T40: 1 | U40: 1 | V40: 4 | W40: 3 | X40: 1 | Y40: 1 | Z40: 7 | AA40: 7 | AB40: 3 | AC40: 3 | AD40: 6 | AE40: 7 | AF40: 3
A41: 25 | B41: Film | C41: Pro Installation | D41: low-e LSG | I41: 3 | J41: 1 | K41: 5 | L41: 4 | M41: 4 | N41: 2 | O41: 5 | P41: 5 | Q41: 5 | R41: 1 | S41: 1 | T41: 1 | U41: 1 | V41: 4 | W41: 3 | X41: 1 | Y41: 1 | Z41: 6 | AA41: 6 | AB41: 3 | AC41: 3 | AD41: 6 | AE41: 7 | AF41: 2
A42: 26 | B42: Film | C42: Pro Installation | D42: low-e HSG | I42: 2 | J42: 1 | K42: 3 | L42: 3 | M42: 3 | N42: 2 | O42: 5 | P42: 5 | Q42: 6 | R42: 1 | S42: 1 | T42: 1 | U42: 1 | V42: 4 | W42: 3 | X42: 1 | Y42: 1 | Z42: 6 | AA42: 6 | AB42: 3 | AC42: 3 | AD42: 6 | AE42: 7 | AF42: 2
A43: 27 | B43: Film | C43: Pro Installation | D43: security | E43: tint (neutral) | I43: 2 | J43: 2 | K43: 2 | L43: 4 | M43: 5 | N43: 4 | O43: 3 | P43: 1 | Q43: 2 | R43: 2 | S43: 1 | T43: 4 | U43: 3 | V43: 1 | W43: 4 | X43: 7 | Y43: 7 | Z43: 3 | AA43: 3 | AB43: 6 | AC43: 7 | AD43: 3 | AF43: 3
A44: 28 | B44: Film | C44: Pro Installation | D44: security | E44: LSG (clear) | I44: 1 | J44: 1 | K44: 5 | L44: 2 | M44: 4 | N44: 4 | O44: 5 | P44: 5 | Q44: 5 | R44: 1 | S44: 1 | T44: 1 | U44: 1 | V44: 4 | W44: 4 | X44: 1 | Y44: 1 | Z44: 7 | AA44: 7 | AB44: 3 | AC44: 3 | AD44: 6 | AE44: 7 | AF44: 3
A45: 29 | B45: Film | C45: Pro Installation | D45: security | E45: HSG | I45: 1 | J45: 1 | K45: 2 | L45: 2 | M45: 3 | N45: 4 | O45: 5 | P45: 5 | Q45: 6 | R45: 1 | S45: 1 | T45: 1 | U45: 1 | V45: 4 | W45: 4 | X45: 1 | Y45: 1 | Z45: 7 | AA45: 7 | AB45: 3 | AC45: 3 | AD45: 6 | AE45: 7 | AF45: 3
A46: 30 | B46: Film | C46: Pro Installation | D46: decorative | I46: 1 | J46: 1 | K46: 2 | L46: 2 | M46: 2 | N46: 4 | O46: 5 | P46: 1 | Q46: 2 | R46: 1 | S46: 2 | T46: 4 | U46: 1 | V46: 4 | W46: 3 | X46: 1 | Y46: 1 | Z46: 7 | AA46: 7 | AB46: 3 | AC46: 3 | AD46: 6 | AE46: 7 | AF46: 3
A47: 31 | B47: Film | C47: DIY | D47: tint | I47: 1 | J47: 1 | K47: 2 | L47: 2 | M47: 2 | N47: 4 | O47: 5 | P47: 4 | Q47: 3 | R47: 1 | S47: 2 | T47: 2 | U47: 1 | V47: 4 | W47: 3 | X47: 1 | Y47: 1 | Z47: 7 | AA47: 7 | AB47: 4 | AC47: 4 | AD47: 4 | AE47: 7 | AF47: 3
A48: 32 | B48: Film | C48: DIY | D48: LSG | I48: 1 | J48: 1 | K48: 5 | L48: 2 | M48: 4 | N48: 4 | O48: 5 | P48: 5 | Q48: 5 | R48: 1 | S48: 1 | T48: 1 | U48: 1 | V48: 4 | W48: 3 | X48: 1 | Y48: 1 | Z48: 7 | AA48: 7 | AB48: 4 | AC48: 4 | AD48: 4 | AE48: 7 | AF48: 3
A49: 33 | B49: Film | C49: DIY | D49: HSG | I49: 1 | J49: 1 | K49: 2 | L49: 2 | M49: 3 | N49: 4 | O49: 5 | P49: 5 | Q49: 6 | R49: 1 | S49: 1 | T49: 1 | U49: 1 | V49: 4 | W49: 3 | X49: 1 | Y49: 1 | Z49: 7 | AA49: 7 | AB49: 4 | AC49: 4 | AD49: 4 | AE49: 7 | AF49: 3
A50: 34 | B50: Film | C50: DIY | D50: low-e LSG | I50: 3 | J50: 1 | K50: 5 | L50: 4 | M50: 4 | N50: 2 | O50: 5 | P50: 5 | Q50: 5 | R50: 1 | S50: 1 | T50: 1 | U50: 1 | V50: 4 | W50: 3 | X50: 1 | Y50: 1 | Z50: 6 | AA50: 6 | AB50: 4 | AC50: 4 | AD50: 4 | AE50: 7 | AF50: 2
A51: 35 | B51: Film | C51: DIY | D51: low-e HSG | I51: 2 | J51: 1 | K51: 3 | L51: 3 | M51: 3 | N51: 2 | O51: 5 | P51: 5 | Q51: 6 | R51: 1 | S51: 1 | T51: 1 | U51: 1 | V51: 4 | W51: 3 | X51: 1 | Y51: 1 | Z51: 6 | AA51: 6 | AB51: 4 | AC51: 4 | AD51: 4 | AE51: 7 | AF51: 2
A52: 36 | B52: Film | C52: DIY | D52: security | I52: 1 | J52: 1 | K52: 1 | L52: 1 | M52: 1 | N52: 4 | O52: 5 | P52: 5 | Q52: 6 | R52: 1 | S52: 1 | T52: 1 | U52: 1 | V52: 4 | W52: 4 | X52: 1 | Y52: 1 | Z52: 7 | AA52: 7 | AB52: 4 | AC52: 4 | AD52: 4 | AE52: 7 | AF52: 3
A53: 37 | B53: Film | C53: DIY | D53: decorative | I53: 1 | J53: 1 | K53: 2 | L53: 2 | M53: 2 | N53: 4 | O53: 5 | P53: 1 | Q53: 2 | R53: 1 | S53: 2 | T53: 4 | U53: 1 | V53: 4 | W53: 3 | X53: 1 | Y53: 1 | Z53: 7 | AA53: 7 | AB53: 4 | AC53: 4 | AD53: 4 | AE53: 7 | AF53: 3
A54: 38 | B54: Film | C54: DIY | D54: seasonal flexible heat-applied film | I54: 3 | J54: 1 | K54: 1 | L54: 4 | M54: 3 | N54: 6 | O54: 2 | P54: 5 | Q54: 7 | R54: 1 | S54: 1 | T54: 1 | U54: 1 | V54: 4 | W54: 2 | X54: 2 | Y54: 1 | Z54: 8 | AA54: 8 | AB54: 4 | AC54: 4 | AD54: 1 | AE54: 7 | AF54: 3
A55: 39 | B55: Solar screen | C55: fixed | D55: exterior | E55: Light Color | F55: tight weave | G55: Manual | I55: 3 | J55: 1 | K55: 6 | L55: 2 | M55: 5 | N55: 5 | O55: 3 | P55: 2 | Q55: 4 | R55: 1 | S55: 2 | T55: 2 | U55: 2 | V55: 2 | W55: 2 | X55: 1 | Y55: 1 | Z55: 7 | AA55: 7 | AB55: 4 | AC55: 4 | AD55: 6 | AE55: 1 | AF55: 3
A56: 40 | B56: Solar screen | C56: fixed | D56: exterior | E56: Light Color | F56: open weave | G56: Manual | I56: 2 | J56: 1 | K56: 5 | L56: 2 | M56: 5 | N56: 5 | O56: 5 | P56: 3 | Q56: 5 | R56: 1 | S56: 2 | T56: 1 | U56: 2 | V56: 2 | W56: 2 | X56: 1 | Y56: 1 | Z56: 7 | AA56: 7 | AB56: 4 | AC56: 4 | AD56: 6 | AE56: 1 | AF56: 3
A57: 41 | B57: Solar screen | C57: fixed | D57: exterior | E57: Dark Color | F57: tight weave | G57: Manual | I57: 3 | J57: 1 | K57: 6 | L57: 2 | M57: 5 | N57: 5 | O57: 3 | P57: 2 | Q57: 4 | R57: 1 | S57: 2 | T57: 2 | U57: 2 | V57: 2 | W57: 2 | X57: 1 | Y57: 1 | Z57: 7 | AA57: 7 | AB57: 4 | AC57: 4 | AD57: 6 | AE57: 1 | AF57: 3
A58: 42 | B58: Solar screen | C58: fixed | D58: exterior | E58: Dark Color | F58: open weave | G58: Manual | I58: 2 | J58: 1 | K58: 5 | L58: 2 | M58: 5 | N58: 5 | O58: 5 | P58: 3 | Q58: 5 | R58: 1 | S58: 2 | T58: 1 | U58: 2 | V58: 2 | W58: 2 | X58: 1 | Y58: 1 | Z58: 7 | AA58: 7 | AB58: 4 | AC58: 4 | AD58: 6 | AE58: 1 | AF58: 3
A59: 43 | B59: Solar screen | C59: fixed | D59: interior | E59: Light Color | F59: tight weave | G59: Manual | I59: 3 | J59: 1 | K59: 3 | L59: 3 | M59: 4 | N59: 3 | O59: 3 | P59: 2 | Q59: 4 | R59: 1 | S59: 2 | T59: 1 | U59: 2 | V59: 2 | W59: 2 | X59: 1 | Y59: 2 | Z59: 7 | AA59: 7 | AB59: 4 | AC59: 4 | AD59: 6 | AE59: 1 | AF59: 3
A60: 44 | B60: Solar screen | C60: fixed | D60: interior | E60: Light Color | F60: open weave | G60: Manual | I60: 2 | J60: 1 | K60: 2 | L60: 3 | M60: 4 | N60: 3 | O60: 5 | P60: 3 | Q60: 5 | R60: 1 | S60: 2 | T60: 1 | U60: 2 | V60: 2 | W60: 2 | X60: 1 | Y60: 2 | Z60: 7 | AA60: 7 | AB60: 4 | AC60: 4 | AD60: 6 | AE60: 1 | AF60: 3
A61: 45 | B61: Solar screen | C61: fixed | D61: interior | E61: Dark Color | F61: tight weave | G61: Manual | I61: 3 | J61: 1 | K61: 1 | L61: 3 | M61: 4 | N61: 3 | O61: 3 | P61: 2 | Q61: 4 | R61: 1 | S61: 2 | T61: 2 | U61: 2 | V61: 2 | W61: 2 | X61: 1 | Y61: 2 | Z61: 7 | AA61: 7 | AB61: 4 | AC61: 4 | AD61: 6 | AE61: 1 | AF61: 3
A62: 46 | B62: Solar screen | C62: fixed | D62: interior | E62: Dark Color | F62: open weave | G62: Manual | I62: 2 | J62: 1 | K62: 1 | L62: 3 | M62: 4 | N62: 3 | O62: 5 | P62: 3 | Q62: 5 | R62: 1 | S62: 2 | T62: 1 | U62: 2 | V62: 2 | W62: 2 | X62: 1 | Y62: 2 | Z62: 7 | AA62: 7 | AB62: 4 | AC62: 4 | AD62: 6 | AE62: 1 | AF62: 3
A63: 47 | B63: roller shades | C63: Opaque | D63: exterior | E63: Light Color | F63: tight weave | G63: Manual | I63: 2 | J63: 1 | K63: 6 | L63: 2 | M63: 5 | N63: 5 | O63: 4 | P63: 3 | Q63: 3 | R63: 2 | S63: 2 | T63: 4 | U63: 3 | V63: 3 | W63: 2 | X63: 1 | Y63: 1 | Z63: 7 | AA63: 7 | AB63: 4 | AC63: 4 | AD63: 5 | AE63: 4 | AF63: 2
A64: 48 | B64: roller shades | C64: Opaque | D64: exterior | E64: Dark Color | F64: tight weave | G64: Manual | I64: 2 | J64: 1 | K64: 6 | L64: 2 | M64: 5 | N64: 5 | O64: 4 | P64: 3 | Q64: 3 | R64: 2 | S64: 2 | T64: 4 | U64: 3 | V64: 3 | W64: 2 | X64: 1 | Y64: 1 | Z64: 7 | AA64: 7 | AB64: 4 | AC64: 4 | AD64: 5 | AE64: 4 | AF64: 2
A65: 49 | B65: roller shades | C65: Opaque | D65: exterior | E65: Light Color | F65: tight weave | G65: Automated | I65: 2 | J65: 1 | K65: 7 | L65: 2 | M65: 6 | N65: 5 | O65: 4 | P65: 3 | Q65: 4 | R65: 3 | S65: 3 | T65: 5 | U65: 3 | V65: 3 | W65: 2 | X65: 1 | Y65: 1 | Z65: 1 | AA65: 1 | AB65: 2 | AC65: 2 | AD65: 5 | AE65: 5 | AF65: 2
A66: 50 | B66: roller shades | C66: Opaque | D66: exterior | E66: Dark Color | F66: tight weave | G66: Automated | I66: 2 | J66: 1 | K66: 7 | L66: 2 | M66: 6 | N66: 5 | O66: 4 | P66: 3 | Q66: 4 | R66: 3 | S66: 3 | T66: 5 | U66: 3 | V66: 3 | W66: 2 | X66: 1 | Y66: 1 | Z66: 1 | AA66: 1 | AB66: 2 | AC66: 2 | AD66: 5 | AE66: 5 | AF66: 2
A67: 51 | B67: roller shades | C67: Opaque | D67: interior | E67: Light Color | F67: tight weave | G67: Manual | I67: 2 | J67: 1 | K67: 3 | L67: 3 | M67: 5 | N67: 3 | O67: 4 | P67: 3 | Q67: 3 | R67: 2 | S67: 2 | T67: 4 | U67: 1 | V67: 3 | W67: 2 | X67: 1 | Y67: 2 | Z67: 7 | AA67: 7 | AB67: 4 | AC67: 4 | AD67: 5 | AE67: 4 | AF67: 2
A68: 52 | B68: roller shades | C68: Opaque | D68: interior | E68: Dark Color | F68: tight weave | G68: Manual | I68: 2 | J68: 1 | K68: 1 | L68: 3 | M68: 5 | N68: 3 | O68: 4 | P68: 3 | Q68: 3 | R68: 2 | S68: 2 | T68: 4 | U68: 1 | V68: 3 | W68: 2 | X68: 1 | Y68: 2 | Z68: 7 | AA68: 7 | AB68: 4 | AC68: 4 | AD68: 5 | AE68: 4 | AF68: 2
A69: 53 | B69: roller shades | C69: Opaque | D69: interior | E69: Light Color | F69: tight weave | G69: Automated | I69: 2 | J69: 1 | K69: 4 | L69: 3 | M69: 6 | N69: 3 | O69: 4 | P69: 3 | Q69: 4 | R69: 3 | S69: 3 | T69: 5 | U69: 1 | V69: 3 | W69: 2 | X69: 1 | Y69: 2 | Z69: 1 | AA69: 1 | AB69: 2 | AC69: 2 | AD69: 5 | AE69: 5 | AF69: 2
A70: 54 | B70: roller shades | C70: Opaque | D70: interior | E70: Dark Color | F70: tight weave | G70: Automated | I70: 2 | J70: 1 | K70: 2 | L70: 3 | M70: 6 | N70: 3 | O70: 4 | P70: 3 | Q70: 4 | R70: 3 | S70: 3 | T70: 5 | U70: 1 | V70: 3 | W70: 2 | X70: 1 | Y70: 2 | Z70: 1 | AA70: 1 | AB70: 2 | AC70: 2 | AD70: 5 | AE70: 5 | AF70: 2
A71: 55 | B71: roller shades | C71: translucent | D71: exterior | E71: Light Color | F71: tight weave | G71: Manual | I71: 2 | J71: 1 | K71: 4 | L71: 2 | M71: 5 | N71: 5 | O71: 4 | P71: 3 | Q71: 4 | R71: 2 | S71: 2 | T71: 3 | U71: 3 | V71: 3 | W71: 2 | X71: 1 | Y71: 1 | Z71: 7 | AA71: 7 | AB71: 4 | AC71: 4 | AD71: 5 | AE71: 4 | AF71: 2
A72: 56 | B72: roller shades | C72: translucent | D72: exterior | E72: Light Color | F72: open weave | G72: Manual | I72: 1 | J72: 1 | K72: 3 | L72: 2 | M72: 5 | N72: 5 | O72: 4 | P72: 4 | Q72: 5 | R72: 2 | S72: 2 | T72: 2 | U72: 3 | V72: 3 | W72: 2 | X72: 1 | Y72: 1 | Z72: 7 | AA72: 7 | AB72: 4 | AC72: 4 | AD72: 5 | AE72: 4 | AF72: 2
A73: 57 | B73: roller shades | C73: translucent | D73: exterior | E73: Dark Color | F73: tight weave | G73: Manual | I73: 2 | J73: 1 | K73: 4 | L73: 2 | M73: 5 | N73: 5 | O73: 4 | P73: 3 | Q73: 4 | R73: 2 | S73: 2 | T73: 3 | U73: 3 | V73: 3 | W73: 2 | X73: 1 | Y73: 1 | Z73: 7 | AA73: 7 | AB73: 4 | AC73: 4 | AD73: 5 | AE73: 4 | AF73: 2
A74: 58 | B74: roller shades | C74: translucent | D74: exterior | E74: Dark Color | F74: open weave | G74: Manual | I74: 1 | J74: 1 | K74: 3 | L74: 2 | M74: 5 | N74: 5 | O74: 4 | P74: 4 | Q74: 5 | R74: 2 | S74: 2 | T74: 2 | U74: 3 | V74: 3 | W74: 2 | X74: 1 | Y74: 1 | Z74: 7 | AA74: 7 | AB74: 4 | AC74: 4 | AD74: 5 | AE74: 4 | AF74: 2
A75: 59 | B75: roller shades | C75: translucent | D75: exterior | E75: Light Color | F75: tight weave | G75: Automated | I75: 2 | J75: 1 | K75: 5 | L75: 2 | M75: 5 | N75: 5 | O75: 4 | P75: 3 | Q75: 5 | R75: 3 | S75: 3 | T75: 4 | U75: 3 | V75: 3 | W75: 2 | X75: 1 | Y75: 1 | Z75: 1 | AA75: 1 | AB75: 2 | AC75: 2 | AD75: 5 | AE75: 5 | AF75: 2
A76: 60 | B76: roller shades | C76: translucent | D76: exterior | E76: Light Color | F76: open weave | G76: Automated | I76: 1 | J76: 1 | K76: 4 | L76: 2 | M76: 5 | N76: 5 | O76: 4 | P76: 4 | Q76: 6 | R76: 3 | S76: 3 | T76: 3 | U76: 3 | V76: 3 | W76: 2 | X76: 1 | Y76: 1 | Z76: 1 | AA76: 1 | AB76: 2 | AC76: 2 | AD76: 5 | AE76: 5 | AF76: 2
A77: 61 | B77: roller shades | C77: translucent | D77: exterior | E77: Dark Color | F77: tight weave | G77: Automated | I77: 2 | J77: 1 | K77: 5 | L77: 2 | M77: 5 | N77: 5 | O77: 4 | P77: 3 | Q77: 5 | R77: 3 | S77: 3 | T77: 4 | U77: 3 | V77: 3 | W77: 2 | X77: 1 | Y77: 1 | Z77: 1 | AA77: 1 | AB77: 2 | AC77: 2 | AD77: 5 | AE77: 5 | AF77: 2
A78: 62 | B78: roller shades | C78: translucent | D78: exterior | E78: Dark Color | F78: open weave | G78: Automated | I78: 1 | J78: 1 | K78: 4 | L78: 2 | M78: 5 | N78: 5 | O78: 4 | P78: 4 | Q78: 6 | R78: 3 | S78: 3 | T78: 3 | U78: 3 | V78: 3 | W78: 2 | X78: 1 | Y78: 1 | Z78: 1 | AA78: 1 | AB78: 2 | AC78: 2 | AD78: 5 | AE78: 5 | AF78: 2
A79: 63 | B79: roller shades | C79: translucent | D79: interior | E79: Light Color | F79: tight weave | G79: Manual | I79: 2 | J79: 1 | K79: 3 | L79: 3 | M79: 4 | N79: 3 | O79: 4 | P79: 3 | Q79: 4 | R79: 2 | S79: 2 | T79: 3 | U79: 1 | V79: 3 | W79: 2 | X79: 1 | Y79: 2 | Z79: 7 | AA79: 7 | AB79: 4 | AC79: 4 | AD79: 5 | AE79: 4 | AF79: 2
A80: 64 | B80: roller shades | C80: translucent | D80: interior | E80: Light Color | F80: open weave | G80: Manual | I80: 1 | J80: 1 | K80: 2 | L80: 3 | M80: 4 | N80: 3 | O80: 4 | P80: 4 | Q80: 5 | R80: 2 | S80: 2 | T80: 2 | U80: 1 | V80: 3 | W80: 2 | X80: 1 | Y80: 2 | Z80: 7 | AA80: 7 | AB80: 4 | AC80: 4 | AD80: 5 | AE80: 4 | AF80: 2
A81: 65 | B81: roller shades | C81: translucent | D81: interior | E81: Dark Color | F81: tight weave | G81: Manual | I81: 2 | J81: 1 | K81: 1 | L81: 3 | M81: 3 | N81: 3 | O81: 4 | P81: 3 | Q81: 4 | R81: 2 | S81: 2 | T81: 3 | U81: 1 | V81: 3 | W81: 2 | X81: 1 | Y81: 2 | Z81: 7 | AA81: 7 | AB81: 4 | AC81: 4 | AD81: 5 | AE81: 4 | AF81: 2
A82: 66 | B82: roller shades | C82: translucent | D82: interior | E82: Dark Color | F82: open weave | G82: Manual | I82: 1 | J82: 1 | K82: 1 | L82: 3 | M82: 3 | N82: 3 | O82: 4 | P82: 4 | Q82: 5 | R82: 2 | S82: 2 | T82: 2 | U82: 1 | V82: 3 | W82: 2 | X82: 1 | Y82: 2 | Z82: 7 | AA82: 7 | AB82: 4 | AC82: 4 | AD82: 5 | AE82: 4 | AF82: 2
A83: 67 | B83: roller shades | C83: translucent | D83: interior | E83: Light Color | F83: tight weave | G83: Automated | I83: 2 | J83: 1 | K83: 4 | L83: 3 | M83: 5 | N83: 3 | O83: 4 | P83: 3 | Q83: 5 | R83: 3 | S83: 3 | T83: 4 | U83: 1 | V83: 3 | W83: 2 | X83: 1 | Y83: 2 | Z83: 1 | AA83: 1 | AB83: 2 | AC83: 2 | AD83: 5 | AE83: 5 | AF83: 2
A84: 68 | B84: roller shades | C84: translucent | D84: interior | E84: Light Color | F84: open weave | G84: Automated | I84: 1 | J84: 1 | K84: 3 | L84: 3 | M84: 5 | N84: 3 | O84: 4 | P84: 4 | Q84: 6 | R84: 3 | S84: 3 | T84: 3 | U84: 1 | V84: 3 | W84: 2 | X84: 1 | Y84: 2 | Z84: 1 | AA84: 1 | AB84: 2 | AC84: 2 | AD84: 5 | AE84: 5 | AF84: 2
A85: 69 | B85: roller shades | C85: translucent | D85: interior | E85: Dark Color | F85: tight weave | G85: Automated | I85: 2 | J85: 1 | K85: 2 | L85: 3 | M85: 4 | N85: 3 | O85: 4 | P85: 3 | Q85: 5 | R85: 3 | S85: 3 | T85: 4 | U85: 1 | V85: 3 | W85: 2 | X85: 1 | Y85: 2 | Z85: 1 | AA85: 1 | AB85: 2 | AC85: 2 | AD85: 5 | AE85: 5 | AF85: 2
A86: 70 | B86: roller shades | C86: translucent | D86: interior | E86: Dark Color | F86: open weave | G86: Automated | I86: 1 | J86: 1 | K86: 2 | L86: 3 | M86: 4 | N86: 3 | O86: 4 | P86: 4 | Q86: 6 | R86: 3 | S86: 3 | T86: 3 | U86: 1 | V86: 3 | W86: 2 | X86: 1 | Y86: 2 | Z86: 1 | AA86: 1 | AB86: 2 | AC86: 2 | AD86: 5 | AE86: 5 | AF86: 2
A87: 71 | B87: cellular Shade | C87: Single | D87: Opaque | E87: No side track | F87: Manual | G87: 1-D adjustable | I87: 4 | J87: 3 | K87: 3 | L87: 5 | M87: 4 | N87: 3 | O87: 2 | P87: 3 | Q87: 3 | R87: 2 | S87: 2 | T87: 4 | U87: 1 | V87: 3 | W87: 2 | X87: 2 | Y87: 3 | Z87: 4 | AA87: 4 | AB87: 4 | AC87: 4 | AD87: 6 | AE87: 4 | AF87: 3
A88: 72 | B88: cellular Shade | C88: Single | D88: Semi-Opaque | E88: No side track | F88: Manual | G88: 1-D adjustable | I88: 4 | J88: 3 | K88: 2 | L88: 5 | M88: 4 | N88: 3 | O88: 2 | P88: 3 | Q88: 4 | R88: 2 | S88: 2 | T88: 3 | U88: 1 | V88: 3 | W88: 2 | X88: 2 | Y88: 3 | Z88: 4 | AA88: 4 | AB88: 4 | AC88: 4 | AD88: 6 | AE88: 4 | AF88: 3
A89: 73 | B89: cellular Shade | C89: Single | D89: Sheer | E89: No side track | F89: Manual | G89: 1-D adjustable | I89: 4 | J89: 2 | K89: 2 | L89: 4 | M89: 3 | N89: 3 | O89: 2 | P89: 3 | Q89: 5 | R89: 2 | S89: 2 | T89: 2 | U89: 1 | V89: 3 | W89: 2 | X89: 1 | Y89: 3 | Z89: 4 | AA89: 4 | AB89: 4 | AC89: 4 | AD89: 6 | AE89: 4 | AF89: 3
A90: 74 | B90: cellular Shade | C90: multi-cell | D90: Opaque | E90: No side track | F90: Manual | G90: 1-D adjustable | I90: 6 | J90: 3 | K90: 3 | L90: 6 | M90: 4 | N90: 2 | O90: 2 | P90: 3 | Q90: 3 | R90: 2 | S90: 2 | T90: 4 | U90: 1 | V90: 3 | W90: 2 | X90: 2 | Y90: 3 | Z90: 4 | AA90: 4 | AB90: 4 | AC90: 4 | AD90: 6 | AE90: 4 | AF90: 3
A91: 75 | B91: cellular Shade | C91: multi-cell | D91: Semi-Opaque | E91: No side track | F91: Manual | G91: 1-D adjustable | I91: 6 | J91: 3 | K91: 2 | L91: 6 | M91: 4 | N91: 2 | O91: 2 | P91: 3 | Q91: 4 | R91: 2 | S91: 2 | T91: 3 | U91: 1 | V91: 3 | W91: 2 | X91: 2 | Y91: 3 | Z91: 4 | AA91: 4 | AB91: 4 | AC91: 4 | AD91: 6 | AE91: 4 | AF91: 3
A92: 76 | B92: cellular Shade | C92: Single | D92: Opaque | E92: Side Track | F92: Manual | G92: 1-D adjustable | I92: 5 | J92: 4 | K92: 4 | L92: 6 | M92: 4 | N92: 2 | O92: 1 | P92: 3 | Q92: 2 | R92: 2 | S92: 2 | T92: 4 | U92: 1 | V92: 3 | W92: 2 | X92: 3 | Y92: 3 | Z92: 4 | AA92: 4 | AB92: 4 | AC92: 4 | AD92: 6 | AE92: 4 | AF92: 3
A93: 77 | B93: cellular Shade | C93: Single | D93: Semi-Opaque | E93: Side Track | F93: Manual | G93: 1-D adjustable | I93: 5 | J93: 4 | K93: 3 | L93: 5 | M93: 4 | N93: 2 | O93: 1 | P93: 3 | Q93: 4 | R93: 2 | S93: 2 | T93: 3 | U93: 1 | V93: 3 | W93: 2 | X93: 3 | Y93: 3 | Z93: 4 | AA93: 4 | AB93: 4 | AC93: 4 | AD93: 6 | AE93: 4 | AF93: 3
A94: 78 | B94: cellular Shade | C94: Single | D94: Sheer | E94: Side Track | F94: Manual | G94: 1-D adjustable | I94: 5 | J94: 3 | K94: 3 | L94: 4 | M94: 3 | N94: 2 | O94: 1 | P94: 3 | Q94: 5 | R94: 2 | S94: 2 | T94: 2 | U94: 1 | V94: 3 | W94: 2 | X94: 1 | Y94: 3 | Z94: 4 | AA94: 4 | AB94: 4 | AC94: 4 | AD94: 6 | AE94: 4 | AF94: 3
A95: 79 | B95: cellular Shade | C95: multi-cell | D95: Opaque | E95: Side Track | F95: Manual | G95: 1-D adjustable | I95: 8 | J95: 4 | K95: 4 | L95: 6 | M95: 4 | N95: 1 | O95: 1 | P95: 3 | Q95: 2 | R95: 2 | S95: 2 | T95: 4 | U95: 1 | V95: 3 | W95: 2 | X95: 3 | Y95: 3 | Z95: 4 | AA95: 4 | AB95: 4 | AC95: 4 | AD95: 6 | AE95: 4 | AF95: 3
A96: 80 | B96: cellular Shade | C96: multi-cell | D96: Semi-Opaque | E96: Side Track | F96: Manual | G96: 1-D adjustable | I96: 8 | J96: 4 | K96: 3 | L96: 6 | M96: 4 | N96: 1 | O96: 1 | P96: 3 | Q96: 4 | R96: 2 | S96: 2 | T96: 3 | U96: 1 | V96: 3 | W96: 2 | X96: 3 | Y96: 3 | Z96: 4 | AA96: 4 | AB96: 4 | AC96: 4 | AD96: 6 | AE96: 4 | AF96: 3
A97: 81 | B97: cellular Shade | C97: Single | D97: Opaque | E97: No side track | F97: Automated | G97: 1-D adjustable | I97: 4 | J97: 3 | K97: 4 | L97: 5 | M97: 5 | N97: 3 | O97: 2 | P97: 3 | Q97: 4 | R97: 3 | S97: 3 | T97: 5 | U97: 1 | V97: 3 | W97: 2 | X97: 2 | Y97: 3 | Z97: 1 | AA97: 1 | AB97: 3 | AC97: 3 | AD97: 6 | AE97: 5 | AF97: 3
A98: 82 | B98: cellular Shade | C98: Single | D98: Semi-Opaque | E98: No side track | F98: Automated | G98: 1-D adjustable | I98: 4 | J98: 3 | K98: 3 | L98: 5 | M98: 5 | N98: 3 | O98: 2 | P98: 3 | Q98: 5 | R98: 3 | S98: 3 | T98: 4 | U98: 1 | V98: 3 | W98: 2 | X98: 2 | Y98: 3 | Z98: 1 | AA98: 1 | AB98: 3 | AC98: 3 | AD98: 6 | AE98: 5 | AF98: 3
A99: 83 | B99: cellular Shade | C99: Single | D99: Sheer | E99: No side track | F99: Automated | G99: 1-D adjustable | I99: 4 | J99: 2 | K99: 3 | L99: 4 | M99: 4 | N99: 3 | O99: 2 | P99: 3 | Q99: 6 | R99: 3 | S99: 3 | T99: 3 | U99: 1 | V99: 3 | W99: 2 | X99: 2 | Y99: 3 | Z99: 1 | AA99: 1 | AB99: 3 | AC99: 3 | AD99: 6 | AE99: 5 | AF99: 3
A100: 84 | B100: cellular Shade | C100: multi-cell | D100: Opaque | E100: No side track | F100: Automated | G100: 1-D adjustable | I100: 6 | J100: 3 | K100: 4 | L100: 6 | M100: 5 | N100: 2 | O100: 2 | P100: 3 | Q100: 4 | R100: 3 | S100: 3 | T100: 5 | U100: 1 | V100: 3 | W100: 2 | X100: 2 | Y100: 3 | Z100: 1 | AA100: 1 | AB100: 3 | AC100: 3 | AD100: 6 | AE100: 5 | AF100: 3
A101: 85 | B101: cellular Shade | C101: multi-cell | D101: Semi-Opaque | E101: No side track | F101: Automated | G101: 1-D adjustable | I101: 6 | J101: 3 | K101: 3 | L101: 6 | M101: 5 | N101: 2 | O101: 2 | P101: 3 | Q101: 6 | R101: 3 | S101: 3 | T101: 4 | U101: 1 | V101: 3 | W101: 2 | X101: 2 | Y101: 3 | Z101: 1 | AA101: 1 | AB101: 3 | AC101: 3 | AD101: 6 | AE101: 5 | AF101: 3
A102: 86 | B102: cellular Shade | C102: Single | D102: Opaque | E102: Side Track | F102: Automated | G102: 1-D adjustable | I102: 5 | J102: 4 | K102: 5 | L102: 6 | M102: 5 | N102: 2 | O102: 1 | P102: 3 | Q102: 3 | R102: 3 | S102: 3 | T102: 5 | U102: 1 | V102: 3 | W102: 2 | X102: 3 | Y102: 3 | Z102: 1 | AA102: 1 | AB102: 3 | AC102: 3 | AD102: 6 | AE102: 5 | AF102: 3
A103: 87 | B103: cellular Shade | C103: Single | D103: Semi-Opaque | E103: Side Track | F103: Automated | G103: 1-D adjustable | I103: 5 | J103: 4 | K103: 4 | L103: 5 | M103: 5 | N103: 2 | O103: 1 | P103: 3 | Q103: 5 | R103: 3 | S103: 3 | T103: 4 | U103: 1 | V103: 3 | W103: 2 | X103: 3 | Y103: 3 | Z103: 1 | AA103: 1 | AB103: 3 | AC103: 3 | AD103: 6 | AE103: 5 | AF103: 3
A104: 88 | B104: cellular Shade | C104: Single | D104: Sheer | E104: Side Track | F104: Automated | G104: 1-D adjustable | I104: 5 | J104: 3 | K104: 4 | L104: 4 | M104: 4 | N104: 2 | O104: 1 | P104: 3 | Q104: 6 | R104: 3 | S104: 3 | T104: 3 | U104: 1 | V104: 3 | W104: 2 | X104: 1 | Y104: 3 | Z104: 1 | AA104: 1 | AB104: 3 | AC104: 3 | AD104: 6 | AE104: 5 | AF104: 3
A105: 89 | B105: cellular Shade | C105: multi-cell | D105: Opaque | E105: Side Track | F105: Automated | G105: 1-D adjustable | I105: 8 | J105: 4 | K105: 5 | L105: 6 | M105: 5 | N105: 1 | O105: 1 | P105: 3 | Q105: 3 | R105: 3 | S105: 3 | T105: 5 | U105: 1 | V105: 3 | W105: 2 | X105: 3 | Y105: 3 | Z105: 1 | AA105: 1 | AB105: 3 | AC105: 3 | AD105: 6 | AE105: 5 | AF105: 3
A106: 90 | B106: cellular Shade | C106: multi-cell | D106: Semi-Opaque | E106: Side Track | F106: Automated | G106: 1-D adjustable | I106: 8 | J106: 4 | K106: 4 | L106: 6 | M106: 5 | N106: 1 | O106: 1 | P106: 3 | Q106: 5 | R106: 3 | S106: 3 | T106: 4 | U106: 1 | V106: 3 | W106: 2 | X106: 3 | Y106: 3 | Z106: 1 | AA106: 1 | AB106: 3 | AC106: 3 | AD106: 6 | AE106: 5 | AF106: 3
A107: 91 | B107: cellular Shade | C107: Single | D107: Opaque | E107: No side track | F107: Manual | G107: 2-D adjustable | I107: 4 | J107: 3 | K107: 3 | L107: 5 | M107: 4 | N107: 3 | O107: 3 | P107: 4 | Q107: =Q87+1 -> 4 | R107: 3 | S107: 3 | T107: 5 | U107: 1 | V107: 3 | W107: 2 | X107: 2 | Y107: 3 | Z107: 4 | AA107: 4 | AB107: 4 | AC107: 4 | AD107: 6 | AE107: 4 | AF107: 3
A108: 92 | B108: cellular Shade | C108: Single | D108: Semi-Opaque | E108: No side track | F108: Manual | G108: 2-D adjustable | I108: 4 | J108: 3 | K108: 2 | L108: 5 | M108: 4 | N108: 3 | O108: 3 | P108: 4 | Q108: =Q88+1 -> 5 | R108: 3 | S108: 3 | T108: 4 | U108: 1 | V108: 3 | W108: 2 | X108: 2 | Y108: 3 | Z108: 4 | AA108: 4 | AB108: 4 | AC108: 4 | AD108: 6 | AE108: 4 | AF108: 3
A109: 93 | B109: cellular Shade | C109: Single | D109: Sheer | E109: No side track | F109: Manual | G109: 2-D adjustable | I109: 4 | J109: 2 | K109: 2 | L109: 4 | M109: 3 | N109: 3 | O109: 3 | P109: 4 | Q109: 6 | R109: 3 | S109: 3 | T109: 3 | U109: 1 | V109: 3 | W109: 2 | X109: 2 | Y109: 3 | Z109: 4 | AA109: 4 | AB109: 4 | AC109: 4 | AD109: 6 | AE109: 4 | AF109: 3
A110: 94 | B110: cellular Shade | C110: multi-cell | D110: Opaque | E110: No side track | F110: Manual | G110: 2-D adjustable | I110: 6 | J110: 3 | K110: 3 | L110: 6 | M110: 4 | N110: 2 | O110: 3 | P110: 4 | Q110: 4 | R110: 3 | S110: 3 | T110: 5 | U110: 1 | V110: 3 | W110: 2 | X110: 2 | Y110: 3 | Z110: 4 | AA110: 4 | AB110: 4 | AC110: 4 | AD110: 6 | AE110: 4 | AF110: 3
A111: 95 | B111: cellular Shade | C111: multi-cell | D111: Semi-Opaque | E111: No side track | F111: Manual | G111: 2-D adjustable | I111: 6 | J111: 3 | K111: 2 | L111: 6 | M111: 4 | N111: 2 | O111: 3 | P111: 4 | Q111: 5 | R111: 3 | S111: 3 | T111: 4 | U111: 1 | V111: 3 | W111: 2 | X111: 2 | Y111: 3 | Z111: 4 | AA111: 4 | AB111: 4 | AC111: 4 | AD111: 6 | AE111: 4 | AF111: 3
A112: 96 | B112: cellular Shade | C112: Single | D112: Opaque | E112: Side Track | F112: Manual | G112: 2-D adjustable | I112: 5 | J112: 4 | K112: 4 | L112: 6 | M112: 4 | N112: 2 | O112: 2 | P112: 4 | Q112: 3 | R112: 3 | S112: 3 | T112: 5 | U112: 1 | V112: 3 | W112: 2 | X112: 3 | Y112: 3 | Z112: 4 | AA112: 4 | AB112: 4 | AC112: 4 | AD112: 6 | AE112: 4 | AF112: 3
A113: 97 | B113: cellular Shade | C113: Single | D113: Semi-Opaque | E113: Side Track | F113: Manual | G113: 2-D adjustable | I113: 5 | J113: 4 | K113: 3 | L113: 5 | M113: 4 | N113: 2 | O113: 2 | P113: 4 | Q113: 5 | R113: 3 | S113: 3 | T113: 4 | U113: 1 | V113: 3 | W113: 2 | X113: 3 | Y113: 3 | Z113: 4 | AA113: 4 | AB113: 4 | AC113: 4 | AD113: 6 | AE113: 4 | AF113: 3
A114: 98 | B114: cellular Shade | C114: Single | D114: Sheer | E114: Side Track | F114: Manual | G114: 2-D adjustable | I114: 5 | J114: 3 | K114: 3 | L114: 4 | M114: 3 | N114: 2 | O114: 2 | P114: 4 | Q114: 6 | R114: 3 | S114: 3 | T114: 3 | U114: 1 | V114: 3 | W114: 2 | X114: 1 | Y114: 3 | Z114: 4 | AA114: 4 | AB114: 4 | AC114: 4 | AD114: 6 | AE114: 4 | AF114: 3
A115: 99 | B115: cellular Shade | C115: multi-cell | D115: Opaque | E115: Side Track | F115: Manual | G115: 2-D adjustable | I115: 8 | J115: 4 | K115: 4 | L115: 6 | M115: 4 | N115: 1 | O115: 2 | P115: 4 | Q115: 3 | R115: 3 | S115: 3 | T115: 5 | U115: 1 | V115: 3 | W115: 2 | X115: 3 | Y115: 3 | Z115: 4 | AA115: 4 | AB115: 4 | AC115: 4 | AD115: 6 | AE115: 4 | AF115: 3
A116: 100 | B116: cellular Shade | C116: multi-cell | D116: Semi-Opaque | E116: Side Track | F116: Manual | G116: 2-D adjustable | I116: 8 | J116: 4 | K116: 3 | L116: 6 | M116: 4 | N116: 1 | O116: 2 | P116: 4 | Q116: 5 | R116: 3 | S116: 3 | T116: 4 | U116: 1 | V116: 3 | W116: 2 | X116: 3 | Y116: 3 | Z116: 4 | AA116: 4 | AB116: 4 | AC116: 4 | AD116: 6 | AE116: 4 | AF116: 3
A117: 101 | B117: cellular Shade | C117: Single | D117: Opaque | E117: No side track | F117: Automated | G117: 2-D adjustable | I117: 4 | J117: 3 | K117: 4 | L117: 5 | M117: 5 | N117: 3 | O117: 3 | P117: 4 | Q117: 5 | R117: 4 | S117: 4 | T117: 5 | U117: 1 | V117: 3 | W117: 2 | X117: 2 | Y117: 3 | Z117: 1 | AA117: 1 | AB117: 3 | AC117: 3 | AD117: 6 | AE117: 5 | AF117: 3
A118: 102 | B118: cellular Shade | C118: Single | D118: Semi-Opaque | E118: No side track | F118: Automated | G118: 2-D adjustable | I118: 4 | J118: 3 | K118: 3 | L118: 5 | M118: 5 | N118: 3 | O118: 3 | P118: 4 | Q118: 6 | R118: 4 | S118: 4 | T118: 4 | U118: 1 | V118: 3 | W118: 2 | X118: 2 | Y118: 3 | Z118: 1 | AA118: 1 | AB118: 3 | AC118: 3 | AD118: 6 | AE118: 5 | AF118: 3
A119: 103 | B119: cellular Shade | C119: Single | D119: Sheer | E119: No side track | F119: Automated | G119: 2-D adjustable | I119: 4 | J119: 2 | K119: 3 | L119: 4 | M119: 4 | N119: 3 | O119: 3 | P119: 4 | Q119: 7 | R119: 4 | S119: 4 | T119: 4 | U119: 1 | V119: 3 | W119: 2 | X119: 2 | Y119: 3 | Z119: 1 | AA119: 1 | AB119: 3 | AC119: 3 | AD119: 6 | AE119: 5 | AF119: 3
A120: 104 | B120: cellular Shade | C120: multi-cell | D120: Opaque | E120: No side track | F120: Automated | G120: 2-D adjustable | I120: 6 | J120: 3 | K120: 4 | L120: 6 | M120: 5 | N120: 2 | O120: 3 | P120: 4 | Q120: 5 | R120: 4 | S120: 4 | T120: 5 | U120: 1 | V120: 3 | W120: 2 | X120: 2 | Y120: 3 | Z120: 1 | AA120: 1 | AB120: 3 | AC120: 3 | AD120: 6 | AE120: 5 | AF120: 3
A121: 105 | B121: cellular Shade | C121: multi-cell | D121: Semi-Opaque | E121: No side track | F121: Automated | G121: 2-D adjustable | I121: 6 | J121: 3 | K121: 3 | L121: 6 | M121: 5 | N121: 2 | O121: 3 | P121: 4 | Q121: 7 | R121: 4 | S121: 4 | T121: 4 | U121: 1 | V121: 3 | W121: 2 | X121: 2 | Y121: 3 | Z121: 1 | AA121: 1 | AB121: 3 | AC121: 3 | AD121: 6 | AE121: 5 | AF121: 3
A122: 106 | B122: cellular Shade | C122: Single | D122: Opaque | E122: Side Track | F122: Automated | G122: 2-D adjustable | I122: 5 | J122: 4 | K122: 5 | L122: 6 | M122: 5 | N122: 2 | O122: 2 | P122: 4 | Q122: 4 | R122: 4 | S122: 4 | T122: 5 | U122: 1 | V122: 3 | W122: 2 | X122: 3 | Y122: 3 | Z122: 1 | AA122: 1 | AB122: 3 | AC122: 3 | AD122: 6 | AE122: 5 | AF122: 3
A123: 107 | B123: cellular Shade | C123: Single | D123: Semi-Opaque | E123: Side Track | F123: Automated | G123: 2-D adjustable | I123: 5 | J123: 4 | K123: 4 | L123: 5 | M123: 5 | N123: 2 | O123: 2 | P123: 4 | Q123: 6 | R123: 4 | S123: 4 | T123: 4 | U123: 1 | V123: 3 | W123: 2 | X123: 3 | Y123: 3 | Z123: 1 | AA123: 1 | AB123: 3 | AC123: 3 | AD123: 6 | AE123: 5 | AF123: 3
A124: 108 | B124: cellular Shade | C124: Single | D124: Sheer | E124: Side Track | F124: Automated | G124: 2-D adjustable | I124: 5 | J124: 3 | K124: 4 | L124: 4 | M124: 4 | N124: 2 | O124: 2 | P124: 4 | Q124: 7 | R124: 4 | S124: 4 | T124: 4 | U124: 1 | V124: 3 | W124: 2 | X124: 1 | Y124: 3 | Z124: 1 | AA124: 1 | AB124: 3 | AC124: 3 | AD124: 6 | AE124: 5 | AF124: 3
A125: 109 | B125: cellular Shade | C125: multi-cell | D125: Opaque | E125: Side Track | F125: Automated | G125: 2-D adjustable | I125: 8 | J125: 4 | K125: 5 | L125: 6 | M125: 5 | N125: 1 | O125: 2 | P125: 4 | Q125: 4 | R125: 4 | S125: 4 | T125: 5 | U125: 1 | V125: 3 | W125: 2 | X125: 3 | Y125: 3 | Z125: 1 | AA125: 1 | AB125: 3 | AC125: 3 | AD125: 6 | AE125: 5 | AF125: 3
A126: 110 | B126: cellular Shade | C126: multi-cell | D126: Semi-Opaque | E126: Side Track | F126: Automated | G126: 2-D adjustable | I126: 8 | J126: 4 | K126: 4 | L126: 6 | M126: 5 | N126: 1 | O126: 2 | P126: 4 | Q126: 6 | R126: 4 | S126: 4 | T126: 4 | U126: 1 | V126: 3 | W126: 2 | X126: 3 | Y126: 3 | Z126: 1 | AA126: 1 | AB126: 3 | AC126: 3 | AD126: 6 | AE126: 5 | AF126: 3
A127: 111 | B127: Window quilts | C127: opaque | D127: Non-roller | I127: 8 | J127: 4 | K127: 4 | L127: 6 | M127: 3 | N127: 1 | O127: 1 | P127: 3 | Q127: 1 | R127: 2 | S127: 2 | T127: 4 | U127: 1 | V127: 2 | W127: 2 | X127: 3 | Y127: 3 | Z127: 7 | AA127: 7 | AB127: 4 | AC127: 4 | AD127: 6 | AE127: 3 | AF127: 2
A128: 112 | B128: Window quilts | C128: opaque | D128: roller | E128: side track | F128: manual | I128: 8 | J128: 4 | K128: 4 | L128: 6 | M128: 3 | N128: 1 | O128: 1 | P128: 3 | Q128: 2 | R128: 2 | S128: 2 | T128: 4 | U128: 1 | V128: 3 | W128: 2 | X128: 3 | Y128: 3 | Z128: 4 | AA128: 4 | AB128: 3 | AC128: 3 | AD128: 6 | AE128: 4 | AF128: 2
A129: 113 | B129: Window quilts | C129: opaque | D129: roller | E129: no - side track | F129: manual | I129: 7 | J129: 3 | K129: 3 | L129: 6 | M129: 3 | N129: 2 | O129: 2 | P129: 3 | Q129: 3 | R129: 2 | S129: 2 | T129: 4 | U129: 1 | V129: 3 | W129: 2 | X129: 2 | Y129: 3 | Z129: 4 | AA129: 4 | AB129: 3 | AC129: 3 | AD129: 6 | AE129: 5 | AF129: 2
A130: 114 | B130: Window quilts | C130: opaque | D130: roller | E130: side track | F130: Automated | I130: 8 | J130: 4 | K130: 5 | L130: 6 | M130: 4 | N130: 1 | O130: 1 | P130: 3 | Q130: 3 | R130: 3 | S130: 3 | T130: 5 | U130: 1 | V130: 3 | W130: 2 | X130: 3 | Y130: 3 | Z130: 4 | AA130: 4 | AB130: 3 | AC130: 3 | AD130: 6 | AE130: 5 | AF130: 2
A131: 115 | B131: Window quilts | C131: opaque | D131: roller | E131: no - side track | F131: Automated | I131: 7 | J131: 3 | K131: 4 | L131: 6 | M131: 4 | N131: 2 | O131: 2 | P131: 3 | Q131: 4 | R131: 3 | S131: 3 | T131: 5 | U131: 1 | V131: 3 | W131: 2 | X131: 2 | Y131: 3 | Z131: 4 | AA131: 4 | AB131: 3 | AC131: 3 | AD131: 6 | AE131: 5 | AF131: 2
A132: 116 | B132: Window quilts | C132: Translucent | D132: Non-roller | I132: 7 | J132: 4 | K132: 5 | L132: 6 | M132: 3 | N132: 1 | O132: 1 | P132: 3 | Q132: 3 | R132: 2 | S132: 2 | T132: 3 | U132: 1 | V132: 2 | W132: 2 | X132: 3 | Y132: 3 | Z132: 4 | AA132: 4 | AB132: 3 | AC132: 3 | AD132: 6 | AE132: 3 | AF132: 2
A133: 117 | B133: Window quilts | C133: Translucent | D133: roller | E133: side track | F133: manual | I133: 7 | J133: 3 | K133: 3 | L133: 6 | M133: 3 | N133: 1 | O133: 1 | P133: 3 | Q133: 4 | R133: 2 | S133: 2 | T133: 3 | U133: 1 | V133: 3 | W133: 2 | X133: 3 | Y133: 3 | Z133: 4 | AA133: 4 | AB133: 3 | AC133: 3 | AD133: 6 | AE133: 4 | AF133: 2
A134: 118 | B134: Window quilts | C134: Translucent | D134: roller | E134: no - side track | F134: manual | I134: 6 | J134: 2 | K134: 2 | L134: 5 | M134: 3 | N134: 2 | O134: 2 | P134: 3 | Q134: 5 | R134: 2 | S134: 2 | T134: 3 | U134: 1 | V134: 3 | W134: 2 | X134: 2 | Y134: 3 | Z134: 4 | AA134: 4 | AB134: 3 | AC134: 3 | AD134: 6 | AE134: 5 | AF134: 2
A135: 119 | B135: Window quilts | C135: Translucent | D135: roller | E135: side track | F135: Automated | I135: 7 | J135: 3 | K135: 4 | L135: 6 | M135: 4 | N135: 1 | O135: 1 | P135: 3 | Q135: 5 | R135: 3 | S135: 3 | T135: 4 | U135: 1 | V135: 3 | W135: 2 | X135: 3 | Y135: 3 | Z135: 4 | AA135: 4 | AB135: 3 | AC135: 3 | AD135: 6 | AE135: 5 | AF135: 2
A136: 120 | B136: Window quilts | C136: Translucent | D136: roller | E136: no - side track | F136: Automated | I136: 6 | J136: 2 | K136: 3 | L136: 5 | M136: 4 | N136: 2 | O136: 2 | P136: 3 | Q136: 6 | R136: 3 | S136: 3 | T136: 4 | U136: 1 | V136: 3 | W136: 2 | X136: 2 | Y136: 3 | Z136: 4 | AA136: 4 | AB136: 3 | AC136: 3 | AD136: 6 | AE136: 5 | AF136: 2
A137: 121 | B137: Louvered blinds | C137: exterior | D137: horizontal | E137: manual | I137: 1 | J137: 1 | K137: 5 | L137: 2 | M137: 5 | N137: 5 | O137: 4 | P137: 4 | Q137: 4 | R137: 3 | S137: 3 | T137: 4 | U137: 3 | V137: 3 | W137: 3 | X137: 1 | Y137: 1 | Z137: 6 | AA137: 6 | AB137: 4 | AC137: 4 | AD137: 7 | AE137: 4 | AF137: 2
A138: 122 | B138: Louvered blinds | C138: exterior | D138: horizontal | E138: Automated | I138: 2 | J138: 1 | K138: 7 | L138: 2 | M138: 6 | N138: 5 | O138: 4 | P138: 4 | Q138: 5 | R138: 4 | S138: 4 | T138: 5 | U138: 3 | V138: 3 | W138: 3 | X138: 1 | Y138: 1 | Z138: 6 | AA138: 6 | AB138: 2 | AC138: 2 | AD138: 7 | AE138: 5 | AF138: 2
A139: 123 | B139: Louvered blinds | C139: exterior | D139: Vertical | E139: manual | I139: 1 | J139: 1 | K139: 5 | L139: 2 | M139: 5 | N139: 5 | O139: 4 | P139: 4 | Q139: 4 | R139: 3 | S139: 3 | T139: 4 | U139: 2 | V139: 3 | W139: 3 | X139: 1 | Y139: 1 | Z139: 6 | AA139: 6 | AB139: 4 | AC139: 4 | AD139: 7 | AE139: 4 | AF139: 2
A140: 124 | B140: Louvered blinds | C140: exterior | D140: Vertical | E140: Automated | I140: 2 | J140: 1 | K140: 7 | L140: 2 | M140: 6 | N140: 5 | O140: 4 | P140: 4 | Q140: 5 | R140: 4 | S140: 4 | T140: 5 | U140: 2 | V140: 3 | W140: 3 | X140: 1 | Y140: 1 | Z140: 6 | AA140: 6 | AB140: 2 | AC140: 2 | AD140: 7 | AE140: 5 | AF140: 2
A141: 125 | B141: Louvered blinds | C141: interior | D141: horizontal | E141: reflective | F141: manual | I141: 1 | J141: 1 | K141: 4 | L141: 3 | M141: 4 | N141: 3 | O141: 4 | P141: 4 | Q141: 4 | R141: 3 | S141: 3 | T141: 4 | U141: 1 | V141: 3 | W141: 2 | X141: 1 | Y141: 1 | Z141: 7 | AA141: 7 | AB141: 4 | AC141: 4 | AD141: 5 | AE141: 4 | AF141: 2
A142: 126 | B142: Louvered blinds | C142: interior | D142: horizontal | E142: absorbtive | F142: manual | I142: 1 | J142: 1 | K142: 2 | L142: 3 | M142: 3 | N142: 3 | O142: 4 | P142: 4 | Q142: 4 | R142: 3 | S142: 3 | T142: 4 | U142: 1 | V142: 3 | W142: 2 | X142: 1 | Y142: 1 | Z142: 7 | AA142: 7 | AB142: 4 | AC142: 4 | AD142: 5 | AE142: 4 | AF142: 2
A143: 127 | B143: Louvered blinds | C143: interior | D143: horizontal | E143: reflective | F143: Automated | I143: 2 | J143: 1 | K143: 5 | L143: 3 | M143: 5 | N143: 3 | O143: 4 | P143: 4 | Q143: 5 | R143: 4 | S143: 4 | T143: 5 | U143: 1 | V143: 3 | W143: 2 | X143: 1 | Y143: 1 | Z143: 1 | AA143: 1 | AB143: 2 | AC143: 2 | AD143: 5 | AE143: 5 | AF143: 2
A144: 128 | B144: Louvered blinds | C144: interior | D144: horizontal | E144: absorbtive | F144: Automated | I144: 2 | J144: 1 | K144: 3 | L144: 3 | M144: 4 | N144: 3 | O144: 4 | P144: 4 | Q144: 5 | R144: 4 | S144: 4 | T144: 5 | U144: 1 | V144: 3 | W144: 2 | X144: 1 | Y144: 1 | Z144: 1 | AA144: 1 | AB144: 2 | AC144: 2 | AD144: 5 | AE144: 5 | AF144: 2
A145: 129 | B145: Louvered blinds | C145: interior | D145: Vertical | E145: reflective | F145: manual | I145: 1 | J145: 1 | K145: 4 | L145: 3 | M145: 4 | N145: 3 | O145: 4 | P145: 4 | Q145: 4 | R145: 3 | S145: 3 | T145: 4 | U145: 1 | V145: 3 | W145: 2 | X145: 1 | Y145: 1 | Z145: 7 | AA145: 7 | AB145: 4 | AC145: 4 | AD145: 5 | AE145: 4 | AF145: 2
A146: 130 | B146: Louvered blinds | C146: interior | D146: Vertical | E146: absorbtive | F146: manual | I146: 1 | J146: 1 | K146: 2 | L146: 3 | M146: 3 | N146: 3 | O146: 4 | P146: 4 | Q146: 4 | R146: 3 | S146: 3 | T146: 4 | U146: 1 | V146: 3 | W146: 2 | X146: 1 | Y146: 1 | Z146: 7 | AA146: 7 | AB146: 4 | AC146: 4 | AD146: 5 | AE146: 4 | AF146: 2
A147: 131 | B147: Louvered blinds | C147: interior | D147: Vertical | E147: reflective | F147: Automated | I147: 2 | J147: 1 | K147: 5 | L147: 3 | M147: 5 | N147: 3 | O147: 4 | P147: 4 | Q147: 5 | R147: 4 | S147: 4 | T147: 5 | U147: 1 | V147: 3 | W147: 2 | X147: 1 | Y147: 1 | Z147: 1 | AA147: 1 | AB147: 2 | AC147: 2 | AD147: 5 | AE147: 5 | AF147: 2
A148: 132 | B148: Louvered blinds | C148: interior | D148: Vertical | E148: absorbtive | F148: Automated | I148: 2 | J148: 1 | K148: 3 | L148: 3 | M148: 4 | N148: 3 | O148: 4 | P148: 4 | Q148: 5 | R148: 4 | S148: 4 | T148: 5 | U148: 1 | V148: 3 | W148: 2 | X148: 1 | Y148: 1 | Z148: 1 | AA148: 1 | AB148: 2 | AC148: 2 | AD148: 5 | AE148: 5 | AF148: 2
A149: 133 | B149: Awning | C149: fixed | D149: Dark | E149: open weave | I149: 1 | J149: 1 | K149: 4 | L149: 2 | M149: 5 | N149: 4 | O149: 5 | P149: 4 | Q149: 6 | R149: 2 | S149: 2 | T149: 1 | U149: 3 | V149: 3 | W149: 1 | X149: 1 | Y149: 1 | Z149: 5 | AA149: 5 | AB149: 3 | AC149: 3 | AD149: 5 | AE149: 1 | AF149: 3
A150: 134 | B150: Awning | C150: fixed | D150: Dark | E150: tight weave | I150: 1 | J150: 1 | K150: 5 | L150: 2 | M150: 5 | N150: 4 | O150: 5 | P150: 4 | Q150: 5 | R150: 2 | S150: 2 | T150: 1 | U150: 3 | V150: 3 | W150: 1 | X150: 1 | Y150: 1 | Z150: 5 | AA150: 5 | AB150: 3 | AC150: 3 | AD150: 5 | AE150: 1 | AF150: 3
A151: 135 | B151: Awning | C151: fixed | D151: Light | E151: open weave | I151: 1 | J151: 1 | K151: 4 | L151: 2 | M151: 5 | N151: 4 | O151: 5 | P151: 4 | Q151: 6 | R151: 2 | S151: 2 | T151: 1 | U151: 3 | V151: 3 | W151: 1 | X151: 1 | Y151: 1 | Z151: 5 | AA151: 5 | AB151: 3 | AC151: 3 | AD151: 5 | AE151: 1 | AF151: 3
A152: 136 | B152: Awning | C152: fixed | D152: Light | E152: tight weave | I152: 1 | J152: 1 | K152: 5 | L152: 2 | M152: 5 | N152: 4 | O152: 5 | P152: 4 | Q152: 5 | R152: 2 | S152: 2 | T152: 1 | U152: 3 | V152: 3 | W152: 1 | X152: 1 | Y152: 1 | Z152: 5 | AA152: 5 | AB152: 3 | AC152: 3 | AD152: 5 | AE152: 1 | AF152: 3
A153: 137 | B153: Awning | C153: retractable | D153: Dark | E153: open weave | F153: Manual | I153: 1 | J153: 1 | K153: 5 | L153: 2 | M153: 5 | N153: 4 | O153: 5 | P153: 4 | Q153: 7 | R153: 3 | S153: 3 | T153: 4 | U153: 4 | V153: 3 | W153: 1 | X153: 1 | Y153: 1 | Z153: 4 | AA153: 4 | AB153: 3 | AC153: 3 | AD153: 5 | AE153: 4 | AF153: 3
A154: 138 | B154: Awning | C154: retractable | D154: Dark | E154: tight weave | F154: Manual | I154: 1 | J154: 1 | K154: 6 | L154: 2 | M154: 5 | N154: 4 | O154: 5 | P154: 4 | Q154: 6 | R154: 3 | S154: 3 | T154: 4 | U154: 4 | V154: 3 | W154: 1 | X154: 1 | Y154: 1 | Z154: 4 | AA154: 4 | AB154: 3 | AC154: 3 | AD154: 5 | AE154: 4 | AF154: 3
A155: 139 | B155: Awning | C155: retractable | D155: Light | E155: open weave | F155: Manual | I155: 1 | J155: 1 | K155: 5 | L155: 2 | M155: 5 | N155: 4 | O155: 5 | P155: 4 | Q155: 7 | R155: 3 | S155: 3 | T155: 4 | U155: 4 | V155: 3 | W155: 1 | X155: 1 | Y155: 1 | Z155: 4 | AA155: 4 | AB155: 3 | AC155: 3 | AD155: 5 | AE155: 4 | AF155: 3
A156: 140 | B156: Awning | C156: retractable | D156: Light | E156: tight weave | F156: Manual | I156: 1 | J156: 1 | K156: 6 | L156: 2 | M156: 5 | N156: 4 | O156: 5 | P156: 4 | Q156: 6 | R156: 3 | S156: 3 | T156: 4 | U156: 4 | V156: 3 | W156: 1 | X156: 1 | Y156: 1 | Z156: 4 | AA156: 4 | AB156: 3 | AC156: 3 | AD156: 5 | AE156: 4 | AF156: 3
A157: 141 | B157: Awning | C157: retractable | D157: Dark | E157: open weave | F157: Automated | I157: 1 | J157: 1 | K157: 6 | L157: 2 | M157: 6 | N157: 4 | O157: 5 | P157: 4 | Q157: 8 | R157: 4 | S157: 4 | T157: 4 | U157: 4 | V157: 3 | W157: 1 | X157: 1 | Y157: 1 | Z157: 1 | AA157: 1 | AB157: 2 | AC157: 2 | AD157: 5 | AE157: 5 | AF157: 3
A158: 142 | B158: Awning | C158: retractable | D158: Dark | E158: tight weave | F158: Automated | I158: 1 | J158: 1 | K158: 7 | L158: 2 | M158: 6 | N158: 4 | O158: 5 | P158: 4 | Q158: 7 | R158: 4 | S158: 4 | T158: 4 | U158: 4 | V158: 3 | W158: 1 | X158: 1 | Y158: 1 | Z158: 1 | AA158: 1 | AB158: 2 | AC158: 2 | AD158: 5 | AE158: 5 | AF158: 3
A159: 143 | B159: Awning | C159: retractable | D159: Light | E159: open weave | F159: Automated | I159: 1 | J159: 1 | K159: 6 | L159: 2 | M159: 6 | N159: 4 | O159: 5 | P159: 4 | Q159: 8 | R159: 4 | S159: 4 | T159: 4 | U159: 4 | V159: 3 | W159: 1 | X159: 1 | Y159: 1 | Z159: 1 | AA159: 1 | AB159: 2 | AC159: 2 | AD159: 5 | AE159: 5 | AF159: 3
A160: 144 | B160: Awning | C160: retractable | D160: Light | E160: tight weave | F160: Automated | I160: 1 | J160: 1 | K160: 7 | L160: 2 | M160: 6 | N160: 4 | O160: 5 | P160: 4 | Q160: 7 | R160: 4 | S160: 4 | T160: 4 | U160: 4 | V160: 3 | W160: 1 | X160: 1 | Y160: 1 | Z160: 1 | AA160: 1 | AB160: 2 | AC160: 2 | AD160: 5 | AE160: 5 | AF160: 3
A161: 145 | B161: Roller shutters | C161: insulating | D161: manual | I161: 7 | J161: 4 | K161: 5 | L161: 6 | M161: 5 | N161: 7 | O161: 4 | P161: 3 | Q161: 2 | R161: 3 | S161: 3 | T161: 4 | U161: 4 | V161: 3 | W161: 4 | X161: 3 | Y161: 1 | Z161: 4 | AA161: 4 | AB161: 3 | AC161: 3 | AD161: 7 | AE161: 4 | AF161: 3
A162: 146 | B162: Roller shutters | C162: non-insulating | D162: manual | I162: 3 | J162: 3 | K162: 5 | L162: 4 | M162: 5 | N162: 6 | O162: 4 | P162: 3 | Q162: 2 | R162: 3 | S162: 3 | T162: 4 | U162: 4 | V162: 3 | W162: 4 | X162: 2 | Y162: 1 | Z162: 3 | AA162: 3 | AB162: 3 | AC162: 3 | AD162: 7 | AE162: 4 | AF162: 3
A163: 147 | B163: Roller shutters | C163: insulating | D163: automated | I163: 8 | J163: 4 | K163: 7 | L163: 6 | M163: 6 | N163: 7 | O163: 4 | P163: 3 | Q163: 3 | R163: 4 | S163: 4 | T163: 5 | U163: 4 | V163: 3 | W163: 4 | X163: 3 | Y163: 1 | Z163: 1 | AA163: 1 | AB163: 2 | AC163: 2 | AD163: 7 | AE163: 5 | AF163: 3
A164: 148 | B164: Roller shutters | C164: non-insulating | D164: automated | I164: 4 | J164: 3 | K164: 7 | L164: 4 | M164: 6 | N164: 6 | O164: 4 | P164: 3 | Q164: 3 | R164: 4 | S164: 4 | T164: 5 | U164: 4 | V164: 3 | W164: 4 | X164: 2 | Y164: 1 | Z164: 1 | AA164: 1 | AB164: 2 | AC164: 2 | AD164: 7 | AE164: 5 | AF164: 3
A165: 149 | B165: louvered shutters | C165: exterior | I165: 1 | J165: 1 | K165: 6 | L165: 2 | M165: 5 | N165: 5 | O165: 3 | P165: 4 | Q165: 3 | R165: 3 | S165: 3 | T165: 4 | U165: 4 | V165: 3 | W165: 3 | X165: 1 | Y165: 1 | Z165: 7 | AA165: 7 | AB165: 4 | AC165: 4 | AD165: 7 | AE165: 4 | AF165: 1
A166: 150 | B166: louvered shutters | C166: interior | I166: 1 | J166: 1 | K166: 3 | L166: 3 | M166: 4 | N166: 3 | O166: 3 | P166: 4 | Q166: 4 | R166: 3 | S166: 3 | T166: 4 | U166: 1 | V166: 3 | W166: 3 | X166: 1 | Y166: 1 | Z166: 7 | AA166: 7 | AB166: 4 | AC166: 4 | AD166: 7 | AE166: 4 | AF166: 2
A167: 151 | B167: Drape/Curtains | C167: Opaque | D167: manual | E167: insulating | I167: 3 | J167: 1 | K167: 2 | L167: 4 | M167: 4 | N167: 3 | O167: 3 | P167: 3 | Q167: 5 | R167: 2 | S167: 2 | T167: 4 | U167: 1 | V167: 3 | W167: 2 | X167: 2 | Y167: 3 | Z167: 6 | AA167: 6 | AB167: 4 | AC167: 4 | AD167: 5 | AE167: 4 | AF167: 2
A168: 152 | B168: Drape/Curtains | C168: Opaque | D168: manual | E168: non-insulating | I168: 1 | J168: 1 | K168: 2 | L168: 3 | M168: 3 | N168: 4 | O168: 3 | P168: 3 | Q168: 5 | R168: 2 | S168: 2 | T168: 4 | U168: 1 | V168: 3 | W168: 2 | X168: 2 | Y168: 3 | Z168: 6 | AA168: 6 | AB168: 4 | AC168: 4 | AD168: 5 | AE168: 4 | AF168: 2
A169: 153 | B169: Drape/Curtains | C169: Opaque | D169: automated | E169: insulating | I169: 4 | J169: 1 | K169: 3 | L169: 4 | M169: 4 | N169: 3 | O169: 3 | P169: 3 | Q169: 4 | R169: 3 | S169: 3 | T169: 5 | U169: 1 | V169: 3 | W169: 2 | X169: 2 | Y169: 3 | Z169: 6 | AA169: 6 | AB169: 4 | AC169: 4 | AD169: 5 | AE169: 5 | AF169: 2
A170: 154 | B170: Drape/Curtains | C170: Opaque | D170: automated | E170: non-insulating | I170: 2 | J170: 1 | K170: 2 | L170: 3 | M170: 3 | N170: 4 | O170: 3 | P170: 3 | Q170: 4 | R170: 3 | S170: 3 | T170: 5 | U170: 1 | V170: 3 | W170: 2 | X170: 2 | Y170: 3 | Z170: 6 | AA170: 6 | AB170: 4 | AC170: 4 | AD170: 5 | AE170: 5 | AF170: 2
A171: 155 | B171: Drape/Curtains | C171: translucent | D171: manual | E171: insulating | I171: 3 | J171: 1 | K171: 2 | L171: 4 | M171: 4 | N171: 3 | O171: 3 | P171: 3 | Q171: 5 | R171: 2 | S171: 2 | T171: 2 | U171: 1 | V171: 3 | W171: 2 | X171: 2 | Y171: 3 | Z171: 6 | AA171: 6 | AB171: 4 | AC171: 4 | AD171: 5 | AE171: 4 | AF171: 2
A172: 156 | B172: Drape/Curtains | C172: translucent | D172: manual | E172: non-insulating | I172: 1 | J172: 1 | K172: 2 | L172: 3 | M172: 3 | N172: 4 | O172: 3 | P172: 3 | Q172: 5 | R172: 2 | S172: 2 | T172: 2 | U172: 1 | V172: 3 | W172: 2 | X172: 2 | Y172: 3 | Z172: 6 | AA172: 6 | AB172: 4 | AC172: 4 | AD172: 5 | AE172: 4 | AF172: 2
A173: 157 | B173: Drape/Curtains | C173: translucent | D173: automated | E173: insulating | I173: 4 | J173: 1 | K173: 3 | L173: 4 | M173: 4 | N173: 3 | O173: 3 | P173: 3 | Q173: 4 | R173: 3 | S173: 3 | T173: 3 | U173: 1 | V173: 3 | W173: 2 | X173: 2 | Y173: 3 | Z173: 6 | AA173: 6 | AB173: 2 | AC173: 2 | AD173: 5 | AE173: 5 | AF173: 2
A174: 158 | B174: Drape/Curtains | C174: translucent | D174: automated | E174: non-insulating | I174: 2 | J174: 1 | K174: 2 | L174: 3 | M174: 3 | N174: 4 | O174: 3 | P174: 3 | Q174: 4 | R174: 3 | S174: 3 | T174: 3 | U174: 1 | V174: 3 | W174: 2 | X174: 2 | Y174: 3 | Z174: 6 | AA174: 6 | AB174: 2 | AC174: 2 | AD174: 5 | AE174: 5 | AF174: 2
A175: 159 | B175: Sheer | C175: manual | I175: 3 | J175: 1 | K175: 3 | L175: 2 | M175: 3 | N175: 3 | O175: 4 | P175: 4 | Q175: 5 | R175: 2 | S175: 2 | T175: 2 | U175: 1 | V175: 3 | W175: 2 | X175: 1 | Y175: 2 | Z175: 7 | AA175: 7 | AB175: 4 | AC175: 4 | AD175: 5 | AE175: 4 | AF175: 2
A176: 160 | B176: Sheer | C176: automated | I176: 4 | J176: 1 | K176: 4 | L176: 2 | M176: 4 | N176: 3 | O176: 4 | P176: 4 | Q176: 6 | R176: 3 | S176: 3 | T176: 3 | U176: 1 | V176: 3 | W176: 2 | X176: 1 | Y176: 2 | Z176: 7 | AA176: 7 | AB176: 2 | AC176: 2 | AD176: 5 | AE176: 5 | AF176: 2
A177: 161 | B177: Pleated | C177: manual | I177: 4 | J177: 1 | K177: 2 | L177: 2 | M177: 3 | N177: 3 | O177: 3 | P177: 3 | Q177: 4 | R177: 2 | S177: 2 | T177: 3 | U177: 1 | V177: 3 | W177: 2 | X177: 2 | Y177: 3 | Z177: 6 | AA177: 6 | AB177: 4 | AC177: 4 | AD177: 5 | AE177: 4 | AF177: 2
A178: 162 | B178: Pleated | C178: automated | I178: 5 | J178: 1 | K178: 3 | L178: 2 | M178: 4 | N178: 3 | O178: 3 | P178: 3 | Q178: 5 | R178: 3 | S178: 3 | T178: 4 | U178: 1 | V178: 3 | W178: 2 | X178: 2 | Y178: 3 | Z178: 6 | AA178: 6 | AB178: 2 | AC178: 2 | AD178: 5 | AE178: 5 | AF178: 2
A179: 163 | B179: Roman | C179: insulating | D179: manual | I179: 6 | J179: 1 | K179: 3 | L179: 4 | M179: 4 | N179: 2 | O179: 3 | P179: 3 | Q179: 3 | R179: 2 | S179: 2 | T179: 3 | U179: 1 | V179: 3 | W179: 2 | X179: 2 | Y179: 3 | Z179: 6 | AA179: 6 | AB179: 4 | AC179: 4 | AD179: 5 | AE179: 4 | AF179: 2
A180: 164 | B180: Roman | C180: non-insulating | D180: manual | I180: 3 | J180: 1 | K180: 2 | L180: 3 | M180: 3 | N180: 3 | O180: 3 | P180: 3 | Q180: 3 | R180: 2 | S180: 2 | T180: 3 | U180: 1 | V180: 3 | W180: 2 | X180: 2 | Y180: 3 | Z180: 6 | AA180: 6 | AB180: 4 | AC180: 4 | AD180: 5 | AE180: 4 | AF180: 2
A181: 165 | B181: Roman | C181: insulating | D181: automated | I181: 7 | J181: 1 | K181: 4 | L181: 5 | M181: 5 | N181: 2 | O181: 3 | P181: 3 | Q181: 4 | R181: 3 | S181: 3 | T181: 4 | U181: 1 | V181: 3 | W181: 2 | X181: 2 | Y181: 3 | Z181: 1 | AA181: 1 | AB181: 2 | AC181: 2 | AD181: 5 | AE181: 5 | AF181: 2
A182: 166 | B182: Roman | C182: non-insulating | D182: automated | I182: 4 | J182: 1 | K182: 3 | L182: 4 | M182: 4 | N182: 3 | O182: 3 | P182: 3 | Q182: 4 | R182: 3 | S182: 3 | T182: 4 | U182: 1 | V182: 3 | W182: 2 | X182: 2 | Y182: 3 | Z182: 1 | AA182: 1 | AB182: 2 | AC182: 2 | AD182: 5 | AE182: 5 | AF182: 2

Sheet Synergy
B1: Value | D1: Base Cases | F1: Base Compatibility | J1: 1 | K1: 2 | L1: 3 | M1: 4 | N1: 5 | O1: 6 | P1: 7 | Q1: 8 | R1: 9 | S1: 10 | T1: 11 | U1: 12 | V1: 13 | W1: 14 | X1: 15 | Y1: 16 | Z1: 17 | AA1: 18 | AB1: 19 | AC1: 20 | AD1: 21 | AE1: 22 | AF1: 23 | AG1: 24 | AH1: 25 | AI1: 26 | AJ1: 27 | AK1: 28 | AL1: 29 | AM1: 30 | AN1: 31 | AO1: 32 | AP1: 33 | AQ1: 34 | AR1: 35 | AS1: 36 | AT1: 37 | AU1: 38 | AV1: 39 | AW1: 40 | AX1: 41 | AY1: 42 | AZ1: 43 | BA1: 44 | BB1: 45 | BC1: 46 | BD1: 47 | BE1: 48 | BF1: 49 | BG1: 50 | BH1: 51 | BI1: 52 | BJ1: 53 | BK1: 54 | BL1: 55 | BM1: 56 | BN1: 57 | BO1: 58 | BP1: 59 | BQ1: 60 | BR1: 61 | BS1: 62 | BT1: 63 | BU1: 64 | BV1: 65 | BW1: 66 | BX1: 67 | BY1: 68 | BZ1: 69 | CA1: 70 | CB1: 71 | CC1: 72 | CD1: 73 | CE1: 74 | CF1: 75 | CG1: 76 | CH1: 77 | CI1: 78 | CJ1: 79 | CK1: 80 | CL1: 81 | CM1: 82 | CN1: 83 | CO1: 84 | CP1: 85 | CQ1: 86 | CR1: 87 | CS1: 88 | CT1: 89 | CU1: 90 | CV1: 91 | CW1: 92 | CX1: 93 | CY1: 94 | CZ1: 95 | DA1: 96 | DB1: 97 | DC1: 98 | DD1: 99 | DE1: 100 | DF1: 101 | DG1: 102 | DH1: 103 | DI1: 104 | DJ1: 105 | DK1: 106 | DL1: 107 | DM1: 108 | DN1: 109 | DO1: 110 | DP1: 111 | DQ1: 112 | DR1: 113 | DS1: 114 | DT1: 115 | DU1: 116 | DV1: 117 | DW1: 118 | DX1: 119 | DY1: 120 | DZ1: 121 | EA1: 122 | EB1: 123 | EC1: 124 | ED1: 125 | EE1: 126 | EF1: 127 | EG1: 128 | EH1: 129 | EI1: 130 | EJ1: 131 | EK1: 132 | EL1: 133 | EM1: 134 | EN1: 135 | EO1: 136 | EP1: 137 | EQ1: 138 | ER1: 139 | ES1: 140 | ET1: 141 | EU1: 142 | EV1: 143 | EW1: 144 | EX1: 145 | EY1: 146 | EZ1: 147 | FA1: 148 | FB1: 149 | FC1: 150 | FD1: 151 | FE1: 152 | FF1: 153 | FG1: 154 | FH1: 155 | FI1: 156 | FJ1: 157 | FK1: 158 | FL1: 159 | FM1: 160 | FN1: 161 | FO1: 162 | FP1: 163 | FQ1: 164 | FR1: 165 | FS1: 166
B2: -2 | C2: Not Possible | D2: BC1 | E2: Single-pane clear | F2: N | G2: Not reccomended or possible | J2: Exterior storm | K2: Exterior storm | L2: Exterior storm | M2: Exterior storm | N2: Exterior storm | O2: Exterior storm | P2: Interior panel | Q2: Interior panel | R2: Interior panel | S2: Interior panel | T2: Interior panel | U2: Interior panel | V2: Interior panel | W2: Interior panel | X2: Interior panel | Y2: Interior panel | Z2: Interior panel | AA2: Interior panel | AB2: Interior panel | AC2: Interior panel | AD2: Interior panel | AE2: Film | AF2: Film | AG2: Film | AH2: Film | AI2: Film | AJ2: Film | AK2: Film | AL2: Film | AM2: Film | AN2: Film | AO2: Film | AP2: Film | AQ2: Film | AR2: Film | AS2: Film | AT2: Film | AU2: Film | AV2: Solar screen | AW2: Solar screen | AX2: Solar screen | AY2: Solar screen | AZ2: Solar screen | BA2: Solar screen | BB2: Solar screen | BC2: Solar screen | BD2: roller shades | BE2: roller shades | BF2: roller shades | BG2: roller shades | BH2: roller shades | BI2: roller shades | BJ2: roller shades | BK2: roller shades | BL2: roller shades | BM2: roller shades | BN2: roller shades | BO2: roller shades | BP2: roller shades | BQ2: roller shades | BR2: roller shades | BS2: roller shades | BT2: roller shades | BU2: roller shades | BV2: roller shades | BW2: roller shades | BX2: roller shades | BY2: roller shades | BZ2: roller shades | CA2: roller shades | CB2: Cellular Shade | CC2: Cellular Shade | CD2: Cellular Shade | CE2: Cellular Shade | CF2: Cellular Shade | CG2: Cellular Shade | CH2: Cellular Shade | CI2: Cellular Shade | CJ2: Cellular Shade | CK2: Cellular Shade | CL2: Cellular Shade | CM2: Cellular Shade | CN2: Cellular Shade | CO2: Cellular Shade | CP2: Cellular Shade | CQ2: Cellular Shade | CR2: Cellular Shade | CS2: Cellular Shade | CT2: Cellular Shade | CU2: Cellular Shade | CV2: Cellular Shade | CW2: Cellular Shade | CX2: Cellular Shade | CY2: Cellular Shade | CZ2: Cellular Shade | DA2: Cellular Shade | DB2: Cellular Shade | DC2: Cellular Shade | DD2: Cellular Shade | DE2: Cellular Shade | DF2: Cellular Shade | DG2: Cellular Shade | DH2: Cellular Shade | DI2: Cellular Shade | DJ2: Cellular Shade | DK2: Cellular Shade | DL2: Cellular Shade | DM2: Cellular Shade | DN2: Cellular Shade | DO2: Cellular Shade | DP2: Window quilts | DQ2: Window quilts | DR2: Window quilts | DS2: Window quilts | DT2: Window quilts | DU2: Window quilts | DV2: Window quilts | DW2: Window quilts | DX2: Window quilts | DY2: Window quilts | DZ2: Louvered blinds | EA2: Louvered blinds | EB2: Louvered blinds | EC2: Louvered blinds | ED2: Louvered blinds | EE2: Louvered blinds | EF2: Louvered blinds | EG2: Louvered blinds | EH2: Louvered blinds | EI2: Louvered blinds | EJ2: Louvered blinds | EK2: Louvered blinds | EL2: Awning | EM2: Awning | EN2: Awning | EO2: Awning | EP2: Awning | EQ2: Awning | ER2: Awning | ES2: Awning | ET2: Awning | EU2: Awning | EV2: Awning | EW2: Awning | EX2: Roller shutters | EY2: Roller shutters | EZ2: Roller shutters | FA2: Roller shutters | FB2: louvered shutters | FC2: louvered shutters | FD2: Drape/Curtains | FE2: Drape/Curtains | FF2: Drape/Curtains | FG2: Drape/Curtains | FH2: Drape/Curtains | FI2: Drape/Curtains | FJ2: Drape/Curtains | FK2: Drape/Curtains | FL2: Sheer | FM2: Sheer | FN2: Pleated | FO2: Pleated | FP2: Roman | FQ2: Roman | FR2: Roman | FS2: Roman
B3: -1 | C3: Not recommended | D3: BC2 | E3: Double-pane clear | F3: Y | G3: Recomended | J3: tracked | K3: tracked | L3: tracked | M3: Fixed | N3: Fixed | O3: Fixed | P3: tracked | Q3: tracked | R3: tracked | S3: tracked | T3: fixed | U3: fixed | V3: fixed | W3: fixed | X3: fixed | Y3: fixed | Z3: fixed | AA3: fixed | AB3: fixed | AC3: fixed | AD3: fixed | AE3: Pro Installation | AF3: Pro Installation | AG3: Pro Installation | AH3: Pro Installation | AI3: Pro Installation | AJ3: Pro Installation | AK3: Pro Installation | AL3: Pro Installation | AM3: Pro Installation | AN3: DIY | AO3: DIY | AP3: DIY | AQ3: DIY | AR3: DIY | AS3: DIY | AT3: DIY | AU3: DIY | AV3: fixed | AW3: fixed | AX3: fixed | AY3: fixed | AZ3: fixed | BA3: fixed | BB3: fixed | BC3: fixed | BD3: Opaque | BE3: Opaque | BF3: Opaque | BG3: Opaque | BH3: Opaque | BI3: Opaque | BJ3: Opaque | BK3: Opaque | BL3: translucent | BM3: translucent | BN3: translucent | BO3: translucent | BP3: translucent | BQ3: translucent | BR3: translucent | BS3: translucent | BT3: translucent | BU3: translucent | BV3: translucent | BW3: translucent | BX3: translucent | BY3: translucent | BZ3: translucent | CA3: translucent | CB3: Single | CC3: Single | CD3: Single | CE3: multi-cell | CF3: multi-cell | CG3: Single | CH3: Single | CI3: Single | CJ3: multi-cell | CK3: multi-cell | CL3: Single | CM3: Single | CN3: Single | CO3: multi-cell | CP3: multi-cell | CQ3: Single | CR3: Single | CS3: Single | CT3: multi-cell | CU3: multi-cell | CV3: Single | CW3: Single | CX3: Single | CY3: multi-cell | CZ3: multi-cell | DA3: Single | DB3: Single | DC3: Single | DD3: multi-cell | DE3: multi-cell | DF3: Single | DG3: Single | DH3: Single | DI3: multi-cell | DJ3: multi-cell | DK3: Single | DL3: Single | DM3: Single | DN3: multi-cell | DO3: multi-cell | DP3: opaque | DQ3: opaque | DR3: opaque | DS3: opaque | DT3: opaque | DU3: Translucent | DV3: Translucent | DW3: Translucent | DX3: Translucent | DY3: Translucent | DZ3: exterior | EA3: exterior | EB3: exterior | EC3: exterior | ED3: interior | EE3: interior | EF3: interior | EG3: interior | EH3: interior | EI3: interior | EJ3: interior | EK3: interior | EL3: fixed | EM3: fixed | EN3: fixed | EO3: fixed | EP3: retractable | EQ3: retractable | ER3: retractable | ES3: retractable | ET3: retractable | EU3: retractable | EV3: retractable | EW3: retractable | EX3: insulating | EY3: non-insulating | EZ3: insulating | FA3: non-insulating | FB3: exterior | FC3: interior | FD3: Opaque | FE3: Opaque | FF3: Opaque | FG3: Opaque | FH3: translucent | FI3: translucent | FJ3: translucent | FK3: translucent | FL3: manual | FM3: automated | FN3: manual | FO3: automated | FP3: insulating | FQ3: non-insulating | FR3: insulating | FS3: non-insulating
B4: 0 | C4: Neutral | D4: BC3 | E4: Double-pane with low-e | J4: low-e | K4: low-e | L4: clear | M4: low-e | N4: low-e | O4: clear | P4: glass | Q4: glass | R4: glass | S4: polymer | T4: glass | U4: glass | V4: glass | W4: glass - double glazing | X4: glass - double glazing | Y4: glass - triple glazing | Z4: glass - triple glazing | AA4: polymer | AB4: flexible | AC4: flexible 2 layers | AD4: flexible 2 layers with low-e | AE4: tint | AF4: LSG | AG4: HSG | AH4: low-e LSG | AI4: low-e HSG | AJ4: security | AK4: security | AL4: security | AM4: Decorative | AN4: tint | AO4: LSG | AP4: HSG | AQ4: low-e LSG | AR4: low-e HSG | AS4: security | AT4: decorative | AU4: seasonal flexible heat-applied film | AV4: exterior | AW4: exterior | AX4: exterior | AY4: exterior | AZ4: interior | BA4: interior | BB4: interior | BC4: interior | BD4: exterior | BE4: exterior | BF4: exterior | BG4: exterior | BH4: interior | BI4: interior | BJ4: interior | BK4: interior | BL4: exterior | BM4: exterior | BN4: exterior | BO4: exterior | BP4: exterior | BQ4: exterior | BR4: exterior | BS4: exterior | BT4: interior | BU4: interior | BV4: interior | BW4: interior | BX4: interior | BY4: interior | BZ4: interior | CA4: interior | CB4: Opaque | CC4: Semi-Opaque | CD4: Shear | CE4: Opaque | CF4: Semi-Opaque | CG4: Opaque | CH4: Semi-Opaque | CI4: Shear | CJ4: Opaque | CK4: Semi-Opaque | CL4: Opaque | CM4: Semi-Opaque | CN4: Shear | CO4: Opaque | CP4: Semi-Opaque | CQ4: Opaque | CR4: Semi-Opaque | CS4: Shear | CT4: Opaque | CU4: Semi-Opaque | CV4: Opaque | CW4: Semi-Opaque | CX4: Shear | CY4: Opaque | CZ4: Semi-Opaque | DA4: Opaque | DB4: Semi-Opaque | DC4: Shear | DD4: Opaque | DE4: Semi-Opaque | DF4: Opaque | DG4: Semi-Opaque | DH4: Shear | DI4: Opaque | DJ4: Semi-Opaque | DK4: Opaque | DL4: Semi-Opaque | DM4: Shear | DN4: Opaque | DO4: Semi-Opaque | DP4: Non-roller | DQ4: roller | DR4: roller | DS4: roller | DT4: roller | DU4: Non-roller | DV4: roller | DW4: roller | DX4: roller | DY4: roller | DZ4: horizontal | EA4: horizontal | EB4: Vertical | EC4: Vertical | ED4: horizontal | EE4: horizontal | EF4: horizontal | EG4: horizontal | EH4: Vertical | EI4: Vertical | EJ4: Vertical | EK4: Vertical | EL4: Dark | EM4: Dark | EN4: Light | EO4: Light | EP4: Dark | EQ4: Dark | ER4: Light | ES4: Light | ET4: Dark | EU4: Dark | EV4: Light | EW4: Light | EX4: manual | EY4: manual | EZ4: automated | FA4: automated | FD4: manual | FE4: manual | FF4: automated | FG4: automated | FH4: manual | FI4: manual | FJ4: automated | FK4: automated | FP4: manual | FQ4: manual | FR4: automated | FS4: automated
B5: 1 | C5: Synergy but use caution | J5: HSG | K5: LSG | M5: HSG | N5: LSG | P5: low-e | Q5: low-e | R5: clear | T5: low-e | U5: low-e | V5: clear | W5: low-e | X5: low-e | Y5: low-e | Z5: low-e | AJ5: tint (neutral) | AK5: LSG (clear) | AL5: HSG | AV5: Light Color | AW5: Light Color | AX5: Dark Color | AY5: Dark Color | AZ5: Light Color | BA5: Light Color | BB5: Dark Color | BC5: Dark Color | BD5: Light Color | BE5: Dark Color | BF5: Light Color | BG5: Dark Color | BH5: Light Color | BI5: Dark Color | BJ5: Light Color | BK5: Dark Color | BL5: Light Color | BM5: Light Color | BN5: Dark Color | BO5: Dark Color | BP5: Light Color | BQ5: Light Color | BR5: Dark Color | BS5: Dark Color | BT5: Light Color | BU5: Light Color | BV5: Dark Color | BW5: Dark Color | BX5: Light Color | BY5: Light Color | BZ5: Dark Color | CA5: Dark Color | CB5: No side track | CC5: No side track | CD5: No side track | CE5: No side track | CF5: No side track | CG5: Side Track | CH5: Side Track | CI5: Side Track | CJ5: Side Track | CK5: Side Track | CL5: No side track | CM5: No side track | CN5: No side track | CO5: No side track | CP5: No side track | CQ5: Side Track | CR5: Side Track | CS5: Side Track | CT5: Side Track | CU5: Side Track | CV5: No side track | CW5: No side track | CX5: No side track | CY5: No side track | CZ5: No side track | DA5: Side Track | DB5: Side Track | DC5: Side Track | DD5: Side Track | DE5: Side Track | DF5: No side track | DG5: No side track | DH5: No side track | DI5: No side track | DJ5: No side track | DK5: Side Track | DL5: Side Track | DM5: Side Track | DN5: Side Track | DO5: Side Track | DQ5: side track | DR5: no - side track | DS5: side track | DT5: no - side track | DV5: side track | DW5: no - side track | DX5: side track | DY5: no - side track | DZ5: manual | EA5: Automated | EB5: manual | EC5: Automated | ED5: reflective | EE5: absorbtive | EF5: reflective | EG5: absorbtive | EH5: reflective | EI5: absorbtive | EJ5: reflective | EK5: absorbtive | EL5: open weave | EM5: tight weave | EN5: open weave | EO5: tight weave | EP5: open weave | EQ5: tight weave | ER5: open weave | ES5: tight weave | ET5: open weave | EU5: tight weave | EV5: open weave | EW5: tight weave | FD5: insulating | FE5: non-insulating | FF5: insulating | FG5: non-insulating | FH5: insulating | FI5: non-insulating | FJ5: insulating | FK5: non-insulating
B6: 2 | C6: Synergistic | P6: hsg | Q6: lsg | T6: hsg | U6: lsg | W6: hsg | X6: lsg | Y6: hsg | Z6: lsg | AV6: tight weave | AW6: open weave | AX6: tight weave | AY6: open weave | AZ6: tight weave | BA6: open weave | BB6: tight weave | BC6: open weave | BD6: tight weave | BE6: tight weave | BF6: tight weave | BG6: tight weave | BH6: tight weave | BI6: tight weave | BJ6: tight weave | BK6: tight weave | BL6: tight weave | BM6: open weave | BN6: tight weave | BO6: open weave | BP6: tight weave | BQ6: open weave | BR6: tight weave | BS6: open weave | BT6: tight weave | BU6: open weave | BV6: tight weave | BW6: open weave | BX6: tight weave | BY6: open weave | BZ6: tight weave | CA6: open weave | CB6: Manual | CC6: Manual | CD6: Manual | CE6: Manual | CF6: Manual | CG6: Manual | CH6: Manual | CI6: Manual | CJ6: Manual | CK6: Manual | CL6: Automated | CM6: Automated | CN6: Automated | CO6: Automated | CP6: Automated | CQ6: Automated | CR6: Automated | CS6: Automated | CT6: Automated | CU6: Automated | CV6: Manual | CW6: Manual | CX6: Manual | CY6: Manual | CZ6: Manual | DA6: Manual | DB6: Manual | DC6: Manual | DD6: Manual | DE6: Manual | DF6: Automated | DG6: Automated | DH6: Automated | DI6: Automated | DJ6: Automated | DK6: Automated | DL6: Automated | DM6: Automated | DN6: Automated | DO6: Automated | DQ6: manual | DR6: manual | DS6: Automated | DT6: Automated | DV6: manual | DW6: manual | DX6: Automated | DY6: Automated | ED6: manual | EE6: manual | EF6: Automated | EG6: Automated | EH6: manual | EI6: manual | EJ6: Automated | EK6: Automated | EP6: Manual | EQ6: Manual | ER6: Manual | ES6: Manual | ET6: Automated | EU6: Automated | EV6: Automated | EW6: Automated
AV7: Manual | AW7: Manual | AX7: Manual | AY7: Manual | AZ7: Manual | BA7: Manual | BB7: Manual | BC7: Manual | BD7: Manual | BE7: Manual | BF7: Automated | BG7: Automated | BH7: Manual | BI7: Manual | BJ7: Automated | BK7: Automated | BL7: Manual | BM7: Manual | BN7: Manual | BO7: Manual | BP7: Automated | BQ7: Automated | BR7: Automated | BS7: Automated | BT7: Manual | BU7: Manual | BV7: Manual | BW7: Manual | BX7: Automated | BY7: Automated | BZ7: Automated | CA7: Automated | CB7: 1D ajustment | CC7: 1D ajustment | CD7: 1D ajustment | CE7: 1D ajustment | CF7: 1D ajustment | CG7: 1D ajustment | CH7: 1D ajustment | CI7: 1D ajustment | CJ7: 1D ajustment | CK7: 1D ajustment | CL7: 1D ajustment | CM7: 1D ajustment | CN7: 1D ajustment | CO7: 1D ajustment | CP7: 1D ajustment | CQ7: 1D ajustment | CR7: 1D ajustment | CS7: 1D ajustment | CT7: 1D ajustment | CU7: 1D ajustment | CV7: 2D ajustment | CW7: 2D ajustment | CX7: 2D ajustment | CY7: 2D ajustment | CZ7: 2D ajustment | DA7: 2D ajustment | DB7: 2D ajustment | DC7: 2D ajustment | DD7: 2D ajustment | DE7: 2D ajustment | DF7: 2D ajustment | DG7: 2D ajustment | DH7: 2D ajustment | DI7: 2D ajustment | DJ7: 2D ajustment | DK7: 2D ajustment | DL7: 2D ajustment | DM7: 2D ajustment | DN7: 2D ajustment | DO7: 2D ajustment
A8: 1 | B8: a | C8: Exterior storm | D8: tracked | E8: low-e | F8: HSG | I8: BC1 | J8: Y
B9: b | I9: BC2 | J9: Y
B10: c | I10: BC3 | J10: Y
A11: 2 | B11: a | C11: Exterior storm | D11: tracked | E11: low-e | F11: LSG | I11: BC1 | J11: -2 | K11: Y
B12: b | I12: BC2 | J12: -2 | K12: Y
B13: c | I13: BC3 | J13: -2 | K13: Y
A14: 3 | B14: a | C14: Exterior storm | D14: tracked | E14: clear | I14: BC1 | J14: -2 | K14: -2 | L14: Y
B15: b | I15: BC2 | J15: -2 | K15: -2 | L15: Y
B16: c | I16: BC3 | J16: -2 | K16: -2 | L16: Y
A17: 4 | B17: a | C17: Exterior storm | D17: Fixed | E17: low-e | F17: HSG | I17: BC1 | J17: -2 | K17: -2 | L17: -2 | M17: Y
B18: b | I18: BC2 | J18: -2 | K18: -2 | L18: -2 | M18: Y
B19: c | I19: BC3 | J19: -2 | K19: -2 | L19: -2 | M19: Y
A20: 5 | B20: a | C20: Exterior storm | D20: Fixed | E20: low-e | F20: LSG | I20: BC1 | J20: -2 | K20: -2 | L20: -2 | M20: -2 | N20: Y
B21: b | I21: BC2 | J21: -2 | K21: -2 | L21: -2 | M21: -2 | N21: Y
B22: c | I22: BC3 | J22: -2 | K22: -2 | L22: -2 | M22: -2 | N22: Y
A23: 6 | B23: a | C23: Exterior storm | D23: Fixed | E23: clear | I23: BC1 | J23: -2 | K23: -2 | L23: -2 | M23: -2 | N23: -2 | O23: Y
B24: b | I24: BC2 | J24: -2 | K24: -2 | L24: -2 | M24: -2 | N24: -2 | O24: Y
B25: c | I25: BC3 | J25: -2 | K25: -2 | L25: -2 | M25: -2 | N25: -2 | O25: Y
A26: 7 | B26: a | C26: Interior panel | D26: tracked | E26: glass | F26: low-e | G26: hsg | I26: BC1 | J26: 0 | K26: 0 | L26: 2 | M26: 0 | N26: 0 | O26: 2 | P26: Y
B27: b | I27: BC2 | J27: 0 | K27: 0 | L27: 1 | M27: 0 | N27: 0 | O27: 1 | P27: Y
B28: c | I28: BC3 | J28: -1 | K28: -1 | L28: -1 | M28: -1 | N28: -1 | O28: -1 | P28: Y
A29: 8 | B29: a | C29: Interior panel | D29: tracked | E29: glass | F29: low-e | G29: lsg | I29: BC1 | J29: 0 | K29: 0 | L29: 2 | M29: 0 | N29: 0 | O29: 2 | P29: -2 | Q29: Y
B30: b | I30: BC2 | J30: 0 | K30: 0 | L30: 1 | M30: 0 | N30: 0 | O30: 1 | P30: -2 | Q30: Y
B31: c | I31: BC3 | J31: -1 | K31: -1 | L31: -1 | M31: -1 | N31: -1 | O31: -1 | P31: -2 | Q31: Y
A32: 9 | B32: a | C32: Interior panel | D32: tracked | E32: glass | F32: clear | I32: BC1 | J32: 1 | K32: 1 | L32: 1 | M32: 1 | N32: 1 | O32: 1 | P32: -2 | Q32: -2 | R32: Y
B33: b | I33: BC2 | J33: 1 | K33: 1 | L33: 1 | M33: 1 | N33: 1 | O33: 1 | P33: -2 | Q33: -2 | R33: Y
B34: c | I34: BC3 | J34: 1 | K34: 1 | L34: 1 | M34: 1 | N34: 1 | O34: 1 | P34: -2 | Q34: -2 | R34: Y
A35: 10 | B35: a | C35: Interior panel | D35: tracked | E35: polymer | I35: BC1 | J35: 1 | K35: 1 | L35: 1 | M35: 1 | N35: 1 | O35: 1 | P35: -2 | Q35: -2 | R35: -2 | S35: Y
B36: b | I36: BC2 | J36: 1 | K36: 1 | L36: 1 | M36: 1 | N36: 1 | O36: 1 | P36: -2 | Q36: -2 | R36: -2 | S36: Y
B37: c | I37: BC3 | J37: 1 | K37: 1 | L37: 1 | M37: 1 | N37: 1 | O37: 1 | P37: -2 | Q37: -2 | R37: -2 | S37: Y
A38: 11 | B38: a | C38: Interior panel | D38: fixed | E38: glass | F38: low-e | G38: hsg | I38: BC1 | J38: 0 | K38: 0 | L38: 2 | M38: 0 | N38: 0 | O38: 2 | P38: -2 | Q38: -2 | R38: -2 | S38: -2 | T38: Y
B39: b | I39: BC2 | J39: 0 | K39: 0 | L39: 1 | M39: 0 | N39: 0 | O39: 1 | P39: -2 | Q39: -2 | R39: -2 | S39: -2 | T39: Y
B40: c | I40: BC3 | J40: -1 | K40: -1 | L40: -1 | M40: -1 | N40: -1 | O40: -1 | P40: -2 | Q40: -2 | R40: -2 | S40: -2 | T40: Y
A41: 12 | B41: a | C41: Interior panel | D41: fixed | E41: glass | F41: low-e | G41: lsg | I41: BC1 | J41: 0 | K41: 0 | L41: 2 | M41: 0 | N41: 0 | O41: 2 | P41: -2 | Q41: -2 | R41: -2 | S41: -2 | T41: -2 | U41: Y
B42: b | I42: BC2 | J42: 0 | K42: 0 | L42: 1 | M42: 0 | N42: 0 | O42: 1 | P42: -2 | Q42: -2 | R42: -2 | S42: -2 | T42: -2 | U42: Y
B43: c | I43: BC3 | J43: -1 | K43: -1 | L43: -1 | M43: -1 | N43: -1 | O43: -1 | P43: -2 | Q43: -2 | R43: -2 | S43: -2 | T43: -2 | U43: Y
A44: 13 | B44: a | C44: Interior panel | D44: fixed | E44: glass | F44: clear | I44: BC1 | J44: 1 | K44: 1 | L44: 1 | M44: 1 | N44: 1 | O44: 1 | P44: -2 | Q44: -2 | R44: -2 | S44: -2 | T44: -2 | U44: -2 | V44: Y
B45: b | I45: BC2 | J45: 0 | K45: 0 | L45: 1 | M45: 0 | N45: 0 | O45: 1 | P45: -2 | Q45: -2 | R45: -2 | S45: -2 | T45: -2 | U45: -2 | V45: Y
B46: c | I46: BC3 | J46: 0 | K46: 0 | L46: 1 | M46: 0 | N46: 0 | O46: 1 | P46: -2 | Q46: -2 | R46: -2 | S46: -2 | T46: -2 | U46: -2 | V46: Y
A47: 14 | B47: a | C47: Interior panel | D47: fixed | E47: glass - double glazing | F47: low-e | G47: hsg | I47: BC1 | J47: -1 | K47: -1 | L47: 1 | M47: -1 | N47: -1 | O47: 1 | P47: -2 | Q47: -2 | R47: -2 | S47: -2 | T47: -2 | U47: -2 | V47: -2 | W47: Y
B48: b | I48: BC2 | J48: -1 | K48: -1 | L48: -1 | M48: -1 | N48: -1 | O48: -1 | P48: -2 | Q48: -2 | R48: -2 | S48: -2 | T48: -2 | U48: -2 | V48: -2 | W48: Y
B49: c | I49: BC3 | J49: -1 | K49: -1 | L49: -1 | M49: -1 | N49: -1 | O49: -1 | P49: -2 | Q49: -2 | R49: -2 | S49: -2 | T49: -2 | U49: -2 | V49: -2 | W49: N
A50: 15 | B50: a | C50: Interior panel | D50: fixed | E50: glass - double glazing | F50: low-e | G50: lsg | I50: BC1 | J50: -1 | K50: -1 | L50: 1 | M50: -1 | N50: -1 | O50: 1 | P50: -2 | Q50: -2 | R50: -2 | S50: -2 | T50: -2 | U50: -2 | V50: -2 | W50: -2 | X50: Y
B51: b | I51: BC2 | J51: -1 | K51: -1 | L51: -1 | M51: -1 | N51: -1 | O51: -1 | P51: -2 | Q51: -2 | R51: -2 | S51: -2 | T51: -2 | U51: -2 | V51: -2 | W51: -2 | X51: Y
B52: c | I52: BC3 | J52: -1 | K52: -1 | L52: -1 | M52: -1 | N52: -1 | O52: -1 | P52: -2 | Q52: -2 | R52: -2 | S52: -2 | T52: -2 | U52: -2 | V52: -2 | W52: -2 | X52: N
A53: 16 | B53: a | C53: Interior panel | D53: fixed | E53: glass - triple glazing | F53: low-e | G53: hsg | I53: BC1 | J53: -1 | K53: -1 | L53: 1 | M53: -1 | N53: -1 | O53: 1 | P53: -2 | Q53: -2 | R53: -2 | S53: -2 | T53: -2 | U53: -2 | V53: -2 | W53: -2 | X53: -2 | Y53: Y
B54: b | I54: BC2 | J54: -1 | K54: -1 | L54: -1 | M54: -1 | N54: -1 | O54: -1 | P54: -2 | Q54: -2 | R54: -2 | S54: -2 | T54: -2 | U54: -2 | V54: -2 | W54: -2 | X54: -2 | Y54: Y
B55: c | I55: BC3 | J55: -1 | K55: -1 | L55: -1 | M55: -1 | N55: -1 | O55: -1 | P55: -2 | Q55: -2 | R55: -2 | S55: -2 | T55: -2 | U55: -2 | V55: -2 | W55: -2 | X55: -2 | Y55: N
A56: 17 | B56: a | C56: Interior panel | D56: fixed | E56: glass - triple glazing | F56: low-e | G56: lsg | I56: BC1 | J56: -1 | K56: -1 | L56: 1 | M56: -1 | N56: -1 | O56: 1 | P56: -2 | Q56: -2 | R56: -2 | S56: -2 | T56: -2 | U56: -2 | V56: -2 | W56: -2 | X56: -2 | Y56: -2 | Z56: Y
B57: b | I57: BC2 | J57: -1 | K57: -1 | L57: -1 | M57: -1 | N57: -1 | O57: -1 | P57: -2 | Q57: -2 | R57: -2 | S57: -2 | T57: -2 | U57: -2 | V57: -2 | W57: -2 | X57: -2 | Y57: -2 | Z57: Y
B58: c | I58: BC3 | J58: -1 | K58: -1 | L58: -1 | M58: -1 | N58: -1 | O58: -1 | P58: -2 | Q58: -2 | R58: -2 | S58: -2 | T58: -2 | U58: -2 | V58: -2 | W58: -2 | X58: -2 | Y58: -2 | Z58: N
A59: 18 | B59: a | C59: Interior panel | D59: fixed | E59: polymer | I59: BC1 | J59: 1 | K59: 1 | L59: 1 | M59: 1 | N59: 1 | O59: 1 | P59: -2 | Q59: -2 | R59: -2 | S59: -2 | T59: -2 | U59: -2 | V59: -2 | W59: -2 | X59: -2 | Y59: -2 | Z59: -2 | AA59: Y
B60: b | I60: BC2 | J60: 0 | K60: 0 | L60: 1 | M60: 0 | N60: 0 | O60: 1 | P60: -2 | Q60: -2 | R60: -2 | S60: -2 | T60: -2 | U60: -2 | V60: -2 | W60: -2 | X60: -2 | Y60: -2 | Z60: -2 | AA60: Y
B61: c | I61: BC3 | J61: 0 | K61: 0 | L61: 1 | M61: 0 | N61: 0 | O61: 1 | P61: -2 | Q61: -2 | R61: -2 | S61: -2 | T61: -2 | U61: -2 | V61: -2 | W61: -2 | X61: -2 | Y61: -2 | Z61: -2 | AA61: Y
A62: 19 | B62: a | C62: Interior panel | D62: fixed | E62: flexible | I62: BC1 | J62: 1 | K62: 1 | L62: 1 | M62: 1 | N62: 1 | O62: 1 | P62: -2 | Q62: -2 | R62: -2 | S62: -2 | T62: -2 | U62: -2 | V62: -2 | W62: -2 | X62: -2 | Y62: -2 | Z62: -2 | AA62: -2 | AB62: Y
B63: b | I63: BC2 | J63: 0 | K63: 0 | L63: 1 | M63: 0 | N63: 0 | O63: 1 | P63: -2 | Q63: -2 | R63: -2 | S63: -2 | T63: -2 | U63: -2 | V63: -2 | W63: -2 | X63: -2 | Y63: -2 | Z63: -2 | AA63: -2 | AB63: Y
B64: c | I64: BC3 | J64: 0 | K64: 0 | L64: 1 | M64: 0 | N64: 0 | O64: 1 | P64: -2 | Q64: -2 | R64: -2 | S64: -2 | T64: -2 | U64: -2 | V64: -2 | W64: -2 | X64: -2 | Y64: -2 | Z64: -2 | AA64: -2 | AB64: Y
A65: 20 | B65: a | C65: Interior panel | D65: fixed | E65: flexible 2 layers | I65: BC1 | J65: 1 | K65: 1 | L65: 1 | M65: 1 | N65: 1 | O65: 1 | P65: -2 | Q65: -2 | R65: -2 | S65: -2 | T65: -2 | U65: -2 | V65: -2 | W65: -2 | X65: -2 | Y65: -2 | Z65: -2 | AA65: -2 | AB65: -2 | AC65: Y
B66: b | I66: BC2 | J66: 0 | K66: 0 | L66: 1 | M66: 0 | N66: 0 | O66: 1 | P66: -2 | Q66: -2 | R66: -2 | S66: -2 | T66: -2 | U66: -2 | V66: -2 | W66: -2 | X66: -2 | Y66: -2 | Z66: -2 | AA66: -2 | AB66: -2 | AC66: Y
B67: c | I67: BC3 | J67: 0 | K67: 0 | L67: 1 | M67: 0 | N67: 0 | O67: 1 | P67: -2 | Q67: -2 | R67: -2 | S67: -2 | T67: -2 | U67: -2 | V67: -2 | W67: -2 | X67: -2 | Y67: -2 | Z67: -2 | AA67: -2 | AB67: -2 | AC67: Y
A68: 21 | B68: a | C68: Interior panel | D68: fixed | E68: flexible 2 layers with low-e | I68: BC1 | J68: -1 | K68: -1 | L68: 1 | M68: -1 | N68: -1 | O68: 1 | P68: -2 | Q68: -2 | R68: -2 | S68: -2 | T68: -2 | U68: -2 | V68: -2 | W68: -2 | X68: -2 | Y68: -2 | Z68: -2 | AA68: -2 | AB68: -2 | AC68: -2 | AD68: Y
B69: b | I69: BC2 | J69: -1 | K69: -1 | L69: -1 | M69: -1 | N69: -1 | O69: -1 | P69: -2 | Q69: -2 | R69: -2 | S69: -2 | T69: -2 | U69: -2 | V69: -2 | W69: -2 | X69: -2 | Y69: -2 | Z69: -2 | AA69: -2 | AB69: -2 | AC69: -2 | AD69: Y
B70: c | I70: BC3 | J70: -1 | K70: -1 | L70: -1 | M70: -1 | N70: -1 | O70: -1 | P70: -2 | Q70: -2 | R70: -2 | S70: -2 | T70: -2 | U70: -2 | V70: -2 | W70: -2 | X70: -2 | Y70: -2 | Z70: -2 | AA70: -2 | AB70: -2 | AC70: -2 | AD70: N
A71: 22 | B71: a | C71: Film | D71: Pro Installation | E71: tint | I71: BC1 | J71: -1 | K71: -1 | L71: 2 | M71: -1 | N71: -1 | O71: 2 | P71: -1 | Q71: -1 | R71: 2 | S71: 2 | T71: -1 | U71: -1 | V71: 2 | W71: -1 | X71: -1 | Y71: -1 | Z71: -1 | AA71: 2 | AB71: 2 | AC71: 2 | AD71: -1 | AE71: Y
B72: b | I72: BC2 | J72: -1 | K72: -1 | L72: 2 | M72: -1 | N72: -1 | O72: 2 | P72: -1 | Q72: -1 | R72: 2 | S72: 2 | T72: -1 | U72: -1 | V72: 2 | W72: -1 | X72: -1 | Y72: -1 | Z72: -1 | AA72: 2 | AB72: 2 | AC72: 2 | AD72: -1 | AE72: Y
B73: c | I73: BC3 | J73: -1 | K73: -1 | L73: 0 | M73: -1 | N73: -1 | O73: 0 | P73: -1 | Q73: -1 | R73: 0 | S73: 0 | T73: -1 | U73: -1 | V73: 0 | W73: -1 | X73: -1 | Y73: -1 | Z73: -1 | AA73: 0 | AB73: 0 | AC73: 0 | AD73: -1 | AE73: Y
A74: 23 | B74: a | C74: Film | D74: Pro Installation | E74: LSG | I74: BC1 | J74: -1 | K74: -1 | L74: 2 | M74: -1 | N74: -1 | O74: 2 | P74: -1 | Q74: -1 | R74: 2 | S74: 2 | T74: -1 | U74: -1 | V74: 2 | W74: -1 | X74: -1 | Y74: -1 | Z74: -1 | AA74: 2 | AB74: 2 | AC74: 2 | AD74: -1 | AE74: -2 | AF74: Y
B75: b | I75: BC2 | J75: -1 | K75: -1 | L75: 2 | M75: -1 | N75: -1 | O75: 2 | P75: -1 | Q75: -1 | R75: 2 | S75: 2 | T75: -1 | U75: -1 | V75: 2 | W75: -1 | X75: -1 | Y75: -1 | Z75: -1 | AA75: 2 | AB75: 2 | AC75: 2 | AD75: -1 | AE75: -2 | AF75: Y
B76: c | I76: BC3 | J76: -1 | K76: -1 | L76: 0 | M76: -1 | N76: -1 | O76: 0 | P76: -1 | Q76: -1 | R76: 0 | S76: 0 | T76: -1 | U76: -1 | V76: 0 | W76: -1 | X76: -1 | Y76: -1 | Z76: -1 | AA76: 0 | AB76: 0 | AC76: 0 | AD76: -1 | AE76: -2 | AF76: Y
A77: 24 | B77: a | C77: Film | D77: Pro Installation | E77: HSG | I77: BC1 | J77: -1 | K77: -1 | L77: 2 | M77: -1 | N77: -1 | O77: 2 | P77: -1 | Q77: -1 | R77: 2 | S77: 2 | T77: -1 | U77: -1 | V77: 2 | W77: -1 | X77: -1 | Y77: -1 | Z77: -1 | AA77: 2 | AB77: 2 | AC77: 2 | AD77: -1 | AE77: -2 | AF77: -2 | AG77: Y
B78: b | I78: BC2 | J78: -1 | K78: -1 | L78: 2 | M78: -1 | N78: -1 | O78: 2 | P78: -1 | Q78: -1 | R78: 2 | S78: 2 | T78: -1 | U78: -1 | V78: 2 | W78: -1 | X78: -1 | Y78: -1 | Z78: -1 | AA78: 2 | AB78: 2 | AC78: 2 | AD78: -1 | AE78: -2 | AF78: -2 | AG78: Y
B79: c | I79: BC3 | J79: -1 | K79: -1 | L79: 0 | M79: -1 | N79: -1 | O79: 0 | P79: -1 | Q79: -1 | R79: 0 | S79: 0 | T79: -1 | U79: -1 | V79: 0 | W79: -1 | X79: -1 | Y79: -1 | Z79: -1 | AA79: 0 | AB79: 0 | AC79: 0 | AD79: -1 | AE79: -2 | AF79: -2 | AG79: Y
A80: 25 | B80: a | C80: Film | D80: Pro Installation | E80: low-e | F80: LSG | I80: BC1 | J80: -1 | K80: -1 | L80: 2 | M80: -1 | N80: -1 | O80: 2 | P80: -1 | Q80: -1 | R80: 2 | S80: 2 | T80: -1 | U80: -1 | V80: 2 | W80: -1 | X80: -1 | Y80: -1 | Z80: -1 | AA80: 2 | AB80: 2 | AC80: 2 | AD80: -1 | AE80: -2 | AF80: -2 | AG80: -2 | AH80: Y
B81: b | I81: BC2 | J81: -1 | K81: -1 | L81: 2 | M81: -1 | N81: -1 | O81: 2 | P81: -1 | Q81: -1 | R81: 2 | S81: 2 | T81: -1 | U81: -1 | V81: 2 | W81: -1 | X81: -1 | Y81: -1 | Z81: -1 | AA81: 2 | AB81: 2 | AC81: 2 | AD81: -1 | AE81: -2 | AF81: -2 | AG81: -2 | AH81: Y
B82: c | I82: BC3 | J82: -1 | K82: -1 | L82: 0 | M82: -1 | N82: -1 | O82: 0 | P82: -1 | Q82: -1 | R82: 0 | S82: 0 | T82: -1 | U82: -1 | V82: 0 | W82: -1 | X82: -1 | Y82: -1 | Z82: -1 | AA82: 0 | AB82: 0 | AC82: 0 | AD82: -1 | AE82: -2 | AF82: -2 | AG82: -2 | AH82: Y
A83: 26 | B83: a | C83: Film | D83: Pro Installation | E83: low-e | F83: HSG | I83: BC1 | J83: -1 | K83: -1 | L83: 2 | M83: -1 | N83: -1 | O83: 2 | P83: -1 | Q83: -1 | R83: 2 | S83: 2 | T83: -1 | U83: -1 | V83: 2 | W83: -1 | X83: -1 | Y83: -1 | Z83: -1 | AA83: 2 | AB83: 2 | AC83: 2 | AD83: -1 | AE83: -2 | AF83: -2 | AG83: -2 | AH83: -2 | AI83: Y
B84: b | I84: BC2 | J84: -1 | K84: -1 | L84: 2 | M84: -1 | N84: -1 | O84: 2 | P84: -1 | Q84: -1 | R84: 2 | S84: 2 | T84: -1 | U84: -1 | V84: 2 | W84: -1 | X84: -1 | Y84: -1 | Z84: -1 | AA84: 2 | AB84: 2 | AC84: 2 | AD84: -1 | AE84: -2 | AF84: -2 | AG84: -2 | AH84: -2 | AI84: Y
B85: c | I85: BC3 | J85: -1 | K85: -1 | L85: 0 | M85: -1 | N85: -1 | O85: 0 | P85: -1 | Q85: -1 | R85: 0 | S85: 0 | T85: -1 | U85: -1 | V85: 0 | W85: -1 | X85: -1 | Y85: -1 | Z85: -1 | AA85: 0 | AB85: 0 | AC85: 0 | AD85: -1 | AE85: -2 | AF85: -2 | AG85: -2 | AH85: -2 | AI85: Y
A86: 27 | B86: a | C86: Film | D86: Pro Installation | E86: security | F86: tint (neutral) | I86: BC1 | J86: -1 | K86: -1 | L86: 2 | M86: -1 | N86: -1 | O86: 2 | P86: -1 | Q86: -1 | R86: 2 | S86: 2 | T86: -1 | U86: -1 | V86: 2 | W86: -1 | X86: -1 | Y86: -1 | Z86: -1 | AA86: 2 | AB86: 2 | AC86: 2 | AD86: -1 | AE86: -2 | AF86: -2 | AG86: -2 | AH86: -2 | AI86: -2 | AJ86: Y
B87: b | I87: BC2 | J87: -1 | K87: -1 | L87: 2 | M87: -1 | N87: -1 | O87: 2 | P87: -1 | Q87: -1 | R87: 2 | S87: 2 | T87: -1 | U87: -1 | V87: 2 | W87: -1 | X87: -1 | Y87: -1 | Z87: -1 | AA87: 2 | AB87: 2 | AC87: 2 | AD87: -1 | AE87: -2 | AF87: -2 | AG87: -2 | AH87: -2 | AI87: -2 | AJ87: Y
B88: c | I88: BC3 | J88: -1 | K88: -1 | L88: 0 | M88: -1 | N88: -1 | O88: 0 | P88: -1 | Q88: -1 | R88: 0 | S88: 0 | T88: -1 | U88: -1 | V88: 0 | W88: -1 | X88: -1 | Y88: -1 | Z88: -1 | AA88: 0 | AB88: 0 | AC88: 0 | AD88: -1 | AE88: -2 | AF88: -2 | AG88: -2 | AH88: -2 | AI88: -2 | AJ88: y
A89: 28 | B89: a | C89: Film | D89: Pro Installation | E89: security | F89: LSG (clear) | I89: BC1 | J89: -1 | K89: -1 | L89: 2 | M89: -1 | N89: -1 | O89: 2 | P89: -1 | Q89: -1 | R89: 2 | S89: 2 | T89: -1 | U89: -1 | V89: 2 | W89: -1 | X89: -1 | Y89: -1 | Z89: -1 | AA89: 2 | AB89: 2 | AC89: 2 | AD89: -1 | AE89: -2 | AF89: -2 | AG89: -2 | AH89: -2 | AI89: -2 | AJ89: -2 | AK89: Y
B90: b | I90: BC2 | J90: -1 | K90: -1 | L90: 2 | M90: -1 | N90: -1 | O90: 2 | P90: -1 | Q90: -1 | R90: 2 | S90: 2 | T90: -1 | U90: -1 | V90: 2 | W90: -1 | X90: -1 | Y90: -1 | Z90: -1 | AA90: 2 | AB90: 2 | AC90: 2 | AD90: -1 | AE90: -2 | AF90: -2 | AG90: -2 | AH90: -2 | AI90: -2 | AJ90: -2 | AK90: Y
B91: c | I91: BC3 | J91: -1 | K91: -1 | L91: 0 | M91: -1 | N91: -1 | O91: 0 | P91: -1 | Q91: -1 | R91: 0 | S91: 0 | T91: -1 | U91: -1 | V91: 0 | W91: -1 | X91: -1 | Y91: -1 | Z91: -1 | AA91: 0 | AB91: 0 | AC91: 0 | AD91: -1 | AE91: -2 | AF91: -2 | AG91: -2 | AH91: -2 | AI91: -2 | AJ91: -2 | AK91: Y
A92: 29 | B92: a | C92: Film | D92: Pro Installation | E92: security | F92: HSG | I92: BC1 | J92: -1 | K92: -1 | L92: 2 | M92: -1 | N92: -1 | O92: 2 | P92: -1 | Q92: -1 | R92: 2 | S92: 2 | T92: -1 | U92: -1 | V92: 2 | W92: -1 | X92: -1 | Y92: -1 | Z92: -1 | AA92: 2 | AB92: 2 | AC92: 2 | AD92: -1 | AE92: -2 | AF92: -2 | AG92: -2 | AH92: -2 | AI92: -2 | AJ92: -2 | AK92: -2 | AL92: Y
B93: b | I93: BC2 | J93: -1 | K93: -1 | L93: 2 | M93: -1 | N93: -1 | O93: 2 | P93: -1 | Q93: -1 | R93: 2 | S93: 2 | T93: -1 | U93: -1 | V93: 2 | W93: -1 | X93: -1 | Y93: -1 | Z93: -1 | AA93: 2 | AB93: 2 | AC93: 2 | AD93: -1 | AE93: -2 | AF93: -2 | AG93: -2 | AH93: -2 | AI93: -2 | AJ93: -2 | AK93: -2 | AL93: Y
B94: c | I94: BC3 | J94: -1 | K94: -1 | L94: 0 | M94: -1 | N94: -1 | O94: 0 | P94: -1 | Q94: -1 | R94: 0 | S94: 0 | T94: -1 | U94: -1 | V94: 0 | W94: -1 | X94: -1 | Y94: -1 | Z94: -1 | AA94: 0 | AB94: 0 | AC94: 0 | AD94: -1 | AE94: -2 | AF94: -2 | AG94: -2 | AH94: -2 | AI94: -2 | AJ94: -2 | AK94: -2 | AL94: Y
A95: 30 | B95: a | C95: Film | D95: Pro Installation | E95: Decorative | I95: BC1 | J95: 2 | K95: 2 | L95: 2 | M95: 2 | N95: 2 | O95: 2 | P95: 0 | Q95: 0 | R95: 0 | S95: 0 | T95: 0 | U95: 0 | V95: 0 | W95: 0 | X95: 0 | Y95: 0 | Z95: 0 | AA95: 0 | AB95: 0 | AC95: 0 | AD95: 0 | AE95: -2 | AF95: -2 | AG95: -2 | AH95: -2 | AI95: -2 | AJ95: -2 | AK95: -2 | AL95: -2 | AM95: Y
B96: b | I96: BC2 | J96: 2 | K96: 2 | L96: 2 | M96: 2 | N96: 2 | O96: 2 | P96: 0 | Q96: 0 | R96: 0 | S96: 0 | T96: 0 | U96: 0 | V96: 0 | W96: 0 | X96: 0 | Y96: 0 | Z96: 0 | AA96: 0 | AB96: 0 | AC96: 0 | AD96: 0 | AE96: -2 | AF96: -2 | AG96: -2 | AH96: -2 | AI96: -2 | AJ96: -2 | AK96: -2 | AL96: -2 | AM96: Y
B97: c | I97: BC3 | J97: 2 | K97: 2 | L97: 2 | M97: 2 | N97: 2 | O97: 2 | P97: 0 | Q97: 0 | R97: 0 | S97: 0 | T97: 0 | U97: 0 | V97: 0 | W97: 0 | X97: 0 | Y97: 0 | Z97: 0 | AA97: 0 | AB97: 0 | AC97: 0 | AD97: 0 | AE97: -2 | AF97: -2 | AG97: -2 | AH97: -2 | AI97: -2 | AJ97: -2 | AK97: -2 | AL97: -2 | AM97: Y
A98: 31 | B98: a | C98: Film | D98: DIY | E98: tint | I98: BC1 | J98: -1 | K98: -1 | L98: 2 | M98: -1 | N98: -1 | O98: 2 | P98: -1 | Q98: -1 | R98: 2 | S98: 2 | T98: -1 | U98: -1 | V98: 2 | W98: -1 | X98: -1 | Y98: -1 | Z98: -1 | AA98: 2 | AB98: 2 | AC98: 2 | AD98: -1 | AE98: -2 | AF98: -2 | AG98: -2 | AH98: -2 | AI98: -2 | AJ98: -2 | AK98: -2 | AL98: -2 | AM98: -2 | AN98: Y
B99: b | I99: BC2 | J99: -1 | K99: -1 | L99: 2 | M99: -1 | N99: -1 | O99: 2 | P99: -1 | Q99: -1 | R99: 2 | S99: 2 | T99: -1 | U99: -1 | V99: 2 | W99: -1 | X99: -1 | Y99: -1 | Z99: -1 | AA99: 2 | AB99: 2 | AC99: 2 | AD99: -1 | AE99: -2 | AF99: -2 | AG99: -2 | AH99: -2 | AI99: -2 | AJ99: -2 | AK99: -2 | AL99: -2 | AM99: -2 | AN99: Y
B100: c | I100: BC3 | J100: -1 | K100: -1 | L100: 0 | M100: -1 | N100: -1 | O100: 0 | P100: -1 | Q100: -1 | R100: 0 | S100: 0 | T100: -1 | U100: -1 | V100: 0 | W100: -1 | X100: -1 | Y100: -1 | Z100: -1 | AA100: 0 | AB100: 0 | AC100: 0 | AD100: -1 | AE100: -2 | AF100: -2 | AG100: -2 | AH100: -2 | AI100: -2 | AJ100: -2 | AK100: -2 | AL100: -2 | AM100: -2 | AN100: Y
A101: 32 | B101: a | C101: Film | D101: DIY | E101: LSG | I101: BC1 | J101: -1 | K101: -1 | L101: 2 | M101: -1 | N101: -1 | O101: 2 | P101: -1 | Q101: -1 | R101: 2 | S101: 2 | T101: -1 | U101: -1 | V101: 2 | W101: -1 | X101: -1 | Y101: -1 | Z101: -1 | AA101: 2 | AB101: 2 | AC101: 2 | AD101: -1 | AE101: -2 | AF101: -2 | AG101: -2 | AH101: -2 | AI101: -2 | AJ101: -2 | AK101: -2 | AL101: -2 | AM101: -2 | AN101: -2 | AO101: Y
B102: b | I102: BC2 | J102: -1 | K102: -1 | L102: 2 | M102: -1 | N102: -1 | O102: 2 | P102: -1 | Q102: -1 | R102: 2 | S102: 2 | T102: -1 | U102: -1 | V102: 2 | W102: -1 | X102: -1 | Y102: -1 | Z102: -1 | AA102: 2 | AB102: 2 | AC102: 2 | AD102: -1 | AE102: -2 | AF102: -2 | AG102: -2 | AH102: -2 | AI102: -2 | AJ102: -2 | AK102: -2 | AL102: -2 | AM102: -2 | AN102: -2 | AO102: Y
B103: c | I103: BC3 | J103: -1 | K103: -1 | L103: 0 | M103: -1 | N103: -1 | O103: 0 | P103: -1 | Q103: -1 | R103: 0 | S103: 0 | T103: -1 | U103: -1 | V103: 0 | W103: -1 | X103: -1 | Y103: -1 | Z103: -1 | AA103: 0 | AB103: 0 | AC103: 0 | AD103: -1 | AE103: -2 | AF103: -2 | AG103: -2 | AH103: -2 | AI103: -2 | AJ103: -2 | AK103: -2 | AL103: -2 | AM103: -2 | AN103: -2 | AO103: Y
A104: 33 | B104: a | C104: Film | D104: DIY | E104: HSG | I104: BC1 | J104: -1 | K104: -1 | L104: 2 | M104: -1 | N104: -1 | O104: 2 | P104: -1 | Q104: -1 | R104: 2 | S104: 2 | T104: -1 | U104: -1 | V104: 2 | W104: -1 | X104: -1 | Y104: -1 | Z104: -1 | AA104: 2 | AB104: 2 | AC104: 2 | AD104: -1 | AE104: -2 | AF104: -2 | AG104: -2 | AH104: -2 | AI104: -2 | AJ104: -2 | AK104: -2 | AL104: -2 | AM104: -2 | AN104: -2 | AO104: -2 | AP104: Y
B105: b | I105: BC2 | J105: -1 | K105: -1 | L105: 2 | M105: -1 | N105: -1 | O105: 2 | P105: -1 | Q105: -1 | R105: 2 | S105: 2 | T105: -1 | U105: -1 | V105: 2 | W105: -1 | X105: -1 | Y105: -1 | Z105: -1 | AA105: 2 | AB105: 2 | AC105: 2 | AD105: -1 | AE105: -2 | AF105: -2 | AG105: -2 | AH105: -2 | AI105: -2 | AJ105: -2 | AK105: -2 | AL105: -2 | AM105: -2 | AN105: -2 | AO105: -2 | AP105: Y
B106: c | I106: BC3 | J106: -1 | K106: -1 | L106: 0 | M106: -1 | N106: -1 | O106: 0 | P106: -1 | Q106: -1 | R106: 0 | S106: 0 | T106: -1 | U106: -1 | V106: 0 | W106: -1 | X106: -1 | Y106: -1 | Z106: -1 | AA106: 0 | AB106: 0 | AC106: 0 | AD106: -1 | AE106: -2 | AF106: -2 | AG106: -2 | AH106: -2 | AI106: -2 | AJ106: -2 | AK106: -2 | AL106: -2 | AM106: -2 | AN106: -2 | AO106: -2 | AP106: Y
A107: 34 | B107: a | C107: Film | D107: DIY | E107: low-e | F107: LSG | I107: BC1 | J107: -1 | K107: -1 | L107: 2 | M107: -1 | N107: -1 | O107: 2 | P107: -1 | Q107: -1 | R107: 2 | S107: 2 | T107: -1 | U107: -1 | V107: 2 | W107: -1 | X107: -1 | Y107: -1 | Z107: -1 | AA107: 2 | AB107: 2 | AC107: 2 | AD107: -1 | AE107: -2 | AF107: -2 | AG107: -2 | AH107: -2 | AI107: -2 | AJ107: -2 | AK107: -2 | AL107: -2 | AM107: -2 | AN107: -2 | AO107: -2 | AP107: -2 | AQ107: Y
B108: b | I108: BC2 | J108: -1 | K108: -1 | L108: 2 | M108: -1 | N108: -1 | O108: 2 | P108: -1 | Q108: -1 | R108: 2 | S108: 2 | T108: -1 | U108: -1 | V108: 2 | W108: -1 | X108: -1 | Y108: -1 | Z108: -1 | AA108: 2 | AB108: 2 | AC108: 2 | AD108: -1 | AE108: -2 | AF108: -2 | AG108: -2 | AH108: -2 | AI108: -2 | AJ108: -2 | AK108: -2 | AL108: -2 | AM108: -2 | AN108: -2 | AO108: -2 | AP108: -2 | AQ108: Y
B109: c | I109: BC3 | J109: -1 | K109: -1 | L109: 0 | M109: -1 | N109: -1 | O109: 0 | P109: -1 | Q109: -1 | R109: 0 | S109: 0 | T109: -1 | U109: -1 | V109: 0 | W109: -1 | X109: -1 | Y109: -1 | Z109: -1 | AA109: 0 | AB109: 0 | AC109: 0 | AD109: -1 | AE109: -2 | AF109: -2 | AG109: -2 | AH109: -2 | AI109: -2 | AJ109: -2 | AK109: -2 | AL109: -2 | AM109: -2 | AN109: -2 | AO109: -2 | AP109: -2 | AQ109: Y
A110: 35 | B110: a | C110: Film | D110: DIY | E110: low-e | F110: HSG | I110: BC1 | J110: -1 | K110: -1 | L110: 2 | M110: -1 | N110: -1 | O110: 2 | P110: -1 | Q110: -1 | R110: 2 | S110: 2 | T110: -1 | U110: -1 | V110: 2 | W110: -1 | X110: -1 | Y110: -1 | Z110: -1 | AA110: 2 | AB110: 2 | AC110: 2 | AD110: -1 | AE110: -2 | AF110: -2 | AG110: -2 | AH110: -2 | AI110: -2 | AJ110: -2 | AK110: -2 | AL110: -2 | AM110: -2 | AN110: -2 | AO110: -2 | AP110: -2 | AQ110: -2 | AR110: Y
B111: b | I111: BC2 | J111: -1 | K111: -1 | L111: 2 | M111: -1 | N111: -1 | O111: 2 | P111: -1 | Q111: -1 | R111: 2 | S111: 2 | T111: -1 | U111: -1 | V111: 2 | W111: -1 | X111: -1 | Y111: -1 | Z111: -1 | AA111: 2 | AB111: 2 | AC111: 2 | AD111: -1 | AE111: -2 | AF111: -2 | AG111: -2 | AH111: -2 | AI111: -2 | AJ111: -2 | AK111: -2 | AL111: -2 | AM111: -2 | AN111: -2 | AO111: -2 | AP111: -2 | AQ111: -2 | AR111: Y
B112: c | I112: BC3 | J112: -1 | K112: -1 | L112: 0 | M112: -1 | N112: -1 | O112: 0 | P112: -1 | Q112: -1 | R112: 0 | S112: 0 | T112: -1 | U112: -1 | V112: 0 | W112: -1 | X112: -1 | Y112: -1 | Z112: -1 | AA112: 0 | AB112: 0 | AC112: 0 | AD112: -1 | AE112: -2 | AF112: -2 | AG112: -2 | AH112: -2 | AI112: -2 | AJ112: -2 | AK112: -2 | AL112: -2 | AM112: -2 | AN112: -2 | AO112: -2 | AP112: -2 | AQ112: -2 | AR112: Y
A113: 36 | B113: a | C113: Film | D113: DIY | E113: security | I113: BC1 | J113: 2 | K113: 2 | L113: 2 | M113: 2 | N113: 2 | O113: 2 | P113: 2 | Q113: 2 | R113: 2 | S113: 2 | T113: 2 | U113: 2 | V113: 2 | W113: 2 | X113: 2 | Y113: 2 | Z113: 2 | AA113: 2 | AB113: 2 | AC113: 2 | AD113: 2 | AE113: -2 | AF113: -2 | AG113: -2 | AH113: -2 | AI113: -2 | AJ113: -2 | AK113: -2 | AL113: -2 | AM113: -2 | AN113: -2 | AO113: -2 | AP113: -2 | AQ113: -2 | AR113: -2 | AS113: Y
B114: b | I114: BC2 | J114: 2 | K114: 2 | L114: 2 | M114: 2 | N114: 2 | O114: 2 | P114: 2 | Q114: 2 | R114: 2 | S114: 2 | T114: 2 | U114: 2 | V114: 2 | W114: 2 | X114: 2 | Y114: 2 | Z114: 2 | AA114: 2 | AB114: 2 | AC114: 2 | AD114: 2 | AE114: -2 | AF114: -2 | AG114: -2 | AH114: -2 | AI114: -2 | AJ114: -2 | AK114: -2 | AL114: -2 | AM114: -2 | AN114: -2 | AO114: -2 | AP114: -2 | AQ114: -2 | AR114: -2 | AS114: Y
B115: c | I115: BC3 | J115: 2 | K115: 2 | L115: 2 | M115: 2 | N115: 2 | O115: 2 | P115: 2 | Q115: 2 | R115: 2 | S115: 2 | T115: 2 | U115: 2 | V115: 2 | W115: 2 | X115: 2 | Y115: 2 | Z115: 2 | AA115: 2 | AB115: 2 | AC115: 2 | AD115: 2 | AE115: -2 | AF115: -2 | AG115: -2 | AH115: -2 | AI115: -2 | AJ115: -2 | AK115: -2 | AL115: -2 | AM115: -2 | AN115: -2 | AO115: -2 | AP115: -2 | AQ115: -2 | AR115: -2 | AS115: y
A116: 37 | B116: a | C116: Film | D116: DIY | E116: decorative | I116: BC1 | J116: 2 | K116: 2 | L116: 2 | M116: 2 | N116: 2 | O116: 2 | P116: 0 | Q116: 0 | R116: 0 | S116: 0 | T116: 0 | U116: 0 | V116: 0 | W116: 0 | X116: 0 | Y116: 0 | Z116: 0 | AA116: 0 | AB116: 0 | AC116: 0 | AD116: 0 | AE116: -2 | AF116: -2 | AG116: -2 | AH116: -2 | AI116: -2 | AJ116: -2 | AK116: -2 | AL116: -2 | AM116: -2 | AN116: -2 | AO116: -2 | AP116: -2 | AQ116: -2 | AR116: -2 | AS116: -2 | AT116: Y
B117: b | I117: BC2 | J117: 2 | K117: 2 | L117: 2 | M117: 2 | N117: 2 | O117: 2 | P117: 0 | Q117: 0 | R117: 0 | S117: 0 | T117: 0 | U117: 0 | V117: 0 | W117: 0 | X117: 0 | Y117: 0 | Z117: 0 | AA117: 0 | AB117: 0 | AC117: 0 | AD117: 0 | AE117: -2 | AF117: -2 | AG117: -2 | AH117: -2 | AI117: -2 | AJ117: -2 | AK117: -2 | AL117: -2 | AM117: -2 | AN117: -2 | AO117: -2 | AP117: -2 | AQ117: -2 | AR117: -2 | AS117: -2 | AT117: Y
B118: c | I118: BC3 | J118: 2 | K118: 2 | L118: 2 | M118: 2 | N118: 2 | O118: 2 | P118: 0 | Q118: 0 | R118: 0 | S118: 0 | T118: 0 | U118: 0 | V118: 0 | W118: 0 | X118: 0 | Y118: 0 | Z118: 0 | AA118: 0 | AB118: 0 | AC118: 0 | AD118: 0 | AE118: -2 | AF118: -2 | AG118: -2 | AH118: -2 | AI118: -2 | AJ118: -2 | AK118: -2 | AL118: -2 | AM118: -2 | AN118: -2 | AO118: -2 | AP118: -2 | AQ118: -2 | AR118: -2 | AS118: -2 | AT118: Y
A119: 38 | B119: a | C119: Film | D119: DIY | E119: seasonal flexible heat-applied film | I119: BC1 | J119: 2 | K119: 2 | L119: 2 | M119: 2 | N119: 2 | O119: 2 | P119: -2 | Q119: -2 | R119: -2 | S119: -2 | T119: -2 | U119: -2 | V119: -2 | W119: -2 | X119: -2 | Y119: -2 | Z119: -2 | AA119: -2 | AB119: -2 | AC119: -2 | AD119: -2 | AE119: -2 | AF119: -2 | AG119: -2 | AH119: -2 | AI119: -2 | AJ119: -2 | AK119: -2 | AL119: -2 | AM119: -2 | AN119: -2 | AO119: -2 | AP119: -2 | AQ119: -2 | AR119: -2 | AS119: -2 | AT119: -2 | AU119: Y
B120: b | I120: BC2 | J120: 1 | K120: 1 | L120: 2 | M120: 1 | N120: 1 | O120: 2 | P120: -2 | Q120: -2 | R120: -2 | S120: -2 | T120: -2 | U120: -2 | V120: -2 | W120: -2 | X120: -2 | Y120: -2 | Z120: -2 | AA120: -2 | AB120: -2 | AC120: -2 | AD120: -2 | AE120: -2 | AF120: -2 | AG120: -2 | AH120: -2 | AI120: -2 | AJ120: -2 | AK120: -2 | AL120: -2 | AM120: -2 | AN120: -2 | AO120: -2 | AP120: -2 | AQ120: -2 | AR120: -2 | AS120: -2 | AT120: -2 | AU120: Y
B121: c | I121: BC3 | J121: -1 | K121: -1 | L121: 0 | M121: -1 | N121: -1 | O121: 0 | P121: -2 | Q121: -2 | R121: -2 | S121: -2 | T121: -2 | U121: -2 | V121: -2 | W121: -2 | X121: -2 | Y121: -2 | Z121: -2 | AA121: -2 | AB121: -2 | AC121: -2 | AD121: -2 | AE121: -2 | AF121: -2 | AG121: -2 | AH121: -2 | AI121: -2 | AJ121: -2 | AK121: -2 | AL121: -2 | AM121: -2 | AN121: -2 | AO121: -2 | AP121: -2 | AQ121: -2 | AR121: -2 | AS121: -2 | AT121: -2 | AU121: Y
A122: 39 | B122: a | C122: Solar screen | D122: fixed | E122: exterior | F122: Light Color | G122: tight weave | H122: Manual | I122: BC1 | J122: -2 | K122: -2 | L122: -2 | M122: -2 | N122: -2 | O122: -2 | P122: 2 | Q122: 2 | R122: 2 | S122: 2 | T122: 2 | U122: 2 | V122: 2 | W122: 2 | X122: 2 | Y122: 2 | Z122: 2 | AA122: 2 | AB122: 2 | AC122: 2 | AD122: 2 | AE122: 2 | AF122: 2 | AG122: 2 | AH122: 2 | AI122: 2 | AJ122: 2 | AK122: 2 | AL122: 2 | AM122: 2 | AN122: 2 | AO122: 2 | AP122: 2 | AQ122: 2 | AR122: 2 | AS122: 2 | AT122: 2 | AU122: 2 | AV122: Y
B123: b | I123: BC2 | J123: -2 | K123: -2 | L123: -2 | M123: -2 | N123: -2 | O123: -2 | P123: 2 | Q123: 2 | R123: 2 | S123: 2 | T123: 2 | U123: 2 | V123: 2 | W123: 2 | X123: 2 | Y123: 2 | Z123: 2 | AA123: 2 | AB123: 2 | AC123: 2 | AD123: 2 | AE123: 2 | AF123: 2 | AG123: 2 | AH123: 2 | AI123: 2 | AJ123: 2 | AK123: 2 | AL123: 2 | AM123: 2 | AN123: 2 | AO123: 2 | AP123: 2 | AQ123: 2 | AR123: 2 | AS123: 2 | AT123: 2 | AU123: 2 | AV123: Y
B124: c | I124: BC3 | J124: -2 | K124: -2 | L124: -2 | M124: -2 | N124: -2 | O124: -2 | P124: 2 | Q124: 2 | R124: 2 | S124: 2 | T124: 2 | U124: 2 | V124: 2 | W124: 2 | X124: 2 | Y124: 2 | Z124: 2 | AA124: 2 | AB124: 2 | AC124: 2 | AD124: 2 | AE124: 2 | AF124: 2 | AG124: 2 | AH124: 2 | AI124: 2 | AJ124: 2 | AK124: 2 | AL124: 2 | AM124: 2 | AN124: 2 | AO124: 2 | AP124: 2 | AQ124: 2 | AR124: 2 | AS124: 2 | AT124: 2 | AU124: 2 | AV124: Y
A125: 40 | B125: a | C125: Solar screen | D125: fixed | E125: exterior | F125: Light Color | G125: open weave | H125: Manual | I125: BC1 | J125: -2 | K125: -2 | L125: -2 | M125: -2 | N125: -2 | O125: -2 | P125: 2 | Q125: 2 | R125: 2 | S125: 2 | T125: 2 | U125: 2 | V125: 2 | W125: 2 | X125: 2 | Y125: 2 | Z125: 2 | AA125: 2 | AB125: 2 | AC125: 2 | AD125: 2 | AE125: 2 | AF125: 2 | AG125: 2 | AH125: 2 | AI125: 2 | AJ125: 2 | AK125: 2 | AL125: 2 | AM125: 2 | AN125: 2 | AO125: 2 | AP125: 2 | AQ125: 2 | AR125: 2 | AS125: 2 | AT125: 2 | AU125: 2 | AV125: -2 | AW125: Y
B126: b | I126: BC2 | J126: -2 | K126: -2 | L126: -2 | M126: -2 | N126: -2 | O126: -2 | P126: 2 | Q126: 2 | R126: 2 | S126: 2 | T126: 2 | U126: 2 | V126: 2 | W126: 2 | X126: 2 | Y126: 2 | Z126: 2 | AA126: 2 | AB126: 2 | AC126: 2 | AD126: 2 | AE126: 2 | AF126: 2 | AG126: 2 | AH126: 2 | AI126: 2 | AJ126: 2 | AK126: 2 | AL126: 2 | AM126: 2 | AN126: 2 | AO126: 2 | AP126: 2 | AQ126: 2 | AR126: 2 | AS126: 2 | AT126: 2 | AU126: 2 | AV126: -2 | AW126: Y
B127: c | I127: BC3 | J127: -2 | K127: -2 | L127: -2 | M127: -2 | N127: -2 | O127: -2 | P127: 2 | Q127: 2 | R127: 2 | S127: 2 | T127: 2 | U127: 2 | V127: 2 | W127: 2 | X127: 2 | Y127: 2 | Z127: 2 | AA127: 2 | AB127: 2 | AC127: 2 | AD127: 2 | AE127: 2 | AF127: 2 | AG127: 2 | AH127: 2 | AI127: 2 | AJ127: 2 | AK127: 2 | AL127: 2 | AM127: 2 | AN127: 2 | AO127: 2 | AP127: 2 | AQ127: 2 | AR127: 2 | AS127: 2 | AT127: 2 | AU127: 2 | AV127: -2 | AW127: Y
A128: 41 | B128: a | C128: Solar screen | D128: fixed | E128: exterior | F128: Dark Color | G128: tight weave | H128: Manual | I128: BC1 | J128: -2 | K128: -2 | L128: -2 | M128: -2 | N128: -2 | O128: -2 | P128: 2 | Q128: 2 | R128: 2 | S128: 2 | T128: 2 | U128: 2 | V128: 2 | W128: 2 | X128: 2 | Y128: 2 | Z128: 2 | AA128: 2 | AB128: 2 | AC128: 2 | AD128: 2 | AE128: 2 | AF128: 2 | AG128: 2 | AH128: 2 | AI128: 2 | AJ128: 2 | AK128: 2 | AL128: 2 | AM128: 2 | AN128: 2 | AO128: 2 | AP128: 2 | AQ128: 2 | AR128: 2 | AS128: 2 | AT128: 2 | AU128: 2 | AV128: -2 | AW128: -2 | AX128: Y
B129: b | I129: BC2 | J129: -2 | K129: -2 | L129: -2 | M129: -2 | N129: -2 | O129: -2 | P129: 2 | Q129: 2 | R129: 2 | S129: 2 | T129: 2 | U129: 2 | V129: 2 | W129: 2 | X129: 2 | Y129: 2 | Z129: 2 | AA129: 2 | AB129: 2 | AC129: 2 | AD129: 2 | AE129: 2 | AF129: 2 | AG129: 2 | AH129: 2 | AI129: 2 | AJ129: 2 | AK129: 2 | AL129: 2 | AM129: 2 | AN129: 2 | AO129: 2 | AP129: 2 | AQ129: 2 | AR129: 2 | AS129: 2 | AT129: 2 | AU129: 2 | AV129: -2 | AW129: -2 | AX129: Y
B130: c | I130: BC3 | J130: -2 | K130: -2 | L130: -2 | M130: -2 | N130: -2 | O130: -2 | P130: 2 | Q130: 2 | R130: 2 | S130: 2 | T130: 2 | U130: 2 | V130: 2 | W130: 2 | X130: 2 | Y130: 2 | Z130: 2 | AA130: 2 | AB130: 2 | AC130: 2 | AD130: 2 | AE130: 2 | AF130: 2 | AG130: 2 | AH130: 2 | AI130: 2 | AJ130: 2 | AK130: 2 | AL130: 2 | AM130: 2 | AN130: 2 | AO130: 2 | AP130: 2 | AQ130: 2 | AR130: 2 | AS130: 2 | AT130: 2 | AU130: 2 | AV130: -2 | AW130: -2 | AX130: Y
A131: 42 | B131: a | C131: Solar screen | D131: fixed | E131: exterior | F131: Dark Color | G131: open weave | H131: Manual | I131: BC1 | J131: -2 | K131: -2 | L131: -2 | M131: -2 | N131: -2 | O131: -2 | P131: 2 | Q131: 2 | R131: 2 | S131: 2 | T131: 2 | U131: 2 | V131: 2 | W131: 2 | X131: 2 | Y131: 2 | Z131: 2 | AA131: 2 | AB131: 2 | AC131: 2 | AD131: 2 | AE131: 2 | AF131: 2 | AG131: 2 | AH131: 2 | AI131: 2 | AJ131: 2 | AK131: 2 | AL131: 2 | AM131: 2 | AN131: 2 | AO131: 2 | AP131: 2 | AQ131: 2 | AR131: 2 | AS131: 2 | AT131: 2 | AU131: 2 | AV131: -2 | AW131: -2 | AX131: -2 | AY131: Y
B132: b | I132: BC2 | J132: -2 | K132: -2 | L132: -2 | M132: -2 | N132: -2 | O132: -2 | P132: 2 | Q132: 2 | R132: 2 | S132: 2 | T132: 2 | U132: 2 | V132: 2 | W132: 2 | X132: 2 | Y132: 2 | Z132: 2 | AA132: 2 | AB132: 2 | AC132: 2 | AD132: 2 | AE132: 2 | AF132: 2 | AG132: 2 | AH132: 2 | AI132: 2 | AJ132: 2 | AK132: 2 | AL132: 2 | AM132: 2 | AN132: 2 | AO132: 2 | AP132: 2 | AQ132: 2 | AR132: 2 | AS132: 2 | AT132: 2 | AU132: 2 | AV132: -2 | AW132: -2 | AX132: -2 | AY132: Y
B133: c | I133: BC3 | J133: -2 | K133: -2 | L133: -2 | M133: -2 | N133: -2 | O133: -2 | P133: 2 | Q133: 2 | R133: 2 | S133: 2 | T133: 2 | U133: 2 | V133: 2 | W133: 2 | X133: 2 | Y133: 2 | Z133: 2 | AA133: 2 | AB133: 2 | AC133: 2 | AD133: 2 | AE133: 2 | AF133: 2 | AG133: 2 | AH133: 2 | AI133: 2 | AJ133: 2 | AK133: 2 | AL133: 2 | AM133: 2 | AN133: 2 | AO133: 2 | AP133: 2 | AQ133: 2 | AR133: 2 | AS133: 2 | AT133: 2 | AU133: 2 | AV133: -2 | AW133: -2 | AX133: -2 | AY133: Y
A134: 43 | B134: a | C134: Solar screen | D134: fixed | E134: interior | F134: Light Color | G134: tight weave | H134: Manual | I134: BC1 | J134: 2 | K134: 2 | L134: 2 | M134: 2 | N134: 2 | O134: 2 | P134: -2 | Q134: -2 | R134: -2 | S134: -2 | T134: -2 | U134: -2 | V134: -2 | W134: -2 | X134: -2 | Y134: -2 | Z134: -2 | AA134: -2 | AB134: -2 | AC134: -2 | AD134: -2 | AE134: 2 | AF134: 2 | AG134: 2 | AH134: 2 | AI134: 2 | AJ134: 2 | AK134: 2 | AL134: 2 | AM134: 0 | AN134: 2 | AO134: 2 | AP134: 2 | AQ134: 2 | AR134: 2 | AS134: 2 | AT134: 0 | AU134: 1 | AV134: -1 | AW134: -1 | AX134: -1 | AY134: -1 | AZ134: Y
B135: b | I135: BC2 | J135: 2 | K135: 2 | L135: 2 | M135: 2 | N135: 2 | O135: 2 | P135: -2 | Q135: -2 | R135: -2 | S135: -2 | T135: -2 | U135: -2 | V135: -2 | W135: -2 | X135: -2 | Y135: -2 | Z135: -2 | AA135: -2 | AB135: -2 | AC135: -2 | AD135: -2 | AE135: 2 | AF135: 2 | AG135: 2 | AH135: 2 | AI135: 2 | AJ135: 2 | AK135: 2 | AL135: 2 | AM135: 0 | AN135: 2 | AO135: 2 | AP135: 2 | AQ135: 2 | AR135: 2 | AS135: 2 | AT135: 0 | AU135: 1 | AV135: -1 | AW135: -1 | AX135: -1 | AY135: -1 | AZ135: Y
B136: c | I136: BC3 | J136: 2 | K136: 2 | L136: 2 | M136: 2 | N136: 2 | O136: 2 | P136: -2 | Q136: -2 | R136: -2 | S136: -2 | T136: -2 | U136: -2 | V136: -2 | W136: -2 | X136: -2 | Y136: -2 | Z136: -2 | AA136: -2 | AB136: -2 | AC136: -2 | AD136: -2 | AE136: 2 | AF136: 2 | AG136: 2 | AH136: 2 | AI136: 2 | AJ136: 2 | AK136: 2 | AL136: 2 | AM136: 0 | AN136: 2 | AO136: 2 | AP136: 2 | AQ136: 2 | AR136: 2 | AS136: 2 | AT136: 0 | AU136: 1 | AV136: -1 | AW136: -1 | AX136: -1 | AY136: -1 | AZ136: Y
A137: 44 | B137: a | C137: Solar screen | D137: fixed | E137: interior | F137: Light Color | G137: open weave | H137: Manual | I137: BC1 | J137: 2 | K137: 2 | L137: 2 | M137: 2 | N137: 2 | O137: 2 | P137: -2 | Q137: -2 | R137: -2 | S137: -2 | T137: -2 | U137: -2 | V137: -2 | W137: -2 | X137: -2 | Y137: -2 | Z137: -2 | AA137: -2 | AB137: -2 | AC137: -2 | AD137: -2 | AE137: 2 | AF137: 2 | AG137: 2 | AH137: 2 | AI137: 2 | AJ137: 2 | AK137: 2 | AL137: 2 | AM137: 0 | AN137: 2 | AO137: 2 | AP137: 2 | AQ137: 2 | AR137: 2 | AS137: 2 | AT137: 0 | AU137: 1 | AV137: -1 | AW137: -1 | AX137: -1 | AY137: -1 | AZ137: -2 | BA137: Y
B138: b | I138: BC2 | J138: 2 | K138: 2 | L138: 2 | M138: 2 | N138: 2 | O138: 2 | P138: -2 | Q138: -2 | R138: -2 | S138: -2 | T138: -2 | U138: -2 | V138: -2 | W138: -2 | X138: -2 | Y138: -2 | Z138: -2 | AA138: -2 | AB138: -2 | AC138: -2 | AD138: -2 | AE138: 2 | AF138: 2 | AG138: 2 | AH138: 2 | AI138: 2 | AJ138: 2 | AK138: 2 | AL138: 2 | AM138: 0 | AN138: 2 | AO138: 2 | AP138: 2 | AQ138: 2 | AR138: 2 | AS138: 2 | AT138: 0 | AU138: 1 | AV138: -1 | AW138: -1 | AX138: -1 | AY138: -1 | AZ138: -2 | BA138: Y
B139: c | I139: BC3 | J139: 2 | K139: 2 | L139: 2 | M139: 2 | N139: 2 | O139: 2 | P139: -2 | Q139: -2 | R139: -2 | S139: -2 | T139: -2 | U139: -2 | V139: -2 | W139: -2 | X139: -2 | Y139: -2 | Z139: -2 | AA139: -2 | AB139: -2 | AC139: -2 | AD139: -2 | AE139: 2 | AF139: 2 | AG139: 2 | AH139: 2 | AI139: 2 | AJ139: 2 | AK139: 2 | AL139: 2 | AM139: 0 | AN139: 2 | AO139: 2 | AP139: 2 | AQ139: 2 | AR139: 2 | AS139: 2 | AT139: 0 | AU139: 1 | AV139: -1 | AW139: -1 | AX139: -1 | AY139: -1 | AZ139: -2 | BA139: Y
A140: 45 | B140: a | C140: Solar screen | D140: fixed | E140: interior | F140: Dark Color | G140: tight weave | H140: Manual | I140: BC1 | J140: 2 | K140: 2 | L140: 2 | M140: 2 | N140: 2 | O140: 2 | P140: -2 | Q140: -2 | R140: -2 | S140: -2 | T140: -2 | U140: -2 | V140: -2 | W140: -2 | X140: -2 | Y140: -2 | Z140: -2 | AA140: -2 | AB140: -2 | AC140: -2 | AD140: -2 | AE140: 2 | AF140: 2 | AG140: 2 | AH140: 2 | AI140: 2 | AJ140: 2 | AK140: 2 | AL140: 2 | AM140: 0 | AN140: 2 | AO140: 2 | AP140: 2 | AQ140: 2 | AR140: 2 | AS140: 2 | AT140: 0 | AU140: 1 | AV140: -1 | AW140: -1 | AX140: -1 | AY140: -1 | AZ140: -2 | BA140: -2 | BB140: Y
B141: b | I141: BC2 | J141: 2 | K141: 2 | L141: 2 | M141: 2 | N141: 2 | O141: 2 | P141: -2 | Q141: -2 | R141: -2 | S141: -2 | T141: -2 | U141: -2 | V141: -2 | W141: -2 | X141: -2 | Y141: -2 | Z141: -2 | AA141: -2 | AB141: -2 | AC141: -2 | AD141: -2 | AE141: 2 | AF141: 2 | AG141: 2 | AH141: 2 | AI141: 2 | AJ141: 2 | AK141: 2 | AL141: 2 | AM141: 0 | AN141: 2 | AO141: 2 | AP141: 2 | AQ141: 2 | AR141: 2 | AS141: 2 | AT141: 0 | AU141: 1 | AV141: -1 | AW141: -1 | AX141: -1 | AY141: -1 | AZ141: -2 | BA141: -2 | BB141: Y
B142: c | I142: BC3 | J142: 2 | K142: 2 | L142: 2 | M142: 2 | N142: 2 | O142: 2 | P142: -2 | Q142: -2 | R142: -2 | S142: -2 | T142: -2 | U142: -2 | V142: -2 | W142: -2 | X142: -2 | Y142: -2 | Z142: -2 | AA142: -2 | AB142: -2 | AC142: -2 | AD142: -2 | AE142: 2 | AF142: 2 | AG142: 2 | AH142: 2 | AI142: 2 | AJ142: 2 | AK142: 2 | AL142: 2 | AM142: 0 | AN142: 2 | AO142: 2 | AP142: 2 | AQ142: 2 | AR142: 2 | AS142: 2 | AT142: 0 | AU142: 1 | AV142: -1 | AW142: -1 | AX142: -1 | AY142: -1 | AZ142: -2 | BA142: -2 | BB142: Y
A143: 46 | B143: a | C143: Solar screen | D143: fixed | E143: interior | F143: Dark Color | G143: open weave | H143: Manual | I143: BC1 | J143: 2 | K143: 2 | L143: 2 | M143: 2 | N143: 2 | O143: 2 | P143: -2 | Q143: -2 | R143: -2 | S143: -2 | T143: -2 | U143: -2 | V143: -2 | W143: -2 | X143: -2 | Y143: -2 | Z143: -2 | AA143: -2 | AB143: -2 | AC143: -2 | AD143: -2 | AE143: 2 | AF143: 2 | AG143: 2 | AH143: 2 | AI143: 2 | AJ143: 2 | AK143: 2 | AL143: 2 | AM143: 0 | AN143: 2 | AO143: 2 | AP143: 2 | AQ143: 2 | AR143: 2 | AS143: 2 | AT143: 0 | AU143: 1 | AV143: -1 | AW143: -1 | AX143: -1 | AY143: -1 | AZ143: -2 | BA143: -2 | BB143: -2 | BC143: Y
B144: b | I144: BC2 | J144: 2 | K144: 2 | L144: 2 | M144: 2 | N144: 2 | O144: 2 | P144: -2 | Q144: -2 | R144: -2 | S144: -2 | T144: -2 | U144: -2 | V144: -2 | W144: -2 | X144: -2 | Y144: -2 | Z144: -2 | AA144: -2 | AB144: -2 | AC144: -2 | AD144: -2 | AE144: 2 | AF144: 2 | AG144: 2 | AH144: 2 | AI144: 2 | AJ144: 2 | AK144: 2 | AL144: 2 | AM144: 0 | AN144: 2 | AO144: 2 | AP144: 2 | AQ144: 2 | AR144: 2 | AS144: 2 | AT144: 0 | AU144: 1 | AV144: -1 | AW144: -1 | AX144: -1 | AY144: -1 | AZ144: -2 | BA144: -2 | BB144: -2 | BC144: Y
B145: c | I145: BC3 | J145: 2 | K145: 2 | L145: 2 | M145: 2 | N145: 2 | O145: 2 | P145: -2 | Q145: -2 | R145: -2 | S145: -2 | T145: -2 | U145: -2 | V145: -2 | W145: -2 | X145: -2 | Y145: -2 | Z145: -2 | AA145: -2 | AB145: -2 | AC145: -2 | AD145: -2 | AE145: 2 | AF145: 2 | AG145: 2 | AH145: 2 | AI145: 2 | AJ145: 2 | AK145: 2 | AL145: 2 | AM145: 0 | AN145: 2 | AO145: 2 | AP145: 2 | AQ145: 2 | AR145: 2 | AS145: 2 | AT145: 0 | AU145: 1 | AV145: -1 | AW145: -1 | AX145: -1 | AY145: -1 | AZ145: -2 | BA145: -2 | BB145: -2 | BC145: Y
A146: 47 | B146: a | C146: roller shades | D146: Opaque | E146: exterior | F146: Light Color | G146: tight weave | H146: Manual | I146: BC1 | J146: 2 | K146: 2 | L146: 2 | M146: 2 | N146: 2 | O146: 2 | P146: 2 | Q146: 2 | R146: 2 | S146: 2 | T146: 2 | U146: 2 | V146: 2 | W146: 2 | X146: 2 | Y146: 2 | Z146: 2 | AA146: 2 | AB146: 2 | AC146: 2 | AD146: 2 | AE146: 2 | AF146: 2 | AG146: 2 | AH146: 2 | AI146: 2 | AJ146: 2 | AK146: 2 | AL146: 2 | AM146: 2 | AN146: 2 | AO146: 2 | AP146: 2 | AQ146: 2 | AR146: 2 | AS146: 2 | AT146: 2 | AU146: 2 | AV146: -2 | AW146: -2 | AX146: -2 | AY146: -2 | AZ146: 0 | BA146: 0 | BB146: 0 | BC146: 0 | BD146: Y
B147: b | I147: BC2 | J147: 2 | K147: 2 | L147: 2 | M147: 2 | N147: 2 | O147: 2 | P147: 2 | Q147: 2 | R147: 2 | S147: 2 | T147: 2 | U147: 2 | V147: 2 | W147: 2 | X147: 2 | Y147: 2 | Z147: 2 | AA147: 2 | AB147: 2 | AC147: 2 | AD147: 2 | AE147: 2 | AF147: 2 | AG147: 2 | AH147: 2 | AI147: 2 | AJ147: 2 | AK147: 2 | AL147: 2 | AM147: 2 | AN147: 2 | AO147: 2 | AP147: 2 | AQ147: 2 | AR147: 2 | AS147: 2 | AT147: 2 | AU147: 2 | AV147: -2 | AW147: -2 | AX147: -2 | AY147: -2 | AZ147: 0 | BA147: 0 | BB147: 0 | BC147: 0 | BD147: Y
B148: c | I148: BC3 | J148: 2 | K148: 2 | L148: 2 | M148: 2 | N148: 2 | O148: 2 | P148: 2 | Q148: 2 | R148: 2 | S148: 2 | T148: 2 | U148: 2 | V148: 2 | W148: 2 | X148: 2 | Y148: 2 | Z148: 2 | AA148: 2 | AB148: 2 | AC148: 2 | AD148: 2 | AE148: 2 | AF148: 2 | AG148: 2 | AH148: 2 | AI148: 2 | AJ148: 2 | AK148: 2 | AL148: 2 | AM148: 2 | AN148: 2 | AO148: 2 | AP148: 2 | AQ148: 2 | AR148: 2 | AS148: 2 | AT148: 2 | AU148: 2 | AV148: -2 | AW148: -2 | AX148: -2 | AY148: -2 | AZ148: 0 | BA148: 0 | BB148: 0 | BC148: 0 | BD148: Y
A149: 48 | B149: a | C149: roller shades | D149: Opaque | E149: exterior | F149: Dark Color | G149: tight weave | H149: Manual | I149: BC1 | J149: 2 | K149: 2 | L149: 2 | M149: 2 | N149: 2 | O149: 2 | P149: 2 | Q149: 2 | R149: 2 | S149: 2 | T149: 2 | U149: 2 | V149: 2 | W149: 2 | X149: 2 | Y149: 2 | Z149: 2 | AA149: 2 | AB149: 2 | AC149: 2 | AD149: 2 | AE149: 2 | AF149: 2 | AG149: 2 | AH149: 2 | AI149: 2 | AJ149: 2 | AK149: 2 | AL149: 2 | AM149: 2 | AN149: 2 | AO149: 2 | AP149: 2 | AQ149: 2 | AR149: 2 | AS149: 2 | AT149: 2 | AU149: 2 | AV149: -2 | AW149: -2 | AX149: -2 | AY149: -2 | AZ149: 0 | BA149: 0 | BB149: 0 | BC149: 0 | BD149: -2 | BE149: Y
B150: b | I150: BC2 | J150: 2 | K150: 2 | L150: 2 | M150: 2 | N150: 2 | O150: 2 | P150: 2 | Q150: 2 | R150: 2 | S150: 2 | T150: 2 | U150: 2 | V150: 2 | W150: 2 | X150: 2 | Y150: 2 | Z150: 2 | AA150: 2 | AB150: 2 | AC150: 2 | AD150: 2 | AE150: 2 | AF150: 2 | AG150: 2 | AH150: 2 | AI150: 2 | AJ150: 2 | AK150: 2 | AL150: 2 | AM150: 2 | AN150: 2 | AO150: 2 | AP150: 2 | AQ150: 2 | AR150: 2 | AS150: 2 | AT150: 2 | AU150: 2 | AV150: -2 | AW150: -2 | AX150: -2 | AY150: -2 | AZ150: 0 | BA150: 0 | BB150: 0 | BC150: 0 | BD150: -2 | BE150: Y
B151: c | I151: BC3 | J151: 2 | K151: 2 | L151: 2 | M151: 2 | N151: 2 | O151: 2 | P151: 2 | Q151: 2 | R151: 2 | S151: 2 | T151: 2 | U151: 2 | V151: 2 | W151: 2 | X151: 2 | Y151: 2 | Z151: 2 | AA151: 2 | AB151: 2 | AC151: 2 | AD151: 2 | AE151: 2 | AF151: 2 | AG151: 2 | AH151: 2 | AI151: 2 | AJ151: 2 | AK151: 2 | AL151: 2 | AM151: 2 | AN151: 2 | AO151: 2 | AP151: 2 | AQ151: 2 | AR151: 2 | AS151: 2 | AT151: 2 | AU151: 2 | AV151: -2 | AW151: -2 | AX151: -2 | AY151: -2 | AZ151: 0 | BA151: 0 | BB151: 0 | BC151: 0 | BD151: -2 | BE151: Y
A152: 49 | B152: a | C152: roller shades | D152: Opaque | E152: exterior | F152: Light Color | G152: tight weave | H152: Automated | I152: BC1 | J152: 2 | K152: 2 | L152: 2 | M152: 2 | N152: 2 | O152: 2 | P152: 2 | Q152: 2 | R152: 2 | S152: 2 | T152: 2 | U152: 2 | V152: 2 | W152: 2 | X152: 2 | Y152: 2 | Z152: 2 | AA152: 2 | AB152: 2 | AC152: 2 | AD152: 2 | AE152: 2 | AF152: 2 | AG152: 2 | AH152: 2 | AI152: 2 | AJ152: 2 | AK152: 2 | AL152: 2 | AM152: 2 | AN152: 2 | AO152: 2 | AP152: 2 | AQ152: 2 | AR152: 2 | AS152: 2 | AT152: 2 | AU152: 2 | AV152: -2 | AW152: -2 | AX152: -2 | AY152: -2 | AZ152: 0 | BA152: 0 | BB152: 0 | BC152: 0 | BD152: -2 | BE152: -2 | BF152: Y
B153: b | I153: BC2 | J153: 2 | K153: 2 | L153: 2 | M153: 2 | N153: 2 | O153: 2 | P153: 2 | Q153: 2 | R153: 2 | S153: 2 | T153: 2 | U153: 2 | V153: 2 | W153: 2 | X153: 2 | Y153: 2 | Z153: 2 | AA153: 2 | AB153: 2 | AC153: 2 | AD153: 2 | AE153: 2 | AF153: 2 | AG153: 2 | AH153: 2 | AI153: 2 | AJ153: 2 | AK153: 2 | AL153: 2 | AM153: 2 | AN153: 2 | AO153: 2 | AP153: 2 | AQ153: 2 | AR153: 2 | AS153: 2 | AT153: 2 | AU153: 2 | AV153: -2 | AW153: -2 | AX153: -2 | AY153: -2 | AZ153: 0 | BA153: 0 | BB153: 0 | BC153: 0 | BD153: -2 | BE153: -2 | BF153: Y
B154: c | I154: BC3 | J154: 2 | K154: 2 | L154: 2 | M154: 2 | N154: 2 | O154: 2 | P154: 2 | Q154: 2 | R154: 2 | S154: 2 | T154: 2 | U154: 2 | V154: 2 | W154: 2 | X154: 2 | Y154: 2 | Z154: 2 | AA154: 2 | AB154: 2 | AC154: 2 | AD154: 2 | AE154: 2 | AF154: 2 | AG154: 2 | AH154: 2 | AI154: 2 | AJ154: 2 | AK154: 2 | AL154: 2 | AM154: 2 | AN154: 2 | AO154: 2 | AP154: 2 | AQ154: 2 | AR154: 2 | AS154: 2 | AT154: 2 | AU154: 2 | AV154: -2 | AW154: -2 | AX154: -2 | AY154: -2 | AZ154: 0 | BA154: 0 | BB154: 0 | BC154: 0 | BD154: -2 | BE154: -2 | BF154: Y
A155: 50 | B155: a | C155: roller shades | D155: Opaque | E155: exterior | F155: Dark Color | G155: tight weave | H155: Automated | I155: BC1 | J155: 2 | K155: 2 | L155: 2 | M155: 2 | N155: 2 | O155: 2 | P155: 2 | Q155: 2 | R155: 2 | S155: 2 | T155: 2 | U155: 2 | V155: 2 | W155: 2 | X155: 2 | Y155: 2 | Z155: 2 | AA155: 2 | AB155: 2 | AC155: 2 | AD155: 2 | AE155: 2 | AF155: 2 | AG155: 2 | AH155: 2 | AI155: 2 | AJ155: 2 | AK155: 2 | AL155: 2 | AM155: 2 | AN155: 2 | AO155: 2 | AP155: 2 | AQ155: 2 | AR155: 2 | AS155: 2 | AT155: 2 | AU155: 2 | AV155: -2 | AW155: -2 | AX155: -2 | AY155: -2 | AZ155: 0 | BA155: 0 | BB155: 0 | BC155: 0 | BD155: -2 | BE155: -2 | BF155: -2 | BG155: Y
B156: b | I156: BC2 | J156: 2 | K156: 2 | L156: 2 | M156: 2 | N156: 2 | O156: 2 | P156: 2 | Q156: 2 | R156: 2 | S156: 2 | T156: 2 | U156: 2 | V156: 2 | W156: 2 | X156: 2 | Y156: 2 | Z156: 2 | AA156: 2 | AB156: 2 | AC156: 2 | AD156: 2 | AE156: 2 | AF156: 2 | AG156: 2 | AH156: 2 | AI156: 2 | AJ156: 2 | AK156: 2 | AL156: 2 | AM156: 2 | AN156: 2 | AO156: 2 | AP156: 2 | AQ156: 2 | AR156: 2 | AS156: 2 | AT156: 2 | AU156: 2 | AV156: -2 | AW156: -2 | AX156: -2 | AY156: -2 | AZ156: 0 | BA156: 0 | BB156: 0 | BC156: 0 | BD156: -2 | BE156: -2 | BF156: -2 | BG156: Y
B157: c | I157: BC3 | J157: 2 | K157: 2 | L157: 2 | M157: 2 | N157: 2 | O157: 2 | P157: 2 | Q157: 2 | R157: 2 | S157: 2 | T157: 2 | U157: 2 | V157: 2 | W157: 2 | X157: 2 | Y157: 2 | Z157: 2 | AA157: 2 | AB157: 2 | AC157: 2 | AD157: 2 | AE157: 2 | AF157: 2 | AG157: 2 | AH157: 2 | AI157: 2 | AJ157: 2 | AK157: 2 | AL157: 2 | AM157: 2 | AN157: 2 | AO157: 2 | AP157: 2 | AQ157: 2 | AR157: 2 | AS157: 2 | AT157: 2 | AU157: 2 | AV157: -2 | AW157: -2 | AX157: -2 | AY157: -2 | AZ157: 0 | BA157: 0 | BB157: 0 | BC157: 0 | BD157: -2 | BE157: -2 | BF157: -2 | BG157: Y
A158: 51 | B158: a | C158: roller shades | D158: Opaque | E158: interior | F158: Light Color | G158: tight weave | H158: Manual | I158: BC1 | J158: 2 | K158: 2 | L158: 2 | M158: 2 | N158: 2 | O158: 2 | P158: 2 | Q158: 2 | R158: 2 | S158: 2 | T158: 2 | U158: 2 | V158: 2 | W158: 2 | X158: 2 | Y158: 2 | Z158: 2 | AA158: 2 | AB158: 2 | AC158: 2 | AD158: 2 | AE158: 2 | AF158: 2 | AG158: 2 | AH158: 2 | AI158: 2 | AJ158: 2 | AK158: 2 | AL158: 2 | AM158: 0 | AN158: 2 | AO158: 2 | AP158: 2 | AQ158: 2 | AR158: 2 | AS158: 2 | AT158: 0 | AU158: -1 | AV158: 2 | AW158: 2 | AX158: 2 | AY158: 2 | AZ158: -2 | BA158: -2 | BB158: -2 | BC158: -2 | BD158: -1 | BE158: -1 | BF158: -1 | BG158: -1 | BH158: Y
B159: b | I159: BC2 | J159: 2 | K159: 2 | L159: 2 | M159: 2 | N159: 2 | O159: 2 | P159: 2 | Q159: 2 | R159: 2 | S159: 2 | T159: 2 | U159: 2 | V159: 2 | W159: 2 | X159: 2 | Y159: 2 | Z159: 2 | AA159: 2 | AB159: 2 | AC159: 2 | AD159: 2 | AE159: 2 | AF159: 2 | AG159: 2 | AH159: 2 | AI159: 2 | AJ159: 2 | AK159: 2 | AL159: 2 | AM159: 0 | AN159: 2 | AO159: 2 | AP159: 2 | AQ159: 2 | AR159: 2 | AS159: 2 | AT159: 0 | AU159: -1 | AV159: 2 | AW159: 2 | AX159: 2 | AY159: 2 | AZ159: -2 | BA159: -2 | BB159: -2 | BC159: -2 | BD159: -1 | BE159: -1 | BF159: -1 | BG159: -1 | BH159: Y
B160: c | I160: BC3 | J160: 2 | K160: 2 | L160: 2 | M160: 2 | N160: 2 | O160: 2 | P160: 2 | Q160: 2 | R160: 2 | S160: 2 | T160: 2 | U160: 2 | V160: 2 | W160: 2 | X160: 2 | Y160: 2 | Z160: 2 | AA160: 2 | AB160: 2 | AC160: 2 | AD160: 2 | AE160: 2 | AF160: 2 | AG160: 2 | AH160: 2 | AI160: 2 | AJ160: 2 | AK160: 2 | AL160: 2 | AM160: 0 | AN160: 2 | AO160: 2 | AP160: 2 | AQ160: 2 | AR160: 2 | AS160: 2 | AT160: 0 | AU160: -1 | AV160: 2 | AW160: 2 | AX160: 2 | AY160: 2 | AZ160: -2 | BA160: -2 | BB160: -2 | BC160: -2 | BD160: -1 | BE160: -1 | BF160: -1 | BG160: -1 | BH160: Y
A161: 52 | B161: a | C161: roller shades | D161: Opaque | E161: interior | F161: Dark Color | G161: tight weave | H161: Manual | I161: BC1 | J161: 2 | K161: 2 | L161: 2 | M161: 2 | N161: 2 | O161: 2 | P161: 2 | Q161: 2 | R161: 2 | S161: 2 | T161: 2 | U161: 2 | V161: 2 | W161: 2 | X161: 2 | Y161: 2 | Z161: 2 | AA161: 2 | AB161: 2 | AC161: 2 | AD161: 2 | AE161: 2 | AF161: 2 | AG161: 2 | AH161: 2 | AI161: 2 | AJ161: 2 | AK161: 2 | AL161: 2 | AM161: 0 | AN161: 2 | AO161: 2 | AP161: 2 | AQ161: 2 | AR161: 2 | AS161: 2 | AT161: 0 | AU161: -1 | AV161: 2 | AW161: 2 | AX161: 2 | AY161: 2 | AZ161: -2 | BA161: -2 | BB161: -2 | BC161: -2 | BD161: -1 | BE161: -1 | BF161: -1 | BG161: -1 | BH161: -2 | BI161: Y
B162: b | I162: BC2 | J162: 2 | K162: 2 | L162: 2 | M162: 2 | N162: 2 | O162: 2 | P162: 2 | Q162: 2 | R162: 2 | S162: 2 | T162: 2 | U162: 2 | V162: 2 | W162: 2 | X162: 2 | Y162: 2 | Z162: 2 | AA162: 2 | AB162: 2 | AC162: 2 | AD162: 2 | AE162: 2 | AF162: 2 | AG162: 2 | AH162: 2 | AI162: 2 | AJ162: 2 | AK162: 2 | AL162: 2 | AM162: 0 | AN162: 2 | AO162: 2 | AP162: 2 | AQ162: 2 | AR162: 2 | AS162: 2 | AT162: 0 | AU162: -1 | AV162: 2 | AW162: 2 | AX162: 2 | AY162: 2 | AZ162: -2 | BA162: -2 | BB162: -2 | BC162: -2 | BD162: -1 | BE162: -1 | BF162: -1 | BG162: -1 | BH162: -2 | BI162: Y
B163: c | I163: BC3 | J163: 2 | K163: 2 | L163: 2 | M163: 2 | N163: 2 | O163: 2 | P163: 2 | Q163: 2 | R163: 2 | S163: 2 | T163: 2 | U163: 2 | V163: 2 | W163: 2 | X163: 2 | Y163: 2 | Z163: 2 | AA163: 2 | AB163: 2 | AC163: 2 | AD163: 2 | AE163: 2 | AF163: 2 | AG163: 2 | AH163: 2 | AI163: 2 | AJ163: 2 | AK163: 2 | AL163: 2 | AM163: 0 | AN163: 2 | AO163: 2 | AP163: 2 | AQ163: 2 | AR163: 2 | AS163: 2 | AT163: 0 | AU163: -1 | AV163: 2 | AW163: 2 | AX163: 2 | AY163: 2 | AZ163: -2 | BA163: -2 | BB163: -2 | BC163: -2 | BD163: -1 | BE163: -1 | BF163: -1 | BG163: -1 | BH163: -2 | BI163: Y
A164: 53 | B164: a | C164: roller shades | D164: Opaque | E164: interior | F164: Light Color | G164: tight weave | H164: Automated | I164: BC1 | J164: 2 | K164: 2 | L164: 2 | M164: 2 | N164: 2 | O164: 2 | P164: 2 | Q164: 2 | R164: 2 | S164: 2 | T164: 2 | U164: 2 | V164: 2 | W164: 2 | X164: 2 | Y164: 2 | Z164: 2 | AA164: 2 | AB164: 2 | AC164: 2 | AD164: 2 | AE164: 2 | AF164: 2 | AG164: 2 | AH164: 2 | AI164: 2 | AJ164: 2 | AK164: 2 | AL164: 2 | AM164: 0 | AN164: 2 | AO164: 2 | AP164: 2 | AQ164: 2 | AR164: 2 | AS164: 2 | AT164: 0 | AU164: -1 | AV164: 2 | AW164: 2 | AX164: 2 | AY164: 2 | AZ164: -2 | BA164: -2 | BB164: -2 | BC164: -2 | BD164: -1 | BE164: -1 | BF164: -1 | BG164: -1 | BH164: -2 | BI164: -2 | BJ164: Y
B165: b | I165: BC2 | J165: 2 | K165: 2 | L165: 2 | M165: 2 | N165: 2 | O165: 2 | P165: 2 | Q165: 2 | R165: 2 | S165: 2 | T165: 2 | U165: 2 | V165: 2 | W165: 2 | X165: 2 | Y165: 2 | Z165: 2 | AA165: 2 | AB165: 2 | AC165: 2 | AD165: 2 | AE165: 2 | AF165: 2 | AG165: 2 | AH165: 2 | AI165: 2 | AJ165: 2 | AK165: 2 | AL165: 2 | AM165: 0 | AN165: 2 | AO165: 2 | AP165: 2 | AQ165: 2 | AR165: 2 | AS165: 2 | AT165: 0 | AU165: -1 | AV165: 2 | AW165: 2 | AX165: 2 | AY165: 2 | AZ165: -2 | BA165: -2 | BB165: -2 | BC165: -2 | BD165: -1 | BE165: -1 | BF165: -1 | BG165: -1 | BH165: -2 | BI165: -2 | BJ165: Y
B166: c | I166: BC3 | J166: 2 | K166: 2 | L166: 2 | M166: 2 | N166: 2 | O166: 2 | P166: 2 | Q166: 2 | R166: 2 | S166: 2 | T166: 2 | U166: 2 | V166: 2 | W166: 2 | X166: 2 | Y166: 2 | Z166: 2 | AA166: 2 | AB166: 2 | AC166: 2 | AD166: 2 | AE166: 2 | AF166: 2 | AG166: 2 | AH166: 2 | AI166: 2 | AJ166: 2 | AK166: 2 | AL166: 2 | AM166: 0 | AN166: 2 | AO166: 2 | AP166: 2 | AQ166: 2 | AR166: 2 | AS166: 2 | AT166: 0 | AU166: -1 | AV166: 2 | AW166: 2 | AX166: 2 | AY166: 2 | AZ166: -2 | BA166: -2 | BB166: -2 | BC166: -2 | BD166: -1 | BE166: -1 | BF166: -1 | BG166: -1 | BH166: -2 | BI166: -2 | BJ166: Y
A167: 54 | B167: a | C167: roller shades | D167: Opaque | E167: interior | F167: Dark Color | G167: tight weave | H167: Automated | I167: BC1 | J167: 2 | K167: 2 | L167: 2 | M167: 2 | N167: 2 | O167: 2 | P167: 2 | Q167: 2 | R167: 2 | S167: 2 | T167: 2 | U167: 2 | V167: 2 | W167: 2 | X167: 2 | Y167: 2 | Z167: 2 | AA167: 2 | AB167: 2 | AC167: 2 | AD167: 2 | AE167: 2 | AF167: 2 | AG167: 2 | AH167: 2 | AI167: 2 | AJ167: 2 | AK167: 2 | AL167: 2 | AM167: 0 | AN167: 2 | AO167: 2 | AP167: 2 | AQ167: 2 | AR167: 2 | AS167: 2 | AT167: 0 | AU167: -1 | AV167: 2 | AW167: 2 | AX167: 2 | AY167: 2 | AZ167: -2 | BA167: -2 | BB167: -2 | BC167: -2 | BD167: -1 | BE167: -1 | BF167: -1 | BG167: -1 | BH167: -2 | BI167: -2 | BJ167: -2 | BK167: Y
B168: b | I168: BC2 | J168: 2 | K168: 2 | L168: 2 | M168: 2 | N168: 2 | O168: 2 | P168: 2 | Q168: 2 | R168: 2 | S168: 2 | T168: 2 | U168: 2 | V168: 2 | W168: 2 | X168: 2 | Y168: 2 | Z168: 2 | AA168: 2 | AB168: 2 | AC168: 2 | AD168: 2 | AE168: 2 | AF168: 2 | AG168: 2 | AH168: 2 | AI168: 2 | AJ168: 2 | AK168: 2 | AL168: 2 | AM168: 0 | AN168: 2 | AO168: 2 | AP168: 2 | AQ168: 2 | AR168: 2 | AS168: 2 | AT168: 0 | AU168: -1 | AV168: 2 | AW168: 2 | AX168: 2 | AY168: 2 | AZ168: -2 | BA168: -2 | BB168: -2 | BC168: -2 | BD168: -1 | BE168: -1 | BF168: -1 | BG168: -1 | BH168: -2 | BI168: -2 | BJ168: -2 | BK168: Y
B169: c | I169: BC3 | J169: 2 | K169: 2 | L169: 2 | M169: 2 | N169: 2 | O169: 2 | P169: 2 | Q169: 2 | R169: 2 | S169: 2 | T169: 2 | U169: 2 | V169: 2 | W169: 2 | X169: 2 | Y169: 2 | Z169: 2 | AA169: 2 | AB169: 2 | AC169: 2 | AD169: 2 | AE169: 2 | AF169: 2 | AG169: 2 | AH169: 2 | AI169: 2 | AJ169: 2 | AK169: 2 | AL169: 2 | AM169: 0 | AN169: 2 | AO169: 2 | AP169: 2 | AQ169: 2 | AR169: 2 | AS169: 2 | AT169: 0 | AU169: -1 | AV169: 2 | AW169: 2 | AX169: 2 | AY169: 2 | AZ169: -2 | BA169: -2 | BB169: -2 | BC169: -2 | BD169: -1 | BE169: -1 | BF169: -1 | BG169: -1 | BH169: -2 | BI169: -2 | BJ169: -2 | BK169: Y
A170: 55 | B170: a | C170: roller shades | D170: translucent | E170: exterior | F170: Light Color | G170: tight weave | H170: Manual | I170: BC1 | J170: 2 | K170: 2 | L170: 2 | M170: 2 | N170: 2 | O170: 2 | P170: 2 | Q170: 2 | R170: 2 | S170: 2 | T170: 2 | U170: 2 | V170: 2 | W170: 2 | X170: 2 | Y170: 2 | Z170: 2 | AA170: 2 | AB170: 2 | AC170: 2 | AD170: 2 | AE170: 2 | AF170: 2 | AG170: 2 | AH170: 2 | AI170: 2 | AJ170: 2 | AK170: 2 | AL170: 2 | AM170: 2 | AN170: 2 | AO170: 2 | AP170: 2 | AQ170: 2 | AR170: 2 | AS170: 2 | AT170: 2 | AU170: 2 | AV170: -2 | AW170: -2 | AX170: -2 | AY170: -2 | AZ170: 0 | BA170: 0 | BB170: 0 | BC170: 0 | BD170: -2 | BE170: -2 | BF170: -2 | BG170: -2 | BH170: -1 | BI170: -1 | BJ170: -1 | BK170: -1 | BL170: Y
B171: b | I171: BC2 | J171: 2 | K171: 2 | L171: 2 | M171: 2 | N171: 2 | O171: 2 | P171: 2 | Q171: 2 | R171: 2 | S171: 2 | T171: 2 | U171: 2 | V171: 2 | W171: 2 | X171: 2 | Y171: 2 | Z171: 2 | AA171: 2 | AB171: 2 | AC171: 2 | AD171: 2 | AE171: 2 | AF171: 2 | AG171: 2 | AH171: 2 | AI171: 2 | AJ171: 2 | AK171: 2 | AL171: 2 | AM171: 2 | AN171: 2 | AO171: 2 | AP171: 2 | AQ171: 2 | AR171: 2 | AS171: 2 | AT171: 2 | AU171: 2 | AV171: -2 | AW171: -2 | AX171: -2 | AY171: -2 | AZ171: 0 | BA171: 0 | BB171: 0 | BC171: 0 | BD171: -2 | BE171: -2 | BF171: -2 | BG171: -2 | BH171: -1 | BI171: -1 | BJ171: -1 | BK171: -1 | BL171: Y
B172: c | I172: BC3 | J172: 2 | K172: 2 | L172: 2 | M172: 2 | N172: 2 | O172: 2 | P172: 2 | Q172: 2 | R172: 2 | S172: 2 | T172: 2 | U172: 2 | V172: 2 | W172: 2 | X172: 2 | Y172: 2 | Z172: 2 | AA172: 2 | AB172: 2 | AC172: 2 | AD172: 2 | AE172: 2 | AF172: 2 | AG172: 2 | AH172: 2 | AI172: 2 | AJ172: 2 | AK172: 2 | AL172: 2 | AM172: 2 | AN172: 2 | AO172: 2 | AP172: 2 | AQ172: 2 | AR172: 2 | AS172: 2 | AT172: 2 | AU172: 2 | AV172: -2 | AW172: -2 | AX172: -2 | AY172: -2 | AZ172: 0 | BA172: 0 | BB172: 0 | BC172: 0 | BD172: -2 | BE172: -2 | BF172: -2 | BG172: -2 | BH172: -1 | BI172: -1 | BJ172: -1 | BK172: -1 | BL172: Y
A173: 56 | B173: a | C173: roller shades | D173: translucent | E173: exterior | F173: Light Color | G173: open weave | H173: Manual | I173: BC1 | J173: 2 | K173: 2 | L173: 2 | M173: 2 | N173: 2 | O173: 2 | P173: 2 | Q173: 2 | R173: 2 | S173: 2 | T173: 2 | U173: 2 | V173: 2 | W173: 2 | X173: 2 | Y173: 2 | Z173: 2 | AA173: 2 | AB173: 2 | AC173: 2 | AD173: 2 | AE173: 2 | AF173: 2 | AG173: 2 | AH173: 2 | AI173: 2 | AJ173: 2 | AK173: 2 | AL173: 2 | AM173: 2 | AN173: 2 | AO173: 2 | AP173: 2 | AQ173: 2 | AR173: 2 | AS173: 2 | AT173: 2 | AU173: 2 | AV173: -2 | AW173: -2 | AX173: -2 | AY173: -2 | AZ173: 0 | BA173: 0 | BB173: 0 | BC173: 0 | BD173: -2 | BE173: -2 | BF173: -2 | BG173: -2 | BH173: -1 | BI173: -1 | BJ173: -1 | BK173: -1 | BL173: -2 | BM173: Y
B174: b | I174: BC2 | J174: 2 | K174: 2 | L174: 2 | M174: 2 | N174: 2 | O174: 2 | P174: 2 | Q174: 2 | R174: 2 | S174: 2 | T174: 2 | U174: 2 | V174: 2 | W174: 2 | X174: 2 | Y174: 2 | Z174: 2 | AA174: 2 | AB174: 2 | AC174: 2 | AD174: 2 | AE174: 2 | AF174: 2 | AG174: 2 | AH174: 2 | AI174: 2 | AJ174: 2 | AK174: 2 | AL174: 2 | AM174: 2 | AN174: 2 | AO174: 2 | AP174: 2 | AQ174: 2 | AR174: 2 | AS174: 2 | AT174: 2 | AU174: 2 | AV174: -2 | AW174: -2 | AX174: -2 | AY174: -2 | AZ174: 0 | BA174: 0 | BB174: 0 | BC174: 0 | BD174: -2 | BE174: -2 | BF174: -2 | BG174: -2 | BH174: -1 | BI174: -1 | BJ174: -1 | BK174: -1 | BL174: -2 | BM174: Y
B175: c | I175: BC3 | J175: 2 | K175: 2 | L175: 2 | M175: 2 | N175: 2 | O175: 2 | P175: 2 | Q175: 2 | R175: 2 | S175: 2 | T175: 2 | U175: 2 | V175: 2 | W175: 2 | X175: 2 | Y175: 2 | Z175: 2 | AA175: 2 | AB175: 2 | AC175: 2 | AD175: 2 | AE175: 2 | AF175: 2 | AG175: 2 | AH175: 2 | AI175: 2 | AJ175: 2 | AK175: 2 | AL175: 2 | AM175: 2 | AN175: 2 | AO175: 2 | AP175: 2 | AQ175: 2 | AR175: 2 | AS175: 2 | AT175: 2 | AU175: 2 | AV175: -2 | AW175: -2 | AX175: -2 | AY175: -2 | AZ175: 0 | BA175: 0 | BB175: 0 | BC175: 0 | BD175: -2 | BE175: -2 | BF175: -2 | BG175: -2 | BH175: -1 | BI175: -1 | BJ175: -1 | BK175: -1 | BL175: -2 | BM175: Y
A176: 57 | B176: a | C176: roller shades | D176: translucent | E176: exterior | F176: Dark Color | G176: tight weave | H176: Manual | I176: BC1 | J176: 2 | K176: 2 | L176: 2 | M176: 2 | N176: 2 | O176: 2 | P176: 2 | Q176: 2 | R176: 2 | S176: 2 | T176: 2 | U176: 2 | V176: 2 | W176: 2 | X176: 2 | Y176: 2 | Z176: 2 | AA176: 2 | AB176: 2 | AC176: 2 | AD176: 2 | AE176: 2 | AF176: 2 | AG176: 2 | AH176: 2 | AI176: 2 | AJ176: 2 | AK176: 2 | AL176: 2 | AM176: 2 | AN176: 2 | AO176: 2 | AP176: 2 | AQ176: 2 | AR176: 2 | AS176: 2 | AT176: 2 | AU176: 2 | AV176: -2 | AW176: -2 | AX176: -2 | AY176: -2 | AZ176: 0 | BA176: 0 | BB176: 0 | BC176: 0 | BD176: -2 | BE176: -2 | BF176: -2 | BG176: -2 | BH176: -1 | BI176: -1 | BJ176: -1 | BK176: -1 | BL176: -2 | BM176: -2 | BN176: Y
B177: b | I177: BC2 | J177: 2 | K177: 2 | L177: 2 | M177: 2 | N177: 2 | O177: 2 | P177: 2 | Q177: 2 | R177: 2 | S177: 2 | T177: 2 | U177: 2 | V177: 2 | W177: 2 | X177: 2 | Y177: 2 | Z177: 2 | AA177: 2 | AB177: 2 | AC177: 2 | AD177: 2 | AE177: 2 | AF177: 2 | AG177: 2 | AH177: 2 | AI177: 2 | AJ177: 2 | AK177: 2 | AL177: 2 | AM177: 2 | AN177: 2 | AO177: 2 | AP177: 2 | AQ177: 2 | AR177: 2 | AS177: 2 | AT177: 2 | AU177: 2 | AV177: -2 | AW177: -2 | AX177: -2 | AY177: -2 | AZ177: 0 | BA177: 0 | BB177: 0 | BC177: 0 | BD177: -2 | BE177: -2 | BF177: -2 | BG177: -2 | BH177: -1 | BI177: -1 | BJ177: -1 | BK177: -1 | BL177: -2 | BM177: -2 | BN177: Y
B178: c | I178: BC3 | J178: 2 | K178: 2 | L178: 2 | M178: 2 | N178: 2 | O178: 2 | P178: 2 | Q178: 2 | R178: 2 | S178: 2 | T178: 2 | U178: 2 | V178: 2 | W178: 2 | X178: 2 | Y178: 2 | Z178: 2 | AA178: 2 | AB178: 2 | AC178: 2 | AD178: 2 | AE178: 2 | AF178: 2 | AG178: 2 | AH178: 2 | AI178: 2 | AJ178: 2 | AK178: 2 | AL178: 2 | AM178: 2 | AN178: 2 | AO178: 2 | AP178: 2 | AQ178: 2 | AR178: 2 | AS178: 2 | AT178: 2 | AU178: 2 | AV178: -2 | AW178: -2 | AX178: -2 | AY178: -2 | AZ178: 0 | BA178: 0 | BB178: 0 | BC178: 0 | BD178: -2 | BE178: -2 | BF178: -2 | BG178: -2 | BH178: -1 | BI178: -1 | BJ178: -1 | BK178: -1 | BL178: -2 | BM178: -2 | BN178: Y
A179: 58 | B179: a | C179: roller shades | D179: translucent | E179: exterior | F179: Dark Color | G179: open weave | H179: Manual | I179: BC1 | J179: 2 | K179: 2 | L179: 2 | M179: 2 | N179: 2 | O179: 2 | P179: 2 | Q179: 2 | R179: 2 | S179: 2 | T179: 2 | U179: 2 | V179: 2 | W179: 2 | X179: 2 | Y179: 2 | Z179: 2 | AA179: 2 | AB179: 2 | AC179: 2 | AD179: 2 | AE179: 2 | AF179: 2 | AG179: 2 | AH179: 2 | AI179: 2 | AJ179: 2 | AK179: 2 | AL179: 2 | AM179: 2 | AN179: 2 | AO179: 2 | AP179: 2 | AQ179: 2 | AR179: 2 | AS179: 2 | AT179: 2 | AU179: 2 | AV179: -2 | AW179: -2 | AX179: -2 | AY179: -2 | AZ179: 0 | BA179: 0 | BB179: 0 | BC179: 0 | BD179: -2 | BE179: -2 | BF179: -2 | BG179: -2 | BH179: -1 | BI179: -1 | BJ179: -1 | BK179: -1 | BL179: -2 | BM179: -2 | BN179: -2 | BO179: Y
B180: b | I180: BC2 | J180: 2 | K180: 2 | L180: 2 | M180: 2 | N180: 2 | O180: 2 | P180: 2 | Q180: 2 | R180: 2 | S180: 2 | T180: 2 | U180: 2 | V180: 2 | W180: 2 | X180: 2 | Y180: 2 | Z180: 2 | AA180: 2 | AB180: 2 | AC180: 2 | AD180: 2 | AE180: 2 | AF180: 2 | AG180: 2 | AH180: 2 | AI180: 2 | AJ180: 2 | AK180: 2 | AL180: 2 | AM180: 2 | AN180: 2 | AO180: 2 | AP180: 2 | AQ180: 2 | AR180: 2 | AS180: 2 | AT180: 2 | AU180: 2 | AV180: -2 | AW180: -2 | AX180: -2 | AY180: -2 | AZ180: 0 | BA180: 0 | BB180: 0 | BC180: 0 | BD180: -2 | BE180: -2 | BF180: -2 | BG180: -2 | BH180: -1 | BI180: -1 | BJ180: -1 | BK180: -1 | BL180: -2 | BM180: -2 | BN180: -2 | BO180: Y
B181: c | I181: BC3 | J181: 2 | K181: 2 | L181: 2 | M181: 2 | N181: 2 | O181: 2 | P181: 2 | Q181: 2 | R181: 2 | S181: 2 | T181: 2 | U181: 2 | V181: 2 | W181: 2 | X181: 2 | Y181: 2 | Z181: 2 | AA181: 2 | AB181: 2 | AC181: 2 | AD181: 2 | AE181: 2 | AF181: 2 | AG181: 2 | AH181: 2 | AI181: 2 | AJ181: 2 | AK181: 2 | AL181: 2 | AM181: 2 | AN181: 2 | AO181: 2 | AP181: 2 | AQ181: 2 | AR181: 2 | AS181: 2 | AT181: 2 | AU181: 2 | AV181: -2 | AW181: -2 | AX181: -2 | AY181: -2 | AZ181: 0 | BA181: 0 | BB181: 0 | BC181: 0 | BD181: -2 | BE181: -2 | BF181: -2 | BG181: -2 | BH181: -1 | BI181: -1 | BJ181: -1 | BK181: -1 | BL181: -2 | BM181: -2 | BN181: -2 | BO181: Y
A182: 59 | B182: a | C182: roller shades | D182: translucent | E182: exterior | F182: Light Color | G182: tight weave | H182: Automated | I182: BC1 | J182: 2 | K182: 2 | L182: 2 | M182: 2 | N182: 2 | O182: 2 | P182: 2 | Q182: 2 | R182: 2 | S182: 2 | T182: 2 | U182: 2 | V182: 2 | W182: 2 | X182: 2 | Y182: 2 | Z182: 2 | AA182: 2 | AB182: 2 | AC182: 2 | AD182: 2 | AE182: 2 | AF182: 2 | AG182: 2 | AH182: 2 | AI182: 2 | AJ182: 2 | AK182: 2 | AL182: 2 | AM182: 2 | AN182: 2 | AO182: 2 | AP182: 2 | AQ182: 2 | AR182: 2 | AS182: 2 | AT182: 2 | AU182: 2 | AV182: -2 | AW182: -2 | AX182: -2 | AY182: -2 | AZ182: 0 | BA182: 0 | BB182: 0 | BC182: 0 | BD182: -2 | BE182: -2 | BF182: -2 | BG182: -2 | BH182: -1 | BI182: -1 | BJ182: -1 | BK182: -1 | BL182: -2 | BM182: -2 | BN182: -2 | BO182: -2 | BP182: Y
B183: b | I183: BC2 | J183: 2 | K183: 2 | L183: 2 | M183: 2 | N183: 2 | O183: 2 | P183: 2 | Q183: 2 | R183: 2 | S183: 2 | T183: 2 | U183: 2 | V183: 2 | W183: 2 | X183: 2 | Y183: 2 | Z183: 2 | AA183: 2 | AB183: 2 | AC183: 2 | AD183: 2 | AE183: 2 | AF183: 2 | AG183: 2 | AH183: 2 | AI183: 2 | AJ183: 2 | AK183: 2 | AL183: 2 | AM183: 2 | AN183: 2 | AO183: 2 | AP183: 2 | AQ183: 2 | AR183: 2 | AS183: 2 | AT183: 2 | AU183: 2 | AV183: -2 | AW183: -2 | AX183: -2 | AY183: -2 | AZ183: 0 | BA183: 0 | BB183: 0 | BC183: 0 | BD183: -2 | BE183: -2 | BF183: -2 | BG183: -2 | BH183: -1 | BI183: -1 | BJ183: -1 | BK183: -1 | BL183: -2 | BM183: -2 | BN183: -2 | BO183: -2 | BP183: Y
B184: c | I184: BC3 | J184: 2 | K184: 2 | L184: 2 | M184: 2 | N184: 2 | O184: 2 | P184: 2 | Q184: 2 | R184: 2 | S184: 2 | T184: 2 | U184: 2 | V184: 2 | W184: 2 | X184: 2 | Y184: 2 | Z184: 2 | AA184: 2 | AB184: 2 | AC184: 2 | AD184: 2 | AE184: 2 | AF184: 2 | AG184: 2 | AH184: 2 | AI184: 2 | AJ184: 2 | AK184: 2 | AL184: 2 | AM184: 2 | AN184: 2 | AO184: 2 | AP184: 2 | AQ184: 2 | AR184: 2 | AS184: 2 | AT184: 2 | AU184: 2 | AV184: -2 | AW184: -2 | AX184: -2 | AY184: -2 | AZ184: 0 | BA184: 0 | BB184: 0 | BC184: 0 | BD184: -2 | BE184: -2 | BF184: -2 | BG184: -2 | BH184: -1 | BI184: -1 | BJ184: -1 | BK184: -1 | BL184: -2 | BM184: -2 | BN184: -2 | BO184: -2 | BP184: Y
A185: 60 | B185: a | C185: roller shades | D185: translucent | E185: exterior | F185: Light Color | G185: open weave | H185: Automated | I185: BC1 | J185: 2 | K185: 2 | L185: 2 | M185: 2 | N185: 2 | O185: 2 | P185: 2 | Q185: 2 | R185: 2 | S185: 2 | T185: 2 | U185: 2 | V185: 2 | W185: 2 | X185: 2 | Y185: 2 | Z185: 2 | AA185: 2 | AB185: 2 | AC185: 2 | AD185: 2 | AE185: 2 | AF185: 2 | AG185: 2 | AH185: 2 | AI185: 2 | AJ185: 2 | AK185: 2 | AL185: 2 | AM185: 2 | AN185: 2 | AO185: 2 | AP185: 2 | AQ185: 2 | AR185: 2 | AS185: 2 | AT185: 2 | AU185: 2 | AV185: -2 | AW185: -2 | AX185: -2 | AY185: -2 | AZ185: 0 | BA185: 0 | BB185: 0 | BC185: 0 | BD185: -2 | BE185: -2 | BF185: -2 | BG185: -2 | BH185: -1 | BI185: -1 | BJ185: -1 | BK185: -1 | BL185: -2 | BM185: -2 | BN185: -2 | BO185: -2 | BP185: -2 | BQ185: Y
B186: b | I186: BC2 | J186: 2 | K186: 2 | L186: 2 | M186: 2 | N186: 2 | O186: 2 | P186: 2 | Q186: 2 | R186: 2 | S186: 2 | T186: 2 | U186: 2 | V186: 2 | W186: 2 | X186: 2 | Y186: 2 | Z186: 2 | AA186: 2 | AB186: 2 | AC186: 2 | AD186: 2 | AE186: 2 | AF186: 2 | AG186: 2 | AH186: 2 | AI186: 2 | AJ186: 2 | AK186: 2 | AL186: 2 | AM186: 2 | AN186: 2 | AO186: 2 | AP186: 2 | AQ186: 2 | AR186: 2 | AS186: 2 | AT186: 2 | AU186: 2 | AV186: -2 | AW186: -2 | AX186: -2 | AY186: -2 | AZ186: 0 | BA186: 0 | BB186: 0 | BC186: 0 | BD186: -2 | BE186: -2 | BF186: -2 | BG186: -2 | BH186: -1 | BI186: -1 | BJ186: -1 | BK186: -1 | BL186: -2 | BM186: -2 | BN186: -2 | BO186: -2 | BP186: -2 | BQ186: Y
B187: c | I187: BC3 | J187: 2 | K187: 2 | L187: 2 | M187: 2 | N187: 2 | O187: 2 | P187: 2 | Q187: 2 | R187: 2 | S187: 2 | T187: 2 | U187: 2 | V187: 2 | W187: 2 | X187: 2 | Y187: 2 | Z187: 2 | AA187: 2 | AB187: 2 | AC187: 2 | AD187: 2 | AE187: 2 | AF187: 2 | AG187: 2 | AH187: 2 | AI187: 2 | AJ187: 2 | AK187: 2 | AL187: 2 | AM187: 2 | AN187: 2 | AO187: 2 | AP187: 2 | AQ187: 2 | AR187: 2 | AS187: 2 | AT187: 2 | AU187: 2 | AV187: -2 | AW187: -2 | AX187: -2 | AY187: -2 | AZ187: 0 | BA187: 0 | BB187: 0 | BC187: 0 | BD187: -2 | BE187: -2 | BF187: -2 | BG187: -2 | BH187: -1 | BI187: -1 | BJ187: -1 | BK187: -1 | BL187: -2 | BM187: -2 | BN187: -2 | BO187: -2 | BP187: -2 | BQ187: Y
A188: 61 | B188: a | C188: roller shades | D188: translucent | E188: exterior | F188: Dark Color | G188: tight weave | H188: Automated | I188: BC1 | J188: 2 | K188: 2 | L188: 2 | M188: 2 | N188: 2 | O188: 2 | P188: 2 | Q188: 2 | R188: 2 | S188: 2 | T188: 2 | U188: 2 | V188: 2 | W188: 2 | X188: 2 | Y188: 2 | Z188: 2 | AA188: 2 | AB188: 2 | AC188: 2 | AD188: 2 | AE188: 2 | AF188: 2 | AG188: 2 | AH188: 2 | AI188: 2 | AJ188: 2 | AK188: 2 | AL188: 2 | AM188: 2 | AN188: 2 | AO188: 2 | AP188: 2 | AQ188: 2 | AR188: 2 | AS188: 2 | AT188: 2 | AU188: 2 | AV188: -2 | AW188: -2 | AX188: -2 | AY188: -2 | AZ188: 0 | BA188: 0 | BB188: 0 | BC188: 0 | BD188: -2 | BE188: -2 | BF188: -2 | BG188: -2 | BH188: -1 | BI188: -1 | BJ188: -1 | BK188: -1 | BL188: -2 | BM188: -2 | BN188: -2 | BO188: -2 | BP188: -2 | BQ188: -2 | BR188: Y
B189: b | I189: BC2 | J189: 2 | K189: 2 | L189: 2 | M189: 2 | N189: 2 | O189: 2 | P189: 2 | Q189: 2 | R189: 2 | S189: 2 | T189: 2 | U189: 2 | V189: 2 | W189: 2 | X189: 2 | Y189: 2 | Z189: 2 | AA189: 2 | AB189: 2 | AC189: 2 | AD189: 2 | AE189: 2 | AF189: 2 | AG189: 2 | AH189: 2 | AI189: 2 | AJ189: 2 | AK189: 2 | AL189: 2 | AM189: 2 | AN189: 2 | AO189: 2 | AP189: 2 | AQ189: 2 | AR189: 2 | AS189: 2 | AT189: 2 | AU189: 2 | AV189: -2 | AW189: -2 | AX189: -2 | AY189: -2 | AZ189: 0 | BA189: 0 | BB189: 0 | BC189: 0 | BD189: -2 | BE189: -2 | BF189: -2 | BG189: -2 | BH189: -1 | BI189: -1 | BJ189: -1 | BK189: -1 | BL189: -2 | BM189: -2 | BN189: -2 | BO189: -2 | BP189: -2 | BQ189: -2 | BR189: Y
B190: c | I190: BC3 | J190: 2 | K190: 2 | L190: 2 | M190: 2 | N190: 2 | O190: 2 | P190: 2 | Q190: 2 | R190: 2 | S190: 2 | T190: 2 | U190: 2 | V190: 2 | W190: 2 | X190: 2 | Y190: 2 | Z190: 2 | AA190: 2 | AB190: 2 | AC190: 2 | AD190: 2 | AE190: 2 | AF190: 2 | AG190: 2 | AH190: 2 | AI190: 2 | AJ190: 2 | AK190: 2 | AL190: 2 | AM190: 2 | AN190: 2 | AO190: 2 | AP190: 2 | AQ190: 2 | AR190: 2 | AS190: 2 | AT190: 2 | AU190: 2 | AV190: -2 | AW190: -2 | AX190: -2 | AY190: -2 | AZ190: 0 | BA190: 0 | BB190: 0 | BC190: 0 | BD190: -2 | BE190: -2 | BF190: -2 | BG190: -2 | BH190: -1 | BI190: -1 | BJ190: -1 | BK190: -1 | BL190: -2 | BM190: -2 | BN190: -2 | BO190: -2 | BP190: -2 | BQ190: -2 | BR190: Y
A191: 62 | B191: a | C191: roller shades | D191: translucent | E191: exterior | F191: Dark Color | G191: open weave | H191: Automated | I191: BC1 | J191: 2 | K191: 2 | L191: 2 | M191: 2 | N191: 2 | O191: 2 | P191: 2 | Q191: 2 | R191: 2 | S191: 2 | T191: 2 | U191: 2 | V191: 2 | W191: 2 | X191: 2 | Y191: 2 | Z191: 2 | AA191: 2 | AB191: 2 | AC191: 2 | AD191: 2 | AE191: 2 | AF191: 2 | AG191: 2 | AH191: 2 | AI191: 2 | AJ191: 2 | AK191: 2 | AL191: 2 | AM191: 2 | AN191: 2 | AO191: 2 | AP191: 2 | AQ191: 2 | AR191: 2 | AS191: 2 | AT191: 2 | AU191: 2 | AV191: -2 | AW191: -2 | AX191: -2 | AY191: -2 | AZ191: 0 | BA191: 0 | BB191: 0 | BC191: 0 | BD191: -2 | BE191: -2 | BF191: -2 | BG191: -2 | BH191: -1 | BI191: -1 | BJ191: -1 | BK191: -1 | BL191: -2 | BM191: -2 | BN191: -2 | BO191: -2 | BP191: -2 | BQ191: -2 | BR191: -2 | BS191: Y
B192: b | I192: BC2 | J192: 2 | K192: 2 | L192: 2 | M192: 2 | N192: 2 | O192: 2 | P192: 2 | Q192: 2 | R192: 2 | S192: 2 | T192: 2 | U192: 2 | V192: 2 | W192: 2 | X192: 2 | Y192: 2 | Z192: 2 | AA192: 2 | AB192: 2 | AC192: 2 | AD192: 2 | AE192: 2 | AF192: 2 | AG192: 2 | AH192: 2 | AI192: 2 | AJ192: 2 | AK192: 2 | AL192: 2 | AM192: 2 | AN192: 2 | AO192: 2 | AP192: 2 | AQ192: 2 | AR192: 2 | AS192: 2 | AT192: 2 | AU192: 2 | AV192: -2 | AW192: -2 | AX192: -2 | AY192: -2 | AZ192: 0 | BA192: 0 | BB192: 0 | BC192: 0 | BD192: -2 | BE192: -2 | BF192: -2 | BG192: -2 | BH192: -1 | BI192: -1 | BJ192: -1 | BK192: -1 | BL192: -2 | BM192: -2 | BN192: -2 | BO192: -2 | BP192: -2 | BQ192: -2 | BR192: -2 | BS192: Y
B193: c | I193: BC3 | J193: 2 | K193: 2 | L193: 2 | M193: 2 | N193: 2 | O193: 2 | P193: 2 | Q193: 2 | R193: 2 | S193: 2 | T193: 2 | U193: 2 | V193: 2 | W193: 2 | X193: 2 | Y193: 2 | Z193: 2 | AA193: 2 | AB193: 2 | AC193: 2 | AD193: 2 | AE193: 2 | AF193: 2 | AG193: 2 | AH193: 2 | AI193: 2 | AJ193: 2 | AK193: 2 | AL193: 2 | AM193: 2 | AN193: 2 | AO193: 2 | AP193: 2 | AQ193: 2 | AR193: 2 | AS193: 2 | AT193: 2 | AU193: 2 | AV193: -2 | AW193: -2 | AX193: -2 | AY193: -2 | AZ193: 0 | BA193: 0 | BB193: 0 | BC193: 0 | BD193: -2 | BE193: -2 | BF193: -2 | BG193: -2 | BH193: -1 | BI193: -1 | BJ193: -1 | BK193: -1 | BL193: -2 | BM193: -2 | BN193: -2 | BO193: -2 | BP193: -2 | BQ193: -2 | BR193: -2 | BS193: Y
A194: 63 | B194: a | C194: roller shades | D194: translucent | E194: interior | F194: Light Color | G194: tight weave | H194: Manual | I194: BC1 | J194: 2 | K194: 2 | L194: 2 | M194: 2 | N194: 2 | O194: 2 | P194: 2 | Q194: 2 | R194: 2 | S194: 2 | T194: 2 | U194: 2 | V194: 2 | W194: 2 | X194: 2 | Y194: 2 | Z194: 2 | AA194: 2 | AB194: 2 | AC194: 2 | AD194: 2 | AE194: 2 | AF194: 2 | AG194: 2 | AH194: 2 | AI194: 2 | AJ194: 2 | AK194: 2 | AL194: 2 | AM194: 0 | AN194: 2 | AO194: 2 | AP194: 2 | AQ194: 2 | AR194: 2 | AS194: 2 | AT194: 0 | AU194: -1 | AV194: 2 | AW194: 2 | AX194: 2 | AY194: 2 | AZ194: -2 | BA194: -2 | BB194: -2 | BC194: -2 | BD194: -1 | BE194: -1 | BF194: -1 | BG194: -1 | BH194: -2 | BI194: -2 | BJ194: -2 | BK194: -2 | BL194: -1 | BM194: -1 | BN194: -1 | BO194: -1 | BP194: -1 | BQ194: -1 | BR194: -1 | BS194: -1 | BT194: Y
B195: b | I195: BC2 | J195: 2 | K195: 2 | L195: 2 | M195: 2 | N195: 2 | O195: 2 | P195: 2 | Q195: 2 | R195: 2 | S195: 2 | T195: 2 | U195: 2 | V195: 2 | W195: 2 | X195: 2 | Y195: 2 | Z195: 2 | AA195: 2 | AB195: 2 | AC195: 2 | AD195: 2 | AE195: 2 | AF195: 2 | AG195: 2 | AH195: 2 | AI195: 2 | AJ195: 2 | AK195: 2 | AL195: 2 | AM195: 0 | AN195: 2 | AO195: 2 | AP195: 2 | AQ195: 2 | AR195: 2 | AS195: 2 | AT195: 0 | AU195: -1 | AV195: 2 | AW195: 2 | AX195: 2 | AY195: 2 | AZ195: -2 | BA195: -2 | BB195: -2 | BC195: -2 | BD195: -1 | BE195: -1 | BF195: -1 | BG195: -1 | BH195: -2 | BI195: -2 | BJ195: -2 | BK195: -2 | BL195: -1 | BM195: -1 | BN195: -1 | BO195: -1 | BP195: -1 | BQ195: -1 | BR195: -1 | BS195: -1 | BT195: Y
B196: c | I196: BC3 | J196: 2 | K196: 2 | L196: 2 | M196: 2 | N196: 2 | O196: 2 | P196: 2 | Q196: 2 | R196: 2 | S196: 2 | T196: 2 | U196: 2 | V196: 2 | W196: 2 | X196: 2 | Y196: 2 | Z196: 2 | AA196: 2 | AB196: 2 | AC196: 2 | AD196: 2 | AE196: 2 | AF196: 2 | AG196: 2 | AH196: 2 | AI196: 2 | AJ196: 2 | AK196: 2 | AL196: 2 | AM196: 0 | AN196: 2 | AO196: 2 | AP196: 2 | AQ196: 2 | AR196: 2 | AS196: 2 | AT196: 0 | AU196: -1 | AV196: 2 | AW196: 2 | AX196: 2 | AY196: 2 | AZ196: -2 | BA196: -2 | BB196: -2 | BC196: -2 | BD196: -1 | BE196: -1 | BF196: -1 | BG196: -1 | BH196: -2 | BI196: -2 | BJ196: -2 | BK196: -2 | BL196: -1 | BM196: -1 | BN196: -1 | BO196: -1 | BP196: -1 | BQ196: -1 | BR196: -1 | BS196: -1 | BT196: Y
A197: 64 | B197: a | C197: roller shades | D197: translucent | E197: interior | F197: Light Color | G197: open weave | H197: Manual | I197: BC1 | J197: 2 | K197: 2 | L197: 2 | M197: 2 | N197: 2 | O197: 2 | P197: 2 | Q197: 2 | R197: 2 | S197: 2 | T197: 2 | U197: 2 | V197: 2 | W197: 2 | X197: 2 | Y197: 2 | Z197: 2 | AA197: 2 | AB197: 2 | AC197: 2 | AD197: 2 | AE197: 2 | AF197: 2 | AG197: 2 | AH197: 2 | AI197: 2 | AJ197: 2 | AK197: 2 | AL197: 2 | AM197: 0 | AN197: 2 | AO197: 2 | AP197: 2 | AQ197: 2 | AR197: 2 | AS197: 2 | AT197: 0 | AU197: -1 | AV197: 2 | AW197: 2 | AX197: 2 | AY197: 2 | AZ197: -2 | BA197: -2 | BB197: -2 | BC197: -2 | BD197: -1 | BE197: -1 | BF197: -1 | BG197: -1 | BH197: -2 | BI197: -2 | BJ197: -2 | BK197: -2 | BL197: -1 | BM197: -1 | BN197: -1 | BO197: -1 | BP197: -1 | BQ197: -1 | BR197: -1 | BS197: -1 | BT197: -2 | BU197: Y
B198: b | I198: BC2 | J198: 2 | K198: 2 | L198: 2 | M198: 2 | N198: 2 | O198: 2 | P198: 2 | Q198: 2 | R198: 2 | S198: 2 | T198: 2 | U198: 2 | V198: 2 | W198: 2 | X198: 2 | Y198: 2 | Z198: 2 | AA198: 2 | AB198: 2 | AC198: 2 | AD198: 2 | AE198: 2 | AF198: 2 | AG198: 2 | AH198: 2 | AI198: 2 | AJ198: 2 | AK198: 2 | AL198: 2 | AM198: 0 | AN198: 2 | AO198: 2 | AP198: 2 | AQ198: 2 | AR198: 2 | AS198: 2 | AT198: 0 | AU198: -1 | AV198: 2 | AW198: 2 | AX198: 2 | AY198: 2 | AZ198: -2 | BA198: -2 | BB198: -2 | BC198: -2 | BD198: -1 | BE198: -1 | BF198: -1 | BG198: -1 | BH198: -2 | BI198: -2 | BJ198: -2 | BK198: -2 | BL198: -1 | BM198: -1 | BN198: -1 | BO198: -1 | BP198: -1 | BQ198: -1 | BR198: -1 | BS198: -1 | BT198: -2 | BU198: Y
B199: c | I199: BC3 | J199: 2 | K199: 2 | L199: 2 | M199: 2 | N199: 2 | O199: 2 | P199: 2 | Q199: 2 | R199: 2 | S199: 2 | T199: 2 | U199: 2 | V199: 2 | W199: 2 | X199: 2 | Y199: 2 | Z199: 2 | AA199: 2 | AB199: 2 | AC199: 2 | AD199: 2 | AE199: 2 | AF199: 2 | AG199: 2 | AH199: 2 | AI199: 2 | AJ199: 2 | AK199: 2 | AL199: 2 | AM199: 0 | AN199: 2 | AO199: 2 | AP199: 2 | AQ199: 2 | AR199: 2 | AS199: 2 | AT199: 0 | AU199: -1 | AV199: 2 | AW199: 2 | AX199: 2 | AY199: 2 | AZ199: -2 | BA199: -2 | BB199: -2 | BC199: -2 | BD199: -1 | BE199: -1 | BF199: -1 | BG199: -1 | BH199: -2 | BI199: -2 | BJ199: -2 | BK199: -2 | BL199: -1 | BM199: -1 | BN199: -1 | BO199: -1 | BP199: -1 | BQ199: -1 | BR199: -1 | BS199: -1 | BT199: -2 | BU199: Y
A200: 65 | B200: a | C200: roller shades | D200: translucent | E200: interior | F200: Dark Color | G200: tight weave | H200: Manual | I200: BC1 | J200: 2 | K200: 2 | L200: 2 | M200: 2 | N200: 2 | O200: 2 | P200: 2 | Q200: 2 | R200: 2 | S200: 2 | T200: 2 | U200: 2 | V200: 2 | W200: 2 | X200: 2 | Y200: 2 | Z200: 2 | AA200: 2 | AB200: 2 | AC200: 2 | AD200: 2 | AE200: 2 | AF200: 2 | AG200: 2 | AH200: 2 | AI200: 2 | AJ200: 2 | AK200: 2 | AL200: 2 | AM200: 0 | AN200: 2 | AO200: 2 | AP200: 2 | AQ200: 2 | AR200: 2 | AS200: 2 | AT200: 0 | AU200: -1 | AV200: 2 | AW200: 2 | AX200: 2 | AY200: 2 | AZ200: -2 | BA200: -2 | BB200: -2 | BC200: -2 | BD200: -1 | BE200: -1 | BF200: -1 | BG200: -1 | BH200: -2 | BI200: -2 | BJ200: -2 | BK200: -2 | BL200: -1 | BM200: -1 | BN200: -1 | BO200: -1 | BP200: -1 | BQ200: -1 | BR200: -1 | BS200: -1 | BT200: -2 | BU200: -2 | BV200: Y
... 305 more rows

Sheet Climate Zones
I3: Value | J3: Description | K3: Actual weighting
I4: -2 | J4: insignificant | K4: 0.6
I5: -1 | J5: not typically considered | K5: 0.8
B6: Selected Approach to Climate | I6: 0 | J6: Neutral or climate independent | K6: 1
A7: Attributes | C7: Climate Zones | I7: 1 | J7: Consider | K7: 1.2
C8: North | D8: North Central | E8: South Central | F8: South | G8: North | I8: 2 | J8: Significant | K8: 1.4
A9: Thermal | B9: Insulation | C9: 2 | D9: 2 | E9: 1 | F9: 0 | G9: North Central
B10: Airtightness | C10: 2 | D10: 2 | E10: 1 | F10: 1 | G10: South Central
B11: Solar Heat Control | C11: 1 | D11: 2 | E11: 2 | F11: 2 | G11: South
B12: Winter Comfort | C12: 2 | D12: 2 | E12: 1 | F12: -1
B13: Summer Comfort | C13: 1 | D13: 1 | E13: 2 | F13: 2
B14: Condensation Resistance | C14: 2 | D14: 2 | E14: 1 | F14: -1
B15: Ventilation | C15: 2 | D15: 1 | E15: 1 | F15: 0
A16: Visual | B16: View | C16: 0 | D16: 0 | E16: 0 | F16: 0
B17: Visible Transmittance (VT) | C17: 0 | D17: 0 | E17: 0 | F17: 0
B18: Daylighting | C18: 0 | D18: 0 | E18: 0 | F18: 0
B19: Glare Control | C19: 0 | D19: 0 | E19: 0 | F19: 0
B20: Privacy | C20: 0 | D20: 0 | E20: 0 | F20: 0
A21: Functionality | B21: Adjustability
B22: Prime Window Protection | C22: 0 | D22: 0 | E22: 0 | F22: 0
B23: Egress | C23: 0 | D23: 0 | E23: 0 | F23: 0
B24: Security | C24: 0 | D24: 0 | E24: 0 | F24: 0
B25: Noise Control | C25: 0 | D25: 0 | E25: 0 | F25: 0
B26: Sound Abosrption | C26: 0 | D26: 0 | E26: 0 | F26: 0
A27: Cost | B27: Product Cost | C27: 0 | D27: 0 | E27: 0 | F27: 0
B28: Installation Cost | C28: 0 | D28: 0 | E28: 0 | F28: 0
B29: Durability - Service Life | C29: 0 | D29: 0 | E29: 0 | F29: 0
A30: Ease | B30: Operation | C30: 0 | D30: 0 | E30: 0 | F30: 0
B31: Cleaning | C31: 0 | D31: 0 | E31: 0 | F31: 0
B32: Repair | C32: 0 | D32: 0 | E32: 0 | F32: 0
B45: Table below was Peter's cut; table above (Charlie and Robert) selected approach
A47: Attributes | C47: Climate Zones | I47: Value | J47: Description | K47: Actual weighting
C48: North | D48: North Central | E48: South Central | F48: South | I48: 1 | J48: Neutral or climate independent | K48: 1
A49: Thermal | B49: Insulation | C49: 4 | D49: 3 | E49: 2 | F49: 1 | I49: 2 | J49: not typically considered | K49: 1.1
B50: Airtightness | C50: 4 | D50: 3 | E50: 2 | F50: 1 | I50: 3 | J50: Consider | K50: 1.2
B51: Solar Heat Control | C51: 1 | D51: 2 | E51: 3 | F51: 4 | I51: 4 | J51: Significant | K51: 1.3
B52: Winter Comfort | C52: 4 | D52: 3 | E52: 2 | F52: 1
B53: Summer Comfort | C53: 1 | D53: 2 | E53: 3 | F53: 4
B54: Condensation Resistance | C54: 4 | D54: 3 | E54: 2 | F54: 1
B55: Ventilation | C55: 1 | D55: 1 | E55: 1 | F55: 1
A56: Visual | B56: View | C56: 1 | D56: 1 | E56: 1 | F56: 1
B57: Visible Transmittance (VT) | C57: 1 | D57: 1 | E57: 1 | F57: 1
B58: Daylighting | C58: 1 | D58: 1 | E58: 1 | F58: 1
B59: Glare Control | C59: 1 | D59: 1 | E59: 1 | F59: 1
B60: Privacy | C60: 1 | D60: 1 | E60: 1 | F60: 1
A61: Functionality | B61: Adjustability
B62: Prime Window Protection | C62: 1 | D62: 1 | E62: 1 | F62: 1
B63: Egress | C63: 1 | D63: 1 | E63: 1 | F63: 1
B64: Security | C64: 1 | D64: 1 | E64: 1 | F64: 1
B65: Noise Control | C65: 1 | D65: 1 | E65: 1 | F65: 1
B66: Sound Abosrption | C66: 1 | D66: 1 | E66: 1 | F66: 1
A67: Cost | B67: Product Cost | C67: 1 | D67: 1 | E67: 1 | F67: 1
B68: Installation Cost | C68: 1 | D68: 1 | E68: 1 | F68: 1
B69: Durability - Service Life | C69: 1 | D69: 1 | E69: 1 | F69: 1
A70: Ease | B70: Operation | C70: 1 | D70: 1 | E70: 1 | F70: 1
B71: Cleaning | C71: 1 | D71: 1 | E71: 1 | F71: 1
B72: Repair | C72: 1 | D72: 1 | E72: 1 | F72: 1

Sheet Cellular
A1: Hunter Douglas Star Chart
E2: Attribute (scale 1-5)
A3: Product | E3: Insulation | F3: SHGC | G3: Daylighting | H3: UV Protection | I3: Sound Absorption | M3: Duette Honeycomb Shades
A4: Duette Honeycomb Shades | B4: Architella | C4: 1-1/4" | D4: Opaque | E4: 5 | F4: 5 | G4: 1 | H4: 5 | I4: 4 | M4: Architella | N4: Cell in cell
B5: Architella | C5: 3/8" | D5: Opaque | E5: 5 | F5: 5 | G5: 1 | H5: 5 | I5: 3.5
B6: Architella | C6: 3/4" | D6: Opaque | E6: 5 | F6: 5 | G6: 1 | H6: 5 | I6: 3.5
B7: Architella | C7: 1-1/4" | D7: Semi-Opaque | E7: 5 | F7: 4.5 | G7: 1.5 | H7: 5 | I7: 5
B8: Architella | C8: 3/8" | D8: Semi-Opaque | E8: 4.5 | F8: 5 | G8: 1.5 | H8: 5 | I8: 5
B9: Architella | C9: 3/4" | D9: Semi-Opaque | E9: 4.5 | F9: 4 | G9: 1.5 | H9: 5 | I9: 4
B10: Single | C10: 1-1/4" | D10: Opaque | E10: 4 | F10: 5 | G10: 1 | H10: 5 | I10: 3.5
B11: Triple | C11: - | D11: Opaque | E11: 3.5 | F11: 4.5 | G11: 1 | H11: 5 | I11: 5
B12: Single | C12: 3/4" | D12: Opaque | E12: 4 | F12: 4 | G12: 1 | H12: 5 | I12: 2.5
B13: Single | C13: 3/8" | D13: Opaque | E13: 3.5 | F13: 4.5 | G13: 1 | H13: 5 | I13: 2.5
B14: Double | C14: - | D14: Opaque | E14: 3 | F14: 3 | G14: 1.5 | H14: 5 | I14: 4.5
B15: Single | C15: 1-1/4" | D15: Semi-Opaque | E15: 3.5 | F15: 2.5 | G15: 2 | H15: 5 | I15: 3.5
B16: Single | C16: 3/4" | D16: Semi-Opaque | E16: 3 | F16: 2.5 | G16: 2 | H16: 5 | I16: 4
B17: Single | C17: 3/8" | D17: Semi-Opaque | E17: 2.5 | F17: 3 | G17: 2 | H17: 5 | I17: 3
B18: Single | C18: - | D18: Semi-Shear | E18: 1.5 | F18: 1.5 | G18: 3 | H18: 5 | I18: 1
B19: Single | D19: Shear | E19: 1.5 | F19: 1 | G19: 4 | H19: 3 | I19: 1
A21: Grouped
B22: Single | C22: 1-1/4" | D22: Opaque | E22: 4 | F22: 5 | G22: 1 | H22: 5 | I22: 3.5
B23: Single | C23: 3/4" | D23: Opaque | E23: 4 | F23: 4 | G23: 1 | H23: 5 | I23: 2.5
B24: Single | C24: 3/8" | D24: Opaque | E24: 3.5 | F24: 4.5 | G24: 1 | H24: 5 | I24: 2.5
B26: Single | C26: 1-1/4" | D26: Semi-Opaque | E26: 3.5 | F26: 2.5 | G26: 2 | H26: 5 | I26: 3.5
B27: Single | C27: 3/4" | D27: Semi-Opaque | E27: 3 | F27: 2.5 | G27: 2 | H27: 5 | I27: 4
B28: Single | C28: 3/8" | D28: Semi-Opaque | E28: 2.5 | F28: 3 | G28: 2 | H28: 5 | I28: 3
B30: Single | C30: - | D30: Semi-Shear | E30: 1.5 | F30: 1.5 | G30: 3 | H30: 5 | I30: 1
B31: Single | D31: Shear | E31: 1.5 | F31: 1 | G31: 4 | H31: 3 | I31: 1
B33: Architella | C33: 1-1/4" | D33: Opaque | E33: 5 | F33: 5 | G33: 1 | H33: 5 | I33: 4
B34: Architella | C34: 3/8" | D34: Opaque | E34: 5 | F34: 5 | G34: 1 | H34: 5 | I34: 3.5
B35: Architella | C35: 3/4" | D35: Opaque | E35: 5 | F35: 5 | G35: 1 | H35: 5 | I35: 3.5
B37: Architella | C37: 1-1/4" | D37: Semi-Opaque | E37: 5 | F37: 4.5 | G37: 1.5 | H37: 5 | I37: 5
B38: Architella | C38: 3/8" | D38: Semi-Opaque | E38: 4.5 | F38: 5 | G38: 1.5 | H38: 5 | I38: 5
B39: Architella | C39: 3/4" | D39: Semi-Opaque | E39: 4.5 | F39: 4 | G39: 1.5 | H39: 5 | I39: 4
B41: Double | C41: - | D41: Opaque | E41: 3 | F41: 3 | G41: 1.5 | H41: 5 | I41: 4.5
B43: Triple | C43: - | D43: Opaque | E43: 3.5 | F43: 4.5 | G43: 1 | H43: 5 | I43: 5
F48: Our scale | H48: Our scale | J48: Our scale (VT) | N48: Our scale
A49: Grouped with our scales | E49: 1 to 5 | F49: 1 to 8 | G49: 1 to 5 | H49: 1 to 8 | I49: 1 to 5 | J49: 1 to 8 | K49: 1 to 5 | M49: 1 to 5 | N49: 1 to 4
E50: Insulation | F50: Insulation | G50: SHGC | H50: SHGC | I50: Daylighting | J50: Daylighting | K50: UV Protection | L50: UV Protection | M50: Sound Absorption | N50: Sound Absorption
B51: Single | C51: 1-1/4" | D51: Opaque | E51: =E22 -> 4 | F51: =IF(E51=1,1,E51/5*8) -> 6.4 | G51: =F22 -> 5 | H51: =IF(G51=1,1,G51/5*8) -> 8 | I51: =G22 -> 1 | J51: =IF(I51=1,1,I51/5*8) -> 1 | K51: =H22 -> 5 | M51: =I22 -> 3.5 | N51: =IF(M51=1,1,M51/5*4) -> 2.8
B52: Single | C52: 3/4" | D52: Opaque | E52: =E23 -> 4 | F52: =IF(E52=1,1,E52/5*8) -> 6.4 | G52: =F23 -> 4 | H52: =IF(G52=1,1,G52/5*8) -> 6.4 | I52: =G23 -> 1 | J52: =IF(I52=1,1,I52/5*8) -> 1 | K52: =H23 -> 5 | M52: =I23 -> 2.5 | N52: =IF(M52=1,1,M52/5*4) -> 2
B53: Single | C53: 3/8" | D53: Opaque | E53: 3.5 | F53: 5.6 | G53: 4.5 | H53: 7.2 | I53: 1 | J53: 1 | K53: 5 | M53: 2.5 | N53: 2
B55: Single | C55: 1-1/4" | D55: Semi-Opaque | E55: 3.5 | F55: 5.6 | G55: 2.5 | H55: 4 | I55: 2 | J55: 3.2 | K55: 5 | M55: 3.5 | N55: 2.8
B56: Single | C56: 3/4" | D56: Semi-Opaque | E56: 3 | F56: 4.8 | G56: 2.5 | H56: 4 | I56: 2 | J56: 3.2 | K56: 5 | M56: 4 | N56: 3.2
B57: Single | C57: 3/8" | D57: Semi-Opaque | E57: 2.5 | F57: 4 | G57: 3 | H57: 4.8 | I57: 2 | J57: 3.2 | K57: 5 | M57: 3 | N57: 2.4
B59: Single | C59: - | D59: Semi-Shear | E59: 1.5 | F59: 2.4 | G59: 1.5 | H59: 2.4 | I59: 3 | J59: 4.8 | K59: 5 | M59: 1 | N59: 1
B60: Single | D60: Shear | E60: 1.5 | F60: 2.4 | G60: 1 | H60: 1 | I60: 4 | J60: 6.4 | K60: 3 | M60: 1 | N60: 1
B62: Architella | C62: 1-1/4" | D62: Opaque | E62: 5 | F62: 8 | G62: 5 | H62: 8 | I62: 1 | J62: 1 | K62: 5 | M62: 4 | N62: 3.2
B63: Architella | C63: 3/8" | D63: Opaque | E63: 5 | F63: 8 | G63: 5 | H63: 8 | I63: 1 | J63: 1 | K63: 5 | M63: 3.5 | N63: 2.8
B64: Architella | C64: 3/4" | D64: Opaque | E64: 5 | F64: 8 | G64: 5 | H64: 8 | I64: 1 | J64: 1 | K64: 5 | M64: 3.5 | N64: 2.8
B66: Architella | C66: 1-1/4" | D66: Semi-Opaque | E66: 5 | F66: 8 | G66: 4.5 | H66: 7.2 | I66: 1.5 | J66: 2.4 | K66: 5 | M66: 5 | N66: 4
B67: Architella | C67: 3/8" | D67: Semi-Opaque | E67: 4.5 | F67: 7.2 | G67: 5 | H67: 8 | I67: 1.5 | J67: 2.4 | K67: 5 | M67: 5 | N67: 4
B68: Architella | C68: 3/4" | D68: Semi-Opaque | E68: 4.5 | F68: 7.2 | G68: 4 | H68: 6.4 | I68: 1.5 | J68: 2.4 | K68: 5 | M68: 4 | N68: 3.2
B70: Double | C70: - | D70: Opaque | E70: 3 | F70: 4.8 | G70: 3 | H70: 4.8 | I70: 1.5 | J70: 2.4 | K70: 5 | M70: 4.5 | N70: 3.6
B72: Triple | C72: - | D72: Opaque | E72: 3.5 | F72: 5.6 | G72: 4.5 | H72: 7.2 | I72: 1 | J72: 1 | K72: 5 | M72: 5 | N72: 4
A75: Grouped with only our scales
E76: 1 to 8 | F76: 1 to 8 | G76: 1 to 8 | H76: 1 to 4
E77: Insulation | F77: SHGC | G77: Daylighting | H77: Sound Absorption
B78: Single | C78: 1-1/4" | D78: Opaque | E78: =F51 -> 6.4 | F78: =H51 -> 8 | G78: =J51 -> 1 | H78: =N51 -> 2.8
B79: Single | C79: 3/4" | D79: Opaque | E79: =F52 -> 6.4 | F79: =H52 -> 6.4 | G79: =J52 -> 1 | H79: =N52 -> 2
B80: Single | C80: 3/8" | D80: Opaque | E80: 5.6 | F80: 7.2 | G80: 1 | H80: 2
B82: Single | C82: 1-1/4" | D82: Semi-Opaque | E82: 5.6 | F82: 4 | G82: 3.2 | H82: 2.8
B83: Single | C83: 3/4" | D83: Semi-Opaque | E83: 4.8 | F83: 4 | G83: 3.2 | H83: 3.2
B84: Single | C84: 3/8" | D84: Semi-Opaque | E84: 4 | F84: 4.8 | G84: 3.2 | H84: 2.4
B86: Single | C86: - | D86: Semi-Shear | E86: 2.4 | F86: 2.4 | G86: 4.8 | H86: 1
B87: Single | D87: Shear | E87: 2.4 | F87: 1 | G87: 6.4 | H87: 1
B89: Architella | C89: 1-1/4" | D89: Opaque | E89: 8 | F89: 8 | G89: 1 | H89: 3.2
B90: Architella | C90: 3/8" | D90: Opaque | E90: 8 | F90: 8 | G90: 1 | H90: 2.8
B91: Architella | C91: 3/4" | D91: Opaque | E91: 8 | F91: 8 | G91: 1 | H91: 2.8
B93: Architella | C93: 1-1/4" | D93: Semi-Opaque | E93: 8 | F93: 7.2 | G93: 2.4 | H93: 4
B94: Architella | C94: 3/8" | D94: Semi-Opaque | E94: 7.2 | F94: 8 | G94: 2.4 | H94: 4
B95: Architella | C95: 3/4" | D95: Semi-Opaque | E95: 7.2 | F95: 6.4 | G95: 2.4 | H95: 3.2
B97: Double | C97: - | D97: Opaque | E97: 4.8 | F97: 4.8 | G97: 2.4 | H97: 3.6
B99: Triple | C99: - | D99: Opaque | E99: =F72 -> 5.6 | F99: =H72 -> 7.2 | G99: =J72 -> 1 | H99: =N72 -> 4
A104: Final Theirs
D105: Insulation | E105: SHGC | F105: Daylighting | G105: Sound Absorption
B106: Single | C106: Opaque | D106: =AVERAGE(E78:E80) -> 6.133333333 | E106: =AVERAGE(F78:F80) -> 7.2 | F106: =AVERAGE(G78:G80) -> 1 | G106: =AVERAGE(H78:H80) -> 2.266666667
B107: Single | C107: Semi-Opaque | D107: =AVERAGE(E82:E84) -> 4.8 | E107: =AVERAGE(F82:F84) -> 4.266666667 | F107: =AVERAGE(G82:G84) -> 3.2 | G107: =AVERAGE(H82:H84) -> 2.8
B108: Single | C108: Shear | D108: =AVERAGE(E86:E87) -> 2.4 | E108: =AVERAGE(F86:F87) -> 1.7 | F108: =AVERAGE(G86:G87) -> 5.6 | G108: =AVERAGE(H86:H87) -> 1
B109: multi-cell | C109: Opaque | D109: =AVERAGE(E89:E91,E97:E99) -> 6.88 | E109: =AVERAGE(F89:F91,F97:F99) -> 7.2 | F109: =AVERAGE(G89:G91,G97:G99) -> 1.28 | G109: =AVERAGE(H89:H91,H97:H99) -> 3.28
B110: multi-cell | C110: Semi-Opaque | D110: =AVERAGE(E93:E95) -> 7.466666667 | E110: =AVERAGE(F93:F95) -> 7.2 | F110: =AVERAGE(G93:G95) -> 2.4 | G110: =AVERAGE(H93:H95) -> 3.733333333
A113: Final ours
A115: 1 | B115: Single | C115: Opaque | D115: No side track | E115: Manual | F115: 1-D adjustable
A116: 2 | B116: Single | C116: Semi-Opaque | D116: No side track | E116: Manual | F116: 1-D adjustable
A117: 3 | B117: Single | C117: Shear | D117: No side track | E117: Manual | F117: 1-D adjustable
A118: 4 | B118: multi-cell | C118: Opaque | D118: No side track | E118: Manual | F118: 1-D adjustable
A119: 5 | B119: multi-cell | C119: Semi-Opaque | D119: No side track | E119: Manual | F119: 1-D adjustable
A120: 6 | B120: Single | C120: Opaque | D120: Side Track | E120: Manual | F120: 1-D adjustable
A121: 7 | B121: Single | C121: Semi-Opaque | D121: Side Track | E121: Manual | F121: 1-D adjustable
A122: 8 | B122: Single | C122: Shear | D122: Side Track | E122: Manual | F122: 1-D adjustable
A123: 9 | B123: multi-cell | C123: Opaque | D123: Side Track | E123: Manual | F123: 1-D adjustable
A124: 10 | B124: multi-cell | C124: Semi-Opaque | D124: Side Track | E124: Manual | F124: 1-D adjustable
A125: 11 | B125: Single | C125: Opaque | D125: No side track | E125: Automated | F125: 1-D adjustable
A126: 12 | B126: Single | C126: Semi-Opaque | D126: No side track | E126: Automated | F126: 1-D adjustable
A127: 13 | B127: Single | C127: Shear | D127: No side track | E127: Automated | F127: 1-D adjustable
A128: 14 | B128: multi-cell | C128: Opaque | D128: No side track | E128: Automated | F128: 1-D adjustable
A129: 15 | B129: multi-cell | C129: Semi-Opaque | D129: No side track | E129: Automated | F129: 1-D adjustable
A130: 16 | B130: Single | C130: Opaque | D130: Side Track | E130: Automated | F130: 1-D adjustable
A131: 17 | B131: Single | C131: Semi-Opaque | D131: Side Track | E131: Automated | F131: 1-D adjustable
A132: 18 | B132: Single | C132: Shear | D132: Side Track | E132: Automated | F132: 1-D adjustable
A133: 19 | B133: multi-cell | C133: Opaque | D133: Side Track | E133: Automated | F133: 1-D adjustable
A134: 20 | B134: multi-cell | C134: Semi-Opaque | D134: Side Track | E134: Automated | F134: 1-D adjustable
B135: Single | C135: Opaque | D135: No side track | E135: Manual | F135: 2-D adjustable
B136: Single | C136: Semi-Opaque | D136: No side track | E136: Manual | F136: 2-D adjustable
B137: Single | C137: Shear | D137: No side track | E137: Manual | F137: 2-D adjustable
B138: multi-cell | C138: Opaque | D138: No side track | E138: Manual | F138: 2-D adjustable
B139: multi-cell | C139: Semi-Opaque | D139: No side track | E139: Manual | F139: 2-D adjustable
B140: Single | C140: Opaque | D140: Side Track | E140: Manual | F140: 2-D adjustable
B141: Single | C141: Semi-Opaque | D141: Side Track | E141: Manual | F141: 2-D adjustable
B142: Single | C142: Shear | D142: Side Track | E142: Manual | F142: 2-D adjustable
B143: multi-cell | C143: Opaque | D143: Side Track | E143: Manual | F143: 2-D adjustable
B144: multi-cell | C144: Semi-Opaque | D144: Side Track | E144: Manual | F144: 2-D adjustable
B145: Single | C145: Opaque | D145: No side track | E145: Automated | F145: 2-D adjustable
B146: Single | C146: Semi-Opaque | D146: No side track | E146: Automated | F146: 2-D adjustable
B147: Single | C147: Shear | D147: No side track | E147: Automated | F147: 2-D adjustable
B148: multi-cell | C148: Opaque | D148: No side track | E148: Automated | F148: 2-D adjustable
B149: multi-cell | C149: Semi-Opaque | D149: No side track | E149: Automated | F149: 2-D adjustable
B150: Single | C150: Opaque | D150: Side Track | E150: Automated | F150: 2-D adjustable
B151: Single | C151: Semi-Opaque | D151: Side Track | E151: Automated | F151: 2-D adjustable
B152: Single | C152: Shear | D152: Side Track | E152: Automated | F152: 2-D adjustable
B153: multi-cell | C153: Opaque | D153: Side Track | E153: Automated | F153: 2-D adjustable
B154: multi-cell | C154: Semi-Opaque | D154: Side Track | E154: Automated | F154: 2-D adjustable

Sheet Ranking
B2: 1 | C2: 2 | D2: 3 | E2: 4 | F2: 5 | G2: 6 | H2: 7 | I2: 8 | J2: 9 | K2: 10 | L2: 11 | M2: 12 | N2: 13 | O2: 14 | P2: 15 | Q2: 16 | R2: 17 | S2: 18 | T2: 19 | U2: 20 | V2: 21 | W2: 22 | X2: 23
B3: ='Table Attributes (Archive)'!E5 -> Thermal | I3: ='Table Attributes (Archive)'!L5 -> Visual | S3: ='Table Attributes (Archive)'!W5 -> Cost | V3: ='Table Attributes (Archive)'!Z5 -> Ease
B4: ='Table Attributes (Archive)'!E6 -> Insulation | C4: ='Table Attributes (Archive)'!F6 -> Airtightness | D4: ='Table Attributes (Archive)'!G6 -> Solar Heat Control | E4: ='Table Attributes (Archive)'!H6 -> Winter Comfort | F4: ='Table Attributes (Archive)'!I6 -> Summer Comfort | G4: ='Table Attributes (Archive)'!J6 -> Condensation Resistance | H4: ='Table Attributes (Archive)'!K6 -> Ventilation | I4: ='Table Attributes (Archive)'!L6 -> View | J4: ='Table Attributes (Archive)'!M6 -> Visible Transmittance (VT) | K4: ='Table Attributes (Archive)'!N6 -> Daylighting | L4: ='Table Attributes (Archive)'!O6 -> Glare Control | M4: ='Table Attributes (Archive)'!P6 -> Privacy | N4: ='Table Attributes (Archive)'!R6 -> Prime Window Protection | O4: ='Table Attributes (Archive)'!S6 -> Egress | P4: ='Table Attributes (Archive)'!T6 -> Security | Q4: ='Table Attributes (Archive)'!U6 -> Noise Control | R4: ='Table Attributes (Archive)'!V6 -> Sound Abosrption | S4: ='Table Attributes (Archive)'!W6 -> Product Cost | T4: ='Table Attributes (Archive)'!X6 -> Installation Cost | U4: ='Table Attributes (Archive)'!Y6 -> Durability - Service Life | V4: ='Table Attributes (Archive)'!Z6 -> Operation | W4: ='Table Attributes (Archive)'!AA6 -> Cleaning | X4: ='Table Attributes (Archive)'!AB6 -> Repair
B5: 1 | C5: 1 | D5: 1 | E5: 1 | F5: 1 | G5: 1 | H5: 1 | I5: 1 | J5: 1 | K5: 1 | L5: 1 | M5: 6 | N5: 1 | O5: 1 | P5: 1 | Q5: 1 | R5: 1 | S5: 1 | T5: 1 | U5: 1 | V5: 1 | W5: 1 | X5: 1
B8: Situational Variables | I8: Ranking | S8: Weighting
B9: select as needed | I9: Click 'reset' to clear selections and results | S9: View and adjust weighting factors
I10: Click 'rank options' to run algorithm
B11: Select climate zone | S11: Climate zone weight factors
B12: 4 | S12: Value | T12: Description | V12: Actual weighting
S13: -2 | T13: insignificant | V13: 0.6
B14: Select existing coverings | I14: Options in rank order: | S14: -1 | T14: not typically considered | V14: 0.8
B15: 0 | I15: option name | O15: score | P15: base compat. | Q15: synergy value | S15: 0 | T15: Neutral or climate independent | V15: 1
B16: Select base windows | H16: 1 | S16: 1 | T16: Consider | V16: 1.2
B17: 3 | H17: 2 | S17: 2 | T17: Significant | V17: 1.4
H18: 3
H19: 4 | S19: Synergy weight factors
H20: 5 | S20: value | T20: weighting
H21: 6 | S21: -2 | T21: 0
H22: 7 | S22: -1 | T22: 0.5
H23: 8 | S23: 0 | T23: 1
H24: 9 | S24: 1 | T24: 1.25
H25: 10 | S25: 2 | T25: 1.5
H26: 11
H27: 12
H28: 13
H29: 14
H30: 15
H31: 16
H32: 17
H33: 18
H34: 19
H35: 20
H36: 21
H37: 22
H38: 23
H39: 24
H40: 25
H41: 26
H42: 27
H43: 28

Sheet Price
C3: Stock/Cut to fit | F3: Custom
B4: Attachement | C4: Median | D4: Low | E4: High | F4: Median | G4: Low | H4: High
B5: Cellular Shades | C5: 45 | D5: 30 | E5: 90 | F5: 120 | G5: 110 | H5: 450
B6: Wood and Faux Wood Blinds | C6: 32 | D6: 30 | E6: 120 | F6: 115 | G6: 80 | H6: 216
B7: Vertical Blinds | C7: 32 | D7: 30 | E7: 60 | F7: 180 | G7: 85 | H7: 572
B8: Roman Shades | C8: 33 | D8: 30 | E8: 60 | F8: 300 | G8: 215 | H8: 475
B9: Roller Shades | C9: 33 | D9: 30 | E9: 62 | F9: 175 | G9: 90 | H9: 280
B10: Sheer Blinds | C10: 12 | D10: 10 | E10: 22 | F10: 590 | G10: 290 | H10: 750
B11: Vinyl Mini and Metal Blinds | C11: 12 | D11: 7 | E11: 28 | F11: 45 | G11: 5 | H11: 110
B12: Pleated Shades | C12: 13 | D12: 7 | E12: 21 | F12: 175 | G12: 110 | H12: 185
B13: Exterior Products | F13: 215 | G13: 100 | H13: 750

Sheet Help Me Choose1
A1: Reduce my heating bill
A5: Record of Help Me Choose Top 5 by Climate: Attribute Settings and Ranking Results
A7: Default Conditions: Base case window=single clear; existing window covering=nil; climate weighting factors:
A10: HMC1 | B10: Reduce my heating bill
A11: HMC2 | B11: Need more privacy
A12: HMC3 | B12: Protect my windows
A13: HMC4 | B13: Reduce my cooling bill
A14: HMC5 | B14: Give me adjustable daylighting
A20: HMC1 | B20: North | C20: Attribute settings: Insulation=8; Airtightness=6; winter comfort=6 | L20: Attribute settings: Insulation=8; Airtightness=6; winter comfort=6; Condensation resistance=7
C21: 16:Interior panel | D21: fixed | E21: glass - triple glazing | F21: low-e | G21: hsg | I21: 2963520 | J21: TRUE | K21: 0 | L21: 145:Roller shutters | M21: insulating | N21: automated | R21: 3622080 | S21: TRUE | T21: 0
C22: 17:Interior panel | D22: fixed | E22: glass - triple glazing | F22: low-e | G22: lsg | I22: 2963520 | J22: TRUE | K22: 0 | L22: 143:Roller shutters | M22: insulating | N22: manual | R22: 3498600 | S22: TRUE | T22: 0
C23: 15:Interior panel | D23: fixed | E23: glass - double glazing | F23: low-e | G23: lsg | I23: 2840040 | J23: TRUE | K23: 0 | L23: 5:Exterior storm | M23: Fixed | N23: low-e | O23: LSG | R23: 3416280 | S23: TRUE | T23: 0
C24: 14:Interior panel | D24: fixed | E24: glass - double glazing | F24: low-e | G24: hsg | I24: 2716560 | J24: TRUE | K24: 0 | L24: 4:Exterior storm | M24: Fixed | N24: low-e | O24: HSG | R24: 3292800 | S24: TRUE | T24: 0
C25: 21:Interior panel | D25: fixed | E25: flexible 2 layers with low-e | I25: 2716560 | J25: TRUE | K25: 0 | L25: 2:Exterior storm | M25: tracked | N25: low-e | O25: LSG | R25: 3251640 | S25: TRUE | T25: 0
C26: 77:cellular Shade | D26: multi-cell | E26: Opaque | F26: Side Track | G26: Manual | H26: 1-D adjustable | I26: 2634240 | J26: TRUE | K26: 0 | L26: 1:Exterior storm | M26: tracked | N26: low-e | O26: HSG | R26: 3128160 | S26: TRUE | T26: 0
C27: 78:cellular Shade | D27: multi-cell | E27: Semi-Opaque | F27: Side Track | G27: Manual | H27: 1-D adjustable | I27: 2634240 | J27: TRUE | K27: 0 | L27: 16:Interior panel | M27: fixed | N27: glass - triple glazing | O27: low-e | P27: hsg | R27: 3104640 | S27: TRUE | T27: 0
C28: 87:cellular Shade | D28: multi-cell | E28: Opaque | F28: Side Track | G28: Automated | H28: 1-D adjustable | I28: 2634240 | J28: TRUE | K28: 0 | L28: 17:Interior panel | M28: fixed | N28: glass - triple glazing | O28: low-e | P28: lsg | R28: 3104640 | S28: TRUE | T28: 0
C29: 88:cellular Shade | D29: multi-cell | E29: Semi-Opaque | F29: Side Track | G29: Automated | H29: 1-D adjustable | I29: 2634240 | J29: TRUE | K29: 0 | L29: 15:Interior panel | M29: fixed | N29: glass - double glazing | O29: low-e | P29: lsg | R29: 2981160 | S29: TRUE | T29: 0
C30: 97:cellular Shade | D30: multi-cell | E30: Opaque | F30: Side Track | G30: Manual | H30: 2-D adjustable | I30: 2634240 | J30: TRUE | K30: 0 | L30: 6:Exterior storm | M30: Fixed | N30: clear | R30: 2863560 | S30: TRUE | T30: 0
C31: 98:cellular Shade | D31: multi-cell | E31: Semi-Opaque | F31: Side Track | G31: Manual | H31: 2-D adjustable | I31: 2634240 | J31: TRUE | K31: 0 | L31: 14:Interior panel | M31: fixed | N31: glass - double glazing | O31: low-e | P31: hsg | R31: 2857680 | S31: TRUE | T31: 0
C32: 107:cellular Shade | D32: multi-cell | E32: Opaque | F32: Side Track | G32: Automated | H32: 2-D adjustable | I32: 2634240 | J32: TRUE | K32: 0 | L32: 21:Interior panel | M32: fixed | N32: flexible 2 layers with low-e | R32: 2857680 | S32: TRUE | T32: 0
C33: 108:cellular Shade | D33: multi-cell | E33: Semi-Opaque | F33: Side Track | G33: Automated | H33: 2-D adjustable | I33: 2634240 | J33: TRUE | K33: 0 | L33: 77:cellular Shade | M33: multi-cell | N33: Opaque | O33: Side Track | P33: Manual | Q33: 1-D adjustable | R33: 2775360 | S33: TRUE | T33: 0
C34: 109:Window quilts | D34: opaque | E34: Non-roller | I34: 2634240 | J34: TRUE | K34: 0 | L34: 78:cellular Shade | M34: multi-cell | N34: Semi-Opaque | O34: Side Track | P34: Manual | Q34: 1-D adjustable | R34: 2775360 | S34: TRUE | T34: 0
C35: 110:Window quilts | D35: opaque | E35: roller | F35: side track | G35: manual | I35: 2634240 | J35: TRUE | K35: 0 | L35: 87:cellular Shade | M35: multi-cell | N35: Opaque | O35: Side Track | P35: Automated | Q35: 1-D adjustable | R35: 2775360 | S35: TRUE | T35: 0
C36: 112:Window quilts | D36: opaque | E36: roller | F36: side track | G36: Automated | I36: 2634240 | J36: TRUE | K36: 0 | L36: 88:cellular Shade | M36: multi-cell | N36: Semi-Opaque | O36: Side Track | P36: Automated | Q36: 1-D adjustable | R36: 2775360 | S36: TRUE | T36: 0
C37: 145:Roller shutters | D37: insulating | E37: automated | I37: 2634240 | J37: TRUE | K37: 0 | L37: 97:cellular Shade | M37: multi-cell | N37: Opaque | O37: Side Track | P37: Manual | Q37: 2-D adjustable | R37: 2775360 | S37: TRUE | T37: 0
C38: 114:Window quilts | D38: Translucent | E38: Non-roller | I38: 2510760 | J38: TRUE | K38: 0 | L38: 98:cellular Shade | M38: multi-cell | N38: Semi-Opaque | O38: Side Track | P38: Manual | Q38: 2-D adjustable | R38: 2775360 | S38: TRUE | T38: 0
C39: 143:Roller shutters | D39: insulating | E39: manual | I39: 2510760 | J39: TRUE | K39: 0 | L39: 107:cellular Shade | M39: multi-cell | N39: Opaque | O39: Side Track | P39: Automated | Q39: 2-D adjustable | R39: 2775360 | S39: TRUE | T39: 0
C40: 5:Exterior storm | D40: Fixed | E40: low-e | F40: LSG | I40: 2428440 | J40: TRUE | K40: 0 | L40: 108:cellular Shade | M40: multi-cell | N40: Semi-Opaque | O40: Side Track | P40: Automated | Q40: 2-D adjustable | R40: 2775360 | S40: TRUE | T40: 0
C41: 12:Interior panel | D41: fixed | E41: glass | F41: low-e | G41: lsg | I41: 2428440 | J41: TRUE | K41: 0 | L41: 109:Window quilts | M41: opaque | N41: Non-roller | R41: 2775360 | S41: TRUE | T41: 0
C42: 20:Interior panel | D42: fixed | E42: flexible 2 layers | I42: 2428440 | J42: TRUE | K42: 0 | L42: 110:Window quilts | M42: opaque | N42: roller | O42: side track | P42: manual | R42: 2775360 | S42: TRUE | T42: 0
C43: 111:Window quilts | D43: opaque | E43: roller | F43: no - side track | G43: manual | I43: 2346120 | J43: TRUE | K43: 0 | L43: 112:Window quilts | M43: opaque | N43: roller | O43: side track | P43: Automated | R43: 2775360 | S43: TRUE | T43: 0
C44: 113:Window quilts | D44: opaque | E44: roller | F44: no - side track | G44: Automated | I44: 2346120 | J44: TRUE | K44: 0 | L44: 12:Interior panel | M44: fixed | N44: glass | O44: low-e | P44: lsg | R44: 2710680 | S44: TRUE | T44: 0
C45: 115:Window quilts | D45: Translucent | E45: roller | F45: side track | G45: manual | I45: 2346120 | J45: TRUE | K45: 0 | L45: 20:Interior panel | M45: fixed | N45: flexible 2 layers | R45: 2710680 | S45: TRUE | T45: 0
C46: Condensed ranked results: | E46: Interior panel | F46: cellular shade | G46: window quilt | H46: Roller shutter | I46: exterior storm | L46: Condensed ranked results: | N46: Roller shutter | O46: exterior storm | P46: Interior panel | Q46: cellular shade | R46: window quilt
A50: HMC1 | B50: North Central | C50: Attribute settings: Insulation=8; Airtightness=6; winter comfort=6 | L50: Attribute settings: Insulation=8; Airtightness=6; winter comfort=6; Condensation resistance=4
C51: Same as above Nadav: The scores change, but not the sequence of results. My inclination would be to stick with this first column for this "Help me choose" option. I think it best reflects the choices that would help with heating bills, and inserting non-thermal parameters to get different results further south muddies the picture. The fact that those bills aren't typically so big in the south is a separate issue. Also, I think this whole element will be much more managable "under the hood" if attribute settings don't have to change when situation parameters change. We already have weighting factors to accommodate those changes. | L51: 145:Roller shutters | M51: insulating | N51: automated | R51: 3198720 | S51: TRUE | T51: 0
L52: 143:Roller shutters | M52: insulating | N52: manual | R52: 3075240 | S52: TRUE | T52: 0
L53: 16:Interior panel | M53: fixed | N53: glass - triple glazing | O53: low-e | P53: hsg | R53: 3044160 | S53: TRUE | T53: 0
L54: 17:Interior panel | M54: fixed | N54: glass - triple glazing | O54: low-e | P54: lsg | R54: 3044160 | S54: TRUE | T54: 0
L55: 5:Exterior storm | M55: Fixed | N55: low-e | O55: LSG | R55: 2992920 | S55: TRUE | T55: 0
L56: 15:Interior panel | M56: fixed | N56: glass - double glazing | O56: low-e | P56: lsg | R56: 2920680 | S56: TRUE | T56: 0
L57: 4:Exterior storm | M57: Fixed | N57: low-e | O57: HSG | R57: 2869440 | S57: TRUE | T57: 0
L58: 2:Exterior storm | M58: tracked | N58: low-e | O58: LSG | R58: 2828280 | S58: TRUE | T58: 0
L59: 14:Interior panel | M59: fixed | N59: glass - double glazing | O59: low-e | P59: hsg | R59: 2797200 | S59: TRUE | T59: 0
L60: 21:Interior panel | M60: fixed | N60: flexible 2 layers with low-e | R60: 2797200 | S60: TRUE | T60: 0
L61: 77:cellular Shade | M61: multi-cell | N61: Opaque | O61: Side Track | P61: Manual | Q61: 1-D adjustable | R61: 2714880 | S61: TRUE | T61: 0
L62: 78:cellular Shade | M62: multi-cell | N62: Semi-Opaque | O62: Side Track | P62: Manual | Q62: 1-D adjustable | R62: 2714880 | S62: TRUE | T62: 0
L63: 87:cellular Shade | M63: multi-cell | N63: Opaque | O63: Side Track | P63: Automated | Q63: 1-D adjustable | R63: 2714880 | S63: TRUE | T63: 0
L64: 88:cellular Shade | M64: multi-cell | N64: Semi-Opaque | O64: Side Track | P64: Automated | Q64: 1-D adjustable | R64: 2714880 | S64: TRUE | T64: 0
L65: 97:cellular Shade | M65: multi-cell | N65: Opaque | O65: Side Track | P65: Manual | Q65: 2-D adjustable | R65: 2714880 | S65: TRUE | T65: 0
L66: 98:cellular Shade | M66: multi-cell | N66: Semi-Opaque | O66: Side Track | P66: Manual | Q66: 2-D adjustable | R66: 2714880 | S66: TRUE | T66: 0
L67: 107:cellular Shade | M67: multi-cell | N67: Opaque | O67: Side Track | P67: Automated | Q67: 2-D adjustable | R67: 2714880 | S67: TRUE | T67: 0
L68: 108:cellular Shade | M68: multi-cell | N68: Semi-Opaque | O68: Side Track | P68: Automated | Q68: 2-D adjustable | R68: 2714880 | S68: TRUE | T68: 0
L69: 109:Window quilts | M69: opaque | N69: Non-roller | R69: 2714880 | S69: TRUE | T69: 0
L70: 110:Window quilts | M70: opaque | N70: roller | O70: side track | P70: manual | R70: 2714880 | S70: TRUE | T70: 0
L71: 112:Window quilts | M71: opaque | N71: roller | O71: side track | P71: Automated | R71: 2714880 | S71: TRUE | T71: 0
L72: 1:Exterior storm | M72: tracked | N72: low-e | O72: HSG | R72: 2704800 | S72: TRUE | T72: 0
L73: 114:Window quilts | M73: Translucent | N73: Non-roller | R73: 2591400 | S73: TRUE | T73: 0
L74: 12:Interior panel | M74: fixed | N74: glass | O74: low-e | P74: lsg | R74: 2589720 | S74: TRUE | T74: 0
L75: 20:Interior panel | M75: fixed | N75: flexible 2 layers | R75: 2589720 | S75: TRUE | T75: 0
L76: Condensed ranked results: | N76: Roller shutter | O76: Interior panel | P76: exterior storm | Q76: cellular shade | R76: window quilt
A80: HMC1 | B80: South Central | C80: Attribute settings: Insulation=8; Airtightness=6; winter comfort=6 | L80: HMC1 | M80: South Central | N80: Attribute settings: Insulation=8; Airtightness=6; winter comfort=6; SHC=4; Summer comfort=3
C81: Same as above | L81: 17:Interior panel | M81: fixed | N81: glass - triple glazing | O81: low-e | P81: lsg | R81: 3356640 | S81: TRUE | T81: 0
L82: 145:Roller shutters | M82: insulating | N82: automated | R82: 3316320 | S82: TRUE | T82: 0
L83: 16:Interior panel | M83: fixed | N83: glass - triple glazing | O83: low-e | P83: hsg | R83: 3193680 | S83: TRUE | T83: 0
L84: 15:Interior panel | M84: fixed | N84: glass - double glazing | O84: low-e | P84: lsg | R84: 3168480 | S84: TRUE | T84: 0
L85: 87:cellular Shade | M85: multi-cell | N85: Opaque | O85: Side Track | P85: Automated | Q85: 1-D adjustable | R85: 3072720 | S85: TRUE | T85: 0
L86: 107:cellular Shade | M86: multi-cell | N86: Opaque | O86: Side Track | P86: Automated | Q86: 2-D adjustable | R86: 3072720 | S86: TRUE | T86: 0
L87: 88:cellular Shade | M87: multi-cell | N87: Semi-Opaque | O87: Side Track | P87: Automated | Q87: 1-D adjustable | R87: 2992080 | S87: TRUE | T87: 0
L88: 108:cellular Shade | M88: multi-cell | N88: Semi-Opaque | O88: Side Track | P88: Automated | Q88: 2-D adjustable | R88: 2992080 | S88: TRUE | T88: 0
L89: 112:Window quilts | M89: opaque | N89: roller | O89: side track | P89: Automated | R89: 2990400 | S89: TRUE | T89: 0
L90: 143:Roller shutters | M90: insulating | N90: manual | R90: 2966880 | S90: TRUE | T90: 0
L91: 77:cellular Shade | M91: multi-cell | N91: Opaque | O91: Side Track | P91: Manual | Q91: 1-D adjustable | R91: 2909760 | S91: TRUE | T91: 0
L92: 97:cellular Shade | M92: multi-cell | N92: Opaque | O92: Side Track | P92: Manual | Q92: 2-D adjustable | R92: 2909760 | S92: TRUE | T92: 0
L93: 14:Interior panel | M93: fixed | N93: glass - double glazing | O93: low-e | P93: hsg | R93: 2899680 | S93: TRUE | T93: 0
L94: 21:Interior panel | M94: fixed | N94: flexible 2 layers with low-e | R94: 2899680 | S94: TRUE | T94: 0
L95: 78:cellular Shade | M95: multi-cell | N95: Semi-Opaque | O95: Side Track | P95: Manual | Q95: 1-D adjustable | R95: 2829120 | S95: TRUE | T95: 0
L96: 98:cellular Shade | M96: multi-cell | N96: Semi-Opaque | O96: Side Track | P96: Manual | Q96: 2-D adjustable | R96: 2829120 | S96: TRUE | T96: 0
L97: 109:Window quilts | M97: opaque | N97: Non-roller | R97: 2827440 | S97: TRUE | T97: 0
L98: 110:Window quilts | M98: opaque | N98: roller | O98: side track | P98: manual | R98: 2827440 | S98: TRUE | T98: 0
L99: 5:Exterior storm | M99: Fixed | N99: low-e | O99: LSG | R99: 2815680 | S99: TRUE | T99: 0
L100: 114:Window quilts | M100: Translucent | N100: Non-roller | R100: 2802240 | S100: TRUE | T100: 0
L101: 84:cellular Shade | M101: Single | N101: Opaque | O101: Side Track | P101: Automated | Q101: 1-D adjustable | R101: 2755200 | S101: TRUE | T101: 0
L102: 104:cellular Shade | M102: Single | N102: Opaque | O102: Side Track | P102: Automated | Q102: 2-D adjustable | R102: 2755200 | S102: TRUE | T102: 0
L103: 12:Interior panel | M103: fixed | N103: glass | O103: low-e | P103: lsg | R103: 2735040 | S103: TRUE | T103: 0
L104: 2:Exterior storm | M104: tracked | N104: low-e | O104: LSG | R104: 2674560 | S104: TRUE | T104: 0
L105: 113:Window quilts | M105: opaque | N105: roller | O105: no - side track | P105: Automated | R105: 2662800 | S105: TRUE | T105: 0
L106: Condensed ranked results: | N106: Interior panel | O106: Roller shutter | P106: cellular shade | Q106: window quilt | R106: exterior storm
A110: HMC1 | B110: South | C110: Attribute settings: Insulation=8; Airtightness=6; winter comfort=6 | L110: HMC1 | M110: South | N110: Attribute settings: Insulation=8; Airtightness=6; winter comfort=6; SHC=7; Summer comfort=7
C111: Same as above | L111: 145:Roller shutters | M111: insulating | N111: automated | R111: 3951360 | S111: TRUE | T111: 0
L112: 17:Interior panel | M112: fixed | N112: glass - triple glazing | O112: low-e | P112: lsg | R112: 3810240 | S112: TRUE | T112: 0
L113: 15:Interior panel | M113: fixed | N113: glass - double glazing | O113: low-e | P113: lsg | R113: 3557400 | S113: TRUE | T113: 0
L114: 16:Interior panel | M114: fixed | N114: glass - triple glazing | O114: low-e | P114: hsg | R114: 3504480 | S114: TRUE | T114: 0
L115: 87:cellular Shade | M115: multi-cell | N115: Opaque | O115: Side Track | P115: Automated | Q115: 1-D adjustable | R115: 3504480 | S115: TRUE | T115: 0
L116: 107:cellular Shade | M116: multi-cell | N116: Opaque | O116: Side Track | P116: Automated | Q116: 2-D adjustable | R116: 3504480 | S116: TRUE | T116: 0
L117: 143:Roller shutters | M117: insulating | N117: manual | R117: 3416280 | S117: TRUE | T117: 0
L118: 88:cellular Shade | M118: multi-cell | N118: Semi-Opaque | O118: Side Track | P118: Automated | Q118: 1-D adjustable | R118: 3363360 | S118: TRUE | T118: 0
L119: 108:cellular Shade | M119: multi-cell | N119: Semi-Opaque | O119: Side Track | P119: Automated | Q119: 2-D adjustable | R119: 3363360 | S119: TRUE | T119: 0
L120: 112:Window quilts | M120: opaque | N120: roller | O120: side track | P120: Automated | R120: 3339840 | S120: TRUE | T120: 0
L121: 5:Exterior storm | M121: Fixed | N121: low-e | O121: LSG | R121: 3263400 | S121: TRUE | T121: 0
L122: 84:cellular Shade | M122: Single | N122: Opaque | O122: Side Track | P122: Automated | Q122: 1-D adjustable | R122: 3239880 | S122: TRUE | T122: 0
L123: 104:cellular Shade | M123: Single | N123: Opaque | O123: Side Track | P123: Automated | Q123: 2-D adjustable | R123: 3239880 | S123: TRUE | T123: 0
L124: 146:Roller shutters | M124: non-insulating | N124: automated | R124: 3222240 | S124: TRUE | T124: 0
L125: 77:cellular Shade | M125: multi-cell | N125: Opaque | O125: Side Track | P125: Manual | Q125: 1-D adjustable | R125: 3198720 | S125: TRUE | T125: 0
L126: 97:cellular Shade | M126: multi-cell | N126: Opaque | O126: Side Track | P126: Manual | Q126: 2-D adjustable | R126: 3198720 | S126: TRUE | T126: 0
L127: 14:Interior panel | M127: fixed | N127: glass - double glazing | O127: low-e | P127: hsg | R127: 3163440 | S127: TRUE | T127: 0
L128: 21:Interior panel | M128: fixed | N128: flexible 2 layers with low-e | R128: 3163440 | S128: TRUE | T128: 0
L129: 2:Exterior storm | M129: tracked | N129: low-e | O129: LSG | R129: 3122280 | S129: TRUE | T129: 0
L130: 12:Interior panel | M130: fixed | N130: glass | O130: low-e | P130: lsg | R130: 3122280 | S130: TRUE | T130: 0
L131: 114:Window quilts | M131: Translucent | N131: Non-roller | R131: 3087000 | S131: TRUE | T131: 0
L132: 78:cellular Shade | M132: multi-cell | N132: Semi-Opaque | O132: Side Track | P132: Manual | Q132: 1-D adjustable | R132: 3057600 | S132: TRUE | T132: 0
L133: 98:cellular Shade | M133: multi-cell | N133: Semi-Opaque | O133: Side Track | P133: Manual | Q133: 2-D adjustable | R133: 3057600 | S133: TRUE | T133: 0
L134: 82:cellular Shade | M134: multi-cell | N134: Opaque | O134: No side track | P134: Automated | Q134: 1-D adjustable | R134: 3045840 | S134: TRUE | T134: 0
L135: 102:cellular Shade | M135: multi-cell | N135: Opaque | O135: No side track | P135: Automated | Q135: 2-D adjustable | R135: 3045840 | S135: TRUE | T135: 0
L136: Condensed ranked results: | N136: Roller shutter | O136: Interior panel | P136: cellular shade | Q136: window quilt | R136: exterior storm

Sheet HMC2
A1: Need more privacy
A5: Record of Help Me Choose Top 5 by Climate: Attribute Settings and Ranking Results
A7: Default Conditions: Base case window=single clear; existing window covering=nil; climate weighting factors:
A10: HMC1 | B10: Reduce my heating bill
A11: HMC2 | B11: Need more privacy
A12: HMC3 | B12: Protect my windows
A13: HMC4 | B13: Reduce my cooling bill
A14: HMC5 | B14: Give me adjustable daylighting
L19: Nadav: can't replicate these results | U19: Nadav's repeat of the run at left (getting different results) | AD19: Whole column: | AE19: Attribute settings:Privacy=5; Insulation=4
A20: HMC2 | B20: North | C20: Attribute settings:Privacy=5 | L20: HMC2 | M20: North | N20: Attribute settings:Privacy=5; Insulation=4; Airtightness=3; winter comfort=3 | U20: HMC2 | V20: North | W20: Attribute settings:Privacy=5; Insulation=4; Airtightness=3; winter comfort=3 | AD20: HMC2 | AE20: North | AF20: Attribute settings:Privacy=5; Insulation=4
A21: 1 | C21: 47:roller shades | D21: Opaque | E21: exterior | F21: Light Color | G21: tight weave | H21: Automated | I21: 705600 | J21: TRUE | K21: 0 | L21: 145:Roller shutters | M21: insulating | N21: automated | R21: 3151680 | S21: TRUE | T21: 0 | U21: 87:cellular Shade | V21: multi-cell | W21: Opaque | X21: Side Track | Y21: Automated | Z21: 1-D adjustable | AA21: 2022720 | AB21: TRUE | AC21: 0 | AD21: 87:cellular Shade | AE21: multi-cell | AF21: Opaque | AG21: Side Track | AH21: Automated | AI21: 1-D adjustable | AJ21: 1199520 | AK21: TRUE | AL21: 0
A22: 2 | C22: 48:roller shades | D22: Opaque | E22: exterior | F22: Dark Color | G22: tight weave | H22: Automated | I22: 705600 | J22: TRUE | K22: 0 | L22: 143:Roller shutters | M22: insulating | N22: manual | R22: 2948820 | S22: TRUE | T22: 0 | U22: 97:cellular Shade | V22: multi-cell | W22: Opaque | X22: Side Track | Y22: Manual | Z22: 2-D adjustable | AA22: 2022720 | AB22: TRUE | AC22: 0 | AD22: 97:cellular Shade | AE22: multi-cell | AF22: Opaque | AG22: Side Track | AH22: Manual | AI22: 2-D adjustable | AJ22: 1199520 | AK22: TRUE | AL22: 0
A23: 3 | C23: 51:roller shades | D23: Opaque | E23: interior | F23: Light Color | G23: tight weave | H23: Automated | I23: 705600 | J23: TRUE | K23: 0 | L23: 97:cellular Shade | M23: multi-cell | N23: Opaque | O23: Side Track | P23: Manual | Q23: 2-D adjustable | R23: 2940000 | S23: TRUE | T23: 0 | U23: 107:cellular Shade | V23: multi-cell | W23: Opaque | X23: Side Track | Y23: Automated | Z23: 2-D adjustable | AA23: 2022720 | AB23: TRUE | AC23: 0 | AD23: 107:cellular Shade | AE23: multi-cell | AF23: Opaque | AG23: Side Track | AH23: Automated | AI23: 2-D adjustable | AJ23: 1199520 | AK23: TRUE | AL23: 0
A24: 4 | C24: 52:roller shades | D24: Opaque | E24: interior | F24: Dark Color | G24: tight weave | H24: Automated | I24: 705600 | J24: TRUE | K24: 0 | L24: 107:cellular Shade | M24: multi-cell | N24: Opaque | O24: Side Track | P24: Automated | Q24: 2-D adjustable | R24: 2940000 | S24: TRUE | T24: 0 | U24: 112:Window quilts | V24: opaque | W24: roller | X24: side track | Y24: Automated | AA24: 2022720 | AB24: TRUE | AC24: 0 | AD24: 112:Window quilts | AE24: opaque | AF24: roller | AG24: side track | AH24: Automated | AJ24: 1199520 | AK24: TRUE | AL24: 0
A25: 5 | C25: 79:cellular Shade | D25: Single | E25: Opaque | F25: No side track | G25: Automated | H25: 1-D adjustable | I25: 705600 | J25: TRUE | K25: 0 | L25: 16:Interior panel | M25: fixed | N25: glass - triple glazing | O25: low-e | P25: hsg | R25: 2857680 | S25: TRUE | T25: 0 | U25: 145:Roller shutters | V25: insulating | W25: automated | AA25: 2022720 | AB25: TRUE | AC25: 0 | AD25: 145:Roller shutters | AE25: insulating | AF25: automated | AJ25: 1199520 | AK25: TRUE | AL25: 0
A26: 6 | C26: 82:cellular Shade | D26: multi-cell | E26: Opaque | F26: No side track | G26: Automated | H26: 1-D adjustable | I26: 705600 | J26: TRUE | K26: 0 | L26: 17:Interior panel | M26: fixed | N26: glass - triple glazing | O26: low-e | P26: lsg | R26: 2857680 | S26: TRUE | T26: 0 | U26: 77:cellular Shade | V26: multi-cell | W26: Opaque | X26: Side Track | Y26: Manual | Z26: 1-D adjustable | AA26: 1881600 | AB26: TRUE | AC26: 0 | AD26: 113:Window quilts | AE26: opaque | AF26: roller | AG26: no - side track | AH26: Automated | AJ26: 1137780 | AK26: TRUE | AL26: 0
A27: 7 | C27: 84:cellular Shade | D27: Single | E27: Opaque | F27: Side Track | G27: Automated | H27: 1-D adjustable | I27: 705600 | J27: TRUE | K27: 0 | L27: 87:cellular Shade | M27: multi-cell | N27: Opaque | O27: Side Track | P27: Automated | Q27: 1-D adjustable | R27: 2798880 | S27: TRUE | T27: 0 | U27: 88:cellular Shade | V27: multi-cell | W27: Semi-Opaque | X27: Side Track | Y27: Automated | Z27: 1-D adjustable | AA27: 1881600 | AB27: TRUE | AC27: 0 | AD27: 82:cellular Shade | AE27: multi-cell | AF27: Opaque | AG27: No side track | AH27: Automated | AI27: 1-D adjustable | AJ27: 1076040 | AK27: TRUE | AL27: 0
A28: 8 | C28: 87:cellular Shade | D28: multi-cell | E28: Opaque | F28: Side Track | G28: Automated | H28: 1-D adjustable | I28: 705600 | J28: TRUE | K28: 0 | L28: 98:cellular Shade | M28: multi-cell | N28: Semi-Opaque | O28: Side Track | P28: Manual | Q28: 2-D adjustable | R28: 2798880 | S28: TRUE | T28: 0 | U28: 98:cellular Shade | V28: multi-cell | W28: Semi-Opaque | X28: Side Track | Y28: Manual | Z28: 2-D adjustable | AA28: 1881600 | AB28: TRUE | AC28: 0 | AD28: 92:cellular Shade | AE28: multi-cell | AF28: Opaque | AG28: No side track | AH28: Manual | AI28: 2-D adjustable | AJ28: 1076040 | AK28: TRUE | AL28: 0
A29: 9 | C29: 89:cellular Shade | D29: Single | E29: Opaque | F29: No side track | G29: Manual | H29: 2-D adjustable | I29: 705600 | J29: TRUE | K29: 0 | L29: 108:cellular Shade | M29: multi-cell | N29: Semi-Opaque | O29: Side Track | P29: Automated | Q29: 2-D adjustable | R29: 2798880 | S29: TRUE | T29: 0 | U29: 108:cellular Shade | V29: multi-cell | W29: Semi-Opaque | X29: Side Track | Y29: Automated | Z29: 2-D adjustable | AA29: 1881600 | AB29: TRUE | AC29: 0 | AD29: 102:cellular Shade | AE29: multi-cell | AF29: Opaque | AG29: No side track | AH29: Automated | AI29: 2-D adjustable | AJ29: 1076040 | AK29: TRUE | AL29: 0
A30: 10 | C30: 92:cellular Shade | D30: multi-cell | E30: Opaque | F30: No side track | G30: Manual | H30: 2-D adjustable | I30: 705600 | J30: TRUE | K30: 0 | L30: 112:Window quilts | M30: opaque | N30: roller | O30: side track | P30: Automated | R30: 2798880 | S30: TRUE | T30: 0 | U30: 109:Window quilts | V30: opaque | W30: Non-roller | AA30: 1881600 | AB30: TRUE | AC30: 0 | AD30: 77:cellular Shade | AE30: multi-cell | AF30: Opaque | AG30: Side Track | AH30: Manual | AI30: 1-D adjustable | AJ30: 1058400 | AK30: TRUE | AL30: 0
A31: 11 | C31: 94:cellular Shade | D31: Single | E31: Opaque | F31: Side Track | G31: Manual | H31: 2-D adjustable | I31: 705600 | J31: TRUE | K31: 0 | L31: 15:Interior panel | M31: fixed | N31: glass - double glazing | O31: low-e | P31: lsg | R31: 2795940 | S31: TRUE | T31: 0 | U31: 110:Window quilts | V31: opaque | W31: roller | X31: side track | Y31: manual | AA31: 1881600 | AB31: TRUE | AC31: 0 | AD31: 88:cellular Shade | AE31: multi-cell | AF31: Semi-Opaque | AG31: Side Track | AH31: Automated | AI31: 1-D adjustable | AJ31: 1058400 | AK31: TRUE | AL31: 0
A32: 12 | C32: 97:cellular Shade | D32: multi-cell | E32: Opaque | F32: Side Track | G32: Manual | H32: 2-D adjustable | I32: 705600 | J32: TRUE | K32: 0 | L32: 94:cellular Shade | M32: Single | N32: Opaque | O32: Side Track | P32: Manual | Q32: 2-D adjustable | R32: 2754780 | S32: TRUE | T32: 0 | U32: 113:Window quilts | V32: opaque | W32: roller | X32: no - side track | Y32: Automated | AA32: 1878660 | AB32: TRUE | AC32: 0 | AD32: 98:cellular Shade | AE32: multi-cell | AF32: Semi-Opaque | AG32: Side Track | AH32: Manual | AI32: 2-D adjustable | AJ32: 1058400 | AK32: TRUE | AL32: 0
A33: 13 | C33: 99:cellular Shade | D33: Single | E33: Opaque | F33: No side track | G33: Automated | H33: 2-D adjustable | I33: 705600 | J33: TRUE | K33: 0 | L33: 104:cellular Shade | M33: Single | N33: Opaque | O33: Side Track | P33: Automated | Q33: 2-D adjustable | R33: 2754780 | S33: TRUE | T33: 0 | U33: 84:cellular Shade | V33: Single | W33: Opaque | X33: Side Track | Y33: Automated | Z33: 1-D adjustable | AA33: 1837500 | AB33: TRUE | AC33: 0 | AD33: 108:cellular Shade | AE33: multi-cell | AF33: Semi-Opaque | AG33: Side Track | AH33: Automated | AI33: 2-D adjustable | AJ33: 1058400 | AK33: TRUE | AL33: 0
A34: 14 | C34: 102:cellular Shade | D34: multi-cell | E34: Opaque | F34: No side track | G34: Automated | H34: 2-D adjustable | I34: 705600 | J34: TRUE | K34: 0 | L34: 14:Interior panel | M34: fixed | N34: glass - double glazing | O34: low-e | P34: hsg | R34: 2734200 | S34: TRUE | T34: 0 | U34: 94:cellular Shade | V34: Single | W34: Opaque | X34: Side Track | Y34: Manual | Z34: 2-D adjustable | AA34: 1837500 | AB34: TRUE | AC34: 0 | AD34: 109:Window quilts | AE34: opaque | AF34: Non-roller | AJ34: 1058400 | AK34: TRUE | AL34: 0
A35: 15 | C35: 104:cellular Shade | D35: Single | E35: Opaque | F35: Side Track | G35: Automated | H35: 2-D adjustable | I35: 705600 | J35: TRUE | K35: 0 | L35: 92:cellular Shade | M35: multi-cell | N35: Opaque | O35: No side track | P35: Manual | Q35: 2-D adjustable | R35: 2734200 | S35: TRUE | T35: 0 | U35: 104:cellular Shade | V35: Single | W35: Opaque | X35: Side Track | Y35: Automated | Z35: 2-D adjustable | AA35: 1837500 | AB35: TRUE | AC35: 0 | AD35: 110:Window quilts | AE35: opaque | AF35: roller | AG35: side track | AH35: manual | AJ35: 1058400 | AK35: TRUE | AL35: 0
A36: 16 | C36: 107:cellular Shade | D36: multi-cell | E36: Opaque | F36: Side Track | G36: Automated | H36: 2-D adjustable | I36: 705600 | J36: TRUE | K36: 0 | L36: 102:cellular Shade | M36: multi-cell | N36: Opaque | O36: No side track | P36: Automated | Q36: 2-D adjustable | R36: 2734200 | S36: TRUE | T36: 0 | U36: 143:Roller shutters | V36: insulating | W36: manual | AA36: 1819860 | AB36: TRUE | AC36: 0 | AD36: 84:cellular Shade | AE36: Single | AF36: Opaque | AG36: Side Track | AH36: Automated | AI36: 1-D adjustable | AJ36: 1014300 | AK36: TRUE | AL36: 0
A37: 17 | C37: 112:Window quilts | D37: opaque | E37: roller | F37: side track | G37: Automated | I37: 705600 | J37: TRUE | K37: 0 | L37: 77:cellular Shade | M37: multi-cell | N37: Opaque | O37: Side Track | P37: Manual | Q37: 1-D adjustable | R37: 2657760 | S37: TRUE | T37: 0 | U37: 82:cellular Shade | V37: multi-cell | W37: Opaque | X37: No side track | Y37: Automated | Z37: 1-D adjustable | AA37: 1816920 | AB37: TRUE | AC37: 0 | AD37: 94:cellular Shade | AE37: Single | AF37: Opaque | AG37: Side Track | AH37: Manual | AI37: 2-D adjustable | AJ37: 1014300 | AK37: TRUE | AL37: 0
A38: 18 | C38: 113:Window quilts | D38: opaque | E38: roller | F38: no - side track | G38: Automated | I38: 705600 | J38: TRUE | K38: 0 | L38: 88:cellular Shade | M38: multi-cell | N38: Semi-Opaque | O38: Side Track | P38: Automated | Q38: 1-D adjustable | R38: 2657760 | S38: TRUE | T38: 0 | U38: 92:cellular Shade | V38: multi-cell | W38: Opaque | X38: No side track | Y38: Manual | Z38: 2-D adjustable | AA38: 1816920 | AB38: TRUE | AC38: 0 | AD38: 104:cellular Shade | AE38: Single | AF38: Opaque | AG38: Side Track | AH38: Automated | AI38: 2-D adjustable | AJ38: 1014300 | AK38: TRUE | AL38: 0
A39: 19 | C39: 120:Louvered blinds | D39: exterior | E39: horizontal | F39: Automated | I39: 705600 | J39: TRUE | K39: 0 | L39: 109:Window quilts | M39: opaque | N39: Non-roller | R39: 2657760 | S39: TRUE | T39: 0 | U39: 102:cellular Shade | V39: multi-cell | W39: Opaque | X39: No side track | Y39: Automated | Z39: 2-D adjustable | AA39: 1816920 | AB39: TRUE | AC39: 0 | AD39: 111:Window quilts | AE39: opaque | AF39: roller | AG39: no - side track | AH39: manual | AJ39: 996660 | AK39: TRUE | AL39: 0
A40: 20 | C40: 122:Louvered blinds | D40: exterior | E40: Vertical | F40: Automated | I40: 705600 | J40: TRUE | K40: 0 | L40: 110:Window quilts | M40: opaque | N40: roller | O40: side track | P40: manual | R40: 2657760 | S40: TRUE | T40: 0 | U40: 78:cellular Shade | V40: multi-cell | W40: Semi-Opaque | X40: Side Track | Y40: Manual | Z40: 1-D adjustable | AA40: 1740480 | AB40: TRUE | AC40: 0 | AD40: 117:Window quilts | AE40: Translucent | AF40: roller | AG40: side track | AH40: Automated | AJ40: 996660 | AK40: TRUE | AL40: 0
A41: 21 | C41: 125:Louvered blinds | D41: interior | E41: horizontal | F41: reflective | G41: Automated | I41: 705600 | J41: TRUE | K41: 0 | L41: 146:Roller shutters | M41: non-insulating | N41: automated | R41: 2657760 | S41: TRUE | T41: 0 | U41: 111:Window quilts | V41: opaque | W41: roller | X41: no - side track | Y41: manual | AA41: 1737540 | AB41: TRUE | AC41: 0 | AD41: 143:Roller shutters | AE41: insulating | AF41: manual | AJ41: 996660 | AK41: TRUE | AL41: 0
A42: 22 | C42: 126:Louvered blinds | D42: interior | E42: horizontal | F42: absorbtive | G42: Automated | I42: 705600 | J42: TRUE | K42: 0 | L42: 113:Window quilts | M42: opaque | N42: roller | O42: no - side track | P42: Automated | R42: 2654820 | S42: TRUE | T42: 0 | U42: 117:Window quilts | V42: Translucent | W42: roller | X42: side track | Y42: Automated | AA42: 1737540 | AB42: TRUE | AC42: 0 | AD42: 163:Roman | AE42: insulating | AF42: automated | AJ42: 996660 | AK42: TRUE | AL42: 0
A43: 23 | C43: 129:Louvered blinds | D43: interior | E43: Vertical | F43: reflective | G43: Automated | I43: 705600 | J43: TRUE | K43: 0 | L43: 84:cellular Shade | M43: Single | N43: Opaque | O43: Side Track | P43: Automated | Q43: 1-D adjustable | R43: 2613660 | S43: TRUE | T43: 0 | U43: 74:cellular Shade | V43: Single | W43: Opaque | X43: Side Track | Y43: Manual | Z43: 1-D adjustable | AA43: 1696380 | AB43: TRUE | AC43: 0 | AD43: 79:cellular Shade | AE43: Single | AF43: Opaque | AG43: No side track | AH43: Automated | AI43: 1-D adjustable | AJ43: 952560 | AK43: TRUE | AL43: 0
A44: 24 | C44: 130:Louvered blinds | D44: interior | E44: Vertical | F44: absorbtive | G44: Automated | I44: 705600 | J44: TRUE | K44: 0 | L44: 82:cellular Shade | M44: multi-cell | N44: Opaque | O44: No side track | P44: Automated | Q44: 1-D adjustable | R44: 2593080 | S44: TRUE | T44: 0 | U44: 114:Window quilts | V44: Translucent | W44: Non-roller | AA44: 1678740 | AB44: TRUE | AC44: 0 | AD44: 89:cellular Shade | AE44: Single | AF44: Opaque | AG44: No side track | AH44: Manual | AI44: 2-D adjustable | AJ44: 952560 | AK44: TRUE | AL44: 0
A45: 25 | C45: 145:Roller shutters | D45: insulating | E45: automated | I45: 705600 | J45: TRUE | K45: 0 | L45: 93:cellular Shade | M45: multi-cell | N45: Semi-Opaque | O45: No side track | P45: Manual | Q45: 2-D adjustable | R45: 2593080 | S45: TRUE | T45: 0 | U45: 72:cellular Shade | V45: multi-cell | W45: Opaque | X45: No side track | Y45: Manual | Z45: 1-D adjustable | AA45: 1675800 | AB45: TRUE | AC45: 0 | AD45: 99:cellular Shade | AE45: Single | AF45: Opaque | AG45: No side track | AH45: Automated | AI45: 2-D adjustable | AJ45: 952560 | AK45: TRUE | AL45: 0
C46: Condensed ranked results: | E46: roller shade | F46: cell shade | G46: window quilt | H46: louvered blind | I46: roller shutter | J46: drape/curtains | L46: Condensed ranked results: | N46: roller shutter | O46: cell shade | P46: interior panel | Q46: window quilt | U46: Condensed ranked results: | W46: cellular shade | X46: window quilts | Y46: roller shutters | AD46: Condensed ranked results: | AF46: cellular shade | AG46: window quilts | AH46: roller shutters
A50: HMC2 | B50: North Central | C50: Attribute settings:Privacy=5 | L50: HMC2 | M50: North Central | N50: Attribute settings:Privacy=5; Insulation=3; Airtightness=2; winter comfort=2 | AD50: HMC2 | AE50: North Central | AF50: Attribute settings:Privacy=5; Insulation=4
C51: Same as above | L51: 145:Roller shutters | M51: insulating | N51: automated | R51: 2753800 | S51: TRUE | T51: 0 | AD51: 87:cellular Shade | AE51: multi-cell | AF51: Opaque | AG51: Side Track | AH51: Automated | AI51: 1-D adjustable | AJ51: 1199520 | AK51: TRUE | AL51: 0
L52: 143:Roller shutters | M52: insulating | N52: manual | R52: 2566375 | S52: TRUE | T52: 0 | AD52: 97:cellular Shade | AE52: multi-cell | AF52: Opaque | AG52: Side Track | AH52: Manual | AI52: 2-D adjustable | AJ52: 1199520 | AK52: TRUE | AL52: 0
L53: 97:cellular Shade | M53: multi-cell | N53: Opaque | O53: Side Track | P53: Manual | Q53: 2-D adjustable | R53: 2542120 | S53: TRUE | T53: 0 | AD53: 107:cellular Shade | AE53: multi-cell | AF53: Opaque | AG53: Side Track | AH53: Automated | AI53: 2-D adjustable | AJ53: 1199520 | AK53: TRUE | AL53: 0
L54: 107:cellular Shade | M54: multi-cell | N54: Opaque | O54: Side Track | P54: Automated | Q54: 2-D adjustable | R54: 2542120 | S54: TRUE | T54: 0 | AD54: 112:Window quilts | AE54: opaque | AF54: roller | AG54: side track | AH54: Automated | AJ54: 1199520 | AK54: TRUE | AL54: 0
L55: 16:Interior panel | M55: fixed | N55: glass - triple glazing | O55: low-e | P55: hsg | R55: 2404920 | S55: TRUE | T55: 0 | AD55: 145:Roller shutters | AE55: insulating | AF55: automated | AJ55: 1199520 | AK55: TRUE | AL55: 0
L56: 17:Interior panel | M56: fixed | N56: glass - triple glazing | O56: low-e | P56: lsg | R56: 2404920 | S56: TRUE | T56: 0 | AD56: 113:Window quilts | AE56: opaque | AF56: roller | AG56: no - side track | AH56: Automated | AJ56: 1137780 | AK56: TRUE | AL56: 0
L57: 146:Roller shutters | M57: non-insulating | N57: automated | R57: 2403940 | S57: TRUE | T57: 0 | AD57: 82:cellular Shade | AE57: multi-cell | AF57: Opaque | AG57: No side track | AH57: Automated | AI57: 1-D adjustable | AJ57: 1076040 | AK57: TRUE | AL57: 0
L58: 94:cellular Shade | M58: Single | N58: Opaque | O58: Side Track | P58: Manual | Q58: 2-D adjustable | R58: 2403205 | S58: TRUE | T58: 0 | AD58: 92:cellular Shade | AE58: multi-cell | AF58: Opaque | AG58: No side track | AH58: Manual | AI58: 2-D adjustable | AJ58: 1076040 | AK58: TRUE | AL58: 0
L59: 104:cellular Shade | M59: Single | N59: Opaque | O59: Side Track | P59: Automated | Q59: 2-D adjustable | R59: 2403205 | S59: TRUE | T59: 0 | AD59: 102:cellular Shade | AE59: multi-cell | AF59: Opaque | AG59: No side track | AH59: Automated | AI59: 2-D adjustable | AJ59: 1076040 | AK59: TRUE | AL59: 0
L60: 87:cellular Shade | M60: multi-cell | N60: Opaque | O60: Side Track | P60: Automated | Q60: 1-D adjustable | R60: 2401000 | S60: TRUE | T60: 0 | AD60: 77:cellular Shade | AE60: multi-cell | AF60: Opaque | AG60: Side Track | AH60: Manual | AI60: 1-D adjustable | AJ60: 1058400 | AK60: TRUE | AL60: 0
L61: 98:cellular Shade | M61: multi-cell | N61: Semi-Opaque | O61: Side Track | P61: Manual | Q61: 2-D adjustable | R61: 2401000 | S61: TRUE | T61: 0 | AD61: 88:cellular Shade | AE61: multi-cell | AF61: Semi-Opaque | AG61: Side Track | AH61: Automated | AI61: 1-D adjustable | AJ61: 1058400 | AK61: TRUE | AL61: 0
L62: 108:cellular Shade | M62: multi-cell | N62: Semi-Opaque | O62: Side Track | P62: Automated | Q62: 2-D adjustable | R62: 2401000 | S62: TRUE | T62: 0 | AD62: 98:cellular Shade | AE62: multi-cell | AF62: Semi-Opaque | AG62: Side Track | AH62: Manual | AI62: 2-D adjustable | AJ62: 1058400 | AK62: TRUE | AL62: 0
L63: 112:Window quilts | M63: opaque | N63: roller | O63: side track | P63: Automated | R63: 2401000 | S63: TRUE | T63: 0 | AD63: 108:cellular Shade | AE63: multi-cell | AF63: Semi-Opaque | AG63: Side Track | AH63: Automated | AI63: 2-D adjustable | AJ63: 1058400 | AK63: TRUE | AL63: 0
L64: 92:cellular Shade | M64: multi-cell | N64: Opaque | O64: No side track | P64: Manual | Q64: 2-D adjustable | R64: 2394630 | S64: TRUE | T64: 0 | AD64: 109:Window quilts | AE64: opaque | AF64: Non-roller | AJ64: 1058400 | AK64: TRUE | AL64: 0
L65: 102:cellular Shade | M65: multi-cell | N65: Opaque | O65: No side track | P65: Automated | Q65: 2-D adjustable | R65: 2394630 | S65: TRUE | T65: 0 | AD65: 110:Window quilts | AE65: opaque | AF65: roller | AG65: side track | AH65: manual | AJ65: 1058400 | AK65: TRUE | AL65: 0
L66: 15:Interior panel | M66: fixed | N66: glass - double glazing | O66: low-e | P66: lsg | R66: 2358615 | S66: TRUE | T66: 0 | AD66: 84:cellular Shade | AE66: Single | AF66: Opaque | AG66: Side Track | AH66: Automated | AI66: 1-D adjustable | AJ66: 1014300 | AK66: TRUE | AL66: 0
L67: 14:Interior panel | M67: fixed | N67: glass - double glazing | O67: low-e | P67: hsg | R67: 2312310 | S67: TRUE | T67: 0 | AD67: 94:cellular Shade | AE67: Single | AF67: Opaque | AG67: Side Track | AH67: Manual | AI67: 2-D adjustable | AJ67: 1014300 | AK67: TRUE | AL67: 0
L68: 113:Window quilts | M68: opaque | N68: roller | O68: no - side track | P68: Automated | R68: 2299815 | S68: TRUE | T68: 0 | AD68: 104:cellular Shade | AE68: Single | AF68: Opaque | AG68: Side Track | AH68: Automated | AI68: 2-D adjustable | AJ68: 1014300 | AK68: TRUE | AL68: 0
L69: 84:cellular Shade | M69: Single | N69: Opaque | O69: Side Track | P69: Automated | Q69: 1-D adjustable | R69: 2262085 | S69: TRUE | T69: 0 | AD69: 111:Window quilts | AE69: opaque | AF69: roller | AG69: no - side track | AH69: manual | AJ69: 996660 | AK69: TRUE | AL69: 0
L70: 77:cellular Shade | M70: multi-cell | N70: Opaque | O70: Side Track | P70: Manual | Q70: 1-D adjustable | R70: 2259880 | S70: TRUE | T70: 0 | AD70: 117:Window quilts | AE70: Translucent | AF70: roller | AG70: side track | AH70: Automated | AJ70: 996660 | AK70: TRUE | AL70: 0
L71: 88:cellular Shade | M71: multi-cell | N71: Semi-Opaque | O71: Side Track | P71: Automated | Q71: 1-D adjustable | R71: 2259880 | S71: TRUE | T71: 0 | AD71: 143:Roller shutters | AE71: insulating | AF71: manual | AJ71: 996660 | AK71: TRUE | AL71: 0
L72: 109:Window quilts | M72: opaque | N72: Non-roller | R72: 2259880 | S72: TRUE | T72: 0 | AD72: 163:Roman | AE72: insulating | AF72: automated | AJ72: 996660 | AK72: TRUE | AL72: 0
L73: 110:Window quilts | M73: opaque | N73: roller | O73: side track | P73: manual | R73: 2259880 | S73: TRUE | T73: 0 | AD73: 79:cellular Shade | AE73: Single | AF73: Opaque | AG73: No side track | AH73: Automated | AI73: 1-D adjustable | AJ73: 952560 | AK73: TRUE | AL73: 0
L74: 82:cellular Shade | M74: multi-cell | N74: Opaque | O74: No side track | P74: Automated | Q74: 1-D adjustable | R74: 2253510 | S74: TRUE | T74: 0 | AD74: 89:cellular Shade | AE74: Single | AF74: Opaque | AG74: No side track | AH74: Manual | AI74: 2-D adjustable | AJ74: 952560 | AK74: TRUE | AL74: 0
L75: 93:cellular Shade | M75: multi-cell | N75: Semi-Opaque | O75: No side track | P75: Manual | Q75: 2-D adjustable | R75: 2253510 | S75: TRUE | T75: 0 | AD75: 99:cellular Shade | AE75: Single | AF75: Opaque | AG75: No side track | AH75: Automated | AI75: 2-D adjustable | AJ75: 952560 | AK75: TRUE | AL75: 0
L76: Condensed ranked results: | N76: roller shutter | O76: cell shade | P76: interior panel | Q76: window quilt | AD76: Condensed ranked results: | AF76: cellular shade | AG76: window quilts | AH76: roller shutters
A80: HMC2 | B80: South Central | C80: Attribute settings:Privacy=5 | L80: HMC2 | M80: South Central | N80: Attribute settings:Privacy=5; SHC=3; Airtightness=3; Summer comfort=3 | AD80: HMC2 | AE80: South Central | AF80: Attribute settings:Privacy=5; Insulation=4
C81: Same as above | L81: 145:Roller shutters | M81: insulating | N81: automated | R81: 2046240 | S81: TRUE | T81: 0 | AD81: 87:cellular Shade | AE81: multi-cell | AF81: Opaque | AG81: Side Track | AH81: Automated | AI81: 1-D adjustable | AJ81: 1128960 | AK81: TRUE | AL81: 0
L82: 146:Roller shutters | M82: non-insulating | N82: automated | R82: 1975680 | S82: TRUE | T82: 0 | AD82: 97:cellular Shade | AE82: multi-cell | AF82: Opaque | AG82: Side Track | AH82: Manual | AI82: 2-D adjustable | AJ82: 1128960 | AK82: TRUE | AL82: 0
L83: 47:roller shades | M83: Opaque | N83: exterior | O83: Light Color | P83: tight weave | Q83: Automated | R83: 1834560 | S83: TRUE | T83: 0 | AD83: 107:cellular Shade | AE83: multi-cell | AF83: Opaque | AG83: Side Track | AH83: Automated | AI83: 2-D adjustable | AJ83: 1128960 | AK83: TRUE | AL83: 0
L84: 48:roller shades | M84: Opaque | N84: exterior | O84: Dark Color | P84: tight weave | Q84: Automated | R84: 1834560 | S84: TRUE | T84: 0 | AD84: 112:Window quilts | AE84: opaque | AF84: roller | AG84: side track | AH84: Automated | AJ84: 1128960 | AK84: TRUE | AL84: 0
L85: 120:Louvered blinds | M85: exterior | N85: horizontal | O85: Automated | R85: 1834560 | S85: TRUE | T85: 0 | AD85: 145:Roller shutters | AE85: insulating | AF85: automated | AJ85: 1128960 | AK85: TRUE | AL85: 0
L86: 122:Louvered blinds | M86: exterior | N86: Vertical | O86: Automated | R86: 1834560 | S86: TRUE | T86: 0 | AD86: 113:Window quilts | AE86: opaque | AF86: roller | AG86: no - side track | AH86: Automated | AJ86: 1076040 | AK86: TRUE | AL86: 0
L87: 84:cellular Shade | M87: Single | N87: Opaque | O87: Side Track | P87: Automated | Q87: 1-D adjustable | R87: 1802640 | S87: TRUE | T87: 0 | AD87: 82:cellular Shade | AE87: multi-cell | AF87: Opaque | AG87: No side track | AH87: Automated | AI87: 1-D adjustable | AJ87: 1023120 | AK87: TRUE | AL87: 0
L88: 87:cellular Shade | M88: multi-cell | N88: Opaque | O88: Side Track | P88: Automated | Q88: 1-D adjustable | R88: 1802640 | S88: TRUE | T88: 0 | AD88: 92:cellular Shade | AE88: multi-cell | AF88: Opaque | AG88: No side track | AH88: Manual | AI88: 2-D adjustable | AJ88: 1023120 | AK88: TRUE | AL88: 0
L89: 104:cellular Shade | M89: Single | N89: Opaque | O89: Side Track | P89: Automated | Q89: 2-D adjustable | R89: 1802640 | S89: TRUE | T89: 0 | AD89: 102:cellular Shade | AE89: multi-cell | AF89: Opaque | AG89: No side track | AH89: Automated | AI89: 2-D adjustable | AJ89: 1023120 | AK89: TRUE | AL89: 0
L90: 107:cellular Shade | M90: multi-cell | N90: Opaque | O90: Side Track | P90: Automated | Q90: 2-D adjustable | R90: 1802640 | S90: TRUE | T90: 0 | AD90: 77:cellular Shade | AE90: multi-cell | AF90: Opaque | AG90: Side Track | AH90: Manual | AI90: 1-D adjustable | AJ90: 987840 | AK90: TRUE | AL90: 0
L91: 112:Window quilts | M91: opaque | N91: roller | O91: side track | P91: Automated | R91: 1720320 | S91: TRUE | T91: 0 | AD91: 88:cellular Shade | AE91: multi-cell | AF91: Semi-Opaque | AG91: Side Track | AH91: Automated | AI91: 1-D adjustable | AJ91: 987840 | AK91: TRUE | AL91: 0
L92: 140:Awning | M92: retractable | N92: reflective | O92: tight weave | P92: Automated | R92: 1693440 | S92: TRUE | T92: 0 | AD92: 98:cellular Shade | AE92: multi-cell | AF92: Semi-Opaque | AG92: Side Track | AH92: Manual | AI92: 2-D adjustable | AJ92: 987840 | AK92: TRUE | AL92: 0
L93: 142:Awning | M93: retractable | N93: absorbtive | O93: tight weave | P93: Automated | R93: 1693440 | S93: TRUE | T93: 0 | AD93: 108:cellular Shade | AE93: multi-cell | AF93: Semi-Opaque | AG93: Side Track | AH93: Automated | AI93: 2-D adjustable | AJ93: 987840 | AK93: TRUE | AL93: 0
L94: 143:Roller shutters | M94: insulating | N94: manual | R94: 1661520 | S94: TRUE | T94: 0 | AD94: 109:Window quilts | AE94: opaque | AF94: Non-roller | AJ94: 987840 | AK94: TRUE | AL94: 0
L95: 79:cellular Shade | M95: Single | N95: Opaque | O95: No side track | P95: Automated | Q95: 1-D adjustable | R95: 1651440 | S95: TRUE | T95: 0 | AD95: 110:Window quilts | AE95: opaque | AF95: roller | AG95: side track | AH95: manual | AJ95: 987840 | AK95: TRUE | AL95: 0
L96: 82:cellular Shade | M96: multi-cell | N96: Opaque | O96: No side track | P96: Automated | Q96: 1-D adjustable | R96: 1651440 | S96: TRUE | T96: 0 | AD96: 84:cellular Shade | AE96: Single | AF96: Opaque | AG96: Side Track | AH96: Automated | AI96: 1-D adjustable | AJ96: 970200 | AK96: TRUE | AL96: 0
L97: 99:cellular Shade | M97: Single | N97: Opaque | O97: No side track | P97: Automated | Q97: 2-D adjustable | R97: 1651440 | S97: TRUE | T97: 0 | AD97: 94:cellular Shade | AE97: Single | AF97: Opaque | AG97: Side Track | AH97: Manual | AI97: 2-D adjustable | AJ97: 970200 | AK97: TRUE | AL97: 0
L98: 102:cellular Shade | M98: multi-cell | N98: Opaque | O98: No side track | P98: Automated | Q98: 2-D adjustable | R98: 1651440 | S98: TRUE | T98: 0 | AD98: 104:cellular Shade | AE98: Single | AF98: Opaque | AG98: Side Track | AH98: Automated | AI98: 2-D adjustable | AJ98: 970200 | AK98: TRUE | AL98: 0
L99: 94:cellular Shade | M99: Single | N99: Opaque | O99: Side Track | P99: Manual | Q99: 2-D adjustable | R99: 1639680 | S99: TRUE | T99: 0 | AD99: 111:Window quilts | AE99: opaque | AF99: roller | AG99: no - side track | AH99: manual | AJ99: 934920 | AK99: TRUE | AL99: 0
L100: 97:cellular Shade | M100: multi-cell | N100: Opaque | O100: Side Track | P100: Manual | Q100: 2-D adjustable | R100: 1639680 | S100: TRUE | T100: 0 | AD100: 117:Window quilts | AE100: Translucent | AF100: roller | AG100: side track | AH100: Automated | AJ100: 934920 | AK100: TRUE | AL100: 0
L101: 139:Awning | M101: retractable | N101: reflective | O101: open weave | P101: Automated | R101: 1612800 | S101: TRUE | T101: 0 | AD101: 143:Roller shutters | AE101: insulating | AF101: manual | AJ101: 934920 | AK101: TRUE | AL101: 0
L102: 141:Awning | M102: retractable | N102: absorbtive | O102: open weave | P102: Automated | R102: 1612800 | S102: TRUE | T102: 0 | AD102: 163:Roman | AE102: insulating | AF102: automated | AJ102: 934920 | AK102: TRUE | AL102: 0
L103: 51:roller shades | M103: Opaque | N103: interior | O103: Light Color | P103: tight weave | Q103: Automated | R103: 1592640 | S103: TRUE | T103: 0 | AD103: 79:cellular Shade | AE103: Single | AF103: Opaque | AG103: No side track | AH103: Automated | AI103: 1-D adjustable | AJ103: 917280 | AK103: TRUE | AL103: 0
L104: 125:Louvered blinds | M104: interior | N104: horizontal | O104: reflective | P104: Automated | R104: 1590960 | S104: TRUE | T104: 0 | AD104: 89:cellular Shade | AE104: Single | AF104: Opaque | AG104: No side track | AH104: Manual | AI104: 2-D adjustable | AJ104: 917280 | AK104: TRUE | AL104: 0
L105: 129:Louvered blinds | M105: interior | N105: Vertical | O105: reflective | P105: Automated | R105: 1590960 | S105: TRUE | T105: 0 | AD105: 99:cellular Shade | AE105: Single | AF105: Opaque | AG105: No side track | AH105: Automated | AI105: 2-D adjustable | AJ105: 917280 | AK105: TRUE | AL105: 0
L106: Condensed ranked results: | N106: roller shutter | O106: roller shade | P106: louvered blind | Q106: cell shade | R106: awning | AD106: Condensed ranked results: | AF106: cellular shade | AG106: window quilts | AH106: roller shutters
A110: HMC2 | B110: South | C110: Attribute settings:Privacy=5 | L110: HMC2 | M110: South | N110: Attribute settings:Privacy=5; SHC=7; Airtightness=3; Summer comfort=6 | AD110: HMC2 | AE110: South | AF110: Attribute settings:Privacy=5; Insulation=4
C111: Same as above | L111: 145:Roller shutters | M111: insulating | N111: automated | R111: 2963520 | S111: TRUE | T111: 0 | AD111: 87:cellular Shade | AE111: multi-cell | AF111: Opaque | AG111: Side Track | AH111: Automated | AI111: 1-D adjustable | AJ111: 1058400 | AK111: TRUE | AL111: 0
L112: 146:Roller shutters | M112: non-insulating | N112: automated | R112: 2892960 | S112: TRUE | T112: 0 | AD112: 97:cellular Shade | AE112: multi-cell | AF112: Opaque | AG112: Side Track | AH112: Manual | AI112: 2-D adjustable | AJ112: 1058400 | AK112: TRUE | AL112: 0
L113: 47:roller shades | M113: Opaque | N113: exterior | O113: Light Color | P113: tight weave | Q113: Automated | R113: 2751840 | S113: TRUE | T113: 0 | AD113: 107:cellular Shade | AE113: multi-cell | AF113: Opaque | AG113: Side Track | AH113: Automated | AI113: 2-D adjustable | AJ113: 1058400 | AK113: TRUE | AL113: 0
L114: 48:roller shades | M114: Opaque | N114: exterior | O114: Dark Color | P114: tight weave | Q114: Automated | R114: 2751840 | S114: TRUE | T114: 0 | AD114: 112:Window quilts | AE114: opaque | AF114: roller | AG114: side track | AH114: Automated | AJ114: 1058400 | AK114: TRUE | AL114: 0
L115: 120:Louvered blinds | M115: exterior | N115: horizontal | O115: Automated | R115: 2751840 | S115: TRUE | T115: 0 | AD115: 145:Roller shutters | AE115: insulating | AF115: automated | AJ115: 1058400 | AK115: TRUE | AL115: 0
L116: 122:Louvered blinds | M116: exterior | N116: Vertical | O116: Automated | R116: 2751840 | S116: TRUE | T116: 0 | AD116: 113:Window quilts | AE116: opaque | AF116: roller | AG116: no - side track | AH116: Automated | AJ116: 1014300 | AK116: TRUE | AL116: 0
L117: 140:Awning | M117: retractable | N117: reflective | O117: tight weave | P117: Automated | R117: 2610720 | S117: TRUE | T117: 0 | AD117: 82:cellular Shade | AE117: multi-cell | AF117: Opaque | AG117: No side track | AH117: Automated | AI117: 1-D adjustable | AJ117: 970200 | AK117: TRUE | AL117: 0
L118: 142:Awning | M118: retractable | N118: absorbtive | O118: tight weave | P118: Automated | R118: 2610720 | S118: TRUE | T118: 0 | AD118: 92:cellular Shade | AE118: multi-cell | AF118: Opaque | AG118: No side track | AH118: Manual | AI118: 2-D adjustable | AJ118: 970200 | AK118: TRUE | AL118: 0
L119: 84:cellular Shade | M119: Single | N119: Opaque | O119: Side Track | P119: Automated | Q119: 1-D adjustable | R119: 2516640 | S119: TRUE | T119: 0 | AD119: 102:cellular Shade | AE119: multi-cell | AF119: Opaque | AG119: No side track | AH119: Automated | AI119: 2-D adjustable | AJ119: 970200 | AK119: TRUE | AL119: 0
L120: 87:cellular Shade | M120: multi-cell | N120: Opaque | O120: Side Track | P120: Automated | Q120: 1-D adjustable | R120: 2516640 | S120: TRUE | T120: 0 | AD120: 84:cellular Shade | AE120: Single | AF120: Opaque | AG120: Side Track | AH120: Automated | AI120: 1-D adjustable | AJ120: 926100 | AK120: TRUE | AL120: 0
L121: 104:cellular Shade | M121: Single | N121: Opaque | O121: Side Track | P121: Automated | Q121: 2-D adjustable | R121: 2516640 | S121: TRUE | T121: 0 | AD121: 94:cellular Shade | AE121: Single | AF121: Opaque | AG121: Side Track | AH121: Manual | AI121: 2-D adjustable | AJ121: 926100 | AK121: TRUE | AL121: 0
L122: 107:cellular Shade | M122: multi-cell | N122: Opaque | O122: Side Track | P122: Automated | Q122: 2-D adjustable | R122: 2516640 | S122: TRUE | T122: 0 | AD122: 104:cellular Shade | AE122: Single | AF122: Opaque | AG122: Side Track | AH122: Automated | AI122: 2-D adjustable | AJ122: 926100 | AK122: TRUE | AL122: 0
L123: 139:Awning | M123: retractable | N123: reflective | O123: open weave | P123: Automated | R123: 2469600 | S123: TRUE | T123: 0 | AD123: 77:cellular Shade | AE123: multi-cell | AF123: Opaque | AG123: Side Track | AH123: Manual | AI123: 1-D adjustable | AJ123: 917280 | AK123: TRUE | AL123: 0
L124: 141:Awning | M124: retractable | N124: absorbtive | O124: open weave | P124: Automated | R124: 2469600 | S124: TRUE | T124: 0 | AD124: 88:cellular Shade | AE124: multi-cell | AF124: Semi-Opaque | AG124: Side Track | AH124: Automated | AI124: 1-D adjustable | AJ124: 917280 | AK124: TRUE | AL124: 0
L125: 143:Roller shutters | M125: insulating | N125: manual | R125: 2375520 | S125: TRUE | T125: 0 | AD125: 98:cellular Shade | AE125: multi-cell | AF125: Semi-Opaque | AG125: Side Track | AH125: Manual | AI125: 2-D adjustable | AJ125: 917280 | AK125: TRUE | AL125: 0
L126: 112:Window quilts | M126: opaque | N126: roller | O126: side track | P126: Automated | R126: 2352000 | S126: TRUE | T126: 0 | AD126: 108:cellular Shade | AE126: multi-cell | AF126: Semi-Opaque | AG126: Side Track | AH126: Automated | AI126: 2-D adjustable | AJ126: 917280 | AK126: TRUE | AL126: 0
L127: 51:roller shades | M127: Opaque | N127: interior | O127: Light Color | P127: tight weave | Q127: Automated | R127: 2328480 | S127: TRUE | T127: 0 | AD127: 109:Window quilts | AE127: opaque | AF127: Non-roller | AJ127: 917280 | AK127: TRUE | AL127: 0
L128: 45:roller shades | M128: Opaque | N128: exterior | O128: Light Color | P128: tight weave | Q128: Manual | R128: 2304960 | S128: TRUE | T128: 0 | AD128: 110:Window quilts | AE128: opaque | AF128: roller | AG128: side track | AH128: manual | AJ128: 917280 | AK128: TRUE | AL128: 0
L129: 46:roller shades | M129: Opaque | N129: exterior | O129: Dark Color | P129: tight weave | Q129: Manual | R129: 2304960 | S129: TRUE | T129: 0 | AD129: 79:cellular Shade | AE129: Single | AF129: Opaque | AG129: No side track | AH129: Automated | AI129: 1-D adjustable | AJ129: 882000 | AK129: TRUE | AL129: 0
L130: 79:cellular Shade | M130: Single | N130: Opaque | O130: No side track | P130: Automated | Q130: 1-D adjustable | R130: 2304960 | S130: TRUE | T130: 0 | AD130: 89:cellular Shade | AE130: Single | AF130: Opaque | AG130: No side track | AH130: Manual | AI130: 2-D adjustable | AJ130: 882000 | AK130: TRUE | AL130: 0
L131: 82:cellular Shade | M131: multi-cell | N131: Opaque | O131: No side track | P131: Automated | Q131: 1-D adjustable | R131: 2304960 | S131: TRUE | T131: 0 | AD131: 99:cellular Shade | AE131: Single | AF131: Opaque | AG131: No side track | AH131: Automated | AI131: 2-D adjustable | AJ131: 882000 | AK131: TRUE | AL131: 0
L132: 99:cellular Shade | M132: Single | N132: Opaque | O132: No side track | P132: Automated | Q132: 2-D adjustable | R132: 2304960 | S132: TRUE | T132: 0 | AD132: 146:Roller shutters | AE132: non-insulating | AF132: automated | AJ132: 882000 | AK132: TRUE | AL132: 0
L133: 102:cellular Shade | M133: multi-cell | N133: Opaque | O133: No side track | P133: Automated | Q133: 2-D adjustable | R133: 2304960 | S133: TRUE | T133: 0 | AD133: 151:Drape/Curtains | AE133: Opaque | AF133: automated | AG133: insulating | AJ133: 882000 | AK133: TRUE | AL133: 0
L134: 125:Louvered blinds | M134: interior | N134: horizontal | O134: reflective | P134: Automated | R134: 2304960 | S134: TRUE | T134: 0 | AD134: 111:Window quilts | AE134: opaque | AF134: roller | AG134: no - side track | AH134: manual | AJ134: 873180 | AK134: TRUE | AL134: 0
L135: 129:Louvered blinds | M135: interior | N135: Vertical | O135: reflective | P135: Automated | R135: 2304960 | S135: TRUE | T135: 0 | AD135: 117:Window quilts | AE135: Translucent | AF135: roller | AG135: side track | AH135: Automated | AJ135: 873180 | AK135: TRUE | AL135: 0
L136: Condensed ranked results: | N136: roller shutter | O136: roller shade | P136: louvered blind | Q136: awning | R136: cell shade | AD136: Condensed ranked results: | AF136: cellular shade | AG136: window quilts | AH136: roller shutters

Sheet HMC3
A5: Record of Help Me Choose Top 5 by Climate: Attribute Settings and Ranking Results
A7: Default Conditions: Base case window=single clear; existing window covering=nil; climate weighting factors:
A10: HMC1 | B10: Reduce my heating bill
A11: HMC2 | B11: Need more privacy
A12: HMC3 | B12: Protect my windows
A13: HMC4 | B13: Reduce my cooling bill
A14: HMC5 | B14: Give me adjustable daylighting
A20: HMC3 | B20: North | C20: Attribute settings:Prime Window protection=4; Condensation Resistance=7 | L20: HMC3 | M20: North | N20: Attribute settings:Prime Window protection=4; CR=7; Insulation=4; Airtightness=3; Winter Comfort=3
C21: 1:Exterior storm | D21: tracked | E21: low-e | F21: HSG | I21: 1693440 | J21: TRUE | K21: 0 | L21: 145:Roller shutters | M21: insulating | N21: automated | R21: 3010560 | S21: TRUE | T21: 0
C22: 2:Exterior storm | D22: tracked | E22: low-e | F22: LSG | I22: 1693440 | J22: TRUE | K22: 0 | L22: 143:Roller shutters | M22: insulating | N22: manual | R22: 2948820 | S22: TRUE | T22: 0
C23: 4:Exterior storm | D23: Fixed | E23: low-e | F23: HSG | I23: 1693440 | J23: TRUE | K23: 0 | L23: 5:Exterior storm | M23: Fixed | N23: low-e | O23: LSG | R23: 2907660 | S23: TRUE | T23: 0
C24: 5:Exterior storm | D24: Fixed | E24: low-e | F24: LSG | I24: 1693440 | J24: TRUE | K24: 0 | L24: 4:Exterior storm | M24: Fixed | N24: low-e | O24: HSG | R24: 2845920 | S24: TRUE | T24: 0
C25: 143:Roller shutters | D25: insulating | E25: manual | I25: 1693440 | J25: TRUE | K25: 0 | L25: 2:Exterior storm | M25: tracked | N25: low-e | O25: LSG | R25: 2825340 | S25: TRUE | T25: 0
C26: 145:Roller shutters | D26: insulating | E26: automated | I26: 1693440 | J26: TRUE | K26: 0 | L26: 1:Exterior storm | M26: tracked | N26: low-e | O26: HSG | R26: 2763600 | S26: TRUE | T26: 0
C27: 3:Exterior storm | D27: tracked | E27: clear | I27: 1552320 | J27: TRUE | K27: 0 | L27: 6:Exterior storm | M27: Fixed | N27: clear | R27: 2560740 | S27: TRUE | T27: 0
C28: 6:Exterior storm | D28: Fixed | E28: clear | I28: 1552320 | J28: TRUE | K28: 0 | L28: 3:Exterior storm | M28: tracked | N28: clear | R28: 2478420 | S28: TRUE | T28: 0
C29: 144:Roller shutters | D29: non-insulating | E29: manual | I29: 1552320 | J29: TRUE | K29: 0 | L29: 146:Roller shutters | M29: non-insulating | N29: automated | R29: 2375520 | S29: TRUE | T29: 0
C30: 146:Roller shutters | D30: non-insulating | E30: automated | I30: 1552320 | J30: TRUE | K30: 0 | L30: 144:Roller shutters | M30: non-insulating | N30: manual | R30: 2313780 | S30: TRUE | T30: 0
C31: 147:louvered shutters | D31: exterior | I31: 1411200 | J31: TRUE | K31: 0 | L31: 16:Interior panel | M31: fixed | N31: glass - triple glazing | O31: low-e | P31: hsg | R31: 1799280 | S31: TRUE | T31: 0
C32: 135:Awning | D32: retractable | E32: reflective | F32: open weave | G32: Manual | I32: 1270080 | J32: TRUE | K32: 0 | L32: 17:Interior panel | M32: fixed | N32: glass - triple glazing | O32: low-e | P32: lsg | R32: 1799280 | S32: TRUE | T32: 0
C33: 136:Awning | D33: retractable | E33: reflective | F33: tight weave | G33: Manual | I33: 1270080 | J33: TRUE | K33: 0 | L33: 15:Interior panel | M33: fixed | N33: glass - double glazing | O33: low-e | P33: lsg | R33: 1737540 | S33: TRUE | T33: 0
C34: 137:Awning | D34: retractable | E34: absorbtive | F34: open weave | G34: Manual | I34: 1270080 | J34: TRUE | K34: 0 | L34: 147:louvered shutters | M34: exterior | R34: 1719900 | S34: TRUE | T34: 0
C35: 138:Awning | D35: retractable | E35: absorbtive | F35: tight weave | G35: Manual | I35: 1270080 | J35: TRUE | K35: 0 | L35: 14:Interior panel | M35: fixed | N35: glass - double glazing | O35: low-e | P35: hsg | R35: 1675800 | S35: TRUE | T35: 0
C36: 139:Awning | D36: retractable | E36: reflective | F36: open weave | G36: Automated | I36: 1270080 | J36: TRUE | K36: 0 | L36: 21:Interior panel | M36: fixed | N36: flexible 2 layers with low-e | R36: 1675800 | S36: TRUE | T36: 0
C37: 140:Awning | D37: retractable | E37: reflective | F37: tight weave | G37: Automated | I37: 1270080 | J37: TRUE | K37: 0 | L37: 12:Interior panel | M37: fixed | N37: glass | O37: low-e | P37: lsg | R37: 1672860 | S37: TRUE | T37: 0
C38: 141:Awning | D38: retractable | E38: absorbtive | F38: open weave | G38: Automated | I38: 1270080 | J38: TRUE | K38: 0 | L38: 20:Interior panel | M38: fixed | N38: flexible 2 layers | R38: 1672860 | S38: TRUE | T38: 0
C39: 142:Awning | D39: retractable | E39: absorbtive | F39: tight weave | G39: Automated | I39: 1270080 | J39: TRUE | K39: 0 | L39: 77:cellular Shade | M39: multi-cell | N39: Opaque | O39: Side Track | P39: Manual | Q39: 1-D adjustable | R39: 1634640 | S39: TRUE | T39: 0
C40: 45:roller shades | D40: Opaque | E40: exterior | F40: Light Color | G40: tight weave | H40: Manual | I40: 1234800 | J40: TRUE | K40: 0 | L40: 78:cellular Shade | M40: multi-cell | N40: Semi-Opaque | O40: Side Track | P40: Manual | Q40: 1-D adjustable | R40: 1634640 | S40: TRUE | T40: 0
C41: 46:roller shades | D41: Opaque | E41: exterior | F41: Dark Color | G41: tight weave | H41: Manual | I41: 1234800 | J41: TRUE | K41: 0 | L41: 87:cellular Shade | M41: multi-cell | N41: Opaque | O41: Side Track | P41: Automated | Q41: 1-D adjustable | R41: 1634640 | S41: TRUE | T41: 0
C42: 47:roller shades | D42: Opaque | E42: exterior | F42: Light Color | G42: tight weave | H42: Automated | I42: 1234800 | J42: TRUE | K42: 0 | L42: 88:cellular Shade | M42: multi-cell | N42: Semi-Opaque | O42: Side Track | P42: Automated | Q42: 1-D adjustable | R42: 1634640 | S42: TRUE | T42: 0
C43: 48:roller shades | D43: Opaque | E43: exterior | F43: Dark Color | G43: tight weave | H43: Automated | I43: 1234800 | J43: TRUE | K43: 0 | L43: 97:cellular Shade | M43: multi-cell | N43: Opaque | O43: Side Track | P43: Manual | Q43: 2-D adjustable | R43: 1634640 | S43: TRUE | T43: 0
C44: 53:roller shades | D44: translucent | E44: exterior | F44: Light Color | G44: tight weave | H44: Manual | I44: 1234800 | J44: TRUE | K44: 0 | L44: 98:cellular Shade | M44: multi-cell | N44: Semi-Opaque | O44: Side Track | P44: Manual | Q44: 2-D adjustable | R44: 1634640 | S44: TRUE | T44: 0
C45: 54:roller shades | D45: translucent | E45: exterior | F45: Light Color | G45: open weave | H45: Manual | I45: 1234800 | J45: TRUE | K45: 0 | L45: 107:cellular Shade | M45: multi-cell | N45: Opaque | O45: Side Track | P45: Automated | Q45: 2-D adjustable | R45: 1634640 | S45: TRUE | T45: 0
C46: Condensed ranked results: | E46: exterior storm | F46: roller shutter | G46: louvered shutter | H46: awning | I46: roller shade | L46: Condensed ranked results: | N46: roller shutter | O46: exterior storm | P46: interior panel | Q46: cell shade
A50: HMC3 | B50: North Central | C50: Attribute settings:Prime Window protection=4; Condensation Resistance=3 | L50: HMC3 | M50: North Central | N50: Attribute settings:Prime Window protection=4; CR=3; Insulation=3; Airtightness=3; Winter Comfort=2
C51: Same as above | L51: 145:Roller shutters | M51: insulating | N51: automated | R51: 2157960 | S51: TRUE | T51: 0
L52: 5:Exterior storm | M52: Fixed | N52: low-e | O52: LSG | R52: 2128805 | S52: TRUE | T52: 0
L53: 143:Roller shutters | M53: insulating | N53: manual | R53: 2111655 | S53: TRUE | T53: 0
L54: 4:Exterior storm | M54: Fixed | N54: low-e | O54: HSG | R54: 2082500 | S54: TRUE | T54: 0
L55: 2:Exterior storm | M55: tracked | N55: low-e | O55: LSG | R55: 2046485 | S55: TRUE | T55: 0
L56: 1:Exterior storm | M56: tracked | N56: low-e | O56: HSG | R56: 2000180 | S56: TRUE | T56: 0
L57: 6:Exterior storm | M57: Fixed | N57: clear | R57: 1920835 | S57: TRUE | T57: 0
L58: 3:Exterior storm | M58: tracked | N58: clear | R58: 1838515 | S58: TRUE | T58: 0
L59: 146:Roller shutters | M59: non-insulating | N59: automated | R59: 1720180 | S59: TRUE | T59: 0
L60: 144:Roller shutters | M60: non-insulating | N60: manual | R60: 1673875 | S60: TRUE | T60: 0
L61: 16:Interior panel | M61: fixed | N61: glass - triple glazing | O61: low-e | P61: hsg | R61: 1430520 | S61: TRUE | T61: 0
L62: 17:Interior panel | M62: fixed | N62: glass - triple glazing | O62: low-e | P62: lsg | R62: 1430520 | S62: TRUE | T62: 0
L63: 15:Interior panel | M63: fixed | N63: glass - double glazing | O63: low-e | P63: lsg | R63: 1384215 | S63: TRUE | T63: 0
L64: 14:Interior panel | M64: fixed | N64: glass - double glazing | O64: low-e | P64: hsg | R64: 1337910 | S64: TRUE | T64: 0
L65: 21:Interior panel | M65: fixed | N65: flexible 2 layers with low-e | R65: 1337910 | S65: TRUE | T65: 0
L66: 12:Interior panel | M66: fixed | N66: glass | O66: low-e | P66: lsg | R66: 1297205 | S66: TRUE | T66: 0
L67: 20:Interior panel | M67: fixed | N67: flexible 2 layers | R67: 1297205 | S67: TRUE | T67: 0
L68: 77:cellular Shade | M68: multi-cell | N68: Opaque | O68: Side Track | P68: Manual | Q68: 1-D adjustable | R68: 1265880 | S68: TRUE | T68: 0
L69: 78:cellular Shade | M69: multi-cell | N69: Semi-Opaque | O69: Side Track | P69: Manual | Q69: 1-D adjustable | R69: 1265880 | S69: TRUE | T69: 0
L70: 87:cellular Shade | M70: multi-cell | N70: Opaque | O70: Side Track | P70: Automated | Q70: 1-D adjustable | R70: 1265880 | S70: TRUE | T70: 0
L71: 88:cellular Shade | M71: multi-cell | N71: Semi-Opaque | O71: Side Track | P71: Automated | Q71: 1-D adjustable | R71: 1265880 | S71: TRUE | T71: 0
L72: 97:cellular Shade | M72: multi-cell | N72: Opaque | O72: Side Track | P72: Manual | Q72: 2-D adjustable | R72: 1265880 | S72: TRUE | T72: 0
L73: 98:cellular Shade | M73: multi-cell | N73: Semi-Opaque | O73: Side Track | P73: Manual | Q73: 2-D adjustable | R73: 1265880 | S73: TRUE | T73: 0
L74: 107:cellular Shade | M74: multi-cell | N74: Opaque | O74: Side Track | P74: Automated | Q74: 2-D adjustable | R74: 1265880 | S74: TRUE | T74: 0
L75: 108:cellular Shade | M75: multi-cell | N75: Semi-Opaque | O75: Side Track | P75: Automated | Q75: 2-D adjustable | R75: 1265880 | S75: TRUE | T75: 0
L76: Condensed ranked results: | N76: roller shutter | O76: exterior storm | P76: interior panel | Q76: cell shade
A80: HMC3 | B80: South Central | C80: Attribute settings:Prime Window protection=4 | L80: HMC3 | M80: South Central | N80: Attribute settings:Prime Window protection=4; SHC=3; Summer Comfort=3
C81: 1:Exterior storm | D81: tracked | E81: low-e | F81: HSG | I81: 705600 | J81: TRUE | K81: 0 | L81: 140:Awning | M81: retractable | N81: reflective | O81: tight weave | P81: Automated | R81: 1622880 | S81: TRUE | T81: 0
C82: 2:Exterior storm | D82: tracked | E82: low-e | F82: LSG | I82: 705600 | J82: TRUE | K82: 0 | L82: 142:Awning | M82: retractable | N82: absorbtive | O82: tight weave | P82: Automated | R82: 1622880 | S82: TRUE | T82: 0
C83: 3:Exterior storm | D83: tracked | E83: clear | I83: 705600 | J83: TRUE | K83: 0 | L83: 145:Roller shutters | M83: insulating | N83: automated | R83: 1622880 | S83: TRUE | T83: 0
C84: 4:Exterior storm | D84: Fixed | E84: low-e | F84: HSG | I84: 705600 | J84: TRUE | K84: 0 | L84: 146:Roller shutters | M84: non-insulating | N84: automated | R84: 1622880 | S84: TRUE | T84: 0
C85: 5:Exterior storm | D85: Fixed | E85: low-e | F85: LSG | I85: 705600 | J85: TRUE | K85: 0 | L85: 139:Awning | M85: retractable | N85: reflective | O85: open weave | P85: Automated | R85: 1562400 | S85: TRUE | T85: 0
C86: 6:Exterior storm | D86: Fixed | E86: clear | I86: 705600 | J86: TRUE | K86: 0 | L86: 141:Awning | M86: retractable | N86: absorbtive | O86: open weave | P86: Automated | R86: 1562400 | S86: TRUE | T86: 0
C87: 135:Awning | D87: retractable | E87: reflective | F87: open weave | G87: Manual | I87: 705600 | J87: TRUE | K87: 0 | L87: 136:Awning | M87: retractable | N87: reflective | O87: tight weave | P87: Manual | R87: 1480080 | S87: TRUE | T87: 0
C88: 136:Awning | D88: retractable | E88: reflective | F88: tight weave | G88: Manual | I88: 705600 | J88: TRUE | K88: 0 | L88: 138:Awning | M88: retractable | N88: absorbtive | O88: tight weave | P88: Manual | R88: 1480080 | S88: TRUE | T88: 0
C89: 137:Awning | D89: retractable | E89: absorbtive | F89: open weave | G89: Manual | I89: 705600 | J89: TRUE | K89: 0 | L89: 147:louvered shutters | M89: exterior | R89: 1480080 | S89: TRUE | T89: 0
C90: 138:Awning | D90: retractable | E90: absorbtive | F90: tight weave | G90: Manual | I90: 705600 | J90: TRUE | K90: 0 | L90: 47:roller shades | M90: Opaque | N90: exterior | O90: Light Color | P90: tight weave | Q90: Automated | R90: 1446480 | S90: TRUE | T90: 0
C91: 139:Awning | D91: retractable | E91: reflective | F91: open weave | G91: Automated | I91: 705600 | J91: TRUE | K91: 0 | L91: 48:roller shades | M91: Opaque | N91: exterior | O91: Dark Color | P91: tight weave | Q91: Automated | R91: 1446480 | S91: TRUE | T91: 0
C92: 140:Awning | D92: retractable | E92: reflective | F92: tight weave | G92: Automated | I92: 705600 | J92: TRUE | K92: 0 | L92: 120:Louvered blinds | M92: exterior | N92: horizontal | O92: Automated | R92: 1446480 | S92: TRUE | T92: 0
C93: 141:Awning | D93: retractable | E93: absorbtive | F93: open weave | G93: Automated | I93: 705600 | J93: TRUE | K93: 0 | L93: 135:Awning | M93: retractable | N93: reflective | O93: open weave | P93: Manual | R93: 1419600 | S93: TRUE | T93: 0
C94: 142:Awning | D94: retractable | E94: absorbtive | F94: tight weave | G94: Automated | I94: 705600 | J94: TRUE | K94: 0 | L94: 137:Awning | M94: retractable | N94: absorbtive | O94: open weave | P94: Manual | R94: 1419600 | S94: TRUE | T94: 0
C95: 143:Roller shutters | D95: insulating | E95: manual | I95: 705600 | J95: TRUE | K95: 0 | L95: 143:Roller shutters | M95: insulating | N95: manual | R95: 1419600 | S95: TRUE | T95: 0
C96: 144:Roller shutters | D96: non-insulating | E96: manual | I96: 705600 | J96: TRUE | K96: 0 | L96: 144:Roller shutters | M96: non-insulating | N96: manual | R96: 1419600 | S96: TRUE | T96: 0
C97: 145:Roller shutters | D97: insulating | E97: automated | I97: 705600 | J97: TRUE | K97: 0 | L97: 2:Exterior storm | M97: tracked | N97: low-e | O97: LSG | R97: 1359120 | S97: TRUE | T97: 0
C98: 146:Roller shutters | D98: non-insulating | E98: automated | I98: 705600 | J98: TRUE | K98: 0 | L98: 5:Exterior storm | M98: Fixed | N98: low-e | O98: LSG | R98: 1359120 | S98: TRUE | T98: 0
C99: 147:louvered shutters | D99: exterior | I99: 705600 | J99: TRUE | K99: 0 | L99: 45:roller shades | M99: Opaque | N99: exterior | O99: Light Color | P99: tight weave | Q99: Manual | R99: 1303680 | S99: TRUE | T99: 0
C100: 45:roller shades | D100: Opaque | E100: exterior | F100: Light Color | G100: tight weave | H100: Manual | I100: 529200 | J100: TRUE | K100: 0 | L100: 46:roller shades | M100: Opaque | N100: exterior | O100: Dark Color | P100: tight weave | Q100: Manual | R100: 1303680 | S100: TRUE | T100: 0
C101: 46:roller shades | D101: Opaque | E101: exterior | F101: Dark Color | G101: tight weave | H101: Manual | I101: 529200 | J101: TRUE | K101: 0 | L101: 122:Louvered blinds | M101: exterior | N101: Vertical | O101: Automated | R101: 1270080 | S101: TRUE | T101: 0
C102: 47:roller shades | D102: Opaque | E102: exterior | F102: Light Color | G102: tight weave | H102: Automated | I102: 529200 | J102: TRUE | K102: 0 | L102: 57:roller shades | M102: translucent | N102: exterior | O102: Light Color | P102: tight weave | Q102: Automated | R102: 1243200 | S102: TRUE | T102: 0
C103: 48:roller shades | D103: Opaque | E103: exterior | F103: Dark Color | G103: tight weave | H103: Automated | I103: 529200 | J103: TRUE | K103: 0 | L103: 59:roller shades | M103: translucent | N103: exterior | O103: Dark Color | P103: tight weave | Q103: Automated | R103: 1243200 | S103: TRUE | T103: 0
C104: 53:roller shades | D104: translucent | E104: exterior | F104: Light Color | G104: tight weave | H104: Manual | I104: 529200 | J104: TRUE | K104: 0 | L104: 119:Louvered blinds | M104: exterior | N104: horizontal | O104: manual | R104: 1243200 | S104: TRUE | T104: 0
C105: 54:roller shades | D105: translucent | E105: exterior | F105: Light Color | G105: open weave | H105: Manual | I105: 529200 | J105: TRUE | K105: 0 | L105: 1:Exterior storm | M105: tracked | N105: low-e | O105: HSG | R105: 1216320 | S105: TRUE | T105: 0
C106: Condensed ranked results: | L106: Condensed ranked results: | N106: awning | O106: roller shutter | P106: louvered shutter | Q106: roller shade | R106: exterior storm
A110: HMC3 | B110: South | C110: Attribute settings:Prime Window protection=4 | L110: HMC3 | M110: South Central | N110: Attribute settings:Prime Window protection=4; SHC=7; Summer Comfort=6
C111: Same as above | L111: 140:Awning | M111: retractable | N111: reflective | O111: tight weave | P111: Automated | R111: 2681280 | S111: TRUE | T111: 0
L112: 142:Awning | M112: retractable | N112: absorbtive | O112: tight weave | P112: Automated | R112: 2681280 | S112: TRUE | T112: 0
L113: 145:Roller shutters | M113: insulating | N113: automated | R113: 2681280 | S113: TRUE | T113: 0
L114: 146:Roller shutters | M114: non-insulating | N114: automated | R114: 2681280 | S114: TRUE | T114: 0
L115: 139:Awning | M115: retractable | N115: reflective | O115: open weave | P115: Automated | R115: 2540160 | S115: TRUE | T115: 0
L116: 141:Awning | M116: retractable | N116: absorbtive | O116: open weave | P116: Automated | R116: 2540160 | S116: TRUE | T116: 0
L117: 47:roller shades | M117: Opaque | N117: exterior | O117: Light Color | P117: tight weave | Q117: Automated | R117: 2504880 | S117: TRUE | T117: 0
L118: 48:roller shades | M118: Opaque | N118: exterior | O118: Dark Color | P118: tight weave | Q118: Automated | R118: 2504880 | S118: TRUE | T118: 0
L119: 120:Louvered blinds | M119: exterior | N119: horizontal | O119: Automated | R119: 2504880 | S119: TRUE | T119: 0
L120: 136:Awning | M120: retractable | N120: reflective | O120: tight weave | P120: Manual | R120: 2375520 | S120: TRUE | T120: 0
L121: 138:Awning | M121: retractable | N121: absorbtive | O121: tight weave | P121: Manual | R121: 2375520 | S121: TRUE | T121: 0
L122: 147:louvered shutters | M122: exterior | R122: 2375520 | S122: TRUE | T122: 0
L123: 122:Louvered blinds | M123: exterior | N123: Vertical | O123: Automated | R123: 2328480 | S123: TRUE | T123: 0
L124: 135:Awning | M124: retractable | N124: reflective | O124: open weave | P124: Manual | R124: 2234400 | S124: TRUE | T124: 0
L125: 137:Awning | M125: retractable | N125: absorbtive | O125: open weave | P125: Manual | R125: 2234400 | S125: TRUE | T125: 0
L126: 143:Roller shutters | M126: insulating | N126: manual | R126: 2234400 | S126: TRUE | T126: 0
L127: 144:Roller shutters | M127: non-insulating | N127: manual | R127: 2234400 | S127: TRUE | T127: 0
L128: 45:roller shades | M128: Opaque | N128: exterior | O128: Light Color | P128: tight weave | Q128: Manual | R128: 2199120 | S128: TRUE | T128: 0
L129: 46:roller shades | M129: Opaque | N129: exterior | O129: Dark Color | P129: tight weave | Q129: Manual | R129: 2199120 | S129: TRUE | T129: 0
L130: 2:Exterior storm | M130: tracked | N130: low-e | O130: LSG | R130: 2093280 | S130: TRUE | T130: 0
L131: 5:Exterior storm | M131: Fixed | N131: low-e | O131: LSG | R131: 2093280 | S131: TRUE | T131: 0
L132: 57:roller shades | M132: translucent | N132: exterior | O132: Light Color | P132: tight weave | Q132: Automated | R132: 2058000 | S132: TRUE | T132: 0
L133: 59:roller shades | M133: translucent | N133: exterior | O133: Dark Color | P133: tight weave | Q133: Automated | R133: 2058000 | S133: TRUE | T133: 0
L134: 119:Louvered blinds | M134: exterior | N134: horizontal | O134: manual | R134: 2058000 | S134: TRUE | T134: 0
L135: 37:Solar screen | M135: fixed | N135: exterior | O135: Light Color | P135: tight weave | Q135: Manual | R135: 2022720 | S135: TRUE | T135: 0
L136: Condensed ranked results: | N136: awning | O136: roller shutter | P136: louvered shutter | Q136: roller shade | R136: exterior storm | S136: solar screen

Sheet HMC4
A5: Record of Help Me Choose Top 5 by Climate: Attribute Settings and Ranking Results
A7: Default Conditions: Base case window=single clear; existing window covering=nil; climate weighting factors:
A10: HMC1 | B10: Reduce my heating bill
A11: HMC2 | B11: Need more privacy
A12: HMC3 | B12: Protect my windows
A13: HMC4 | B13: Reduce my cooling bill
A14: HMC5 | B14: Give me adjustable daylighting
A20: HMC4 | B20: North | C20: Attribute settings:SHC=7; Summer Comfort=6; Airtightness=6 | L20: HMC4 | M20: North | N20: Attribute settings:SHC=7; Summer Comfort=6; Airtightness=6; ventilation=6; operation=6 | U20: HMC4 | V20: North | W20: Attribute settings:SHC=7; Summer Comfort=6; Airtightness=6; ventilation=6; operation=6; Insulation=4; Winter Comfort=3
C21: 145:Roller shutters | D21: insulating | E21: automated | I21: 2352000 | J21: TRUE | K21: 0 | L21: 145:Roller shutters | M21: insulating | N21: automated | R21: 3730272 | S21: TRUE | T21: 0 | U21: 145:Roller shutters | V21: insulating | W21: automated | AA21: 4718112 | AB21: TRUE | AC21: 0
C22: 17:Interior panel | D22: fixed | E22: glass - triple glazing | F22: low-e | G22: lsg | I22: 2318400 | J22: TRUE | K22: 0 | L22: 146:Roller shutters | M22: non-insulating | N22: automated | R22: 3565632 | S22: TRUE | T22: 0 | U22: 143:Roller shutters | V22: insulating | W22: manual | AA22: 4155732 | AB22: TRUE | AC22: 0
C23: 146:Roller shutters | D23: non-insulating | E23: automated | I23: 2187360 | J23: TRUE | K23: 0 | L23: 140:Awning | M23: retractable | N23: reflective | O23: tight weave | P23: Automated | R23: 3433920 | S23: TRUE | T23: 0 | U23: 146:Roller shutters | V23: non-insulating | W23: automated | AA23: 4141872 | AB23: TRUE | AC23: 0
C24: 5:Exterior storm | D24: Fixed | E24: low-e | F24: LSG | I24: 2177280 | J24: TRUE | K24: 0 | L24: 142:Awning | M24: retractable | N24: absorbtive | O24: tight weave | P24: Automated | R24: 3433920 | S24: TRUE | T24: 0 | U24: 2:Exterior storm | V24: tracked | W24: low-e | X24: LSG | AA24: 3993612 | AB24: TRUE | AC24: 0
C25: 15:Interior panel | D25: fixed | E25: glass - double glazing | F25: low-e | G25: lsg | I25: 2177280 | J25: TRUE | K25: 0 | L25: 139:Awning | M25: retractable | N25: reflective | O25: open weave | P25: Automated | R25: 3312960 | S25: TRUE | T25: 0 | U25: 107:cellular Shade | V25: multi-cell | W25: Opaque | X25: Side Track | Y25: Automated | Z25: 2-D adjustable | AA25: 3939936 | AB25: TRUE | AC25: 0
C26: 12:Interior panel | D26: fixed | E26: glass | F26: low-e | G26: lsg | I26: 2056320 | J26: TRUE | K26: 0 | L26: 141:Awning | M26: retractable | N26: absorbtive | O26: open weave | P26: Automated | R26: 3312960 | S26: TRUE | T26: 0 | U26: 8:Interior panel | V26: tracked | W26: glass | X26: low-e | Y26: lsg | AA26: 3872652 | AB26: TRUE | AC26: 0
C27: 16:Interior panel | D27: fixed | E27: glass - triple glazing | F27: low-e | G27: hsg | I27: 2056320 | J27: TRUE | K27: 0 | L27: 2:Exterior storm | M27: tracked | N27: low-e | O27: LSG | R27: 3273312 | S27: TRUE | T27: 0 | U27: 108:cellular Shade | V27: multi-cell | W27: Semi-Opaque | X27: Side Track | Y27: Automated | Z27: 2-D adjustable | AA27: 3818976 | AB27: TRUE | AC27: 0
C28: 2:Exterior storm | D28: tracked | E28: low-e | F28: LSG | I28: 2012640 | J28: TRUE | K28: 0 | L28: 47:roller shades | M28: Opaque | N28: exterior | O28: Light Color | P28: tight weave | Q28: Automated | R28: 3236352 | S28: TRUE | T28: 0 | U28: 104:cellular Shade | V28: Single | W28: Opaque | X28: Side Track | Y28: Automated | Z28: 2-D adjustable | AA28: 3754716 | AB28: TRUE | AC28: 0
C29: 84:cellular Shade | D29: Single | E29: Opaque | F29: Side Track | G29: Automated | H29: 1-D adjustable | I29: 1968960 | J29: TRUE | K29: 0 | L29: 48:roller shades | M29: Opaque | N29: exterior | O29: Dark Color | P29: tight weave | Q29: Automated | R29: 3236352 | S29: TRUE | T29: 0 | U29: 87:cellular Shade | V29: multi-cell | W29: Opaque | X29: Side Track | Y29: Automated | Z29: 1-D adjustable | AA29: 3742368 | AB29: TRUE | AC29: 0
C30: 87:cellular Shade | D30: multi-cell | E30: Opaque | F30: Side Track | G30: Automated | H30: 1-D adjustable | I30: 1968960 | J30: TRUE | K30: 0 | L30: 120:Louvered blinds | M30: exterior | N30: horizontal | O30: Automated | R30: 3236352 | S30: TRUE | T30: 0 | U30: 102:cellular Shade | V30: multi-cell | W30: Opaque | X30: No side track | Y30: Automated | Z30: 2-D adjustable | AA30: 3728424 | AB30: TRUE | AC30: 0
C31: 104:cellular Shade | D31: Single | E31: Opaque | F31: Side Track | G31: Automated | H31: 2-D adjustable | I31: 1968960 | J31: TRUE | K31: 0 | L31: 122:Louvered blinds | M31: exterior | N31: Vertical | O31: Automated | R31: 3236352 | S31: TRUE | T31: 0 | U31: 1:Exterior storm | V31: tracked | W31: low-e | X31: HSG | AA31: 3669792 | AB31: TRUE | AC31: 0
C32: 107:cellular Shade | D32: multi-cell | E32: Opaque | F32: Side Track | G32: Automated | H32: 2-D adjustable | I32: 1968960 | J32: TRUE | K32: 0 | L32: 143:Roller shutters | M32: insulating | N32: manual | R32: 3229632 | S32: TRUE | T32: 0 | U32: 140:Awning | V32: retractable | W32: reflective | X32: tight weave | Y32: Automated | AA32: 3660300 | AB32: TRUE | AC32: 0
C33: 143:Roller shutters | D33: insulating | E33: manual | I33: 1968960 | J33: TRUE | K33: 0 | L33: 8:Interior panel | M33: tracked | N33: glass | O33: low-e | P33: lsg | R33: 3152352 | S33: TRUE | T33: 0 | U33: 142:Awning | V33: retractable | W33: absorbtive | X33: tight weave | Y33: Automated | AA33: 3660300 | AB33: TRUE | AC33: 0
C34: 4:Exterior storm | D34: Fixed | E34: low-e | F34: HSG | I34: 1915200 | J34: TRUE | K34: 0 | L34: 23:Film | M34: Pro Installation | N34: LSG | R34: 3144960 | S34: TRUE | T34: 0 | U34: 25:Film | V34: Pro Installation | W34: low-e LSG | AA34: 3659460 | AB34: TRUE | AC34: 0
C35: 14:Interior panel | D35: fixed | E35: glass - double glazing | F35: low-e | G35: hsg | I35: 1915200 | J35: TRUE | K35: 0 | L35: 25:Film | M35: Pro Installation | N35: low-e LSG | R35: 3144960 | S35: TRUE | T35: 0 | U35: 32:Film | V35: DIY | W35: low-e LSG | AA35: 3659460 | AB35: TRUE | AC35: 0
C36: 21:Interior panel | D36: fixed | E36: flexible 2 layers with low-e | I36: 1915200 | J36: TRUE | K36: 0 | L36: 30:Film | M36: DIY | N36: LSG | R36: 3144960 | S36: TRUE | T36: 0 | U36: 17:Interior panel | V36: fixed | W36: glass - triple glazing | X36: low-e | Y36: lsg | AA36: 3621408 | AB36: TRUE | AC36: 0
C37: 8:Interior panel | D37: tracked | E37: glass | F37: low-e | G37: lsg | I37: 1891680 | J37: TRUE | K37: 0 | L37: 32:Film | M37: DIY | N37: low-e LSG | R37: 3144960 | S37: TRUE | T37: 0 | U37: 88:cellular Shade | V37: multi-cell | W37: Semi-Opaque | X37: Side Track | Y37: Automated | Z37: 1-D adjustable | AA37: 3621408 | AB37: TRUE | AC37: 0
C38: 47:roller shades | D38: Opaque | E38: exterior | F38: Light Color | G38: tight weave | H38: Automated | I38: 1858080 | J38: TRUE | K38: 0 | L38: 144:Roller shutters | M38: non-insulating | N38: manual | R38: 3064992 | S38: TRUE | T38: 0 | U38: 103:cellular Shade | V38: multi-cell | W38: Semi-Opaque | X38: No side track | Y38: Automated | Z38: 2-D adjustable | AA38: 3607464 | AB38: TRUE | AC38: 0
C39: 48:roller shades | D39: Opaque | E39: exterior | F39: Dark Color | G39: tight weave | H39: Automated | I39: 1858080 | J39: TRUE | K39: 0 | L39: 136:Awning | M39: retractable | N39: reflective | O39: tight weave | P39: Manual | R39: 3054240 | S39: TRUE | T39: 0 | U39: 112:Window quilts | V39: opaque | W39: roller | X39: side track | Y39: Automated | AA39: 3601248 | AB39: TRUE | AC39: 0
C40: 120:Louvered blinds | D40: exterior | E40: horizontal | F40: Automated | I40: 1858080 | J40: TRUE | K40: 0 | L40: 138:Awning | M40: retractable | N40: absorbtive | O40: tight weave | P40: Manual | R40: 3054240 | S40: TRUE | T40: 0 | U40: 144:Roller shutters | V40: non-insulating | W40: manual | AA40: 3579492 | AB40: TRUE | AC40: 0
C41: 122:Louvered blinds | D41: exterior | E41: Vertical | F41: Automated | I41: 1858080 | J41: TRUE | K41: 0 | L41: 1:Exterior storm | M41: tracked | N41: low-e | O41: HSG | R41: 3011232 | S41: TRUE | T41: 0 | U41: 97:cellular Shade | V41: multi-cell | W41: Opaque | X41: Side Track | Y41: Manual | Z41: 2-D adjustable | AA41: 3560256 | AB41: TRUE | AC41: 0
C42: 140:Awning | D42: retractable | E42: reflective | F42: tight weave | G42: Automated | I42: 1858080 | J42: TRUE | K42: 0 | L42: 104:cellular Shade | M42: Single | N42: Opaque | O42: Side Track | P42: Automated | Q42: 2-D adjustable | R42: 2952096 | S42: TRUE | T42: 0 | U42: 84:cellular Shade | V42: Single | W42: Opaque | X42: Side Track | Y42: Automated | Z42: 1-D adjustable | AA42: 3557148 | AB42: TRUE | AC42: 0
C43: 142:Awning | D43: retractable | E43: absorbtive | F43: tight weave | G43: Automated | I43: 1858080 | J43: TRUE | K43: 0 | L43: 107:cellular Shade | M43: multi-cell | N43: Opaque | O43: Side Track | P43: Automated | Q43: 2-D adjustable | R43: 2952096 | S43: TRUE | T43: 0 | U43: 105:cellular Shade | V43: Single | W43: Semi-Opaque | X43: Side Track | Y43: Automated | Z43: 2-D adjustable | AA43: 3551436 | AB43: TRUE | AC43: 0
C44: 85:cellular Shade | D44: Single | E44: Semi-Opaque | F44: Side Track | G44: Automated | H44: 1-D adjustable | I44: 1848000 | J44: TRUE | K44: 0 | L44: 135:Awning | M44: retractable | N44: reflective | O44: open weave | P44: Manual | R44: 2933280 | S44: TRUE | T44: 0 | U44: 7:Interior panel | V44: tracked | W44: glass | X44: low-e | Y44: hsg | AA44: 3548832 | AB44: TRUE | AC44: 0
C45: 88:cellular Shade | D45: multi-cell | E45: Semi-Opaque | F45: Side Track | G45: Automated | H45: 1-D adjustable | I45: 1848000 | J45: TRUE | K45: 0 | L45: 137:Awning | M45: retractable | N45: absorbtive | O45: open weave | P45: Manual | R45: 2933280 | S45: TRUE | T45: 0 | U45: 139:Awning | V45: retractable | W45: reflective | X45: open weave | Y45: Automated | AA45: 3539340 | AB45: TRUE | AC45: 0
C46: Condensed ranked results: | E46: Roller shutter | F46: interior panel | G46: exterior storm | H46: cell shade | I46: roller shade | J46: louvered blind | K46: awning | L46: Condensed ranked results: | N46: Roller shutter | O46: awning | P46: exterior storm | Q46: roller shade | R46: louvered blind | S46: interior panel | T46: film | U46: Condensed ranked results: | W46: Roller shutter | X46: exterior storm | Y46: cell shade | Z46: awning | AA46: film | AB46: interior panel | AC46: window quilt
A50: HMC4 | B50: North Central | C50: Attribute settings:SHC=7; Summer Comfort=6; Airtightness=6 | L50: HMC4 | M50: North Central | N50: Attribute settings:SHC=7; Summer Comfort=6; Airtightness=6; ventilation=6; operation=6 | U50: HMC4 | V50: North | W50: Attribute settings:SHC=7; Summer Comfort=6; Airtightness=6; ventilation=6; operation=6; Insulation=3; Winter Comfort=2
C51: 145:Roller shutters | D51: insulating | E51: automated | I51: 2493120 | J51: TRUE | K51: 0 | L51: 145:Roller shutters | M51: insulating | N51: automated | R51: 3758496 | S51: TRUE | T51: 0 | U51: 145:Roller shutters | V51: insulating | W51: automated | AA51: 4458216 | AB51: TRUE | AC51: 0
C52: 17:Interior panel | D52: fixed | E52: glass - triple glazing | F52: low-e | G52: lsg | I52: 2399040 | J52: TRUE | K52: 0 | L52: 146:Roller shutters | M52: non-insulating | N52: automated | R52: 3593856 | S52: TRUE | T52: 0 | U52: 146:Roller shutters | V52: non-insulating | W52: automated | AA52: 3998596 | AB52: TRUE | AC52: 0
C53: 146:Roller shutters | D53: non-insulating | E53: automated | I53: 2328480 | J53: TRUE | K53: 0 | L53: 140:Awning | M53: retractable | N53: reflective | O53: tight weave | P53: Automated | R53: 3433920 | S53: TRUE | T53: 0 | U53: 143:Roller shutters | V53: insulating | W53: manual | AA53: 3870951 | AB53: TRUE | AC53: 0
C54: 5:Exterior storm | D54: Fixed | E54: low-e | F54: LSG | I54: 2257920 | J54: TRUE | K54: 0 | L54: 142:Awning | M54: retractable | N54: absorbtive | O54: tight weave | P54: Automated | R54: 3433920 | S54: TRUE | T54: 0 | U54: 2:Exterior storm | V54: tracked | W54: low-e | X54: LSG | AA54: 3746981 | AB54: TRUE | AC54: 0
C55: 15:Interior panel | D55: fixed | E55: glass - double glazing | F55: low-e | G55: lsg | I55: 2257920 | J55: TRUE | K55: 0 | L55: 139:Awning | M55: retractable | N55: reflective | O55: open weave | P55: Automated | R55: 3292800 | S55: TRUE | T55: 0 | U55: 107:cellular Shade | V55: multi-cell | W55: Opaque | X55: Side Track | Y55: Automated | Z55: 2-D adjustable | AA55: 3696168 | AB55: TRUE | AC55: 0
C56: 12:Interior panel | D56: fixed | E56: glass | F56: low-e | G56: lsg | I56: 2116800 | J56: TRUE | K56: 0 | L56: 141:Awning | M56: retractable | N56: absorbtive | O56: open weave | P56: Automated | R56: 3292800 | S56: TRUE | T56: 0 | U56: 8:Interior panel | V56: tracked | W56: glass | X56: low-e | Y56: lsg | AA56: 3605861 | AB56: TRUE | AC56: 0
C57: 16:Interior panel | D57: fixed | E57: glass - triple glazing | F57: low-e | G57: hsg | I57: 2116800 | J57: TRUE | K57: 0 | L57: 47:roller shades | M57: Opaque | N57: exterior | O57: Light Color | P57: tight weave | Q57: Automated | R57: 3264576 | S57: TRUE | T57: 0 | U57: 140:Awning | V57: retractable | W57: reflective | X57: tight weave | Y57: Automated | AA57: 3589985 | AB57: TRUE | AC57: 0
C58: 2:Exterior storm | D58: tracked | E58: low-e | F58: LSG | I58: 2093280 | J58: TRUE | K58: 0 | L58: 48:roller shades | M58: Opaque | N58: exterior | O58: Dark Color | P58: tight weave | Q58: Automated | R58: 3264576 | S58: TRUE | T58: 0 | U58: 142:Awning | V58: retractable | W58: absorbtive | X58: tight weave | Y58: Automated | AA58: 3589985 | AB58: TRUE | AC58: 0
C59: 84:cellular Shade | D59: Single | E59: Opaque | F59: Side Track | G59: Automated | H59: 1-D adjustable | I59: 2069760 | J59: TRUE | K59: 0 | L59: 120:Louvered blinds | M59: exterior | N59: horizontal | O59: Automated | R59: 3264576 | S59: TRUE | T59: 0 | U59: 104:cellular Shade | V59: Single | W59: Opaque | X59: Side Track | Y59: Automated | Z59: 2-D adjustable | AA59: 3557253 | AB59: TRUE | AC59: 0
C60: 87:cellular Shade | D60: multi-cell | E60: Opaque | F60: Side Track | G60: Automated | H60: 1-D adjustable | I60: 2069760 | J60: TRUE | K60: 0 | L60: 122:Louvered blinds | M60: exterior | N60: Vertical | O60: Automated | R60: 3264576 | S60: TRUE | T60: 0 | U60: 108:cellular Shade | V60: multi-cell | W60: Semi-Opaque | X60: Side Track | Y60: Automated | Z60: 2-D adjustable | AA60: 3555048 | AB60: TRUE | AC60: 0
C61: 104:cellular Shade | D61: Single | E61: Opaque | F61: Side Track | G61: Automated | H61: 2-D adjustable | I61: 2069760 | J61: TRUE | K61: 0 | L61: 2:Exterior storm | M61: tracked | N61: low-e | O61: LSG | R61: 3241056 | S61: TRUE | T61: 0 | U61: 87:cellular Shade | V61: multi-cell | W61: Opaque | X61: Side Track | Y61: Automated | Z61: 1-D adjustable | AA61: 3526824 | AB61: TRUE | AC61: 0
C62: 107:cellular Shade | D62: multi-cell | E62: Opaque | F62: Side Track | G62: Automated | H62: 2-D adjustable | I62: 2069760 | J62: TRUE | K62: 0 | L62: 143:Roller shutters | M62: insulating | N62: manual | R62: 3217536 | S62: TRUE | T62: 0 | U62: 102:cellular Shade | V62: multi-cell | W62: Opaque | X62: No side track | Y62: Automated | Z62: 2-D adjustable | AA62: 3467142 | AB62: TRUE | AC62: 0
C63: 143:Roller shutters | D63: insulating | E63: manual | I63: 2069760 | J63: TRUE | K63: 0 | L63: 23:Film | M63: Pro Installation | N63: LSG | R63: 3104640 | S63: TRUE | T63: 0 | U63: 47:roller shades | V63: Opaque | W63: exterior | X63: Light Color | Y63: tight weave | Z63: Automated | AA63: 3466946 | AB63: TRUE | AC63: 0
C64: 47:roller shades | D64: Opaque | E64: exterior | F64: Light Color | G64: tight weave | H64: Automated | I64: 1999200 | J64: TRUE | K64: 0 | L64: 25:Film | M64: Pro Installation | N64: low-e LSG | R64: 3104640 | S64: TRUE | T64: 0 | U64: 48:roller shades | V64: Opaque | W64: exterior | X64: Dark Color | Y64: tight weave | Z64: Automated | AA64: 3466946 | AB64: TRUE | AC64: 0
C65: 48:roller shades | D65: Opaque | E65: exterior | F65: Dark Color | G65: tight weave | H65: Automated | I65: 1999200 | J65: TRUE | K65: 0 | L65: 30:Film | M65: DIY | N65: LSG | R65: 3104640 | S65: TRUE | T65: 0 | U65: 120:Louvered blinds | V65: exterior | W65: horizontal | X65: Automated | AA65: 3466946 | AB65: TRUE | AC65: 0
C66: 120:Louvered blinds | D66: exterior | E66: horizontal | F66: Automated | I66: 1999200 | J66: TRUE | K66: 0 | L66: 32:Film | M66: DIY | N66: low-e LSG | R66: 3104640 | S66: TRUE | T66: 0 | U66: 122:Louvered blinds | V66: exterior | W66: Vertical | X66: Automated | AA66: 3466946 | AB66: TRUE | AC66: 0
C67: 122:Louvered blinds | D67: exterior | E67: Vertical | F67: Automated | I67: 1999200 | J67: TRUE | K67: 0 | L67: 8:Interior panel | M67: tracked | N67: glass | O67: low-e | P67: lsg | R67: 3099936 | S67: TRUE | T67: 0 | U67: 25:Film | V67: Pro Installation | W67: low-e LSG | AA67: 3463075 | AB67: TRUE | AC67: 0
C68: 140:Awning | D68: retractable | E68: reflective | F68: tight weave | G68: Automated | I68: 1999200 | J68: TRUE | K68: 0 | L68: 144:Roller shutters | M68: non-insulating | N68: manual | R68: 3052896 | S68: TRUE | T68: 0 | U68: 32:Film | V68: DIY | W68: low-e LSG | AA68: 3463075 | AB68: TRUE | AC68: 0
C69: 142:Awning | D69: retractable | E69: absorbtive | F69: tight weave | G69: Automated | I69: 1999200 | J69: TRUE | K69: 0 | L69: 136:Awning | M69: retractable | N69: reflective | O69: tight weave | P69: Manual | R69: 3034080 | S69: TRUE | T69: 0 | U69: 139:Awning | V69: retractable | W69: reflective | X69: open weave | Y69: Automated | AA69: 3448865 | AB69: TRUE | AC69: 0
C70: 4:Exterior storm | D70: Fixed | E70: low-e | F70: HSG | I70: 1975680 | J70: TRUE | K70: 0 | L70: 138:Awning | M70: retractable | N70: absorbtive | O70: tight weave | P70: Manual | R70: 3034080 | S70: TRUE | T70: 0 | U70: 141:Awning | V70: retractable | W70: absorbtive | X70: open weave | Y70: Automated | AA70: 3448865 | AB70: TRUE | AC70: 0
C71: 14:Interior panel | D71: fixed | E71: glass - double glazing | F71: low-e | G71: hsg | I71: 1975680 | J71: TRUE | K71: 0 | L71: 104:cellular Shade | M71: Single | N71: Opaque | O71: Side Track | P71: Automated | Q71: 2-D adjustable | R71: 2996448 | S71: TRUE | T71: 0 | U71: 1:Exterior storm | V71: tracked | W71: low-e | X71: HSG | AA71: 3418436 | AB71: TRUE | AC71: 0
C72: 21:Interior panel | D72: fixed | E72: flexible 2 layers with low-e | I72: 1975680 | J72: TRUE | K72: 0 | L72: 107:cellular Shade | M72: multi-cell | N72: Opaque | O72: Side Track | P72: Automated | Q72: 2-D adjustable | R72: 2996448 | S72: TRUE | T72: 0 | U72: 144:Roller shutters | V72: non-insulating | W72: manual | AA72: 3411331 | AB72: TRUE | AC72: 0
C73: 8:Interior panel | D73: tracked | E73: glass | F73: low-e | G73: lsg | I73: 1952160 | J73: TRUE | K73: 0 | L73: 1:Exterior storm | M73: tracked | N73: low-e | O73: HSG | R73: 2958816 | S73: TRUE | T73: 0 | U73: 84:cellular Shade | V73: Single | W73: Opaque | X73: Side Track | Y73: Automated | Z73: 1-D adjustable | AA73: 3387909 | AB73: TRUE | AC73: 0
C74: 85:cellular Shade | D74: Single | E74: Semi-Opaque | F74: Side Track | G74: Automated | H74: 1-D adjustable | I74: 1928640 | J74: TRUE | K74: 0 | L74: 135:Awning | M74: retractable | N74: reflective | O74: open weave | P74: Manual | R74: 2892960 | S74: TRUE | T74: 0 | U74: 17:Interior panel | V74: fixed | W74: glass - triple glazing | X74: low-e | Y74: lsg | AA74: 3385704 | AB74: TRUE | AC74: 0
C75: 88:cellular Shade | D75: multi-cell | E75: Semi-Opaque | F75: Side Track | G75: Automated | H75: 1-D adjustable | I75: 1928640 | J75: TRUE | K75: 0 | L75: 137:Awning | M75: retractable | N75: absorbtive | O75: open weave | P75: Manual | R75: 2892960 | S75: TRUE | T75: 0 | U75: 88:cellular Shade | V75: multi-cell | W75: Semi-Opaque | X75: Side Track | Y75: Automated | Z75: 1-D adjustable | AA75: 3385704 | AB75: TRUE | AC75: 0
C76: Condensed ranked results: | E76: Roller shutter | F76: interior panel | G76: exterior storm | H76: cell shade | I76: roller shade | J76: louvered blind | K76: awning | L76: Condensed ranked results: | N76: Roller shutter | O76: awning | P76: roller shade | Q76: louvered blind | R76: exterior storm | S76: film | T76: interior panel | U76: Condensed ranked results: | W76: Roller shutter | X76: exterior storm | Y76: cell shade | Z76: interior panel | AA76: awning | AB76: roller shade | AC76: louvered blind
A80: HMC4 | B80: South Central | C80: Attribute settings:SHC=7; Summer Comfort=6; Airtightness=6 | L80: HMC4 | M80: South Central | N80: Attribute settings:SHC=7; Summer Comfort=6; Airtightness=6; ventilation=6; operation=6
C81: 145:Roller shutters | D81: insulating | E81: automated | I81: 2540160 | J81: TRUE | K81: 0 | L81: 145:Roller shutters | M81: insulating | N81: automated | R81: 3805536 | S81: TRUE | T81: 0
C82: 17:Interior panel | D82: fixed | E82: glass - triple glazing | F82: low-e | G82: lsg | I82: 2399040 | J82: TRUE | K82: 0 | L82: 146:Roller shutters | M82: non-insulating | N82: automated | R82: 3664416 | S82: TRUE | T82: 0
C83: 146:Roller shutters | D83: non-insulating | E83: automated | I83: 2399040 | J83: TRUE | K83: 0 | L83: 140:Awning | M83: retractable | N83: reflective | O83: tight weave | P83: Automated | R83: 3551520 | S83: TRUE | T83: 0
C84: 5:Exterior storm | D84: Fixed | E84: low-e | F84: LSG | I84: 2234400 | J84: TRUE | K84: 0 | L84: 142:Awning | M84: retractable | N84: absorbtive | O84: tight weave | P84: Automated | R84: 3551520 | S84: TRUE | T84: 0
C85: 15:Interior panel | D85: fixed | E85: glass - double glazing | F85: low-e | G85: lsg | I85: 2234400 | J85: TRUE | K85: 0 | L85: 139:Awning | M85: retractable | N85: reflective | O85: open weave | P85: Automated | R85: 3410400 | S85: TRUE | T85: 0
C86: 47:roller shades | D86: Opaque | E86: exterior | F86: Light Color | G86: tight weave | H86: Automated | I86: 2116800 | J86: TRUE | K86: 0 | L86: 141:Awning | M86: retractable | N86: absorbtive | O86: open weave | P86: Automated | R86: 3410400 | S86: TRUE | T86: 0
C87: 48:roller shades | D87: Opaque | E87: exterior | F87: Dark Color | G87: tight weave | H87: Automated | I87: 2116800 | J87: TRUE | K87: 0 | L87: 47:roller shades | M87: Opaque | N87: exterior | O87: Light Color | P87: tight weave | Q87: Automated | R87: 3382176 | S87: TRUE | T87: 0
C88: 120:Louvered blinds | D88: exterior | E88: horizontal | F88: Automated | I88: 2116800 | J88: TRUE | K88: 0 | L88: 48:roller shades | M88: Opaque | N88: exterior | O88: Dark Color | P88: tight weave | Q88: Automated | R88: 3382176 | S88: TRUE | T88: 0
C89: 122:Louvered blinds | D89: exterior | E89: Vertical | F89: Automated | I89: 2116800 | J89: TRUE | K89: 0 | L89: 120:Louvered blinds | M89: exterior | N89: horizontal | O89: Automated | R89: 3382176 | S89: TRUE | T89: 0
C90: 140:Awning | D90: retractable | E90: reflective | F90: tight weave | G90: Automated | I90: 2116800 | J90: TRUE | K90: 0 | L90: 122:Louvered blinds | M90: exterior | N90: Vertical | O90: Automated | R90: 3382176 | S90: TRUE | T90: 0
C91: 142:Awning | D91: retractable | E91: absorbtive | F91: tight weave | G91: Automated | I91: 2116800 | J91: TRUE | K91: 0 | L91: 2:Exterior storm | M91: tracked | N91: low-e | O91: LSG | R91: 3241056 | S91: TRUE | T91: 0
C92: 2:Exterior storm | D92: tracked | E92: low-e | F92: LSG | I92: 2093280 | J92: TRUE | K92: 0 | L92: 143:Roller shutters | M92: insulating | N92: manual | R92: 3241056 | S92: TRUE | T92: 0
C93: 12:Interior panel | D93: fixed | E93: glass | F93: low-e | G93: lsg | I93: 2093280 | J93: TRUE | K93: 0 | L93: 23:Film | M93: Pro Installation | N93: LSG | R93: 3175200 | S93: TRUE | T93: 0
C94: 16:Interior panel | D94: fixed | E94: glass - triple glazing | F94: low-e | G94: hsg | I94: 2093280 | J94: TRUE | K94: 0 | L94: 25:Film | M94: Pro Installation | N94: low-e LSG | R94: 3175200 | S94: TRUE | T94: 0
C95: 84:cellular Shade | D95: Single | E95: Opaque | F95: Side Track | G95: Automated | H95: 1-D adjustable | I95: 2093280 | J95: TRUE | K95: 0 | L95: 30:Film | M95: DIY | N95: LSG | R95: 3175200 | S95: TRUE | T95: 0
C96: 87:cellular Shade | D96: multi-cell | E96: Opaque | F96: Side Track | G96: Automated | H96: 1-D adjustable | I96: 2093280 | J96: TRUE | K96: 0 | L96: 32:Film | M96: DIY | N96: low-e LSG | R96: 3175200 | S96: TRUE | T96: 0
C97: 104:cellular Shade | D97: Single | E97: Opaque | F97: Side Track | G97: Automated | H97: 2-D adjustable | I97: 2093280 | J97: TRUE | K97: 0 | L97: 136:Awning | M97: retractable | N97: reflective | O97: tight weave | P97: Manual | R97: 3128160 | S97: TRUE | T97: 0
C98: 107:cellular Shade | D98: multi-cell | E98: Opaque | F98: Side Track | G98: Automated | H98: 2-D adjustable | I98: 2093280 | J98: TRUE | K98: 0 | L98: 138:Awning | M98: retractable | N98: absorbtive | O98: tight weave | P98: Manual | R98: 3128160 | S98: TRUE | T98: 0
C99: 143:Roller shutters | D99: insulating | E99: manual | I99: 2093280 | J99: TRUE | K99: 0 | L99: 8:Interior panel | M99: tracked | N99: glass | O99: low-e | P99: lsg | R99: 3099936 | S99: TRUE | T99: 0
C100: 139:Awning | D100: retractable | E100: reflective | F100: open weave | G100: Automated | I100: 1975680 | J100: TRUE | K100: 0 | L100: 144:Roller shutters | M100: non-insulating | N100: manual | R100: 3099936 | S100: TRUE | T100: 0
C101: 141:Awning | D101: retractable | E101: absorbtive | F101: open weave | G101: Automated | I101: 1975680 | J101: TRUE | K101: 0 | L101: 104:cellular Shade | M101: Single | N101: Opaque | O101: Side Track | P101: Automated | Q101: 2-D adjustable | R101: 3019968 | S101: TRUE | T101: 0
C102: 8:Interior panel | D102: tracked | E102: glass | F102: low-e | G102: lsg | I102: 1952160 | J102: TRUE | K102: 0 | L102: 107:cellular Shade | M102: multi-cell | N102: Opaque | O102: Side Track | P102: Automated | Q102: 2-D adjustable | R102: 3019968 | S102: TRUE | T102: 0
C103: 85:cellular Shade | D103: Single | E103: Semi-Opaque | F103: Side Track | G103: Automated | H103: 1-D adjustable | I103: 1952160 | J103: TRUE | K103: 0 | L103: 135:Awning | M103: retractable | N103: reflective | O103: open weave | P103: Manual | R103: 2987040 | S103: TRUE | T103: 0
C104: 88:cellular Shade | D104: multi-cell | E104: Semi-Opaque | F104: Side Track | G104: Automated | H104: 1-D adjustable | I104: 1952160 | J104: TRUE | K104: 0 | L104: 137:Awning | M104: retractable | N104: absorbtive | O104: open weave | P104: Manual | R104: 2987040 | S104: TRUE | T104: 0
C105: 105:cellular Shade | D105: Single | E105: Semi-Opaque | F105: Side Track | G105: Automated | H105: 2-D adjustable | I105: 1952160 | J105: TRUE | K105: 0 | L105: 45:roller shades | M105: Opaque | N105: exterior | O105: Light Color | P105: tight weave | Q105: Manual | R105: 2958816 | S105: TRUE | T105: 0
C106: Condensed ranked results: | E106: Roller shutter | F106: interior panel | G106: exterior storm | H106: roller shade | I106: louvered blind | J106: awning | K106: cell shade | L106: Condensed ranked results: | N106: Roller shutter | O106: awning | P106: roller shade | Q106: louvered blind | R106: exterior storm | S106: film | T106: interior panel
A110: HMC4 | B110: South | C110: Attribute settings:SHC=7; Summer Comfort=6; Airtightness=6 | L110: HMC4 | M110: South | N110: Attribute settings:SHC=7; Summer Comfort=6; Airtightness=6; ventilation=6; operation=6
C111: Same as above | L111: 145:Roller shutters | M111: insulating | N111: automated | R111: 3692640 | S111: TRUE | T111: 0
L112: 146:Roller shutters | M112: non-insulating | N112: automated | R112: 3551520 | S112: TRUE | T112: 0
L113: 140:Awning | M113: retractable | N113: reflective | O113: tight weave | P113: Automated | R113: 3410400 | S113: TRUE | T113: 0
L114: 142:Awning | M114: retractable | N114: absorbtive | O114: tight weave | P114: Automated | R114: 3410400 | S114: TRUE | T114: 0
L115: 47:roller shades | M115: Opaque | N115: exterior | O115: Light Color | P115: tight weave | Q115: Automated | R115: 3269280 | S115: TRUE | T115: 0
L116: 48:roller shades | M116: Opaque | N116: exterior | O116: Dark Color | P116: tight weave | Q116: Automated | R116: 3269280 | S116: TRUE | T116: 0
L117: 120:Louvered blinds | M117: exterior | N117: horizontal | O117: Automated | R117: 3269280 | S117: TRUE | T117: 0
L118: 122:Louvered blinds | M118: exterior | N118: Vertical | O118: Automated | R118: 3269280 | S118: TRUE | T118: 0
L119: 139:Awning | M119: retractable | N119: reflective | O119: open weave | P119: Automated | R119: 3269280 | S119: TRUE | T119: 0
L120: 141:Awning | M120: retractable | N120: absorbtive | O120: open weave | P120: Automated | R120: 3269280 | S120: TRUE | T120: 0
L121: 2:Exterior storm | M121: tracked | N121: low-e | O121: LSG | R121: 3128160 | S121: TRUE | T121: 0
L122: 143:Roller shutters | M122: insulating | N122: manual | R122: 3128160 | S122: TRUE | T122: 0
L123: 23:Film | M123: Pro Installation | N123: LSG | R123: 3034080 | S123: TRUE | T123: 0
L124: 25:Film | M124: Pro Installation | N124: low-e LSG | R124: 3034080 | S124: TRUE | T124: 0
L125: 30:Film | M125: DIY | N125: LSG | R125: 3034080 | S125: TRUE | T125: 0
L126: 32:Film | M126: DIY | N126: low-e LSG | R126: 3034080 | S126: TRUE | T126: 0
L127: 8:Interior panel | M127: tracked | N127: glass | O127: low-e | P127: lsg | R127: 2987040 | S127: TRUE | T127: 0
L128: 136:Awning | M128: retractable | N128: reflective | O128: tight weave | P128: Manual | R128: 2987040 | S128: TRUE | T128: 0
L129: 138:Awning | M129: retractable | N129: absorbtive | O129: tight weave | P129: Manual | R129: 2987040 | S129: TRUE | T129: 0
L130: 144:Roller shutters | M130: non-insulating | N130: manual | R130: 2987040 | S130: TRUE | T130: 0
L131: 104:cellular Shade | M131: Single | N131: Opaque | O131: Side Track | P131: Automated | Q131: 2-D adjustable | R131: 2963520 | S131: TRUE | T131: 0
L132: 107:cellular Shade | M132: multi-cell | N132: Opaque | O132: Side Track | P132: Automated | Q132: 2-D adjustable | R132: 2963520 | S132: TRUE | T132: 0
L133: 45:roller shades | M133: Opaque | N133: exterior | O133: Light Color | P133: tight weave | Q133: Manual | R133: 2845920 | S133: TRUE | T133: 0
L134: 46:roller shades | M134: Opaque | N134: exterior | O134: Dark Color | P134: tight weave | Q134: Manual | R134: 2845920 | S134: TRUE | T134: 0
L135: 51:roller shades | M135: Opaque | N135: interior | O135: Light Color | P135: tight weave | Q135: Automated | R135: 2845920 | S135: TRUE | T135: 0
L136: Condensed ranked results: | N136: Roller shutter | O136: awning | P136: roller shade | Q136: louvered blind | R136: exterior storm | S136: film | T136: interior panel

Sheet HMC5
A5: Record of Help Me Choose Top 5 by Climate: Attribute Settings and Ranking Results
A7: Default Conditions: Base case window=single clear; existing window covering=nil; climate weighting factors:
A10: HMC1 | B10: Reduce my heating bill
A11: HMC2 | B11: Need more privacy
A12: HMC3 | B12: Protect my windows
A13: HMC4 | B13: Reduce my cooling bill
A14: HMC5 | B14: Give me adjustable daylighting
A20: HMC5 | B20: North | C20: Attribute settings: Daylighting=4 | L20: HMC5 | M20: North | N20: Attribute settings:daylighting=4; operation=6 | U20: HMC5 | V20: North | W20: Attribute settings:daylighting=4; operation=6; Insulation=4; Airtightness=3
C21: 99:cellular Shade | D21: Single | E21: Opaque | F21: No side track | G21: Automated | H21: 2-D adjustable | I21: 705600 | J21: TRUE | K21: 0 | L21: Same as to the left | U21: 107:cellular Shade | V21: multi-cell | W21: Opaque | X21: Side Track | Y21: Automated | Z21: 2-D adjustable | AA21: 2116800 | AB21: TRUE | AC21: 0
C22: 100:cellular Shade | D22: Single | E22: Semi-Opaque | F22: No side track | G22: Automated | H22: 2-D adjustable | I22: 705600 | J22: TRUE | K22: 0 | U22: 108:cellular Shade | V22: multi-cell | W22: Semi-Opaque | X22: Side Track | Y22: Automated | Z22: 2-D adjustable | AA22: 2116800 | AB22: TRUE | AC22: 0
C23: 101:cellular Shade | D23: Single | E23: Sheer | F23: No side track | G23: Automated | H23: 2-D adjustable | I23: 705600 | J23: TRUE | K23: 0 | U23: 145:Roller shutters | V23: insulating | W23: automated | AA23: 2116800 | AB23: TRUE | AC23: 0
C24: 102:cellular Shade | D24: multi-cell | E24: Opaque | F24: No side track | G24: Automated | H24: 2-D adjustable | I24: 705600 | J24: TRUE | K24: 0 | U24: 87:cellular Shade | V24: multi-cell | W24: Opaque | X24: Side Track | Y24: Automated | Z24: 1-D adjustable | AA24: 1940400 | AB24: TRUE | AC24: 0
C25: 103:cellular Shade | D25: multi-cell | E25: Semi-Opaque | F25: No side track | G25: Automated | H25: 2-D adjustable | I25: 705600 | J25: TRUE | K25: 0 | U25: 88:cellular Shade | V25: multi-cell | W25: Semi-Opaque | X25: Side Track | Y25: Automated | Z25: 1-D adjustable | AA25: 1940400 | AB25: TRUE | AC25: 0
C26: 104:cellular Shade | D26: Single | E26: Opaque | F26: Side Track | G26: Automated | H26: 2-D adjustable | I26: 705600 | J26: TRUE | K26: 0 | U26: 112:Window quilts | V26: opaque | W26: roller | X26: side track | Y26: Automated | AA26: 1940400 | AB26: TRUE | AC26: 0
C27: 105:cellular Shade | D27: Single | E27: Semi-Opaque | F27: Side Track | G27: Automated | H27: 2-D adjustable | I27: 705600 | J27: TRUE | K27: 0 | U27: 104:cellular Shade | V27: Single | W27: Opaque | X27: Side Track | Y27: Automated | Z27: 2-D adjustable | AA27: 1931580 | AB27: TRUE | AC27: 0
C28: 106:cellular Shade | D28: Single | E28: Sheer | F28: Side Track | G28: Automated | H28: 2-D adjustable | I28: 705600 | J28: TRUE | K28: 0 | U28: 105:cellular Shade | V28: Single | W28: Semi-Opaque | X28: Side Track | Y28: Automated | Z28: 2-D adjustable | AA28: 1931580 | AB28: TRUE | AC28: 0
C29: 107:cellular Shade | D29: multi-cell | E29: Opaque | F29: Side Track | G29: Automated | H29: 2-D adjustable | I29: 705600 | J29: TRUE | K29: 0 | U29: 102:cellular Shade | V29: multi-cell | W29: Opaque | X29: No side track | Y29: Automated | Z29: 2-D adjustable | AA29: 1911000 | AB29: TRUE | AC29: 0
C30: 108:cellular Shade | D30: multi-cell | E30: Semi-Opaque | F30: Side Track | G30: Automated | H30: 2-D adjustable | I30: 705600 | J30: TRUE | K30: 0 | U30: 103:cellular Shade | V30: multi-cell | W30: Semi-Opaque | X30: No side track | Y30: Automated | Z30: 2-D adjustable | AA30: 1911000 | AB30: TRUE | AC30: 0
C31: 120:Louvered blinds | D31: exterior | E31: horizontal | F31: Automated | I31: 705600 | J31: TRUE | K31: 0 | U31: 106:cellular Shade | V31: Single | W31: Sheer | X31: Side Track | Y31: Automated | Z31: 2-D adjustable | AA31: 1849260 | AB31: TRUE | AC31: 0
C32: 122:Louvered blinds | D32: exterior | E32: Vertical | F32: Automated | I32: 705600 | J32: TRUE | K32: 0 | U32: 97:cellular Shade | V32: multi-cell | W32: Opaque | X32: Side Track | Y32: Manual | Z32: 2-D adjustable | AA32: 1822800 | AB32: TRUE | AC32: 0
C33: 125:Louvered blinds | D33: interior | E33: horizontal | F33: reflective | G33: Automated | I33: 705600 | J33: TRUE | K33: 0 | U33: 98:cellular Shade | V33: multi-cell | W33: Semi-Opaque | X33: Side Track | Y33: Manual | Z33: 2-D adjustable | AA33: 1822800 | AB33: TRUE | AC33: 0
C34: 126:Louvered blinds | D34: interior | E34: horizontal | F34: absorbtive | G34: Automated | I34: 705600 | J34: TRUE | K34: 0 | U34: 113:Window quilts | V34: opaque | W34: roller | X34: no - side track | Y34: Automated | AA34: 1796340 | AB34: TRUE | AC34: 0
C35: 129:Louvered blinds | D35: interior | E35: Vertical | F35: reflective | G35: Automated | I35: 705600 | J35: TRUE | K35: 0 | U35: 117:Window quilts | V35: Translucent | W35: roller | X35: side track | Y35: Automated | AA35: 1796340 | AB35: TRUE | AC35: 0
C36: 130:Louvered blinds | D36: interior | E36: Vertical | F36: absorbtive | G36: Automated | I36: 705600 | J36: TRUE | K36: 0 | U36: 99:cellular Shade | V36: Single | W36: Opaque | X36: No side track | Y36: Automated | Z36: 2-D adjustable | AA36: 1787520 | AB36: TRUE | AC36: 0
C37: 139:Awning | D37: retractable | E37: reflective | F37: open weave | G37: Automated | I37: 705600 | J37: TRUE | K37: 0 | U37: 100:cellular Shade | V37: Single | W37: Semi-Opaque | X37: No side track | Y37: Automated | Z37: 2-D adjustable | AA37: 1787520 | AB37: TRUE | AC37: 0
C38: 140:Awning | D38: retractable | E38: reflective | F38: tight weave | G38: Automated | I38: 705600 | J38: TRUE | K38: 0 | U38: 146:Roller shutters | V38: non-insulating | W38: automated | AA38: 1787520 | AB38: TRUE | AC38: 0
C39: 141:Awning | D39: retractable | E39: absorbtive | F39: open weave | G39: Automated | I39: 705600 | J39: TRUE | K39: 0 | U39: 143:Roller shutters | V39: insulating | W39: manual | AA39: 1761060 | AB39: TRUE | AC39: 0
C40: 142:Awning | D40: retractable | E40: absorbtive | F40: tight weave | G40: Automated | I40: 705600 | J40: TRUE | K40: 0 | U40: 84:cellular Shade | V40: Single | W40: Opaque | X40: Side Track | Y40: Automated | Z40: 1-D adjustable | AA40: 1755180 | AB40: TRUE | AC40: 0
C41: 145:Roller shutters | D41: insulating | E41: automated | I41: 705600 | J41: TRUE | K41: 0 | U41: 85:cellular Shade | V41: Single | W41: Semi-Opaque | X41: Side Track | Y41: Automated | Z41: 1-D adjustable | AA41: 1755180 | AB41: TRUE | AC41: 0
C42: 146:Roller shutters | D42: non-insulating | E42: automated | I42: 705600 | J42: TRUE | K42: 0 | U42: 82:cellular Shade | V42: multi-cell | W42: Opaque | X42: No side track | Y42: Automated | Z42: 1-D adjustable | AA42: 1734600 | AB42: TRUE | AC42: 0
C43: 47:roller shades | D43: Opaque | E43: exterior | F43: Light Color | G43: tight weave | H43: Automated | I43: 529200 | J43: TRUE | K43: 0 | U43: 83:cellular Shade | V43: multi-cell | W43: Semi-Opaque | X43: No side track | Y43: Automated | Z43: 1-D adjustable | AA43: 1734600 | AB43: TRUE | AC43: 0
C44: 48:roller shades | D44: Opaque | E44: exterior | F44: Dark Color | G44: tight weave | H44: Automated | I44: 529200 | J44: TRUE | K44: 0 | U44: 101:cellular Shade | V44: Single | W44: Sheer | X44: No side track | Y44: Automated | Z44: 2-D adjustable | AA44: 1705200 | AB44: TRUE | AC44: 0
C45: 51:roller shades | D45: Opaque | E45: interior | F45: Light Color | G45: tight weave | H45: Automated | I45: 529200 | J45: TRUE | K45: 0 | U45: 86:cellular Shade | V45: Single | W45: Sheer | X45: Side Track | Y45: Automated | Z45: 1-D adjustable | AA45: 1672860 | AB45: TRUE | AC45: 0
C46: Condensed ranked results: | E46: cell shade | F46: louvered blind | G46: awning | H46: roller shutter | I46: roller shade | U46: Condensed ranked results: | W46: cell shade | X46: roller shutter | Y46: window quilt
A50: HMC5 | B50: North Central | C50: Attribute settings: Daylighting=4 | L50: HMC5 | M50: North Central | N50: Attribute settings:daylighting=4; operation=6 | U50: HMC5 | V50: North Central | W50: Attribute settings:daylighting=4; operation=6; Insulation=3; Airtightness=3
C51: Same as above | L51: Same as above | U51: 107:cellular Shade | V51: multi-cell | W51: Opaque | X51: Side Track | Y51: Automated | Z51: 2-D adjustable | AA51: 2116800 | AB51: TRUE | AC51: 0
U52: 108:cellular Shade | V52: multi-cell | W52: Semi-Opaque | X52: Side Track | Y52: Automated | Z52: 2-D adjustable | AA52: 2116800 | AB52: TRUE | AC52: 0
U53: 145:Roller shutters | V53: insulating | W53: automated | AA53: 2116800 | AB53: TRUE | AC53: 0
U54: 87:cellular Shade | V54: multi-cell | W54: Opaque | X54: Side Track | Y54: Automated | Z54: 1-D adjustable | AA54: 1940400 | AB54: TRUE | AC54: 0
U55: 88:cellular Shade | V55: multi-cell | W55: Semi-Opaque | X55: Side Track | Y55: Automated | Z55: 1-D adjustable | AA55: 1940400 | AB55: TRUE | AC55: 0
U56: 112:Window quilts | V56: opaque | W56: roller | X56: side track | Y56: Automated | AA56: 1940400 | AB56: TRUE | AC56: 0
U57: 104:cellular Shade | V57: Single | W57: Opaque | X57: Side Track | Y57: Automated | Z57: 2-D adjustable | AA57: 1931580 | AB57: TRUE | AC57: 0
U58: 105:cellular Shade | V58: Single | W58: Semi-Opaque | X58: Side Track | Y58: Automated | Z58: 2-D adjustable | AA58: 1931580 | AB58: TRUE | AC58: 0
U59: 102:cellular Shade | V59: multi-cell | W59: Opaque | X59: No side track | Y59: Automated | Z59: 2-D adjustable | AA59: 1911000 | AB59: TRUE | AC59: 0
U60: 103:cellular Shade | V60: multi-cell | W60: Semi-Opaque | X60: No side track | Y60: Automated | Z60: 2-D adjustable | AA60: 1911000 | AB60: TRUE | AC60: 0
U61: 106:cellular Shade | V61: Single | W61: Sheer | X61: Side Track | Y61: Automated | Z61: 2-D adjustable | AA61: 1849260 | AB61: TRUE | AC61: 0
U62: 97:cellular Shade | V62: multi-cell | W62: Opaque | X62: Side Track | Y62: Manual | Z62: 2-D adjustable | AA62: 1822800 | AB62: TRUE | AC62: 0
U63: 98:cellular Shade | V63: multi-cell | W63: Semi-Opaque | X63: Side Track | Y63: Manual | Z63: 2-D adjustable | AA63: 1822800 | AB63: TRUE | AC63: 0
U64: 113:Window quilts | V64: opaque | W64: roller | X64: no - side track | Y64: Automated | AA64: 1796340 | AB64: TRUE | AC64: 0
U65: 117:Window quilts | V65: Translucent | W65: roller | X65: side track | Y65: Automated | AA65: 1796340 | AB65: TRUE | AC65: 0
U66: 99:cellular Shade | V66: Single | W66: Opaque | X66: No side track | Y66: Automated | Z66: 2-D adjustable | AA66: 1787520 | AB66: TRUE | AC66: 0
U67: 100:cellular Shade | V67: Single | W67: Semi-Opaque | X67: No side track | Y67: Automated | Z67: 2-D adjustable | AA67: 1787520 | AB67: TRUE | AC67: 0
U68: 146:Roller shutters | V68: non-insulating | W68: automated | AA68: 1787520 | AB68: TRUE | AC68: 0
U69: 143:Roller shutters | V69: insulating | W69: manual | AA69: 1761060 | AB69: TRUE | AC69: 0
U70: 84:cellular Shade | V70: Single | W70: Opaque | X70: Side Track | Y70: Automated | Z70: 1-D adjustable | AA70: 1755180 | AB70: TRUE | AC70: 0
U71: 85:cellular Shade | V71: Single | W71: Semi-Opaque | X71: Side Track | Y71: Automated | Z71: 1-D adjustable | AA71: 1755180 | AB71: TRUE | AC71: 0
U72: 82:cellular Shade | V72: multi-cell | W72: Opaque | X72: No side track | Y72: Automated | Z72: 1-D adjustable | AA72: 1734600 | AB72: TRUE | AC72: 0
U73: 83:cellular Shade | V73: multi-cell | W73: Semi-Opaque | X73: No side track | Y73: Automated | Z73: 1-D adjustable | AA73: 1734600 | AB73: TRUE | AC73: 0
U74: 101:cellular Shade | V74: Single | W74: Sheer | X74: No side track | Y74: Automated | Z74: 2-D adjustable | AA74: 1705200 | AB74: TRUE | AC74: 0
U75: 86:cellular Shade | V75: Single | W75: Sheer | X75: Side Track | Y75: Automated | Z75: 1-D adjustable | AA75: 1672860 | AB75: TRUE | AC75: 0
U76: Condensed ranked results: | W76: cell shade | X76: roller shutter | Y76: window quilt
A80: HMC5 | B80: South Central | C80: Attribute settings: Daylighting=4 | L80: HMC5 | M80: South Central | N80: Attribute settings:daylighting=4; operation=6 | U80: HMC5 | V80: South Central | W80: Attribute settings:daylighting=4; operation=6;SHC=4; Airtightness=3
C81: Same as above | L81: Same as above | U81: 145:Roller shutters | V81: insulating | W81: automated | AA81: 2140320 | AB81: TRUE | AC81: 0
U82: 146:Roller shutters | V82: non-insulating | W82: automated | AA82: 2069760 | AB82: TRUE | AC82: 0
U83: 104:cellular Shade | V83: Single | W83: Opaque | X83: Side Track | Y83: Automated | Z83: 2-D adjustable | AA83: 1979040 | AB83: TRUE | AC83: 0
U84: 107:cellular Shade | V84: multi-cell | W84: Opaque | X84: Side Track | Y84: Automated | Z84: 2-D adjustable | AA84: 1979040 | AB84: TRUE | AC84: 0
U85: 120:Louvered blinds | V85: exterior | W85: horizontal | X85: Automated | AA85: 1928640 | AB85: TRUE | AC85: 0
U86: 122:Louvered blinds | V86: exterior | W86: Vertical | X86: Automated | AA86: 1928640 | AB86: TRUE | AC86: 0
U87: 140:Awning | V87: retractable | W87: reflective | X87: tight weave | Y87: Automated | AA87: 1928640 | AB87: TRUE | AC87: 0
U88: 142:Awning | V88: retractable | W88: absorbtive | X88: tight weave | Y88: Automated | AA88: 1928640 | AB88: TRUE | AC88: 0
U89: 105:cellular Shade | V89: Single | W89: Semi-Opaque | X89: Side Track | Y89: Automated | Z89: 2-D adjustable | AA89: 1898400 | AB89: TRUE | AC89: 0
U90: 108:cellular Shade | V90: multi-cell | W90: Semi-Opaque | X90: Side Track | Y90: Automated | Z90: 2-D adjustable | AA90: 1898400 | AB90: TRUE | AC90: 0
U91: 139:Awning | V91: retractable | W91: reflective | X91: open weave | Y91: Automated | AA91: 1848000 | AB91: TRUE | AC91: 0
U92: 141:Awning | V92: retractable | W92: absorbtive | X92: open weave | Y92: Automated | AA92: 1848000 | AB92: TRUE | AC92: 0
U93: 99:cellular Shade | V93: Single | W93: Opaque | X93: No side track | Y93: Automated | Z93: 2-D adjustable | AA93: 1827840 | AB93: TRUE | AC93: 0
U94: 102:cellular Shade | V94: multi-cell | W94: Opaque | X94: No side track | Y94: Automated | Z94: 2-D adjustable | AA94: 1827840 | AB94: TRUE | AC94: 0
U95: 106:cellular Shade | V95: Single | W95: Sheer | X95: Side Track | Y95: Automated | Z95: 2-D adjustable | AA95: 1827840 | AB95: TRUE | AC95: 0
U96: 84:cellular Shade | V96: Single | W96: Opaque | X96: Side Track | Y96: Automated | Z96: 1-D adjustable | AA96: 1802640 | AB96: TRUE | AC96: 0
U97: 87:cellular Shade | V97: multi-cell | W97: Opaque | X97: Side Track | Y97: Automated | Z97: 1-D adjustable | AA97: 1802640 | AB97: TRUE | AC97: 0
U98: 112:Window quilts | V98: opaque | W98: roller | X98: side track | Y98: Automated | AA98: 1802640 | AB98: TRUE | AC98: 0
U99: 125:Louvered blinds | V99: interior | W99: horizontal | X99: reflective | Y99: Automated | AA99: 1767360 | AB99: TRUE | AC99: 0
U100: 129:Louvered blinds | V100: interior | W100: Vertical | X100: reflective | Y100: Automated | AA100: 1767360 | AB100: TRUE | AC100: 0
U101: 47:roller shades | V101: Opaque | W101: exterior | X101: Light Color | Y101: tight weave | Z101: Automated | AA101: 1752240 | AB101: TRUE | AC101: 0
U102: 48:roller shades | V102: Opaque | W102: exterior | X102: Dark Color | Y102: tight weave | Z102: Automated | AA102: 1752240 | AB102: TRUE | AC102: 0
U103: 100:cellular Shade | V103: Single | W103: Semi-Opaque | X103: No side track | Y103: Automated | Z103: 2-D adjustable | AA103: 1747200 | AB103: TRUE | AC103: 0
U104: 103:cellular Shade | V104: multi-cell | W104: Semi-Opaque | X104: No side track | Y104: Automated | Z104: 2-D adjustable | AA104: 1747200 | AB104: TRUE | AC104: 0
U105: 85:cellular Shade | V105: Single | W105: Semi-Opaque | X105: Side Track | Y105: Automated | Z105: 1-D adjustable | AA105: 1722000 | AB105: TRUE | AC105: 0
U106: Condensed ranked results: | W106: roller shutter | X106: cell shade | Y106: louvered blind | Z106: awning | AA106: window quilt
A110: HMC5 | B110: South | C110: Attribute settings: Daylighting=4 | L110: HMC5 | M110: South | N110: Attribute settings:daylighting=4; operation=6 | U110: HMC5 | V110: South | W110: Attribute settings:daylighting=4; operation=6;SHC=7; Airtightness=3
C111: Same as above | L111: Same as above | U111: 145:Roller shutters | V111: insulating | W111: automated | AA111: 2563680 | AB111: TRUE | AC111: 0
U112: 146:Roller shutters | V112: non-insulating | W112: automated | AA112: 2493120 | AB112: TRUE | AC112: 0
U113: 120:Louvered blinds | V113: exterior | W113: horizontal | X113: Automated | AA113: 2352000 | AB113: TRUE | AC113: 0
U114: 122:Louvered blinds | V114: exterior | W114: Vertical | X114: Automated | AA114: 2352000 | AB114: TRUE | AC114: 0
U115: 140:Awning | V115: retractable | W115: reflective | X115: tight weave | Y115: Automated | AA115: 2352000 | AB115: TRUE | AC115: 0
U116: 142:Awning | V116: retractable | W116: absorbtive | X116: tight weave | Y116: Automated | AA116: 2352000 | AB116: TRUE | AC116: 0
U117: 104:cellular Shade | V117: Single | W117: Opaque | X117: Side Track | Y117: Automated | Z117: 2-D adjustable | AA117: 2281440 | AB117: TRUE | AC117: 0
U118: 107:cellular Shade | V118: multi-cell | W118: Opaque | X118: Side Track | Y118: Automated | Z118: 2-D adjustable | AA118: 2281440 | AB118: TRUE | AC118: 0
U119: 139:Awning | V119: retractable | W119: reflective | X119: open weave | Y119: Automated | AA119: 2210880 | AB119: TRUE | AC119: 0
U120: 141:Awning | V120: retractable | W120: absorbtive | X120: open weave | Y120: Automated | AA120: 2210880 | AB120: TRUE | AC120: 0
U121: 47:roller shades | V121: Opaque | W121: exterior | X121: Light Color | Y121: tight weave | Z121: Automated | AA121: 2175600 | AB121: TRUE | AC121: 0
U122: 48:roller shades | V122: Opaque | W122: exterior | X122: Dark Color | Y122: tight weave | Z122: Automated | AA122: 2175600 | AB122: TRUE | AC122: 0
U123: 105:cellular Shade | V123: Single | W123: Semi-Opaque | X123: Side Track | Y123: Automated | Z123: 2-D adjustable | AA123: 2140320 | AB123: TRUE | AC123: 0
U124: 108:cellular Shade | V124: multi-cell | W124: Semi-Opaque | X124: Side Track | Y124: Automated | Z124: 2-D adjustable | AA124: 2140320 | AB124: TRUE | AC124: 0
U125: 84:cellular Shade | V125: Single | W125: Opaque | X125: Side Track | Y125: Automated | Z125: 1-D adjustable | AA125: 2105040 | AB125: TRUE | AC125: 0
U126: 87:cellular Shade | V126: multi-cell | W126: Opaque | X126: Side Track | Y126: Automated | Z126: 1-D adjustable | AA126: 2105040 | AB126: TRUE | AC126: 0
U127: 112:Window quilts | V127: opaque | W127: roller | X127: side track | Y127: Automated | AA127: 2105040 | AB127: TRUE | AC127: 0
U128: 99:cellular Shade | V128: Single | W128: Opaque | X128: No side track | Y128: Automated | Z128: 2-D adjustable | AA128: 2069760 | AB128: TRUE | AC128: 0
U129: 102:cellular Shade | V129: multi-cell | W129: Opaque | X129: No side track | Y129: Automated | Z129: 2-D adjustable | AA129: 2069760 | AB129: TRUE | AC129: 0
U130: 106:cellular Shade | V130: Single | W130: Sheer | X130: Side Track | Y130: Automated | Z130: 2-D adjustable | AA130: 2069760 | AB130: TRUE | AC130: 0
U131: 125:Louvered blinds | V131: interior | W131: horizontal | X131: reflective | Y131: Automated | AA131: 2069760 | AB131: TRUE | AC131: 0
U132: 129:Louvered blinds | V132: interior | W132: Vertical | X132: reflective | Y132: Automated | AA132: 2069760 | AB132: TRUE | AC132: 0
U133: 143:Roller shutters | V133: insulating | W133: manual | AA133: 1987440 | AB133: TRUE | AC133: 0
U134: 85:cellular Shade | V134: Single | W134: Semi-Opaque | X134: Side Track | Y134: Automated | Z134: 1-D adjustable | AA134: 1963920 | AB134: TRUE | AC134: 0
U135: 88:cellular Shade | V135: multi-cell | W135: Semi-Opaque | X135: Side Track | Y135: Automated | Z135: 1-D adjustable | AA135: 1963920 | AB135: TRUE | AC135: 0
U136: Condensed ranked results: | W136: roller shutter | X136: louvered blind | Y136: awning | Z136: cell shade | AA136: roller shade

Sheet Table Attributes (Archive)
B2: TABLE VALUE LOGIC AND KEY
E4: ATTRIBUTES
E5: Thermal | L5: Visual | Q5: Functionality | W5: Cost | Z5: Ease
E6: Insulation | F6: Airtightness | G6: Solar Heat Control | H6: Winter Comfort | I6: Summer Comfort | J6: Condensation Resistance | K6: Ventilation | L6: View | M6: Visible Transmittance (VT) | N6: Daylighting | O6: Glare Control | P6: Privacy | Q6: Adjustability | R6: Prime Window Protection | S6: Egress | T6: Security | U6: Noise Control | V6: Sound Abosrption | W6: Product Cost | X6: Installation Cost | Y6: Durability - Service Life | Z6: Operation | AA6: Cleaning | AB6: Repair
D7: Value | E7: Max value = 8 | F7: Max value = 6 | G7: Max value = 8 | H7: Max value = 6 | I7: Max value = 6 | J7: Max value = 4 | K7: Max value = 5 | L7: Max value = 5 | M7: Max value = 8 | N7: Max value = 4 | O7: Max value = 4 | P7: Max value = 4 | Q7: Max value = 4 | R7: Max value = 4 | S7: Max value = 4 | T7: Max value = 4 | U7: Max value = 4 | V7: Max value = 4 | W7: Max value = 8 | X7: Max value = 4 | Y7: Max value = 7 | Z7: Max value = 7 | AA7: Max value = 4 | AB7: Max value = 3
B8: Cell Value Range | D8: 0 | F8: does not apply | G8: does not apply | H8: does not apply | I8: does not apply | J8: does not apply | K8: does not apply | L8: does not apply | M8: does not apply | N8: does not apply | O8: does not apply | P8: does not apply | Q8: does not apply | R8: does not apply | S8: does not apply | T8: does not apply | U8: does not apply | V8: does not apply | W8: does not apply | X8: does not apply | Y8: does not apply | Z8: does not apply | AA8: does not apply | AB8: does not apply
